Workbook

Sheet 292 Club
A1: State Qualifiers (ctrl+q)
A2: School | B2: Name | C2: Score
A3: =IF(C3=0,0,IF(C3>291,TEAMS!$AC$1,0)) -> CV | B3: =IF(C3=0,0,IF(C3>291,TEAMS!$AC$2,0)) -> Evans, Lucy (12) | C3: =IF(TEAMS!AC$3=0,0,IF(TEAMS!AC$3>291,TEAMS!AC$3,0)) -> 294 | D3: 1
A4: =IF(C4=0,0,IF(C4>291,TEAMS!$AC$1028,0)) -> 0 | B4: =IF(C4=0,0,IF(C4>291,TEAMS!AE$1029,0)) -> 0 | C4: =IF(TEAMS!AE$1030=0,0,IF(TEAMS!AE$1030>291,TEAMS!AE$1030,0)) -> 0 | D4: 2
A5: =IF(C5=0,0,IF(C5>291,TEAMS!$AC$1,0)) -> 0 | B5: =IF(C5=0,0,IF(C5>291,TEAMS!$AD$2,0)) -> 0 | C5: =IF(TEAMS!$AD$3=0,0,IF(TEAMS!$AD$3>291,TEAMS!$AD$3,0)) -> 0 | D5: 3
A6: =IF(C6=0,0,IF(C6>291,TEAMS!$AC$78,0)) -> 0 | B6: =IF(C6=0,0,IF(C6>291,TEAMS!AC79,0)) -> 0 | C6: =IF(TEAMS!AC80=0,0,IF(TEAMS!AC80>291,TEAMS!AC80,0)) -> 0 | D6: 4
A7: =IF(C7=0,0,IF(C7>291,TEAMS!$AC$78,0)) -> 0 | B7: =IF(C7=0,0,IF(C7>291,TEAMS!AE79,0)) -> 0 | C7: =IF(TEAMS!AE80=0,0,IF(TEAMS!AE80>291,TEAMS!AE80,0)) -> 0 | D7: 5
A8: =IF(C8=0,0,IF(C8>291,TEAMS!$AC$297,0)) -> 0 | B8: =IF(C8=0,0,IF(C8>291,TEAMS!$AC$298,0)) -> 0 | C8: =IF(TEAMS!AC$299=0,0,IF(TEAMS!AC$299>291,TEAMS!AC$299,0)) -> 0 | D8: 6
A9: =IF(C9=0,0,IF(C9>291,TEAMS!$AC$1028,0)) -> 0 | B9: =IF(C9=0,0,IF(C9>291,TEAMS!AE$1029,0)) -> 0 | C9: =IF(TEAMS!AE$1030=0,0,IF(TEAMS!AE$1030>291,TEAMS!AE$1030,0)) -> 0 | D9: 7
A10: =IF(C10=0,0,IF(C10>291,TEAMS!$AC$297,0)) -> 0 | B10: =IF(C10=0,0,IF(C10>291,TEAMS!$AF$298,0)) -> 0 | C10: =IF(TEAMS!AF$299=0,0,IF(TEAMS!AF$299>291,TEAMS!AF$299,0)) -> 0 | D10: 8
A11: =IF(C11=0,0,IF(C11>291,TEAMS!$AC$1028,0)) -> 0 | B11: =IF(C11=0,0,IF(C11>291,TEAMS!AC$1029,0)) -> 0 | C11: =IF(TEAMS!AC$1030=0,0,IF(TEAMS!AC$1030>291,TEAMS!AC$1030,0)) -> 0 | D11: 9
A12: =IF(C12=0,0,IF(C12>291,TEAMS!$AC$1028,0)) -> 0 | B12: =IF(C12=0,0,IF(C12>291,TEAMS!AD$1029,0)) -> 0 | C12: =IF(TEAMS!AD$1030=0,0,IF(TEAMS!AD$1030>291,TEAMS!AD$1030,0)) -> 0 | D12: 10
A13: =IF(C13=0,0,IF(C13>291,TEAMS!$AC$723,0)) -> 0 | B13: =IF(C13=0,0,IF(C13>291,TEAMS!AC$724,0)) -> 0 | C13: =IF(TEAMS!AC$725=0,0,IF(TEAMS!AC$725>291,TEAMS!AC$725,0)) -> 0 | D13: 11
A14: =IF(C14=0,0,IF(C14>291,TEAMS!$AC$297,0)) -> 0 | B14: =IF(C14=0,0,IF(C14>291,TEAMS!$AG$298,0)) -> 0 | C14: =IF(TEAMS!AG$299=0,0,IF(TEAMS!AG$299>291,TEAMS!AG$299,0)) -> 0 | D14: 12
A15: =IF(C15=0,0,IF(C15>291,TEAMS!$AC$723,0)) -> 0 | B15: =IF(C15=0,0,IF(C15>291,TEAMS!AD$724,0)) -> 0 | C15: =IF(TEAMS!AD$725=0,0,IF(TEAMS!AD$725>291,TEAMS!AD$725,0)) -> 0 | D15: 13
A16: =IF(C16=0,0,IF(C16>291,TEAMS!AC516,0)) -> 0 | B16: =IF(C16=0,0,IF(C16>291,TEAMS!AC517,0)) -> 0 | C16: =IF(TEAMS!AC518=0,0,IF(TEAMS!AC518>291,TEAMS!AC518,0)) -> 0 | D16: 14
A17: =IF(C17=0,0,IF(C17>291,TEAMS!$AC$784,0)) -> 0 | B17: =IF(C17=0,0,IF(C17>291,TEAMS!AE$785,0)) -> 0 | C17: =IF(TEAMS!AE$786=0,0,IF(TEAMS!AE$786>291,TEAMS!AE$786,0)) -> 0 | D17: 15
A18: =IF(C18=0,0,IF(C18>291,TEAMS!$AC$784,0)) -> 0 | B18: =IF(C18=0,0,IF(C18>291,TEAMS!AF$785,0)) -> 0 | C18: =IF(TEAMS!AF$786=0,0,IF(TEAMS!AF$786>291,TEAMS!AF$786,0)) -> 0 | D18: 16
A19: =IF(C19=0,0,IF(C19>291,TEAMS!$AC$224,0)) -> 0 | B19: =IF(C19=0,0,IF(C19>291,TEAMS!AD225,0)) -> 0 | C19: =IF(TEAMS!AD226=0,0,IF(TEAMS!AD226>291,TEAMS!AD226,0)) -> 0 | D19: 17
A20: =IF(C20=0,0,IF(C20>291,TEAMS!$AC$784,0)) -> 0 | B20: =IF(C20=0,0,IF(C20>291,TEAMS!AC$785,0)) -> 0 | C20: =IF(TEAMS!AC$786=0,0,IF(TEAMS!AC$786>291,TEAMS!AC$786,0)) -> 0 | D20: 18
A21: =IF(C21=0,0,IF(C21>291,TEAMS!$AC$1089,0)) -> 0 | B21: =IF(C21=0,0,IF(C21>291,TEAMS!$AC$1090,0)) -> 0 | C21: =IF(TEAMS!AC$1091=0,0,IF(TEAMS!AC$1091>291,TEAMS!AC$1091,0)) -> 0 | D21: 19
A22: =IF(C22=0,0,IF(C22>291,TEAMS!$AC$224,0)) -> 0 | B22: =IF(C22=0,0,IF(C22>291,TEAMS!AC249,0)) -> 0 | C22: =IF(TEAMS!AC250=0,0,IF(TEAMS!AC250>291,TEAMS!AC250,0)) -> 0 | D22: 20
A23: =IF(C23=0,0,IF(C23>291,TEAMS!$AC$845,0)) -> 0 | B23: =IF(C23=0,0,IF(C23>291,TEAMS!AD$846,0)) -> 0 | C23: =IF(TEAMS!AD$847=0,0,IF(TEAMS!AD$847>291,TEAMS!AD$847,0)) -> 0 | D23: 21
A24: =IF(C24=0,0,IF(C24>291,TEAMS!$AC$784,0)) -> 0 | B24: =IF(C24=0,0,IF(C24>291,TEAMS!AD$785,0)) -> 0 | C24: =IF(TEAMS!AD$786=0,0,IF(TEAMS!AD$786>291,TEAMS!AD$786,0)) -> 0 | D24: 22
A25: =IF(C25=0,0,IF(C25>291,TEAMS!$AC$1089,0)) -> 0 | B25: =IF(C25=0,0,IF(C25>291,TEAMS!$AF$1090,0)) -> 0 | C25: =IF(TEAMS!AF$1091=0,0,IF(TEAMS!AF$1091>291,TEAMS!AF$1091,0)) -> 0 | D25: 23
A26: =IF(C26=0,0,IF(C26>291,TEAMS!$AC$1089,0)) -> 0 | B26: =IF(C26=0,0,IF(C26>291,TEAMS!$AG$1090,0)) -> 0 | C26: =IF(TEAMS!AG$1091=0,0,IF(TEAMS!AG$1091>291,TEAMS!AG$1091,0)) -> 0 | D26: 24
A27: =IF(C27=0,0,IF(C27>291,TEAMS!$AC$1089,0)) -> 0 | B27: =IF(C27=0,0,IF(C27>291,TEAMS!$AD$1090,0)) -> 0 | C27: =IF(TEAMS!AD$1091=0,0,IF(TEAMS!AD$1091>291,TEAMS!AD$1091,0)) -> 0 | D27: 25
A28: =IF(C28=0,0,IF(C28>291,TEAMS!$AC$224,0)) -> 0 | B28: =IF(C28=0,0,IF(C28>291,TEAMS!AE225,0)) -> 0 | C28: =IF(TEAMS!AE226=0,0,IF(TEAMS!AE226>291,TEAMS!AE226,0)) -> 0 | D28: 26
A29: =IF(C29=0,0,IF(C29>291,TEAMS!$AC$784,0)) -> 0 | B29: =IF(C29=0,0,IF(C29>291,TEAMS!AF$805,0)) -> 0 | C29: =IF(TEAMS!AF$806=0,0,IF(TEAMS!AF$806>291,TEAMS!AF$806,0)) -> 0 | D29: 27
A30: =IF(C30=0,0,IF(C30>291,TEAMS!$AC$224,0)) -> 0 | B30: =IF(C30=0,0,IF(C30>291,TEAMS!AC225,0)) -> 0 | C30: =IF(TEAMS!AC226=0,0,IF(TEAMS!AC226>291,TEAMS!AC226,0)) -> 0 | D30: 28
A31: =IF(C31=0,0,IF(C31>291,TEAMS!$AC$845,0)) -> 0 | B31: =IF(C31=0,0,IF(C31>291,TEAMS!AE$846,0)) -> 0 | C31: =IF(TEAMS!AE$847=0,0,IF(TEAMS!AE$847>291,TEAMS!AE$847,0)) -> 0 | D31: 29
A32: =IF(C32=0,0,IF(C32>291,TEAMS!$AC$784,0)) -> 0 | B32: =IF(C32=0,0,IF(C32>291,TEAMS!AG$785,0)) -> 0 | C32: =IF(TEAMS!AG$786=0,0,IF(TEAMS!AG$786>291,TEAMS!AG$786,0)) -> 0 | D32: 30
A33: =IF(C33=0,0,IF(C33>291,TEAMS!$AC$906,0)) -> 0 | B33: =IF(C33=0,0,IF(C33>291,TEAMS!AE$907,0)) -> 0 | C33: =IF(TEAMS!AE$908=0,0,IF(TEAMS!AE$908>291,TEAMS!AE$908,0)) -> 0 | D33: 31
A34: =IF(C34=0,0,IF(C34>291,TEAMS!$AC$1,0)) -> 0 | B34: =IF(C34=0,0,IF(C34>291,TEAMS!$AE$2,0)) -> 0 | C34: =IF(TEAMS!$AE$3=0,0,IF(TEAMS!$AE$3>291,TEAMS!$AE$3,0)) -> 0 | D34: 32
A35: =IF(C35=0,0,IF(C35>291,TEAMS!$AC$1,0)) -> 0 | B35: =IF(C35=0,0,IF(C35>291,TEAMS!$AF$2,0)) -> 0 | C35: =IF(TEAMS!$AF$3=0,0,IF(TEAMS!$AF$3>291,TEAMS!$AF$3,0)) -> 0 | D35: 33
A36: =IF(C36=0,0,IF(C36>291,TEAMS!$AC$1,0)) -> 0 | B36: =IF(C36=0,0,IF(C36>291,TEAMS!$AG$2,0)) -> 0 | C36: =IF(TEAMS!$AG$3=0,0,IF(TEAMS!$AG$3>291,TEAMS!$AG$3,0)) -> 0 | D36: 34
A37: =IF(C37=0,0,IF(C37>291,TEAMS!$AC$29,0)) -> 0 | B37: =IF(C37=0,0,IF(C37>291,TEAMS!$AC$30,0)) -> 0 | C37: =IF(TEAMS!$AC$31=0,0,IF(TEAMS!$AC$31>291,TEAMS!$AC$31,0)) -> 0 | D37: 35
A38: =IF(C38=0,0,IF(C38>291,TEAMS!$AC$29,0)) -> 0 | B38: =IF(C38=0,0,IF(C38>291,TEAMS!$AD$30,0)) -> 0 | C38: =IF(TEAMS!$AD$31=0,0,IF(TEAMS!$AD$31>291,TEAMS!$AD$31,0)) -> 0 | D38: 36
A39: =IF(C39=0,0,IF(C39>291,TEAMS!$AC$29,0)) -> 0 | B39: =IF(C39=0,0,IF(C39>291,TEAMS!$AE$30,0)) -> 0 | C39: =IF(TEAMS!$AE$31=0,0,IF(TEAMS!$AE$31>291,TEAMS!$AE$31,0)) -> 0 | D39: 37
A40: =IF(C40=0,0,IF(C40>291,TEAMS!$AC$29,0)) -> 0 | B40: =IF(C40=0,0,IF(C40>291,TEAMS!$AF$30,0)) -> 0 | C40: =IF(TEAMS!$AF$31=0,0,IF(TEAMS!$AF$31>291,TEAMS!$AF$31,0)) -> 0 | D40: 38
A41: =IF(C41=0,0,IF(C41>291,TEAMS!$AC$53,0)) -> 0 | B41: =IF(C41=0,0,IF(C41>291,TEAMS!$AG$30,0)) -> 0 | C41: =IF(TEAMS!$AG$31=0,0,IF(TEAMS!$AG$31>291,TEAMS!$AG$31,0)) -> 0 | D41: 39
A42: =IF(C42=0,0,IF(C42>291,TEAMS!$AC$53,0)) -> 0 | B42: =IF(C42=0,0,IF(C42>291,TEAMS!$AC$54,0)) -> 0 | C42: =IF(TEAMS!$AC$55=0,0,IF(TEAMS!$AC$55>291,TEAMS!$AC$55,0)) -> 0 | D42: 40
A43: =IF(C43=0,0,IF(C43>291,TEAMS!$AC$53,0)) -> 0 | B43: =IF(C43=0,0,IF(C43>291,TEAMS!$AD$54,0)) -> 0 | C43: =IF(TEAMS!$AD$55=0,0,IF(TEAMS!$AD$55>291,TEAMS!$AD$55,0)) -> 0 | D43: 41
A44: =IF(C44=0,0,IF(C44>291,TEAMS!$AC$53,0)) -> 0 | B44: =IF(C44=0,0,IF(C44>291,TEAMS!$AE$54,0)) -> 0 | C44: =IF(TEAMS!$AE$55=0,0,IF(TEAMS!$AE$55>291,TEAMS!$AE$55,0)) -> 0 | D44: 42
A45: =IF(C45=0,0,IF(C45>291,TEAMS!$AC$53,0)) -> 0 | B45: =IF(C45=0,0,IF(C45>291,TEAMS!$AF$54,0)) -> 0 | C45: =IF(TEAMS!$AF$55=0,0,IF(TEAMS!$AF$55>291,TEAMS!$AF$55,0)) -> 0 | D45: 43
A46: =IF(C46=0,0,IF(C46>291,TEAMS!$AC$53,0)) -> 0 | B46: =IF(C46=0,0,IF(C46>291,TEAMS!$AG$54,0)) -> 0 | C46: =IF(TEAMS!$AG$55=0,0,IF(TEAMS!$AG$55>291,TEAMS!$AG$55,0)) -> 0 | D46: 44
A47: =IF(C47=0,0,IF(C47>291,TEAMS!$AC$78,0)) -> 0 | B47: =IF(C47=0,0,IF(C47>291,TEAMS!AD79,0)) -> 0 | C47: =IF(TEAMS!AD80=0,0,IF(TEAMS!AD80>291,TEAMS!AD80,0)) -> 0 | D47: 45
A48: =IF(C48=0,0,IF(C48>291,TEAMS!$AC$78,0)) -> 0 | B48: =IF(C48=0,0,IF(C48>291,TEAMS!AF79,0)) -> 0 | C48: =IF(TEAMS!AF80=0,0,IF(TEAMS!AF80>291,TEAMS!AF80,0)) -> 0 | D48: 46
A49: =IF(C49=0,0,IF(C49>291,TEAMS!AC78,0)) -> 0 | B49: =IF(C49=0,0,IF(C49>291,TEAMS!AG79,0)) -> 0 | C49: =IF(TEAMS!AG80=0,0,IF(TEAMS!AG80>291,TEAMS!AG80,0)) -> 0 | D49: 47
A50: =IF(C50=0,0,IF(C50>291,TEAMS!$AC$78,0)) -> 0 | B50: =IF(C50=0,0,IF(C50>291,TEAMS!AC103,0)) -> 0 | C50: =IF(TEAMS!AC104=0,0,IF(TEAMS!AC104>291,TEAMS!AC104,0)) -> 0 | D50: 48
A51: =IF(C51=0,0,IF(C51>291,TEAMS!$AC$78,0)) -> 0 | B51: =IF(C51=0,0,IF(C51>291,TEAMS!AD103,0)) -> 0 | C51: =IF(TEAMS!AD104=0,0,IF(TEAMS!AD104>291,TEAMS!AD104,0)) -> 0 | D51: 49
A52: =IF(C52=0,0,IF(C52>291,TEAMS!$AC$78,0)) -> 0 | B52: =IF(C52=0,0,IF(C52>291,TEAMS!AE103,0)) -> 0 | C52: =IF(TEAMS!AE104=0,0,IF(TEAMS!AE104>291,TEAMS!AE104,0)) -> 0 | D52: 50
A53: =IF(C53=0,0,IF(C53>291,TEAMS!$AC$78,0)) -> 0 | B53: =IF(C53=0,0,IF(C53>291,TEAMS!AF103,0)) -> 0 | C53: =IF(TEAMS!AF104=0,0,IF(TEAMS!AF104>291,TEAMS!AF104,0)) -> 0 | D53: 51
A54: =IF(C54=0,0,IF(C54>291,TEAMS!$AC$78,0)) -> 0 | B54: =IF(C54=0,0,IF(C54>291,TEAMS!AG103,0)) -> 0 | C54: =IF(TEAMS!AG104=0,0,IF(TEAMS!AG104>291,TEAMS!AG104,0)) -> 0 | D54: 52
A55: =IF(C55=0,0,IF(C55>291,TEAMS!$AC$126,0)) -> 0 | B55: =IF(C55=0,0,IF(C55>291,TEAMS!$AC$127,0)) -> 0 | C55: =IF(TEAMS!AC$128=0,0,IF(TEAMS!AC$128>291,TEAMS!AC$128,0)) -> 0 | D55: 53
A56: =IF(C56=0,0,IF(C56>291,TEAMS!$AC$126,0)) -> 0 | B56: =IF(C56=0,0,IF(C56>291,TEAMS!$AD$127,0)) -> 0 | C56: =IF(TEAMS!AD$128=0,0,IF(TEAMS!AD$128>291,TEAMS!AD$128,0)) -> 0 | D56: 54
A57: =IF(C57=0,0,IF(C57>291,TEAMS!$AC$126,0)) -> 0 | B57: =IF(C57=0,0,IF(C57>291,TEAMS!$AE$127,0)) -> 0 | C57: =IF(TEAMS!AE$128=0,0,IF(TEAMS!AE$128>291,TEAMS!AE$128,0)) -> 0 | D57: 55
A58: =IF(C58=0,0,IF(C58>291,TEAMS!$AC$126,0)) -> 0 | B58: =IF(C58=0,0,IF(C58>291,TEAMS!$AF$127,0)) -> 0 | C58: =IF(TEAMS!AF$128=0,0,IF(TEAMS!AF$128>291,TEAMS!AF$128,0)) -> 0 | D58: 56
A59: =IF(C59=0,0,IF(C59>291,TEAMS!$AC$126,0)) -> 0 | B59: =IF(C59=0,0,IF(C59>291,TEAMS!$AG$127,0)) -> 0 | C59: =IF(TEAMS!AG$128=0,0,IF(TEAMS!AG$128>291,TEAMS!AG$128,0)) -> 0 | D59: 57
A60: =IF(C60=0,0,IF(C60>291,TEAMS!$AC$151,0)) -> 0 | B60: =IF(C60=0,0,IF(C60>291,TEAMS!$AC$152,0)) -> 0 | C60: =IF(TEAMS!$AC$153=0,0,IF(TEAMS!$AC$153>291,TEAMS!$AC$153,0)) -> 0 | D60: 58
A61: =IF(C61=0,0,IF(C61>291,TEAMS!$AC$151,0)) -> 0 | B61: =IF(C61=0,0,IF(C61>291,TEAMS!$AD$152,0)) -> 0 | C61: =IF(TEAMS!$AD$153=0,0,IF(TEAMS!$AD$153>291,TEAMS!$AD$153,0)) -> 0 | D61: 59
A62: =IF(C62=0,0,IF(C62>291,TEAMS!$AC$151,0)) -> 0 | B62: =IF(C62=0,0,IF(C62>291,TEAMS!$AE$152,0)) -> 0 | C62: =IF(TEAMS!$AE$153=0,0,IF(TEAMS!$AE$153>291,TEAMS!$AE$153,0)) -> 0 | D62: 60
A63: =IF(C63=0,0,IF(C63>291,TEAMS!$AC$151,0)) -> 0 | B63: =IF(C63=0,0,IF(C63>291,TEAMS!$AF$152,0)) -> 0 | C63: =IF(TEAMS!$AF$153=0,0,IF(TEAMS!$AF$153>291,TEAMS!$AF$153,0)) -> 0 | D63: 61
A64: =IF(C64=0,0,IF(C64>291,TEAMS!$AC$151,0)) -> 0 | B64: =IF(C64=0,0,IF(C64>291,TEAMS!$AG$152,0)) -> 0 | C64: =IF(TEAMS!$AG$153=0,0,IF(TEAMS!$AG$153>291,TEAMS!$AG$153,0)) -> 0 | D64: 62
A65: =IF(C65=0,0,IF(C65>291,TEAMS!$AC$175,0)) -> 0 | B65: =IF(C65=0,0,IF(C65>291,TEAMS!$AC$176,0)) -> 0 | C65: =IF(TEAMS!$AC$177=0,0,IF(TEAMS!$AC$177>291,TEAMS!$AC$177,0)) -> 0 | D65: 63
A66: =IF(C66=0,0,IF(C66>291,TEAMS!$AC$175,0)) -> 0 | B66: =IF(C66=0,0,IF(C66>291,TEAMS!$AD$176,0)) -> 0 | C66: =IF(TEAMS!$AD$177=0,0,IF(TEAMS!$AD$177>291,TEAMS!$AD$177,0)) -> 0 | D66: 64
A67: =IF(C67=0,0,IF(C67>291,TEAMS!$AC$175,0)) -> 0 | B67: =IF(C67=0,0,IF(C67>291,TEAMS!$AE$176,0)) -> 0 | C67: =IF(TEAMS!$AE$177=0,0,IF(TEAMS!$AE$177>291,TEAMS!$AE$177,0)) -> 0 | D67: 65
A68: =IF(C68=0,0,IF(C68>291,TEAMS!$AC$175,0)) -> 0 | B68: =IF(C68=0,0,IF(C68>291,TEAMS!$AF$176,0)) -> 0 | C68: =IF(TEAMS!$AF$177=0,0,IF(TEAMS!$AF$177>291,TEAMS!$AF$177,0)) -> 0 | D68: 66
A69: =IF(C69=0,0,IF(C69>291,TEAMS!$AC$175,0)) -> 0 | B69: =IF(C69=0,0,IF(C69>291,TEAMS!$AG$176,0)) -> 0 | C69: =IF(TEAMS!$AG$177=0,0,IF(TEAMS!$AG$177>291,TEAMS!$AG$177,0)) -> 0 | D69: 67
A70: =IF(C70=0,0,IF(C70>291,TEAMS!$AC$199,0)) -> 0 | B70: =IF(C70=0,0,IF(C70>291,TEAMS!$AC$200,0)) -> 0 | C70: =IF(TEAMS!$AC$201=0,0,IF(TEAMS!$AC$201>291,TEAMS!$AC$201,0)) -> 0 | D70: 68
A71: =IF(C71=0,0,IF(C71>291,TEAMS!$AC$199,0)) -> 0 | B71: =IF(C71=0,0,IF(C71>291,TEAMS!$AD$200,0)) -> 0 | C71: =IF(TEAMS!$AD$201=0,0,IF(TEAMS!$AD$201>291,TEAMS!$AD$201,0)) -> 0 | D71: 69
A72: =IF(C72=0,0,IF(C72>291,TEAMS!$AC$199,0)) -> 0 | B72: =IF(C72=0,0,IF(C72>291,TEAMS!$AE$200,0)) -> 0 | C72: =IF(TEAMS!$AE$201=0,0,IF(TEAMS!$AE$201>291,TEAMS!$AE$201,0)) -> 0 | D72: 70
A73: =IF(C73=0,0,IF(C73>291,TEAMS!$AC$199,0)) -> 0 | B73: =IF(C73=0,0,IF(C73>291,TEAMS!$AF$200,0)) -> 0 | C73: =IF(TEAMS!$AF$201=0,0,IF(TEAMS!$AF$201>291,TEAMS!$AF$201,0)) -> 0 | D73: 71
A74: =IF(C74=0,0,IF(C74>291,TEAMS!$AC$199,0)) -> 0 | B74: =IF(C74=0,0,IF(C74>291,TEAMS!$AG$200,0)) -> 0 | C74: =IF(TEAMS!$AG$201=0,0,IF(TEAMS!$AG$201>291,TEAMS!$AG$201,0)) -> 0 | D74: 72
A75: =IF(C75=0,0,IF(C75>291,TEAMS!$AC$224,0)) -> 0 | B75: =IF(C75=0,0,IF(C75>291,TEAMS!AF225,0)) -> 0 | C75: =IF(TEAMS!AF226=0,0,IF(TEAMS!AF226>291,TEAMS!AF226,0)) -> 0 | D75: 73
A76: =IF(C76=0,0,IF(C76>291,TEAMS!$AC$224,0)) -> 0 | B76: =IF(C76=0,0,IF(C76>291,TEAMS!AG225,0)) -> 0 | C76: =IF(TEAMS!AG226=0,0,IF(TEAMS!AG226>291,TEAMS!AG226,0)) -> 0 | D76: 74
A77: =IF(C77=0,0,IF(C77>291,TEAMS!$AC$224,0)) -> 0 | B77: =IF(C77=0,0,IF(C77>291,TEAMS!AD249,0)) -> 0 | C77: =IF(TEAMS!AD250=0,0,IF(TEAMS!AD250>291,TEAMS!AD250,0)) -> 0 | D77: 75
A78: =IF(C78=0,0,IF(C78>291,TEAMS!$AC$224,0)) -> 0 | B78: =IF(C78=0,0,IF(C78>291,TEAMS!AE249,0)) -> 0 | C78: =IF(TEAMS!AE250=0,0,IF(TEAMS!AE250>291,TEAMS!AE250,0)) -> 0 | D78: 76
A79: =IF(C79=0,0,IF(C79>291,TEAMS!$AC$224,0)) -> 0 | B79: =IF(C79=0,0,IF(C79>291,TEAMS!AF249,0)) -> 0 | C79: =IF(TEAMS!AF250=0,0,IF(TEAMS!AF250>291,TEAMS!AF250,0)) -> 0 | D79: 77
A80: =IF(C80=0,0,IF(C80>291,TEAMS!$AC$224,0)) -> 0 | B80: =IF(C80=0,0,IF(C80>291,TEAMS!AG249,0)) -> 0 | C80: =IF(TEAMS!AG250=0,0,IF(TEAMS!AG250>291,TEAMS!AG250,0)) -> 0 | D80: 78
A81: =IF(C81=0,0,IF(C81>291,TEAMS!$AC$272,0)) -> 0 | B81: =IF(C81=0,0,IF(C81>291,TEAMS!$AC$273,0)) -> 0 | C81: =IF(TEAMS!AC$274=0,0,IF(TEAMS!AC$274>291,TEAMS!AC$274,0)) -> 0 | D81: 79
A82: =IF(C82=0,0,IF(C82>291,TEAMS!$AC$272,0)) -> 0 | B82: =IF(C82=0,0,IF(C82>291,TEAMS!$AD$273,0)) -> 0 | C82: =IF(TEAMS!AD$274=0,0,IF(TEAMS!AD$274>291,TEAMS!AD$274,0)) -> 0 | D82: 80
A83: =IF(C83=0,0,IF(C83>291,TEAMS!$AC$272,0)) -> 0 | B83: =IF(C83=0,0,IF(C83>291,TEAMS!$AE$273,0)) -> 0 | C83: =IF(TEAMS!AE$274=0,0,IF(TEAMS!AE$274>291,TEAMS!AE$274,0)) -> 0 | D83: 81
A84: =IF(C84=0,0,IF(C84>291,TEAMS!$AC$272,0)) -> 0 | B84: =IF(C84=0,0,IF(C84>291,TEAMS!$AF$273,0)) -> 0 | C84: =IF(TEAMS!AF$274=0,0,IF(TEAMS!AF$274>291,TEAMS!AF$274,0)) -> 0 | D84: 82
A85: =IF(C85=0,0,IF(C85>291,TEAMS!$AC$272,0)) -> 0 | B85: =IF(C85=0,0,IF(C85>291,TEAMS!$AG$273,0)) -> 0 | C85: =IF(TEAMS!AG$274=0,0,IF(TEAMS!AG$274>291,TEAMS!AG$274,0)) -> 0 | D85: 83
A86: =IF(C86=0,0,IF(C86>291,TEAMS!$AC$297,0)) -> 0 | B86: =IF(C86=0,0,IF(C86>291,TEAMS!$AD$298,0)) -> 0 | C86: =IF(TEAMS!AD$299=0,0,IF(TEAMS!AD$299>291,TEAMS!AD$299,0)) -> 0 | D86: 84
A87: =IF(C87=0,0,IF(C87>291,TEAMS!$AC$297,0)) -> 0 | B87: =IF(C87=0,0,IF(C87>291,TEAMS!$AE$298,0)) -> 0 | C87: =IF(TEAMS!AE$299=0,0,IF(TEAMS!AE$299>291,TEAMS!AE$299,0)) -> 0 | D87: 85
A88: =IF(C88=0,0,IF(C88>291,TEAMS!$AC$297,0)) -> 0 | B88: =IF(C88=0,0,IF(C88>291,TEAMS!$AC$322,0)) -> 0 | C88: =IF(TEAMS!AC$323=0,0,IF(TEAMS!AC$323>291,TEAMS!AC$323,0)) -> 0 | D88: 86
A89: =IF(C89=0,0,IF(C89>291,TEAMS!$AC$297,0)) -> 0 | B89: =IF(C89=0,0,IF(C89>291,TEAMS!$AD$322,0)) -> 0 | C89: =IF(TEAMS!AD$323=0,0,IF(TEAMS!AD$323>291,TEAMS!AD$323,0)) -> 0 | D89: 87
A90: =IF(C90=0,0,IF(C90>291,TEAMS!$AC$297,0)) -> 0 | B90: =IF(C90=0,0,IF(C90>291,TEAMS!$AE$322,0)) -> 0 | C90: =IF(TEAMS!AE$323=0,0,IF(TEAMS!AE$323>291,TEAMS!AE$323,0)) -> 0 | D90: 88
A91: =IF(C91=0,0,IF(C91>291,TEAMS!$AC$297,0)) -> 0 | B91: =IF(C91=0,0,IF(C91>291,TEAMS!$AF$322,0)) -> 0 | C91: =IF(TEAMS!AF$323=0,0,IF(TEAMS!AF$323>291,TEAMS!AF$323,0)) -> 0 | D91: 89
A92: =IF(C92=0,0,IF(C92>291,TEAMS!$AC$297,0)) -> 0 | B92: =IF(C92=0,0,IF(C92>291,TEAMS!$AG$322,0)) -> 0 | C92: =IF(TEAMS!AG$323=0,0,IF(TEAMS!AG$323>291,TEAMS!AG$323,0)) -> 0 | D92: 90
A93: =IF(C93=0,0,IF(C93>291,TEAMS!$AC$345,0)) -> 0 | B93: =IF(C93=0,0,IF(C93>291,TEAMS!$AC$346,0)) -> 0 | C93: =IF(TEAMS!AC$347=0,0,IF(TEAMS!AC$347>291,TEAMS!AC$347,0)) -> 0 | D93: 91
A94: =IF(C94=0,0,IF(C94>291,TEAMS!$AC$345,0)) -> 0 | B94: =IF(C94=0,0,IF(C94>291,TEAMS!$AD$346,0)) -> 0 | C94: =IF(TEAMS!AD$347=0,0,IF(TEAMS!AD$347>291,TEAMS!AD$347,0)) -> 0 | D94: 92
A95: =IF(C95=0,0,IF(C95>291,TEAMS!$AC$345,0)) -> 0 | B95: =IF(C95=0,0,IF(C95>291,TEAMS!$AE$346,0)) -> 0 | C95: =IF(TEAMS!AE$347=0,0,IF(TEAMS!AE$347>291,TEAMS!AE$347,0)) -> 0 | D95: 93
A96: =IF(C96=0,0,IF(C96>291,TEAMS!$AC$345,0)) -> 0 | B96: =IF(C96=0,0,IF(C96>291,TEAMS!$AF$346,0)) -> 0 | C96: =IF(TEAMS!AF$347=0,0,IF(TEAMS!AF$347>291,TEAMS!AF$347,0)) -> 0 | D96: 94
A97: =IF(C97=0,0,IF(C97>291,TEAMS!$AC$345,0)) -> 0 | B97: =IF(C97=0,0,IF(C97>291,TEAMS!$AG$346,0)) -> 0 | C97: =IF(TEAMS!AG$347=0,0,IF(TEAMS!AG$347>291,TEAMS!AG$347,0)) -> 0 | D97: 95
A98: =IF(C98=0,0,IF(C98>291,TEAMS!$AC$370,0)) -> 0 | B98: =IF(C98=0,0,IF(C98>291,TEAMS!$AC$371,0)) -> 0 | C98: =IF(TEAMS!AC372=0,0,IF(TEAMS!AC372>291,TEAMS!AC372,0)) -> 0 | D98: 96
A99: =IF(C99=0,0,IF(C99>291,TEAMS!$AC$370,0)) -> 0 | B99: =IF(C99=0,0,IF(C99>291,TEAMS!AD371,0)) -> 0 | C99: =IF(TEAMS!AD372=0,0,IF(TEAMS!AD372>291,TEAMS!AD372,0)) -> 0 | D99: 97
A100: =IF(C100=0,0,IF(C100>291,TEAMS!$AC$370,0)) -> 0 | B100: =IF(C100=0,0,IF(C100>291,TEAMS!AE371,0)) -> 0 | C100: =IF(TEAMS!AE372=0,0,IF(TEAMS!AE372>291,TEAMS!AE372,0)) -> 0 | D100: 98
A101: =IF(C101=0,0,IF(C101>291,TEAMS!$AC$370,0)) -> 0 | B101: =IF(C101=0,0,IF(C101>291,TEAMS!AF371,0)) -> 0 | C101: =IF(TEAMS!AF372=0,0,IF(TEAMS!AF372>291,TEAMS!AF372,0)) -> 0 | D101: 99
A102: =IF(C102=0,0,IF(C102>291,TEAMS!$AC$370,0)) -> 0 | B102: =IF(C102=0,0,IF(C102>291,TEAMS!AG371,0)) -> 0 | C102: =IF(TEAMS!AG372=0,0,IF(TEAMS!AG372>291,TEAMS!AG372,0)) -> 0 | D102: 100
A103: =IF(C103=0,0,IF(C103>291,TEAMS!$AC$370,0)) -> 0 | B103: =IF(C103=0,0,IF(C103>291,TEAMS!AC395,0)) -> 0 | C103: =IF(TEAMS!AC396=0,0,IF(TEAMS!AC396>291,TEAMS!AC396,0)) -> 0 | D103: 101
A104: =IF(C104=0,0,IF(C104>291,TEAMS!$AC$370,0)) -> 0 | B104: =IF(C104=0,0,IF(C104>291,TEAMS!AD395,0)) -> 0 | C104: =IF(TEAMS!AD396=0,0,IF(TEAMS!AD396>291,TEAMS!AD396,0)) -> 0 | D104: 102
A105: =IF(C105=0,0,IF(C105>291,TEAMS!$AC$370,0)) -> 0 | B105: =IF(C105=0,0,IF(C105>291,TEAMS!AE395,0)) -> 0 | C105: =IF(TEAMS!AE396=0,0,IF(TEAMS!AE396>291,TEAMS!AE396,0)) -> 0 | D105: 103
A106: =IF(C106=0,0,IF(C106>291,TEAMS!$AC$370,0)) -> 0 | B106: =IF(C106=0,0,IF(C106>291,TEAMS!AF395,0)) -> 0 | C106: =IF(TEAMS!AF396=0,0,IF(TEAMS!AF396>291,TEAMS!AF396,0)) -> 0 | D106: 104
A107: =IF(C107=0,0,IF(C107>291,TEAMS!$AC$370,0)) -> 0 | B107: =IF(C107=0,0,IF(C107>291,TEAMS!AG395,0)) -> 0 | C107: =IF(TEAMS!AG396=0,0,IF(TEAMS!AG396>291,TEAMS!AG396,0)) -> 0 | D107: 105
A108: =IF(C108=0,0,IF(C108>291,TEAMS!$AC$418,0)) -> 0 | B108: =IF(C108=0,0,IF(C108>291,TEAMS!$AC$419,0)) -> 0 | C108: =IF(TEAMS!AC$420=0,0,IF(TEAMS!AC$420>291,TEAMS!AC$420,0)) -> 0 | D108: 106
A109: =IF(C109=0,0,IF(C109>291,TEAMS!$AC$418,0)) -> 0 | B109: =IF(C109=0,0,IF(C109>291,TEAMS!$AD$419,0)) -> 0 | C109: =IF(TEAMS!AD$420=0,0,IF(TEAMS!AD$420>291,TEAMS!AD$420,0)) -> 0 | D109: 107
A110: =IF(C110=0,0,IF(C110>291,TEAMS!$AC$418,0)) -> 0 | B110: =IF(C110=0,0,IF(C110>291,TEAMS!$AE$419,0)) -> 0 | C110: =IF(TEAMS!AE$420=0,0,IF(TEAMS!AE$420>291,TEAMS!AE$420,0)) -> 0 | D110: 108
A111: =IF(C111=0,0,IF(C111>291,TEAMS!$AC$418,0)) -> 0 | B111: =IF(C111=0,0,IF(C111>291,TEAMS!$AF$419,0)) -> 0 | C111: =IF(TEAMS!AF$420=0,0,IF(TEAMS!AF$420>291,TEAMS!AF$420,0)) -> 0 | D111: 109
A112: =IF(C112=0,0,IF(C112>291,TEAMS!$AC$418,0)) -> 0 | B112: =IF(C112=0,0,IF(C112>291,TEAMS!$AG$419,0)) -> 0 | C112: =IF(TEAMS!AG$420=0,0,IF(TEAMS!AG$420>291,TEAMS!AG$420,0)) -> 0 | D112: 111
A113: =IF(C113=0,0,IF(C113>291,TEAMS!$AC$443,0)) -> 0 | B113: =IF(C113=0,0,IF(C113>291,TEAMS!$AD$444,0)) -> 0 | C113: =IF(TEAMS!AD$445=0,0,IF(TEAMS!AD$445>291,TEAMS!AD$445,0)) -> 0 | D113: 112
A114: =IF(C114=0,0,IF(C114>291,TEAMS!$AC$443,0)) -> 0 | B114: =IF(C114=0,0,IF(C114>291,TEAMS!$AE$444,0)) -> 0 | C114: =IF(TEAMS!AE$445=0,0,IF(TEAMS!AE$445>291,TEAMS!AE$445,0)) -> 0 | D114: 113
A115: =IF(C115=0,0,IF(C115>291,TEAMS!$AC$443,0)) -> 0 | B115: =IF(C115=0,0,IF(C115>291,TEAMS!$AF$444,0)) -> 0 | C115: =IF(TEAMS!AF$445=0,0,IF(TEAMS!AF$445>291,TEAMS!AF$445,0)) -> 0 | D115: 114
A116: =IF(C116=0,0,IF(C116>291,TEAMS!$AC$443,0)) -> 0 | B116: =IF(C116=0,0,IF(C116>291,TEAMS!$AG$444,0)) -> 0 | C116: =IF(TEAMS!AG$445=0,0,IF(TEAMS!AG$445>291,TEAMS!AG$445,0)) -> 0 | D116: 115
A117: =IF(C117=0,0,IF(C117>291,TEAMS!$AC$443,0)) -> 0 | B117: =IF(C117=0,0,IF(C117>291,TEAMS!$AC$468,0)) -> 0 | C117: =IF(TEAMS!AC$469=0,0,IF(TEAMS!AC$469>291,TEAMS!AC$469,0)) -> 0 | D117: 116
A118: =IF(C118=0,0,IF(C118>291,TEAMS!$AC$443,0)) -> 0 | B118: =IF(C118=0,0,IF(C118>291,TEAMS!$AD$468,0)) -> 0 | C118: =IF(TEAMS!AD$469=0,0,IF(TEAMS!AD$469>291,TEAMS!AD$469,0)) -> 0 | D118: 117
A119: =IF(C119=0,0,IF(C119>291,TEAMS!$AC$443,0)) -> 0 | B119: =IF(C119=0,0,IF(C119>291,TEAMS!$AE$468,0)) -> 0 | C119: =IF(TEAMS!AE$469=0,0,IF(TEAMS!AE$469>291,TEAMS!AE$469,0)) -> 0 | D119: 118
A120: =IF(C120=0,0,IF(C120>291,TEAMS!$AC$443,0)) -> 0 | B120: =IF(C120=0,0,IF(C120>291,TEAMS!$AF$468,0)) -> 0 | C120: =IF(TEAMS!AF$469=0,0,IF(TEAMS!AF$469>291,TEAMS!AF$469,0)) -> 0 | D120: 119
A121: =IF(C121=0,0,IF(C121>291,TEAMS!$AC$443,0)) -> 0 | B121: =IF(C121=0,0,IF(C121>291,TEAMS!$AG$468,0)) -> 0 | C121: =IF(TEAMS!AG$469=0,0,IF(TEAMS!AG$469>291,TEAMS!AG$469,0)) -> 0 | D121: 120
A122: =IF(C122=0,0,IF(C122>291,TEAMS!$AC$491,0)) -> 0 | B122: =IF(C122=0,0,IF(C122>291,TEAMS!$AC$492,0)) -> 0 | C122: =IF(TEAMS!AC$493=0,0,IF(TEAMS!AC$493>291,TEAMS!AC$493,0)) -> 0 | D122: 121
A123: =IF(C123=0,0,IF(C123>291,TEAMS!$AC$491,0)) -> 0 | B123: =IF(C123=0,0,IF(C123>291,TEAMS!$AD$492,0)) -> 0 | C123: =IF(TEAMS!AD$493=0,0,IF(TEAMS!AD$493>291,TEAMS!AD$493,0)) -> 0 | D123: 122
A124: =IF(C124=0,0,IF(C124>291,TEAMS!$AC$491,0)) -> 0 | B124: =IF(C124=0,0,IF(C124>291,TEAMS!$AE$492,0)) -> 0 | C124: =IF(TEAMS!AE$493=0,0,IF(TEAMS!AE$493>291,TEAMS!AE$493,0)) -> 0 | D124: 123
A125: =IF(C125=0,0,IF(C125>291,TEAMS!$AC$491,0)) -> 0 | B125: =IF(C125=0,0,IF(C125>291,TEAMS!$AF$492,0)) -> 0 | C125: =IF(TEAMS!AF$493=0,0,IF(TEAMS!AF$493>291,TEAMS!AF$493,0)) -> 0 | D125: 124
A126: =IF(C126=0,0,IF(C126>291,TEAMS!$AC$491,0)) -> 0 | B126: =IF(C126=0,0,IF(C126>291,TEAMS!$AG$492,0)) -> 0 | C126: =IF(TEAMS!AG$493=0,0,IF(TEAMS!AG$493>291,TEAMS!AG$493,0)) -> 0 | D126: 125
A127: =IF(C127=0,0,IF(C127>291,TEAMS!AC516,0)) -> 0 | B127: =IF(C127=0,0,IF(C127>291,TEAMS!AD517,0)) -> 0 | C127: =IF(TEAMS!AD518=0,0,IF(TEAMS!AD518>291,TEAMS!AD518,0)) -> 0 | D127: 126
A128: =IF(C128=0,0,IF(C128>291,TEAMS!AC516,0)) -> 0 | B128: =IF(C128=0,0,IF(C128>291,TEAMS!AE517,0)) -> 0 | C128: =IF(TEAMS!AE518=0,0,IF(TEAMS!AE518>291,TEAMS!AE518,0)) -> 0 | D128: 127
A129: =IF(C129=0,0,IF(C129>291,TEAMS!AC516,0)) -> 0 | B129: =IF(C129=0,0,IF(C129>291,TEAMS!AF517,0)) -> 0 | C129: =IF(TEAMS!AF518=0,0,IF(TEAMS!AF518>291,TEAMS!AF518,0)) -> 0 | D129: 128
A130: =IF(C130=0,0,IF(C130>291,TEAMS!AC516,0)) -> 0 | B130: =IF(C130=0,0,IF(C130>291,TEAMS!AG517,0)) -> 0 | C130: =IF(TEAMS!AG518=0,0,IF(TEAMS!AG518>291,TEAMS!AG518,0)) -> 0 | D130: 129
A131: =IF(C131=0,0,IF(C131>291,TEAMS!AC536,0)) -> 0 | B131: =IF(C131=0,0,IF(C131>291,TEAMS!AC537,0)) -> 0 | C131: =IF(TEAMS!AC538=0,0,IF(TEAMS!AC538>291,TEAMS!AC538,0)) -> 0 | D131: 130
A132: =IF(C132=0,0,IF(C132>291,TEAMS!AC536,0)) -> 0 | B132: =IF(C132=0,0,IF(C132>291,TEAMS!AD537,0)) -> 0 | C132: =IF(TEAMS!AD538=0,0,IF(TEAMS!AD538>291,TEAMS!AD538,0)) -> 0 | D132: 131
A133: =IF(C133=0,0,IF(C133>291,TEAMS!AC536,0)) -> 0 | B133: =IF(C133=0,0,IF(C133>291,TEAMS!AE537,0)) -> 0 | C133: =IF(TEAMS!AE538=0,0,IF(TEAMS!AE538>291,TEAMS!AE538,0)) -> 0 | D133: 132
A134: =IF(C134=0,0,IF(C134>291,TEAMS!AC536,0)) -> 0 | B134: =IF(C134=0,0,IF(C134>291,TEAMS!AF537,0)) -> 0 | C134: =IF(TEAMS!AF538=0,0,IF(TEAMS!AF538>291,TEAMS!AF538,0)) -> 0 | D134: 133
A135: =IF(C135=0,0,IF(C135>291,TEAMS!AC516,0)) -> 0 | B135: =IF(C135=0,0,IF(C135>291,TEAMS!AG537,0)) -> 0 | C135: =IF(TEAMS!AG538=0,0,IF(TEAMS!AG538>291,TEAMS!AG538,0)) -> 0 | D135: 134
A136: =IF(C136=0,0,IF(C136>291,TEAMS!$AC$556,0)) -> 0 | B136: =IF(C136=0,0,IF(C136>291,TEAMS!$AC$557,0)) -> 0 | C136: =IF(TEAMS!AC$558=0,0,IF(TEAMS!AC$558>291,TEAMS!AC$558,0)) -> 0 | D136: 135
A137: =IF(C137=0,0,IF(C137>291,TEAMS!$AC$556,0)) -> 0 | B137: =IF(C137=0,0,IF(C137>291,TEAMS!$AD$557,0)) -> 0 | C137: =IF(TEAMS!AD$558=0,0,IF(TEAMS!AD$558>291,TEAMS!AD$558,0)) -> 0 | D137: 136
A138: =IF(C138=0,0,IF(C138>291,TEAMS!$AC$556,0)) -> 0 | B138: =IF(C138=0,0,IF(C138>291,TEAMS!$AE$557,0)) -> 0 | C138: =IF(TEAMS!AE$558=0,0,IF(TEAMS!AE$558>291,TEAMS!AE$558,0)) -> 0 | D138: 137
A139: =IF(C139=0,0,IF(C139>291,TEAMS!$AC$556,0)) -> 0 | B139: =IF(C139=0,0,IF(C139>291,TEAMS!$AF$557,0)) -> 0 | C139: =IF(TEAMS!AF$558=0,0,IF(TEAMS!AF$558>291,TEAMS!AF$558,0)) -> 0 | D139: 138
A140: =IF(C140=0,0,IF(C140>291,TEAMS!$AC$556,0)) -> 0 | B140: =IF(C140=0,0,IF(C140>291,TEAMS!$AG$557,0)) -> 0 | C140: =IF(TEAMS!AG$558=0,0,IF(TEAMS!AG$558>291,TEAMS!AG$558,0)) -> 0 | D140: 139
A141: =IF(C141=0,0,IF(C141>291,TEAMS!$AC$577,0)) -> 0 | B141: =IF(C141=0,0,IF(C141>291,TEAMS!AC578,0)) -> 0 | C141: =IF(TEAMS!AC579=0,0,IF(TEAMS!AC579>291,TEAMS!AC579,0)) -> 0 | D141: 140
A142: =IF(C142=0,0,IF(C142>291,TEAMS!$AC$577,0)) -> 0 | B142: =IF(C142=0,0,IF(C142>291,TEAMS!AD578,0)) -> 0 | C142: =IF(TEAMS!AD579=0,0,IF(TEAMS!AD579>291,TEAMS!AD579,0)) -> 0 | D142: 141
A143: =IF(C143=0,0,IF(C143>291,TEAMS!$AC$577,0)) -> 0 | B143: =IF(C143=0,0,IF(C143>291,TEAMS!AE578,0)) -> 0 | C143: =IF(TEAMS!AE579=0,0,IF(TEAMS!AE579>291,TEAMS!AE579,0)) -> 0 | D143: 142
A144: =IF(C144=0,0,IF(C144>291,TEAMS!$AC$577,0)) -> 0 | B144: =IF(C144=0,0,IF(C144>291,TEAMS!AF578,0)) -> 0 | C144: =IF(TEAMS!AF579=0,0,IF(TEAMS!AF579>291,TEAMS!AF579,0)) -> 0 | D144: 143
A145: =IF(C145=0,0,IF(C145>291,TEAMS!$AC$577,0)) -> 0 | B145: =IF(C145=0,0,IF(C145>291,TEAMS!AG578,0)) -> 0 | C145: =IF(TEAMS!AG579=0,0,IF(TEAMS!AG579>291,TEAMS!AG579,0)) -> 0 | D145: 144
A146: =IF(C146=0,0,IF(C146>291,TEAMS!$AC$577,0)) -> 0 | B146: =IF(C146=0,0,IF(C146>291,TEAMS!AC602,0)) -> 0 | C146: =IF(TEAMS!AC$603=0,0,IF(TEAMS!AC$603>291,TEAMS!AC$603,0)) -> 0 | D146: 145
A147: =IF(C147=0,0,IF(C147>291,TEAMS!$AC$577,0)) -> 0 | B147: =IF(C147=0,0,IF(C147>291,TEAMS!AD602,0)) -> 0 | C147: =IF(TEAMS!AD$603=0,0,IF(TEAMS!AD$603>291,TEAMS!AD$603,0)) -> 0 | D147: 146
A148: =IF(C148=0,0,IF(C148>291,TEAMS!$AC$577,0)) -> 0 | B148: =IF(C148=0,0,IF(C148>291,TEAMS!AE602,0)) -> 0 | C148: =IF(TEAMS!AE$603=0,0,IF(TEAMS!AE$603>291,TEAMS!AE$603,0)) -> 0 | D148: 147
A149: =IF(C149=0,0,IF(C149>291,TEAMS!$AC$577,0)) -> 0 | B149: =IF(C149=0,0,IF(C149>291,TEAMS!AF602,0)) -> 0 | C149: =IF(TEAMS!AF$603=0,0,IF(TEAMS!AF$603>291,TEAMS!AF$603,0)) -> 0 | D149: 148
A150: =IF(C150=0,0,IF(C150>291,TEAMS!$AC$577,0)) -> 0 | B150: =IF(C150=0,0,IF(C150>291,TEAMS!AG602,0)) -> 0 | C150: =IF(TEAMS!AG$603=0,0,IF(TEAMS!AG$603>291,TEAMS!AG$603,0)) -> 0 | D150: 149
A151: =IF(C151=0,0,IF(C151>291,TEAMS!$AC$625,0)) -> 0 | B151: =IF(C151=0,0,IF(C151>291,TEAMS!$AC$626,0)) -> 0 | C151: =IF(TEAMS!AC$627=0,0,IF(TEAMS!AC$627>291,TEAMS!AC$627,0)) -> 0 | D151: 150
A152: =IF(C152=0,0,IF(C152>291,TEAMS!$AC$625,0)) -> 0 | B152: =IF(C152=0,0,IF(C152>291,TEAMS!$AD$626,0)) -> 0 | C152: =IF(TEAMS!AD$627=0,0,IF(TEAMS!AD$627>291,TEAMS!AD$627,0)) -> 0 | D152: 151
A153: =IF(C153=0,0,IF(C153>291,TEAMS!$AC$625,0)) -> 0 | B153: =IF(C153=0,0,IF(C153>291,TEAMS!$AE$626,0)) -> 0 | C153: =IF(TEAMS!AE$627=0,0,IF(TEAMS!AE$627>291,TEAMS!AE$627,0)) -> 0 | D153: 152
A154: =IF(C154=0,0,IF(C154>291,TEAMS!$AC$625,0)) -> 0 | B154: =IF(C154=0,0,IF(C154>291,TEAMS!$AF$626,0)) -> 0 | C154: =IF(TEAMS!AF$627=0,0,IF(TEAMS!AF$627>291,TEAMS!AF$627,0)) -> 0 | D154: 153
A155: =IF(C155=0,0,IF(C155>291,TEAMS!$AC$625,0)) -> 0 | B155: =IF(C155=0,0,IF(C155>291,TEAMS!$AG$626,0)) -> 0 | C155: =IF(TEAMS!AG$627=0,0,IF(TEAMS!AG$627>291,TEAMS!AG$627,0)) -> 0 | D155: 154
A156: =IF(C156=0,0,IF(C156>291,TEAMS!$AC$650,0)) -> 0 | B156: =IF(C156=0,0,IF(C156>291,TEAMS!AC$651,0)) -> 0 | C156: =IF(TEAMS!AC$652=0,0,IF(TEAMS!AC$652>291,TEAMS!AC$652,0)) -> 0 | D156: 155
A157: =IF(C157=0,0,IF(C157>291,TEAMS!$AC$650,0)) -> 0 | B157: =IF(C157=0,0,IF(C157>291,TEAMS!AD$651,0)) -> 0 | C157: =IF(TEAMS!AD$652=0,0,IF(TEAMS!AD$652>291,TEAMS!AD$652,0)) -> 0 | D157: 156
A158: =IF(C158=0,0,IF(C158>291,TEAMS!$AC$650,0)) -> 0 | B158: =IF(C158=0,0,IF(C158>291,TEAMS!AE$651,0)) -> 0 | C158: =IF(TEAMS!AE$652=0,0,IF(TEAMS!AE$652>291,TEAMS!AE$652,0)) -> 0 | D158: 157
A159: =IF(C159=0,0,IF(C159>291,TEAMS!$AC$650,0)) -> 0 | B159: =IF(C159=0,0,IF(C159>291,TEAMS!AF$651,0)) -> 0 | C159: =IF(TEAMS!AF$652=0,0,IF(TEAMS!AF$652>291,TEAMS!AF$652,0)) -> 0 | D159: 158
A160: =IF(C160=0,0,IF(C160>291,TEAMS!$AC$650,0)) -> 0 | B160: =IF(C160=0,0,IF(C160>291,TEAMS!AG$651,0)) -> 0 | C160: =IF(TEAMS!AG$652=0,0,IF(TEAMS!AG$652>291,TEAMS!AG$652,0)) -> 0 | D160: 159
A161: =IF(C161=0,0,IF(C161>291,TEAMS!$AC$650,0)) -> 0 | B161: =IF(C161=0,0,IF(C161>291,TEAMS!AC$675,0)) -> 0 | C161: =IF(TEAMS!AC$676=0,0,IF(TEAMS!AC$676>291,TEAMS!AC$676,0)) -> 0 | D161: 160
A162: =IF(C162=0,0,IF(C162>291,TEAMS!$AC$650,0)) -> 0 | B162: =IF(C162=0,0,IF(C162>291,TEAMS!AD$675,0)) -> 0 | C162: =IF(TEAMS!AD$676=0,0,IF(TEAMS!AD$676>291,TEAMS!AD$676,0)) -> 0 | D162: 161
A163: =IF(C163=0,0,IF(C163>291,TEAMS!$AC$650,0)) -> 0 | B163: =IF(C163=0,0,IF(C163>291,TEAMS!AE$675,0)) -> 0 | C163: =IF(TEAMS!AE$676=0,0,IF(TEAMS!AE$676>291,TEAMS!AE$676,0)) -> 0 | D163: 162
A164: =IF(C164=0,0,IF(C164>291,TEAMS!$AC$650,0)) -> 0 | B164: =IF(C164=0,0,IF(C164>291,TEAMS!AF$675,0)) -> 0 | C164: =IF(TEAMS!AF$676=0,0,IF(TEAMS!AF$676>291,TEAMS!AF$676,0)) -> 0 | D164: 163
A165: =IF(C165=0,0,IF(C165>291,TEAMS!$AC$650,0)) -> 0 | B165: =IF(C165=0,0,IF(C165>291,TEAMS!AG$675,0)) -> 0 | C165: =IF(TEAMS!AG$676=0,0,IF(TEAMS!AG$676>291,TEAMS!AG$676,0)) -> 0 | D165: 164
A166: =IF(C166=0,0,IF(C166>291,TEAMS!$AC$698,0)) -> 0 | B166: =IF(C166=0,0,IF(C166>291,TEAMS!$AC$699,0)) -> 0 | C166: =IF(TEAMS!AC$700=0,0,IF(TEAMS!AC$700>291,TEAMS!AC$700,0)) -> 0 | D166: 165
A167: =IF(C167=0,0,IF(C167>291,TEAMS!$AC$698,0)) -> 0 | B167: =IF(C167=0,0,IF(C167>291,TEAMS!$AD$699,0)) -> 0 | C167: =IF(TEAMS!AD$700=0,0,IF(TEAMS!AD$700>291,TEAMS!AD$700,0)) -> 0 | D167: 166
A168: =IF(C168=0,0,IF(C168>291,TEAMS!$AC$698,0)) -> 0 | B168: =IF(C168=0,0,IF(C168>291,TEAMS!$AE$699,0)) -> 0 | C168: =IF(TEAMS!AE$700=0,0,IF(TEAMS!AE$700>291,TEAMS!AE$700,0)) -> 0 | D168: 167
A169: =IF(C169=0,0,IF(C169>291,TEAMS!$AC$698,0)) -> 0 | B169: =IF(C169=0,0,IF(C169>291,TEAMS!$AF$699,0)) -> 0 | C169: =IF(TEAMS!AF$700=0,0,IF(TEAMS!AF$700>291,TEAMS!AF$700,0)) -> 0 | D169: 168
A170: =IF(C170=0,0,IF(C170>291,TEAMS!$AC$698,0)) -> 0 | B170: =IF(C170=0,0,IF(C170>291,TEAMS!$AG$699,0)) -> 0 | C170: =IF(TEAMS!AG$700=0,0,IF(TEAMS!AG$700>291,TEAMS!AG$700,0)) -> 0 | D170: 169
A171: =IF(C171=0,0,IF(C171>291,TEAMS!$AC$723,0)) -> 0 | B171: =IF(C171=0,0,IF(C171>291,TEAMS!AE$724,0)) -> 0 | C171: =IF(TEAMS!AE$725=0,0,IF(TEAMS!AE$725>291,TEAMS!AE$725,0)) -> 0 | D171: 170
A172: =IF(C172=0,0,IF(C172>291,TEAMS!$AC$723,0)) -> 0 | B172: =IF(C172=0,0,IF(C172>291,TEAMS!AF$724,0)) -> 0 | C172: =IF(TEAMS!AF$725=0,0,IF(TEAMS!AF$725>291,TEAMS!AF$725,0)) -> 0 | D172: 171
A173: =IF(C173=0,0,IF(C173>291,TEAMS!$AC$723,0)) -> 0 | B173: =IF(C173=0,0,IF(C173>291,TEAMS!AG$724,0)) -> 0 | C173: =IF(TEAMS!AG$725=0,0,IF(TEAMS!AG$725>291,TEAMS!AG$725,0)) -> 0 | D173: 172
A174: =IF(C174=0,0,IF(C174>291,TEAMS!$AC$723,0)) -> 0 | B174: =IF(C174=0,0,IF(C174>291,TEAMS!AC$744,0)) -> 0 | C174: =IF(TEAMS!AC$745=0,0,IF(TEAMS!AC$745>291,TEAMS!AC$745,0)) -> 0 | D174: 173
A175: =IF(C175=0,0,IF(C175>291,TEAMS!$AC$723,0)) -> 0 | B175: =IF(C175=0,0,IF(C175>291,TEAMS!AD$744,0)) -> 0 | C175: =IF(TEAMS!AD$745=0,0,IF(TEAMS!AD$745>291,TEAMS!AD$745,0)) -> 0 | D175: 174
A176: =IF(C176=0,0,IF(C176>291,TEAMS!$AC$723,0)) -> 0 | B176: =IF(C176=0,0,IF(C176>291,TEAMS!AE$866,0)) -> 0 | C176: =IF(TEAMS!AE$745=0,0,IF(TEAMS!AE$745>291,TEAMS!AE$745,0)) -> 0 | D176: 175
A177: =IF(C177=0,0,IF(C177>291,TEAMS!$AC$723,0)) -> 0 | B177: =IF(C177=0,0,IF(C177>291,TEAMS!AF$744,0)) -> 0 | C177: =IF(TEAMS!AF$745=0,0,IF(TEAMS!AF$745>291,TEAMS!AF$745,0)) -> 0 | D177: 176
A178: =IF(C178=0,0,IF(C178>291,TEAMS!$AC$723,0)) -> 0 | B178: =IF(C178=0,0,IF(C178>291,TEAMS!AG$744,0)) -> 0 | C178: =IF(TEAMS!AG$745=0,0,IF(TEAMS!AG$745>291,TEAMS!AG$745,0)) -> 0 | D178: 177
A179: =IF(C179=0,0,IF(C179>291,TEAMS!$AC$763,0)) -> 0 | B179: =IF(C179=0,0,IF(C179>291,TEAMS!$AC$764,0)) -> 0 | C179: =IF(TEAMS!AC$765=0,0,IF(TEAMS!AC$765>291,TEAMS!AC$765,0)) -> 0 | D179: 178
A180: =IF(C180=0,0,IF(C180>291,TEAMS!$AC$763,0)) -> 0 | B180: =IF(C180=0,0,IF(C180>291,TEAMS!$AD$764,0)) -> 0 | C180: =IF(TEAMS!AD$765=0,0,IF(TEAMS!AD$765>291,TEAMS!AD$765,0)) -> 0 | D180: 179
A181: =IF(C181=0,0,IF(C181>291,TEAMS!$AC$763,0)) -> 0 | B181: =IF(C181=0,0,IF(C181>291,TEAMS!$AE$764,0)) -> 0 | C181: =IF(TEAMS!AE$765=0,0,IF(TEAMS!AE$765>291,TEAMS!AE$765,0)) -> 0 | D181: 180
A182: =IF(C182=0,0,IF(C182>291,TEAMS!$AC$763,0)) -> 0 | B182: =IF(C182=0,0,IF(C182>291,TEAMS!$AF$764,0)) -> 0 | C182: =IF(TEAMS!AF$765=0,0,IF(TEAMS!AF$765>291,TEAMS!AF$765,0)) -> 0 | D182: 181
A183: =IF(C183=0,0,IF(C183>291,TEAMS!$AC$763,0)) -> 0 | B183: =IF(C183=0,0,IF(C183>291,TEAMS!$AG$764,0)) -> 0 | C183: =IF(TEAMS!AG$765=0,0,IF(TEAMS!AG$765>291,TEAMS!AG$765,0)) -> 0 | D183: 182
A184: =IF(C184=0,0,IF(C184>291,TEAMS!$AC$784,0)) -> 0 | B184: =IF(C184=0,0,IF(C184>291,TEAMS!AC$805,0)) -> 0 | C184: =IF(TEAMS!AC$806=0,0,IF(TEAMS!AC$806>291,TEAMS!AC$806,0)) -> 0 | D184: 183
A185: =IF(C185=0,0,IF(C185>291,TEAMS!$AC$784,0)) -> 0 | B185: =IF(C185=0,0,IF(C185>291,TEAMS!AD$805,0)) -> 0 | C185: =IF(TEAMS!AD$806=0,0,IF(TEAMS!AD$806>291,TEAMS!AD$806,0)) -> 0 | D185: 184
A186: =IF(C186=0,0,IF(C186>291,TEAMS!$AC$784,0)) -> 0 | B186: =IF(C186=0,0,IF(C186>291,TEAMS!AE$805,0)) -> 0 | C186: =IF(TEAMS!AE$806=0,0,IF(TEAMS!AE$806>291,TEAMS!AE$806,0)) -> 0 | D186: 185
A187: =IF(C187=0,0,IF(C187>291,TEAMS!$AC$784,0)) -> 0 | B187: =IF(C187=0,0,IF(C187>291,TEAMS!AG$805,0)) -> 0 | C187: =IF(TEAMS!AG$806=0,0,IF(TEAMS!AG$806>291,TEAMS!AG$806,0)) -> 0 | D187: 186
A188: =IF(C188=0,0,IF(C188>291,TEAMS!$AC$824,0)) -> 0 | B188: =IF(C188=0,0,IF(C188>291,TEAMS!$AC$825,0)) -> 0 | C188: =IF(TEAMS!AC$826=0,0,IF(TEAMS!AC$826>291,TEAMS!AC$826,0)) -> 0 | D188: 187
A189: =IF(C189=0,0,IF(C189>291,TEAMS!$AC$824,0)) -> 0 | B189: =IF(C189=0,0,IF(C189>291,TEAMS!$AD$825,0)) -> 0 | C189: =IF(TEAMS!AD$826=0,0,IF(TEAMS!AD$826>291,TEAMS!AD$826,0)) -> 0 | D189: 188
A190: =IF(C190=0,0,IF(C190>291,TEAMS!$AC$824,0)) -> 0 | B190: =IF(C190=0,0,IF(C190>291,TEAMS!$AE$825,0)) -> 0 | C190: =IF(TEAMS!AE$826=0,0,IF(TEAMS!AE$826>291,TEAMS!AE$826,0)) -> 0 | D190: 189
A191: =IF(C191=0,0,IF(C191>291,TEAMS!$AC$824,0)) -> 0 | B191: =IF(C191=0,0,IF(C191>291,TEAMS!$AF$825,0)) -> 0 | C191: =IF(TEAMS!AF$826=0,0,IF(TEAMS!AF$826>291,TEAMS!AF$826,0)) -> 0 | D191: 190
A192: =IF(C192=0,0,IF(C192>291,TEAMS!$AC$824,0)) -> 0 | B192: =IF(C192=0,0,IF(C192>291,TEAMS!$AG$825,0)) -> 0 | C192: =IF(TEAMS!AG$826=0,0,IF(TEAMS!AG$826>291,TEAMS!AG$826,0)) -> 0 | D192: 191
A193: =IF(C193=0,0,IF(C193>291,TEAMS!$AC$845,0)) -> 0 | B193: =IF(C193=0,0,IF(C193>291,TEAMS!AC$846,0)) -> 0 | C193: =IF(TEAMS!AC$847=0,0,IF(TEAMS!AC$847>291,TEAMS!AC$847,0)) -> 0 | D193: 192
A194: =IF(C194=0,0,IF(C194>291,TEAMS!$AC$845,0)) -> 0 | B194: =IF(C194=0,0,IF(C194>291,TEAMS!AF$846,0)) -> 0 | C194: =IF(TEAMS!AF$847=0,0,IF(TEAMS!AF$847>291,TEAMS!AF$847,0)) -> 0 | D194: 193
A195: =IF(C195=0,0,IF(C195>291,TEAMS!$AC$845,0)) -> 0 | B195: =IF(C195=0,0,IF(C195>291,TEAMS!AG$846,0)) -> 0 | C195: =IF(TEAMS!AG$847=0,0,IF(TEAMS!AG$847>291,TEAMS!AG$847,0)) -> 0 | D195: 194
A196: =IF(C196=0,0,IF(C196>291,TEAMS!$AC$845,0)) -> 0 | B196: =IF(C196=0,0,IF(C196>291,TEAMS!AC$866,0)) -> 0 | C196: =IF(TEAMS!AC$867=0,0,IF(TEAMS!AC$867>291,TEAMS!AC$867,0)) -> 0 | D196: 195
A197: =IF(C197=0,0,IF(C197>291,TEAMS!$AC$845,0)) -> 0 | B197: =IF(C197=0,0,IF(C197>291,TEAMS!AD$866,0)) -> 0 | C197: =IF(TEAMS!AD$867=0,0,IF(TEAMS!AD$867>291,TEAMS!AD$867,0)) -> 0 | D197: 196
A198: =IF(C198=0,0,IF(C198>291,TEAMS!$AC$845,0)) -> 0 | B198: =IF(C198=0,0,IF(C198>291,TEAMS!AE$866,0)) -> 0 | C198: =IF(TEAMS!AE$867=0,0,IF(TEAMS!AE$867>291,TEAMS!AE$867,0)) -> 0 | D198: 197
A199: =IF(C199=0,0,IF(C199>291,TEAMS!$AC$845,0)) -> 0 | B199: =IF(C199=0,0,IF(C199>291,TEAMS!AF$866,0)) -> 0 | C199: =IF(TEAMS!AF$867=0,0,IF(TEAMS!AF$867>291,TEAMS!AF$867,0)) -> 0 | D199: 198
A200: =IF(C200=0,0,IF(C200>291,TEAMS!$AC$845,0)) -> 0 | B200: =IF(C200=0,0,IF(C200>291,TEAMS!AG$866,0)) -> 0 | C200: =IF(TEAMS!AG$867=0,0,IF(TEAMS!AG$867>291,TEAMS!AG$867,0)) -> 0 | D200: 199
... 102 more rows

Sheet 2025
F1: Area 10 Standing (2024 - 2025 Season)
F2: Teams (ctrl+n) | I2: Team - *10 Avg | J2: Won | K2: Lost | L2: Win %
E3: 1 | F3: =TEAMS!$AC$1 -> CV | G3: =TEAMS!$A$2 -> Cartersville | I3: =TEXT(TEAMS!$AA$24,"0000.00")&TEXT(TEAMS!$AB$24,"-000.00") -> 1122.00-047.50 | J3: =SUM($D$44>$E$44,$G$45>$H$45,$K$45>$J$45,$M$45>$N$45,$E$57>$D$57,$H$56>$G$56,$K$57>$J$57) -> 2 | K3: =SUM($D$44<$E$44,$G$45<$H$45,$K$45<$J$45,$M$45<$N$45,$E$57<$D$57,$H$56<$G$56,$K$57<$J$57) -> 0 | L3: =IF(J3>0,J3/(J3+K3),0) -> 1
E4: 2 | F4: =TEAMS!$AC$220 -> EW | G4: =TEAMS!$A$221 -> Etowah | I4: =TEXT(TEAMS!$AA$243,"0000.00")&TEXT(TEAMS!$AB$243,"-0000.00") -> 1095.00-0043.00 | J4: =SUM($D$46>$E$46,$H$47>$G$47,$K$47>$J$47,$M$47>$N$47,$E$58>$D$58,$K$58>$J$58,$M$57>$N$57,$D$68>$E$68) -> 2 | K4: =SUM($D$46<$E$46,$H$47<$G$47,$K$47<$J$47,$M$47<$N$47,$E$58<$D$58,$K$58<$J$58,$M$57<$N$57,$D$68<$E$68) -> 0 | L4: =IF(J4>0,J4/(J4+K4),0) -> 1
E5: 3 | F5: =TEAMS!$AC$573 -> AL | G5: =TEAMS!$A$574 -> Allatoona | I5: =TEXT(TEAMS!$AA$596,"0000.00")&TEXT(TEAMS!$AB$596,"-000.00") -> 1088.00-000.00 | J5: =SUM($G$45>$H$44,$K$44>$J$44,$M$44>$N$44,$E$56>$D$56,$G$56>$H$56,$K$56>$J$56,$M$56>$N$56) -> 1 | K5: =SUM($G$45<$H$44,$K$44<$J$44,$M$44<$N$44,$E$56<$D$56,$G$56<$H$56,$K$56<$J$56,$M$56<$N$56) -> 0 | L5: =IF(J5>0,J5/(J5+K5),0) -> 1
E6: 4 | F6: =TEAMS!$AC$293 -> GC | G6: Gordon County | I6: =TEXT(TEAMS!$AA$316,"0000.00")&TEXT(TEAMS!$AB$316,"-000.00") -> 0856.00-005.00 | J6: =SUM($D$45>$E$45,$G$46>$H$46,$J$47>$K$47,$N$44>$M$44,$G$59>$H$59,$J$57>$K$57,$M$58>$N$58) -> 1 | K6: =SUM($D$45<$E$45,$G$46<$H$46,$J$47<$K$47,$N$44<$M$44,$G$59<$H$59,$J$57<$K$57,$M$58<$N$58) -> 0 | L6: =IF(J6>0,J6/(J6+K6),0) -> 1
E7: 5 | F7: =TEAMS!$AC$366 -> LF | G7: =TEAMS!$A$367 -> LaFayette | I7: =TEXT(TEAMS!$AA$389,"0000.00")&TEXT(TEAMS!$AB$389,"-000.00") -> 1094.50-037.00 | J7: =SUM($E$47>$D$47,$H$45>$G$45,$K$46>$J$46,,$D$56>$E$56,$H$59>$G$59,$J$58>$K$58,$N$59>$M$59) -> 1 | K7: =SUM($E$47<$D$47,$H$45<$G$45,$K$46<$J$46,$D$56<$E$56,$H$59<$G$59,$J$58<$K$58,$N$59<$M$59) -> 1 | L7: =IF(J7>0,J7/(J7+K7),0) -> 0.5
E8: 6 | F8: =TEAMS!$AC$74 -> CK | G8: =TEAMS!$A$75 -> Cherokee | I8: =TEXT(TEAMS!$AA$97,"0000.00")&TEXT(TEAMS!$AB$97,"-000.00") -> 1115.00-038.00 | J8: =SUM($E$44>$D$44,$H$46>$G$46,$J$46>$K$46,$N$46>$M$46,$D$58>$E$58,$H$57>$G$57,$J$56>$K$56,$E$69>$D$69) -> 0 | K8: =SUM($E$44<$D$44,$H$46<$G$46,$J$46<$K$46,$N$46<$M$46,$D$58<$E$58,$H$57<$G$57,$J$56<$K$56,$E$69<$D$69) -> 1 | L8: =IF(J8>0,J8/(J8+K8),0) -> 0
E9: 7 | F9: =TEAMS!$AC$646 -> WS | G9: =TEAMS!$A$647 -> Woodstock | I9: =TEXT(TEAMS!$AA$669,"0000.00")&TEXT(TEAMS!$AB$669,"-000.00") -> 0962.00-023.00 | J9: =SUM($E$46>$D$46,$J$44>$K$44,$N$45>$M$45,$D$59>$E$59,$G$57>$H$57,$J$59>$K$59,$M$59>$N$59,$D$71>$E$71) -> 0 | K9: =SUM($E$46<$D$46,$J$44<$K$44,$N$45<$M$45,$D$59<$E$59,$G$57<$H$57,$J$59<$K$59,$M$59<$N$59,$D$71<$E$71) -> 1 | L9: =IF(J9>0,J9/(J9+K9),0) -> 0
E10: 8 | F10: =TEAMS!$AC$439 -> RL | G10: =TEAMS!$A$440 -> Ridgeland | I10: =TEXT(TEAMS!$AA$462,"0000.00")&TEXT(TEAMS!$AB$462,"-000.00") -> 1029.50-017.00 | J10: =SUM($D$47>$E$47,$H$44>$G$45,$M$47>$N$47,$D$457>$E$57,$H$58>$G$58,$K$59>$J$59,$N$58>$M$58) -> 0 | K10: =SUM($D$47<$E$47,$H$44<$G$45,$M$47<$N$47,$D$457<$E$57,$H$58<$G$58,$K$59<$J$59,$N$58<$M$58) -> 2 | L10: =IF(J10>0,J10/(J10+K10),0) -> 0
E11: 9 | F11: =TEAMS!$AC$147 -> DL | G11: =TEAMS!$A$148 -> Dalton | I11: =TEXT(TEAMS!$AA$170,"0000.00")&TEXT(TEAMS!$AB$170,"-000.00") -> 0725.00-002.50 | J11: =SUM($E$45>$D$45,$G$47>$H$47,$J$45>$K$45,$M$46>$N$46,$E$59>$D$59,$G$58>$H$58,$N$56>$M$56,$D$70>$E$70) -> 0 | K11: =SUM($E$45<$D$45,$G$47<$H$47,$J$45<$K$45,$M$46<$N$46,$E$59<$D$59,$G$58<$H$58,$N$56<$M$56,$D$70<$E$70) -> 2 | L11: =IF(J11>0,J11/(J11+K11),0) -> 0
E12: 9 | F12: =TEAMS!$AC$516 -> 0 | G12: =TEAMS!$A$513 -> Sonoraville | I12: =TEXT(TEAMS!$AA$531,"0000.00")&TEXT(TEAMS!$AB$531,"-000.00") -> 0000.00-000.00 | J12: =SUM($E$46>$D$46,$H$44>$G$45,$J$44>$K$44,$N$45>$M$45,$D$70>$E$70,$H$56>$G$56,$J$57>$K$57,$M$58>$N$58,$H$68>$G$68,$J$69>$K$69,$D$80>$E$80,$H$81>$G$81) -> 0 | K12: =SUM($E$46>$D$46,$H$44>$G$45,$J$44>$K$44,$N$45>$M$45,$D$70>$E$70,$H$56>$G$56,$J$57>$K$57,$M$58>$N$58,$H$68>$G$68,$J$69>$K$69,$D$80>$E$80,$H$81>$G$81) -> 0 | L12: =IF(J12>0,J12/(J12+K12),0) -> 0
D14: Match Score - Inner 10's
D15: Team | E15: 1 | F15: 2 | G15: 3 | H15: 4 | I15: 5 | J15: 6 | K15: 7 | L15: 8
D16: =TEAMS!$AC$220 -> EW | E16: =TEXT(TEAMS!$AA$223,"0000")&TEXT(TEAMS!$AB$223,"-000") -> 1070-031 | F16: =TEXT(TEAMS!$AA$224,"0000") & TEXT(TEAMS!$AB$224,"-000") -> 1120-055 | G16: =TEXT(TEAMS!$AA$225,"0000") & TEXT(TEAMS!$AB$225,"-000") ->  | H16: =TEXT(TEAMS!$AA$226, "0000") & TEXT(TEAMS!$AB$226, "-000") ->  | I16: =TEXT(TEAMS!$AA$8, "0000") & TEXT(TEAMS!$AB$8, "-000") ->  | J16: =TEXT(TEAMS!$AA$9, "0000") & TEXT(TEAMS!$AB$9, "-000") ->  | K16: =TEXT(TEAMS!$AA$10, "0000") & TEXT(TEAMS!$AB$10, "-000") ->  | L16: =TEXT(TEAMS!$AA$11, "0000") & TEXT(TEAMS!$AB$11, "-000") -> 
D17: =TEAMS!$AC$74 -> CK | E17: =TEXT(TEAMS!$AA$77, "0000") & TEXT(TEAMS!$AB$77, "-000") -> 1115-038 | F17: =TEXT(TEAMS!$AA$78, "0000") & TEXT(TEAMS!$AB$78, "-000") ->  | G17: =TEXT(TEAMS!$AA$79, "0000") & TEXT(TEAMS!$AB$79, "-000") ->  | H17: =TEXT(TEAMS!$AA$80, "0000") & TEXT(TEAMS!$AB$80, "-000") ->  | I17: =TEXT(TEAMS!$AA$81, "0000") & TEXT(TEAMS!$AB$81, "-000") ->  | J17: =TEXT(TEAMS!$AA$82, "0000") & TEXT(TEAMS!$AB$82, "-000") ->  | K17: =TEXT(TEAMS!$AA$83, "0000") & TEXT(TEAMS!$AB$83, "-000") ->  | L17: =TEXT(TEAMS!$AA$84, "0000") & TEXT(TEAMS!$AB$84, "-000") -> 
D18: =TEAMS!$AC$573 -> AL | E18: =TEXT(TEAMS!$AA$576, "0000") & TEXT(TEAMS!$AB576, "-000") ->  | F18: =TEXT(TEAMS!$AA$577, "0000") & TEXT(TEAMS!$AB$577, "-000") -> 1088 | G18: =TEXT(TEAMS!$AA$578, "0000") & TEXT(TEAMS!$AB$578, "-000") ->  | H18: =TEXT(TEAMS!$AA$579, "0000") & TEXT(TEAMS!$AB$579, "-000") ->  | I18: =TEXT(TEAMS!$AA$154, "0000") & TEXT(TEAMS!$AB$154, "-000") ->  | J18: =TEXT(TEAMS!$AA$155, "0000") & TEXT(TEAMS!$AB$155, "-000") ->  | K18: =TEXT(TEAMS!$AA$156, "0000") & TEXT(TEAMS!$AB$156, "-000") ->  | L18: =TEXT(TEAMS!$AA$157, "0000") & TEXT(TEAMS!$AB$157, "-000") -> 
D19: =TEAMS!$AC$1 -> CV | E19: =TEXT(TEAMS!$AA$4, "0000") & TEXT(TEAMS!$AB$4, "-000") -> 1125-051 | F19: =TEXT(TEAMS!$AA$5, "0000") & TEXT(TEAMS!$AB$5, "-000") -> 1119-044 | G19: =TEXT(TEAMS!$AA$6, "0000") & TEXT(TEAMS!$AB$6, "-000") ->  | H19: =TEXT(TEAMS!$AA$7, "0000") & TEXT(TEAMS!$AB$7, "-000") ->  | I19: =TEXT(TEAMS!$AA$227, "0000") & TEXT(TEAMS!$AB$227, "-000") ->  | J19: =TEXT(TEAMS!$AA$228, "0000") & TEXT(TEAMS!$AB$228, "-000") ->  | K19: =TEXT(TEAMS!$AA$229, "0000") & TEXT(TEAMS!$AB$229, "-000") ->  | L19: =TEXT(TEAMS!$AA$230, "0000") & TEXT(TEAMS!$AB$230, "-000") -> 
D20: =TEAMS!$AC$366 -> LF | E20: =TEXT(TEAMS!$AA$369, "0000") & TEXT(TEAMS!$AB$369, "-000") -> 1092-037 | F20: =TEXT(TEAMS!$AA$370, "0000") & TEXT(TEAMS!$AB$370, "-000") -> 1097-037 | G20: =TEXT(TEAMS!$AA$371, "0000") & TEXT(TEAMS!$AB$371, "-000") ->  | H20: =TEXT(TEAMS!$AA$372, "0000") & TEXT(TEAMS!$AB$372, "-000") ->  | I20: =TEXT(TEAMS!$AA$300, "0000") & TEXT(TEAMS!$AB$300, "-000") ->  | J20: =TEXT(TEAMS!$AA$301, "0000") & TEXT(TEAMS!$AB$301, "-000") ->  | K20: =TEXT(TEAMS!$AA$302, "0000") & TEXT(TEAMS!$AB$302, "-000") ->  | L20: =TEXT(TEAMS!$AA$303, "0000") & TEXT(TEAMS!$AB$303, "-000") -> 
D21: =TEAMS!$AC$439 -> RL | E21: =TEXT(TEAMS!$AA$442, "0000") & TEXT(TEAMS!$AB$442, "-000") -> 0989-017 | F21: =TEXT(TEAMS!$AA$443, "0000") & TEXT(TEAMS!$AB$443, "-000") -> 1070 | G21: =TEXT(TEAMS!$AA$444, "0000") & TEXT(TEAMS!$AB$444, "-000") ->  | H21: =TEXT(TEAMS!$AA$445, "0000") & TEXT(TEAMS!$AB$445, "-000") ->  | I21: =TEXT(TEAMS!$AA$373, "0000") & TEXT(TEAMS!$AB$373, "-000") ->  | J21: =TEXT(TEAMS!$AA$374, "0000") & TEXT(TEAMS!$AB$374, "-000") ->  | K21: =TEXT(TEAMS!$AA$375, "0000") & TEXT(TEAMS!$AB$375, "-000") ->  | L21: =TEXT(TEAMS!$AA$376, "0000") & TEXT(TEAMS!$AB$376, "-000") -> 
D22: =TEAMS!$AC$147 -> DL | E22: =TEXT(TEAMS!$AA$150, "0000") & TEXT(TEAMS!$AB$150, "-000") -> 0744-003 | F22: =TEXT(TEAMS!$AA$151, "0000") & TEXT(TEAMS!$AB$151, "-000") -> 0706-002 | G22: =TEXT(TEAMS!$AA$152, "0000") & TEXT(TEAMS!$AB$152, "-000") ->  | H22: =TEXT(TEAMS!$AA$153, "0000") & TEXT(TEAMS!$AB$153, "-000") ->  | I22: =TEXT(TEAMS!$AA$446, "0000") & TEXT(TEAMS!$AB$446, "-000") ->  | J22: =TEXT(TEAMS!$AA$447, "0000") & TEXT(TEAMS!$AB$447, "-000") ->  | K22: =TEXT(TEAMS!$AA$448, "0000") & TEXT(TEAMS!$AB$448, "-000") ->  | L22: =TEXT(TEAMS!$AA$449, "0000") & TEXT(TEAMS!$AB$449, "-000") -> 
D23: =TEAMS!$AC$646 -> WS | E23: =TEXT(TEAMS!$AA$515, "0000") & TEXT(TEAMS!$AB$515, "-000") ->  | F23: =TEXT(TEAMS!$AA$516, "0000") & TEXT(TEAMS!$AB$516, "-000") -> not | G23: =TEXT(TEAMS!$AA$517, "0000") & TEXT(TEAMS!$AB$517, "-000") -> Shooting | H23: =TEXT(TEAMS!$AA$518, "0000") & TEXT(TEAMS!$AB$518, "-000") -> this | I23: =TEXT(TEAMS!$AA$519, "0000") & TEXT(TEAMS!$AB$519, "-000") -> year | J23: =TEXT(TEAMS!$AA$520, "0000") & TEXT(TEAMS!$AB$520, "-000") ->  | K23: =TEXT(TEAMS!$AA$521, "0000") & TEXT(TEAMS!$AB$521, "-000") ->  | L23: =TEXT(TEAMS!$AA$522, "0000") & TEXT(TEAMS!$AB$522, "-000") -> 
D24: =TEAMS!$AC$646 -> WS | E24: =TEXT(TEAMS!$AA649, "0000") & TEXT(TEAMS!$AB$649, "-000") -> 0962-023 | F24: =TEXT(TEAMS!$AA650, "0000") & TEXT(TEAMS!$AB$650, "-000") ->  | G24: =TEXT(TEAMS!$AA651, "0000") & TEXT(TEAMS!$AB$651, "-000") ->  | H24: =TEXT(TEAMS!$AA652, "0000") & TEXT(TEAMS!$AB$652, "-000") -> 
D25: =TEAMS!$AC$293 -> GC | E25: =TEXT(TEAMS!$AA$296, "0000") & TEXT(TEAMS!$AB$296, "-000") -> 0856-005 | F25: =TEXT(TEAMS!$AA$297, "0000") & TEXT(TEAMS!$AB$297, "-000") ->  | G25: =TEXT(TEAMS!$AA$298, "0000") & TEXT(TEAMS!$AB$298, "-000") ->  | H25: =TEXT(TEAMS!$AA$299, "0000") & TEXT(TEAMS!$AB$299, "-000") ->  | I25: =TEXT(TEAMS!$AA$580, "0000") & TEXT(TEAMS!$AB$580, "-000") ->  | J25: =TEXT(TEAMS!$AA$581, "0000") & TEXT(TEAMS!$AB$581, "-000") ->  | K25: =TEXT(TEAMS!$AA$582, "0000") & TEXT(TEAMS!$AB$582, "-000") ->  | L25: =TEXT(TEAMS!$AA$583, "0000") & TEXT(TEAMS!$AB$583, "-000") -> 
D26: =TEAMS!$AC$650 -> 0 | E26: =TEXT(TEAMS!$AA$649, "0000") & TEXT(TEAMS!$AB$649, "-000") -> 0962-023 | F26: =TEXT(TEAMS!$AA$650, "0000") & TEXT(TEAMS!$AB$650, "-000") ->  | G26: =TEXT(TEAMS!$AA$651, "0000") & TEXT(TEAMS!$AB$651, "-000") ->  | H26: =TEXT(TEAMS!$AA$652, "0000") & TEXT(TEAMS!$AB$652, "-000") ->  | I26: =TEXT(TEAMS!$AA$653, "0000") & TEXT(TEAMS!$AB$653, "-000") ->  | J26: =TEXT(TEAMS!$AA$654, "0000") & TEXT(TEAMS!$AB$654, "-000") ->  | K26: =TEXT(TEAMS!$AA$655, "0000") & TEXT(TEAMS!$AB$655, "-000") ->  | L26: =TEXT(TEAMS!$AA$656, "0000") & TEXT(TEAMS!$AB$656, "-000") -> 
D28: Match Score - Inner 10's | K28: Sectional | L28: Area 10
D29: Team | E29: 9 | F29: 10 | G29: 11 | H29: 12 | I29: 13 | J29: 14 | K29: Playoff | L29: Chmpnshp
D30: =TEAMS!$AC$220 -> EW | E30: =TEXT(TEAMS!$AA$12, "0000") & TEXT(TEAMS!$AB$12, "-000") ->  | F30: =TEXT(TEAMS!$AA$13, "0000") & TEXT(TEAMS!$AB$13, "-000") ->  | G30: =TEXT(TEAMS!$AA$14, "0000") & TEXT(TEAMS!$AB$14, "-000") ->  | H30: =TEXT(TEAMS!$AA$15, "0000") & TEXT(TEAMS!$AB$15, "-000") ->  | I30: =TEXT(TEAMS!$AA$16, "0000") & TEXT(TEAMS!$AB$16, "-000") ->  | J30: =TEXT(TEAMS!$AA$17, "0000") & TEXT(TEAMS!$AB$17, "-000") ->  | K30: =TEXT(TEAMS!$AA$22, "0000") & TEXT(TEAMS!$AB$22, "-000") ->  | L30: =TEXT(TEAMS!$AA$23, "0000") & TEXT(TEAMS!$AB$23, "-000") -> 
D31: =TEAMS!$AC$74 -> CK | E31: =TEXT(TEAMS!$AA$85, "0000") & TEXT(TEAMS!$AB$85, "-000") ->  | F31: =TEXT(TEAMS!$AA$86, "0000") & TEXT(TEAMS!$AB$86, "-000") ->  | G31: =TEXT(TEAMS!$AA$87, "0000") & TEXT(TEAMS!$AB$87, "-000") ->  | H31: =TEXT(TEAMS!$AA$88, "0000") & TEXT(TEAMS!$AB$88, "-000") ->  | I31: =TEXT(TEAMS!$AA$89, "0000") & TEXT(TEAMS!$AB$89, "-000") ->  | J31: =TEXT(TEAMS!$AA$90, "0000") & TEXT(TEAMS!$AB$90, "-000") ->  | K31: =TEXT(TEAMS!$AA$95, "0000") & TEXT(TEAMS!$AB$95, "-000") ->  | L31: =TEXT(TEAMS!$AA$96, "0000") & TEXT(TEAMS!$AB$96, "-000") -> 
D32: =TEAMS!$AC$573 -> AL | E32: =TEXT(TEAMS!$AA$158, "0000") & TEXT(TEAMS!$AB$158, "-000") ->  | F32: =TEXT(TEAMS!$AA$159, "0000") & TEXT(TEAMS!$AB$159, "-000") ->  | G32: =TEXT(TEAMS!$AA$160, "0000") & TEXT(TEAMS!$AB$160, "-000") ->  | H32: =TEXT(TEAMS!$AA$161, "0000") & TEXT(TEAMS!$AB$161, "-000") ->  | I32: =TEXT(TEAMS!$AA$162, "0000") & TEXT(TEAMS!$AB$162, "-000") ->  | J32: =TEXT(TEAMS!$AA$163, "0000") & TEXT(TEAMS!$AB$163, "-000") ->  | K32: =TEXT(TEAMS!$AA$168, "0000") & TEXT(TEAMS!$AB$168, "-000") ->  | L32: =TEXT(TEAMS!$AA$169, "0000") & TEXT(TEAMS!$AB$169, "-000") -> 
D33: =TEAMS!$AC$1 -> CV | E33: =TEXT(TEAMS!$AA$231, "0000") & TEXT(TEAMS!$AB$231, "-000") ->  | F33: =TEXT(TEAMS!$AA$232, "0000") & TEXT(TEAMS!$AB$232, "-000") ->  | G33: =TEXT(TEAMS!$AA$233, "0000") & TEXT(TEAMS!$AB$233, "-000") ->  | H33: =TEXT(TEAMS!$AA$234, "0000") & TEXT(TEAMS!$AB$234, "-000") ->  | I33: =TEXT(TEAMS!$AA$235, "0000") & TEXT(TEAMS!$AB$235, "-000") ->  | J33: =TEXT(TEAMS!$AA$236, "0000") & TEXT(TEAMS!$AB$236, "-000") ->  | K33: =TEXT(TEAMS!$AA$241, "0000") & TEXT(TEAMS!$AB$241, "-000") ->  | L33: =TEXT(TEAMS!$AA$242, "0000") & TEXT(TEAMS!$AB$242, "-000") -> 
D34: =TEAMS!$AC$366 -> LF | E34: =TEXT(TEAMS!$AA$304, "0000") & TEXT(TEAMS!$AB$304, "-000") ->  | F34: =TEXT(TEAMS!$AA$305, "0000") & TEXT(TEAMS!$AB$305, "-000") ->  | G34: =TEXT(TEAMS!$AA$306, "0000") & TEXT(TEAMS!$AB$306, "-000") ->  | H34: =TEXT(TEAMS!$AA$307, "0000") & TEXT(TEAMS!$AB$307, "-000") ->  | I34: =TEXT(TEAMS!$AA$308, "0000") & TEXT(TEAMS!$AB$308, "-000") ->  | J34: =TEXT(TEAMS!$AA$309, "0000") & TEXT(TEAMS!$AB$309, "-000") ->  | K34: =TEXT(TEAMS!$AA$314, "0000") & TEXT(TEAMS!$AB$314, "-000") ->  | L34: =TEXT(TEAMS!$AA$315, "0000") & TEXT(TEAMS!$AB$315, "-000") -> 
D35: =TEAMS!$AC$439 -> RL | F35: =TEXT(TEAMS!$AA$378, "0000") & TEXT(TEAMS!$AB$378, "-000") ->  | G35: =TEXT(TEAMS!$AA$379, "0000") & TEXT(TEAMS!$AB$379, "-000") ->  | H35: =TEXT(TEAMS!$AA$380, "0000") & TEXT(TEAMS!$AB$380, "-000") ->  | I35: =TEXT(TEAMS!$AA$381, "0000") & TEXT(TEAMS!$AB$381, "-000") ->  | J35: =TEXT(TEAMS!$AA$382, "0000") & TEXT(TEAMS!$AB$382, "-000") ->  | K35: =TEXT(TEAMS!$AA$387, "0000") & TEXT(TEAMS!$AB$387, "-000") ->  | L35: =TEXT(TEAMS!$AA$388, "0000") & TEXT(TEAMS!$AB$388, "-000") -> 
D36: =TEAMS!$AC$147 -> DL | E36: =TEXT(TEAMS!$AA$450, "0000") & TEXT(TEAMS!$AB$450, "-000") ->  | F36: =TEXT(TEAMS!$AA$451, "0000") & TEXT(TEAMS!$AB$451, "-000") ->  | G36: =TEXT(TEAMS!$AA$452, "0000") & TEXT(TEAMS!$AB$452, "-000") ->  | H36: =TEXT(TEAMS!$AA$453, "0000") & TEXT(TEAMS!$AB$453, "-000") ->  | I36: =TEXT(TEAMS!$AA$454, "0000") & TEXT(TEAMS!$AB$454, "-000") ->  | J36: =TEXT(TEAMS!$AA$455, "0000") & TEXT(TEAMS!$AB$455, "-000") ->  | K36: =TEXT(TEAMS!$AA$460, "0000") & TEXT(TEAMS!$AB$460, "-000") ->  | L36: =TEXT(TEAMS!$AA$461, "0000") & TEXT(TEAMS!$AB$461, "-000") -> 
D37: =TEAMS!$AC$646 -> WS | E37: =TEXT(TEAMS!$AA$523, "0000") & TEXT(TEAMS!$AB$523, "-000") ->  | F37: =TEXT(TEAMS!$AA$524, "0000") & TEXT(TEAMS!$AB$524, "-000") -> not | G37: =TEXT(TEAMS!$AA$525, "0000") & TEXT(TEAMS!$AB$525, "-000") -> Shooting | H37: =TEXT(TEAMS!$AA$526, "0000") & TEXT(TEAMS!$AB$526, "-000") -> this | I37: =TEXT(TEAMS!$AA$527, "0000") & TEXT(TEAMS!$AB$527, "-000") -> year | J37: =TEXT(TEAMS!$AA$528, "0000") & TEXT(TEAMS!$AB$528, "-000") ->  | K37: =TEXT(TEAMS!$AA$529, "0000") & TEXT(TEAMS!$AB$529, "-000") ->  | L37: =TEXT(TEAMS!$AA$530, "0000") & TEXT(TEAMS!$AB$530, "-000") -> 
D38: =TEAMS!$AC$646 -> WS
D39: =TEAMS!$AC$293 -> GC | F39: =TEXT(TEAMS!$AA$585, "0000") & TEXT(TEAMS!$AB$585, "-000") ->  | G39: =TEXT(TEAMS!$AA$586, "0000") & TEXT(TEAMS!$AB$586, "-000") ->  | H39: =TEXT(TEAMS!$AA$587, "0000") & TEXT(TEAMS!$AB$587, "-000") ->  | I39: =TEXT(TEAMS!$AA$588, "0000") & TEXT(TEAMS!$AB$588, "-000") ->  | J39: =TEXT(TEAMS!$AA$589, "0000") & TEXT(TEAMS!$AB$589, "-000") ->  | K39: =TEXT(TEAMS!$AA$594, "0000") & TEXT(TEAMS!$AB$594, "-000") ->  | L39: =TEXT(TEAMS!$AA$595, "0000") & TEXT(TEAMS!$AB$595, "-000") -> 
D40: =TEAMS!$AC$650 -> 0 | E40: =TEXT(TEAMS!$AA$657, "0000") & TEXT(TEAMS!$AB$657, "-000") ->  | F40: =TEXT(TEAMS!$AA$658, "0000") & TEXT(TEAMS!$AB$658, "-000") ->  | G40: =TEXT(TEAMS!$AA$659, "0000") & TEXT(TEAMS!$AB$659, "-000") ->  | H40: =TEXT(TEAMS!$AA$660, "0000") & TEXT(TEAMS!$AB$660, "-000") ->  | I40: =TEXT(TEAMS!$AA$661, "0000") & TEXT(TEAMS!$AB$661, "-000") ->  | J40: =TEXT(TEAMS!$AA$662, "0000") & TEXT(TEAMS!$AB$662, "-000") ->  | K40: =TEXT(TEAMS!$AA$667, "0000") & TEXT(TEAMS!$AB$667, "-000") ->  | L40: =TEXT(TEAMS!$AA$668, "0000") & TEXT(TEAMS!$AB$668, "-000") -> 
C42: Matches
C43: 30 October 2025 Match 1 | F43: 6 November 2025 Match 2 | I43: 11 November 2025 Match 3 | L43: 13 November 2025 Match 4
C44: CV @ CK | D44: =E19 -> 1125-051 | E44: =E17 -> 1115-038 | F44: AL @ RL | G44: =F18 -> 1088 | H44: =F21 -> 1070 | I44: WS @ AL | J44: =G22 ->  | K44: =G19 ->  | L44: AL @ GC | M44: =H17 ->  | N44: =H22 -> 
C45: GC @ DL | D45: =E25 -> 0856-005 | E45: =E22 -> 0744-003 | F45: CV @ LF | G45: =F19 -> 1119-044 | H45: =F20 -> 1097-037 | I45: DL @ CV | J45: =G21 ->  | K45: =G17 ->  | L45: CV @ WS | M45: =H19 ->  | N45: =H21 -> 
C46: EW @ WS | D46: =E16 -> 1070-031 | E46: =E24 -> 0962-023 | F46: GC @ CK | G46: =F25 ->  | H46: =F17 ->  | I46: CK @ LF | J46: =G20 ->  | K46: =G25 ->  | L46: DL @ CK | M46: =H20 ->  | N46: =H16 -> 
C47: RL @ LF | D47: =E21 -> 0989-017 | E47: =E20 -> 1092-037 | F47: DL @ EW | G47: =F22 -> 0706-002 | H47: =F16 -> 1120-055 | I47: GC @ EW | J47: =G18 ->  | K47: =G16 ->  | L47: RL @ EW | M47: =H18 ->  | N47: =H25 -> 
C55: 18 November 2025 Match 5 | F55: 20 November 2025 Match 6 | I55: 2 December 2025 Match 7 | L55: 4 December 2025 Match 8
C56: LF @ AL | D56: =I22 ->  | E56: =I18 ->  | F56: AL @ CV | G56: =J20 ->  | H56: =J22 ->  | I56: CK @ AL | J56: =K22 ->  | K56: =K21 ->  | L56: AL @ DL | M56: =L25 ->  | N56: =L22 -> 
C57: RL @ CV | D57: =I20 ->  | E57: =I21 ->  | F57: WS @ CK | G57: =J18 ->  | H57: =J21 ->  | I57: GC @ CV | J57: =K25 ->  | K57: =K19 ->  | L57: EW @ CV | M57: =L16 ->  | N57: =L21 -> 
C58: CK @ EW | D58: =I25 ->  | E58: =I17 ->  | F58: DL @ RL | G58: =J16 ->  | H58: =J25 ->  | I58: LF @ EW | J58: =K20 ->  | K58: =K18 ->  | L58: GC @ RL | M58: =L20 ->  | N58: =L17 -> 
C59: WS @ DL | D59: =I19 ->  | E59: =I16 ->  | F59: GC @ LF | H59: =J19 ->  | I59: WS @ RL | J59: =K17 ->  | K59: =K16 ->  | L59: WS @ LF | M59: =L19 ->  | N59: =L18 -> 
C67: 9 December 2025 Match 9 | F67: 11 December 2025 Match 10 | I67: 7January 2026 Match 11 | L67: 8 January 2026 Match 12
C68: EW @ AL | D68: =E36 ->  | E68: =E30 ->  | F68: CK @ CV | G68: =F33 ->  | H68: =F36 ->  | I68: RL @ AL | J68: =G36 ->  | K68: =G31 ->  | L68: AL @ WS | M68: =H32 ->  | N68: =H36 -> 
C69: RL @ CK | F69: DL @ GC | G69: =F31 ->  | H69: =F35 ->  | I69: LF @ CV | K69: =G33 ->  | L69: CV @ DL | M69: =H34 ->  | N69: =H35 -> 
C70: DL @ LF | D70: =E34 ->  | E70: =E33 ->  | F70: WS @ EW | G70: =F34 ->  | H70: =F39 ->  | I70: CK @ GC | J70: =G34 ->  | K70: =G30 ->  | L70: LF @ CK | M70: =H31 ->  | N70: =H39 -> 
C71: WS @ GC | D71: =E32 ->  | E71: =E31 ->  | F71: LF @ RL | G71: =F30 ->  | H71: =F32 ->  | I71: EW @ DL | J71: =G39 ->  | K71: =G32 ->  | L71: EW @ GC | N71: =H33 -> 
C79: 13 January 2026 Match 13 | F79: 15 January 2026 Match 14 | I79: 27 January 2026 Match 15 | L79: 29 January 2026 Match 16
C80: GC @ AL | D80: =I34 ->  | E80: =I36 ->  | F80: AL @ LF | G80: =J35 ->  | H80: =J36 ->  | I80: CV @ AL | L80: AL @ CK
C81: WS @ CV | D81: =I35 ->  | E81: =I32 ->  | F81: CV @ RL | G81: =J33 ->  | H81: =J39 ->  | I81: CK @ WS | L81: CV @ GC
C82: CK @ DL | D82: =I39 ->  | E82: =I30 ->  | F82: EW @ CK | G82: =J34 ->  | H82: =J32 ->  | I82: RL @ DL | L82: EW @ LF
C83: EW @ RL | E83: =I31 ->  | F83: DL @ WS | G83: =J30 ->  | H83: =J31 ->  | I83: LF @ GC | L83: RL @ WS
C91: 3 February 2026 Match 17 | F91: 5 February 2026 Match 18
C92: DL @ AL | F92: AL @ EW | G92: =J47 -> 
C93: CV @ EW | F93: CK @ RL | G93: =J45 -> 
C94: RL @ GC | F94: LF @ DL | G94: =J46 ->  | H94: =J44 -> 
C95: LF @ WS | F95: GC @ WS
C97: 2026-02-11 | I97: 2026-02-11
C98: Area 10 Championship | I98: Area 10 Championship
C99: Teams | E99: Score | F99: Teams | H99: Score | I99: Team | M99: Score | N99: Rank
E100: =L39 -> 
E101: =L31 -> 
E102: =L30 -> 
E103: =L32 -> 
E104: =L33 -> 
E105: =L34 -> 
E106: =L35 -> 
E107: =L36 -> 
A111: 1st Round/Sectionals 24 February 2026 Semifinals 03 March 2026 State Championship 14 March 2026

Sheet TEAMS
AC1: =A25 -> CV
A2: Cartersville | B2: Evans, Lucy (12) | G2: Sheffield, Maggie (11) | L2: Newport, Bryson (11) | Q2: Van Pelt, Chance (10) | V2: Gibson, Lucas(12) | AA2: MATCH | AC2: =B2 -> Evans, Lucy (12) | AD2: =G2 -> Sheffield, Maggie (11) | AE2: =L2 -> Newport, Bryson (11) | AF2: =Q2 -> Van Pelt, Chance (10) | AG2: =V2 -> Gibson, Lucas(12) | AH2: Match 1 | AM2: RK | AN2: Match 2 | AS2: RK | AT2: Match 3 | AY2: RK | AZ2: Match 4 | BE2: RK | BF2: Match 5 | BK2: RK | BL2: Match 6 | BQ2: RK | BR2: Match 7 | BW2: RK | BX2: Match 8 | CC2: RK | CD2: Match 9 | CI2: RK | CJ2: Match 10 | CO2: RK | CP2: Match 11 | CU2: RK | CV2: Match 12 | DA2: RK | DB2: Match 13 | DG2: RK | DH2: Match 14 | DM2: RK | DN2: Area Sectional/Playoff | DS2: RK | DT2: Area Championship | DY2: RK | DZ2: AGGR | EA2: Kneeling | EB2: Prone | EC2: Standing
A3: VS | B3: K | C3: P | D3: S | E3: AGGR | F3: *10 | G3: K | H3: P | I3: S | J3: AGGR | K3: *10 | L3: K | M3: P | N3: S | O3: AGGR | P3: *10 | Q3: K | R3: P | S3: S | T3: AGGR | U3: *10 | V3: K | W3: P | X3: S | Y3: AGGR | Z3: *10 | AA3: SCORE | AB3: *10 | AC3: =IF(SUM(E4:E19)>0,LARGE(E4:E19,1),0) -> 294 | AD3: =IF(SUM(J4:J19)>0,LARGE(J4:J19,1),0) -> 291 | AE3: =IF(SUM(O4:O19)>0,LARGE(O4:O19,1),0) -> 281 | AF3: =IF(SUM(T4:T19)>0,LARGE(T4:T19,1),0) -> 266 | AG3: =IF(SUM(Y4:Y19)>0,LARGE(Y4:Y19,1),0) -> 264 | AH3: AGGR | AI3: *10 | AJ3: K | AK3: P | AL3: S | AN3: AGGR | AO3: *10 | AP3: K | AQ3: P | AR3: S | AT3: AGGR | AU3: *10 | AV3: K | AW3: P | AX3: S | AZ3: AGGR | BA3: *10 | BB3: K | BC3: P | BD3: S | BF3: AGGR | BG3: *10 | BH3: K | BI3: P | BJ3: S | BL3: AGGR | BM3: *10 | BN3: K | BO3: P | BP3: S | BR3: AGGR | BS3: *10 | BT3: K | BU3: P | BV3: S | BX3: AGGR | BY3: *10 | BZ3: K | CA3: P | CB3: S | CD3: AGGR | CE3: *10 | CF3: K | CG3: P | CH3: S | CJ3: AGGR | CK3: *10 | CL3: K | CM3: P | CN3: S | CP3: AGGR | CQ3: *10 | CR3: K | CS3: P | CT3: S | CV3: AGGR | CW3: *10 | CX3: K | CY3: P | CZ3: S | DB3: AGGR | DC3: *10 | DD3: K | DE3: P | DF3: S | DH3: AGGR | DI3: *10 | DJ3: K | DK3: P | DL3: S | DN3: AGGR | DO3: *10 | DP3: K | DQ3: P | DR3: S | DT3: AGGR | DU3: *10 | DV3: K | DW3: P | DX3: S | DZ3: Large | EA3: Large | EB3: Large | EC3: Large
A4: @ Cherokee | B4: 96 | C4: 100 | D4: 98 | E4: =IF(SUM(B4:D4)>0,SUM(B4:D4),"") -> 294 | F4: 20 | G4: 96 | H4: 99 | I4: 94 | J4: =IF(SUM(G4:I4)>0,SUM(G4:I4),"") -> 289 | K4: 16 | L4: 94 | M4: 98 | N4: 84 | O4: =IF(SUM(L4:N4)>0,SUM(L4:N4),"") -> 276 | P4: 8 | Q4: 91 | R4: 92 | S4: 83 | T4: =IF(SUM(Q4:S4)>0,SUM(Q4:S4),"") -> 266 | U4: 7 | V4: 92 | W4: 92 | X4: 80 | Y4: =IF(SUM(V4:X4)>0,SUM(V4:X4),"") -> 264 | Z4: 4 | AA4: =IF(SUM(E4,J4,O4,T4,Y4,Y28,T28,O28,J28,E28,E52,J52,O52,T52,Y52)>0,(LARGE((E4,J4,O4,T4,Y4,Y28,T28,O28,J28,E28,E52,J52,O52,T52,Y52),1)+LARGE((E4,J4,O4,T4,Y4,Y28,T28,O28,J28,E28,E52,J52,O52,T52,Y52),2)+LARGE((E4,J4,O4,T4,Y4,Y28,T28,O28,J28,E28,E52,J52,O52,T52,Y52),3)+LARGE((E4,J4,O4,T4,Y4,Y28,T28,O28,J28,E28,E52,J52,O52,T52,Y52),4)),"") -> 1125 | AB4: 51 | AH4: =IF(SUM(B4:D4)>0,SUM(B4:D4),0) -> 294 | AI4: =IF(SUM(F4)>0,SUM(F4),0) -> 20 | AJ4: =B4 -> 96 | AK4: =C4 -> 100 | AL4: =D4 -> 98 | AN4: =IF(SUM(B5:D5)>0,SUM(B5:D5),0) -> 290 | AO4: =IF(SUM(F5)>0,SUM(F5),0) -> 16 | AP4: =B5 -> 97 | AQ4: =C5 -> 100 | AR4: =D5 -> 93 | AT4: =IF(SUM(B6:D6)>0,SUM(B6:D6),0) -> 0 | AU4: =IF(SUM(F6)>0,SUM(F6),0) -> 0 | AV4: =B6 -> 0 | AW4: =C6 -> 0 | AX4: =D6 -> 0 | AZ4: =IF(SUM(B7:D7)>0,SUM(B7:D7),0) -> 0 | BA4: =IF(SUM(F7)>0,SUM(F7),0) -> 0 | BB4: =B7 -> 0 | BC4: =C7 -> 0 | BD4: =D7 -> 0 | BF4: =IF(SUM(B8:D8)>0,SUM(B8:D8),0) -> 0 | BG4: =IF(SUM(F8)>0,SUM(F8),0) -> 0 | BH4: =B8 -> 0 | BI4: =C8 -> 0 | BJ4: =D8 -> 0 | BL4: =IF(SUM(B9:D9)>0,SUM(B9:D9),0) -> 0 | BM4: =IF(SUM(F9)>0,SUM(F9),0) -> 0 | BN4: =B9 -> 0 | BO4: =C9 -> 0 | BP4: =D9 -> 0 | BR4: =IF(SUM(B10:D10)>0,SUM(B10:D10),0) -> 0 | BS4: =IF(SUM(F10)>0,SUM(F10),0) -> 0 | BT4: =B10 -> 0 | BU4: =C10 -> 0 | BV4: =D10 -> 0 | BX4: =IF(SUM(B11:D11)>0,SUM(B11:D11),0) -> 0 | BY4: =IF(SUM(F11)>0,SUM(F11),0) -> 0 | BZ4: =B11 -> 0 | CA4: =C11 -> 0 | CB4: =D11 -> 0 | CD4: =IF(SUM(B12:D12)>0,SUM(B12:D12),0) -> 0 | CE4: =IF(SUM(F12)>0,SUM(F12),0) -> 0 | CF4: =B12 -> 0 | CG4: =C12 -> 0 | CH4: =D12 -> 0 | CJ4: =IF(SUM(B13:D13)>0,SUM(B13:D13),0) -> 0 | CK4: =IF(SUM(F13)>0,SUM(F13),0) -> 0 | CL4: =B13 -> 0 | CM4: =C13 -> 0 | CN4: =D13 -> 0 | CP4: =IF(SUM(B14:D14)>0,SUM(B14:D14),0) -> 0 | CQ4: =IF(SUM(F14)>0,SUM(F14),0) -> 0 | CR4: =B14 -> 0 | CS4: =C14 -> 0 | CT4: =D14 -> 0 | CV4: =IF(SUM(B15:D15)>0,SUM(B15:D15),0) -> 0 | CW4: =IF(SUM(F15)>0,SUM(F15),0) -> 0 | CX4: =B15 -> 0 | CY4: =C15 -> 0 | CZ4: =D15 -> 0 | DB4: =IF(SUM(B16:D16)>0,SUM(B16:D16),0) -> 0 | DC4: =IF(SUM(F16)>0,SUM(F16),0) -> 0 | DD4: =B16 -> 0 | DE4: =C16 -> 0 | DF4: =D16 -> 0 | DH4: =IF(SUM(B17:D17)>0,SUM(B17:D17),0) -> 0 | DI4: =IF(SUM(F17)>0,SUM(F17),0) -> 0 | DJ4: =B17 -> 0 | DK4: =C17 -> 0 | DL4: =D17 -> 0 | DN4: =IF(SUM(B18:D18)>0,SUM(B18:D18),0) -> 0 | DO4: =IF(SUM(F18)>0,SUM(F18),0) -> 0 | DP4: =B18 -> 0 | DQ4: =C18 -> 0 | DR4: =D18 -> 0 | DT4: =IF(SUM(B19:D19)>0,SUM(B19:D19),0) -> 0 | DU4: =IF(SUM(F19)>0,SUM(F19),0) -> 0 | DV4: =B19 -> 0 | DW4: =C19 -> 0 | DX4: =D19 -> 0 | DZ4: =LARGE((DT4,DN4,DH4,DB4,CV4,CP4,CJ4,CD4,BX4,BR4,BL4,BF4,AZ4,AT4,AN4,AH4),1) -> 294 | EA4: =LARGE((AJ4,AP4,AV4,BB4,BH4,BN4,BT4,BZ4,CF4,CL4,CR4,CX4,DD4,DJ4,DP4,DV4),1) -> 97 | EB4: =LARGE((AK4,AQ4,AW4,BC4,BI4,BO4,BU4,CA4,CG4,CM4,CS4,CY4,DE4,DK4,DQ4,DW4),1) -> 100 | EC4: =LARGE((AL4,AR4,AX4,BD4,BJ4,BP4,BV4,CB4,CH4,CN4,CT4,CZ4,DF4,DL4,DR4,DX4),1) -> 98
A5: @LaFayette | B5: 97 | C5: 100 | D5: 93 | E5: 290 | F5: 16 | G5: 96 | H5: 100 | I5: 95 | J5: 291 | K5: 13 | L5: 95 | M5: 97 | N5: 89 | O5: 281 | P5: 12 | Q5: 88 | R5: 93 | S5: 76 | T5: 257 | U5: 3 | AA5: =IF(SUM(E5,J5,O5,T5,Y5,Y29,T29,O29,J29,E29,E53,J53,O53,T53,Y53)>0,(LARGE((E5,J5,O5,T5,Y5,Y29,T29,O29,J29,E29,E53,J53,O53,T53,Y53),1)+LARGE((E5,J5,O5,T5,Y5,Y29,T29,O29,J29,E29,E53,J53,O53,T53,Y53),2)+LARGE((E5,J5,O5,T5,Y5,Y29,T29,O29,J29,E29,E53,J53,O53,T53,Y53),3)+LARGE((E5,J5,O5,T5,Y5,Y29,T29,O29,J29,E29,E53,J53,O53,T53,Y53),4)),"") -> 1119 | AB5: 44 | AH5: =IF(SUM(G4:I4)>0,SUM(G4:I4),0) -> 289 | AI5: =IF(SUM(K4)>0,SUM(K4),0) -> 16 | AJ5: =G4 -> 96 | AK5: =H4 -> 99 | AL5: =I4 -> 94 | AN5: =IF(SUM(G5:I5)>0,SUM(G5:I5),0) -> 291 | AO5: =IF(SUM(K5)>0,SUM(K5),0) -> 13 | AP5: =G5 -> 96 | AQ5: =H5 -> 100 | AR5: =I5 -> 95 | AT5: =IF(SUM(G6:I6)>0,SUM(G6:I6),0) -> 0 | AU5: =IF(SUM(K6)>0,SUM(K6),0) -> 0 | AV5: =G6 -> 0 | AW5: =H6 -> 0 | AX5: =I6 -> 0 | AZ5: =IF(SUM(G7:I7)>0,SUM(G7:I7),0) -> 0 | BA5: =IF(SUM(K7)>0,SUM(K7),0) -> 0 | BB5: =G7 -> 0 | BC5: =H7 -> 0 | BD5: =I7 -> 0 | BF5: =IF(SUM(G8:I8)>0,SUM(G8:I8),0) -> 0 | BG5: =IF(SUM(K8)>0,SUM(K8),0) -> 0 | BH5: =G8 -> 0 | BI5: =H8 -> 0 | BJ5: =I8 -> 0 | BL5: =IF(SUM(G9:I9)>0,SUM(G9:I9),0) -> 0 | BM5: =IF(SUM(K9)>0,SUM(K9),0) -> 0 | BN5: =G9 -> 0 | BO5: =H9 -> 0 | BP5: =I9 -> 0 | BR5: =IF(SUM(G10:I10)>0,SUM(G10:I10),0) -> 0 | BS5: =IF(SUM(K10)>0,SUM(K10),0) -> 0 | BT5: =G10 -> 0 | BU5: =H10 -> 0 | BV5: =I10 -> 0 | BX5: =IF(SUM(G11:I11)>0,SUM(G11:I11),0) -> 0 | BY5: =IF(SUM(K11)>0,SUM(K11),0) -> 0 | BZ5: =G11 -> 0 | CA5: =H11 -> 0 | CB5: =I11 -> 0 | CD5: =IF(SUM(G12:I12)>0,SUM(G12:I12),0) -> 0 | CE5: =IF(SUM(K12)>0,SUM(K12),0) -> 0 | CF5: =G12 -> 0 | CG5: =H12 -> 0 | CH5: =I12 -> 0 | CJ5: =IF(SUM(G13:I13)>0,SUM(G13:I13),0) -> 0 | CK5: =IF(SUM(K13)>0,SUM(K13),0) -> 0 | CL5: =G13 -> 0 | CM5: =H13 -> 0 | CN5: =I13 -> 0 | CP5: =IF(SUM(G14:I14)>0,SUM(G14:I14),0) -> 0 | CQ5: =IF(SUM(K14)>0,SUM(K14),0) -> 0 | CR5: =G14 -> 0 | CS5: =H14 -> 0 | CT5: =I14 -> 0 | CV5: =IF(SUM(G15:I15)>0,SUM(G15:I15),0) -> 0 | CW5: =IF(SUM(K15)>0,SUM(K15),0) -> 0 | CX5: =G15 -> 0 | CY5: =H15 -> 0 | CZ5: =I15 -> 0 | DB5: =IF(SUM(G16:I16)>0,SUM(G16:I16),0) -> 0 | DC5: =IF(SUM(K16)>0,SUM(K16),0) -> 0 | DD5: =G16 -> 0 | DE5: =H16 -> 0 | DF5: =I16 -> 0 | DH5: =IF(SUM(G17:I17)>0,SUM(G17:I17),0) -> 0 | DI5: =IF(SUM(K17)>0,SUM(K17),0) -> 0 | DJ5: =G17 -> 0 | DK5: =H17 -> 0 | DL5: =I17 -> 0 | DN5: =IF(SUM(G18:I18)>0,SUM(G18:I18),0) -> 0 | DO5: =IF(SUM(K18)>0,SUM(K18),0) -> 0 | DP5: =G18 -> 0 | DQ5: =H18 -> 0 | DR5: =I18 -> 0 | DT5: =IF(SUM(G19:I19)>0,SUM(G19:I19),0) -> 0 | DU5: =IF(SUM(K19)>0,SUM(K19),0) -> 0 | DV5: =G19 -> 0 | DW5: =H19 -> 0 | DX5: =I19 -> 0 | DZ5: =LARGE((DT5,DN5,DH5,DB5,CV5,CP5,CJ5,CD5,BX5,BR5,BL5,BF5,AZ5,AT5,AN5,AH5),1) -> 291 | EA5: =LARGE((AJ5,AP5,AV5,BB5,BH5,BN5,BT5,BZ5,CF5,CL5,CR5,CX5,DD5,DJ5,DP5,DV5),1) -> 96 | EB5: =LARGE((AK5,AQ5,AW5,BC5,BI5,BO5,BU5,CA5,CG5,CM5,CS5,CY5,DE5,DK5,DQ5,DW5),1) -> 100 | EC5: =LARGE((AL5,AR5,AX5,BD5,BJ5,BP5,BV5,CB5,CH5,CN5,CT5,CZ5,DF5,DL5,DR5,DX5),1) -> 95
A6: Dalton | AA6: =IF(SUM(E6,J6,O6,T6,Y6,Y30,T30,O30,J30,E30,E54,J54,O54,T54,Y54)>0,(LARGE((E6,J6,O6,T6,Y6,Y30,T30,O30,J30,E30,E54,J54,O54,T54,Y54),1)+LARGE((E6,J6,O6,T6,Y6,Y30,T30,O30,J30,E30,E54,J54,O54,T54,Y54),2)+LARGE((E6,J6,O6,T6,Y6,Y30,T30,O30,J30,E30,E54,J54,O54,T54,Y54),3)+LARGE((E6,J6,O6,T6,Y6,Y30,T30,O30,J30,E30,E54,J54,O54,T54,Y54),4)),"") ->  | AB6: =IF(SUM(E6,J6,O6,T6,Y6,Y30,T30,O30,J30,E30,E54,J54,O54,T54,Y54)>0,(LARGE((E6,J6,O6,T6,Y6,Y30,T30,O30,J30,E30,E54,J54,O54,T54,Y54),1)+LARGE((E6,J6,O6,T6,Y6,Y30,T30,O30,J30,E30,E54,J54,O54,T54,Y54),2)+LARGE((E6,J6,O6,T6,Y6,Y30,T30,O30,J30,E30,E54,J54,O54,T54,Y54),3)+LARGE((E6,J6,O6,T6,Y6,Y30,T30,O30,J30,E30,E54,J54,O54,T54,Y54),4)),"") ->  | AH6: =IF(SUM(L4:N4)>0,SUM(L4:N4),0) -> 276 | AI6: =IF(SUM(P4)>0,SUM(P4),0) -> 8 | AJ6: =L4 -> 94 | AK6: =M4 -> 98 | AL6: =N4 -> 84 | AN6: =IF(SUM(L5:N5)>0,SUM(L5:N5),0) -> 281 | AO6: =IF(SUM(P5)>0,SUM(P5),0) -> 12 | AP6: =L5 -> 95 | AQ6: =M5 -> 97 | AR6: =N5 -> 89 | AT6: =IF(SUM(L6:N6)>0,SUM(L6:N6),0) -> 0 | AU6: =IF(SUM(P6)>0,SUM(P6),0) -> 0 | AV6: =L6 -> 0 | AW6: =M6 -> 0 | AX6: =N6 -> 0 | AZ6: =IF(SUM(L7:N7)>0,SUM(L7:N7),0) -> 0 | BA6: =IF(SUM(P7)>0,SUM(P7),0) -> 0 | BB6: =L7 -> 0 | BC6: =M7 -> 0 | BD6: =N7 -> 0 | BF6: =IF(SUM(L8:N8)>0,SUM(L8:N8),0) -> 0 | BG6: =IF(SUM(P8)>0,SUM(P8),0) -> 0 | BH6: =L8 -> 0 | BI6: =M8 -> 0 | BJ6: =N8 -> 0 | BL6: =IF(SUM(L9:N9)>0,SUM(L9:N9),0) -> 0 | BM6: =IF(SUM(P9)>0,SUM(P9),0) -> 0 | BN6: =L9 -> 0 | BO6: =M9 -> 0 | BP6: =N9 -> 0 | BR6: =IF(SUM(L10:N10)>0,SUM(L10:N10),0) -> 0 | BS6: =IF(SUM(P10)>0,SUM(P10),0) -> 0 | BT6: =L10 -> 0 | BU6: =M10 -> 0 | BV6: =N10 -> 0 | BX6: =IF(SUM(L11:N11)>0,SUM(L11:N11),0) -> 0 | BY6: =IF(SUM(P11)>0,SUM(P11),0) -> 0 | BZ6: =L11 -> 0 | CA6: =M11 -> 0 | CB6: =N11 -> 0 | CD6: =IF(SUM(L12:N12)>0,SUM(L12:N12),0) -> 0 | CE6: =IF(SUM(P12)>0,SUM(P12),0) -> 0 | CF6: =L12 -> 0 | CG6: =M12 -> 0 | CH6: =N12 -> 0 | CJ6: =IF(SUM(L13:N13)>0,SUM(L13:N13),0) -> 0 | CK6: =IF(SUM(P13)>0,SUM(P13),0) -> 0 | CL6: =L13 -> 0 | CM6: =M13 -> 0 | CN6: =N13 -> 0 | CP6: =IF(SUM(L14:N14)>0,SUM(L14:N14),0) -> 0 | CQ6: =IF(SUM(P14)>0,SUM(P14),0) -> 0 | CR6: =L14 -> 0 | CS6: =M14 -> 0 | CT6: =N14 -> 0 | CV6: =IF(SUM(L15:N15)>0,SUM(L15:N15),0) -> 0 | CW6: =IF(SUM(P15)>0,SUM(P15),0) -> 0 | CX6: =L15 -> 0 | CY6: =M15 -> 0 | CZ6: =N15 -> 0 | DB6: =IF(SUM(L16:N16)>0,SUM(L16:N16),0) -> 0 | DC6: =IF(SUM(P16)>0,SUM(P16),0) -> 0 | DD6: =L16 -> 0 | DE6: =M16 -> 0 | DF6: =N16 -> 0 | DH6: =IF(SUM(L17:N17)>0,SUM(L17:N17),0) -> 0 | DI6: =IF(SUM(P17)>0,SUM(P17),0) -> 0 | DJ6: =L17 -> 0 | DK6: =M17 -> 0 | DL6: =N17 -> 0 | DN6: =IF(SUM(L18:N18)>0,SUM(L18:N18),0) -> 0 | DO6: =IF(SUM(P18)>0,SUM(P18),0) -> 0 | DP6: =L18 -> 0 | DQ6: =M18 -> 0 | DR6: =N18 -> 0 | DT6: =IF(SUM(L19:N19)>0,SUM(L19:N19),0) -> 0 | DU6: =IF(SUM(P19)>0,SUM(P19),0) -> 0 | DV6: =L19 -> 0 | DW6: =M19 -> 0 | DX6: =N19 -> 0 | DZ6: =LARGE((DT6,DN6,DH6,DB6,CV6,CP6,CJ6,CD6,BX6,BR6,BL6,BF6,AZ6,AT6,AN6,AH6),1) -> 281 | EA6: =LARGE((AJ6,AP6,AV6,BB6,BH6,BN6,BT6,BZ6,CF6,CL6,CR6,CX6,DD6,DJ6,DP6,DV6),1) -> 95 | EB6: =LARGE((AK6,AQ6,AW6,BC6,BI6,BO6,BU6,CA6,CG6,CM6,CS6,CY6,DE6,DK6,DQ6,DW6),1) -> 98 | EC6: =LARGE((AL6,AR6,AX6,BD6,BJ6,BP6,BV6,CB6,CH6,CN6,CT6,CZ6,DF6,DL6,DR6,DX6),1) -> 89
A7: @Woodstock | AA7: =IF(SUM(E7,J7,O7,T7,Y7,Y31,T31,O31,J31,E31,E55,J55,O55,T55,Y55)>0,(LARGE((E7,J7,O7,T7,Y7,Y31,T31,O31,J31,E31,E55,J55,O55,T55,Y55),1)+LARGE((E7,J7,O7,T7,Y7,Y31,T31,O31,J31,E31,E55,J55,O55,T55,Y55),2)+LARGE((E7,J7,O7,T7,Y7,Y31,T31,O31,J31,E31,E55,J55,O55,T55,Y55),3)+LARGE((E7,J7,O7,T7,Y7,Y31,T31,O31,J31,E31,E55,J55,O55,T55,Y55),4)),"") ->  | AB7: =IF(SUM(E7,J7,O7,T7,Y7,Y31,T31,O31,J31,E31,E55,J55,O55,T55,Y55)>0,(LARGE((E7,J7,O7,T7,Y7,Y31,T31,O31,J31,E31,E55,J55,O55,T55,Y55),1)+LARGE((E7,J7,O7,T7,Y7,Y31,T31,O31,J31,E31,E55,J55,O55,T55,Y55),2)+LARGE((E7,J7,O7,T7,Y7,Y31,T31,O31,J31,E31,E55,J55,O55,T55,Y55),3)+LARGE((E7,J7,O7,T7,Y7,Y31,T31,O31,J31,E31,E55,J55,O55,T55,Y55),4)),"") ->  | AH7: =IF(SUM(Q4:S4)>0,SUM(Q4:S4),0) -> 266 | AI7: =IF(SUM(U4)>0,SUM(U4),0) -> 7 | AJ7: =Q4 -> 91 | AK7: =R4 -> 92 | AL7: =S4 -> 83 | AN7: =IF(SUM(Q5:S5)>0,SUM(Q5:S5),0) -> 257 | AO7: =IF(SUM(U5)>0,SUM(U5),0) -> 3 | AP7: =Q5 -> 88 | AQ7: =R5 -> 93 | AR7: =S5 -> 76 | AT7: =IF(SUM(Q6:S6)>0,SUM(Q6:S6),0) -> 0 | AU7: =IF(SUM(U6)>0,SUM(U6),0) -> 0 | AV7: =Q6 -> 0 | AW7: =R6 -> 0 | AX7: =S6 -> 0 | AZ7: =IF(SUM(Q7:S7)>0,SUM(Q7:S7),0) -> 0 | BA7: =IF(SUM(U7)>0,SUM(U7),0) -> 0 | BB7: =Q7 -> 0 | BC7: =R7 -> 0 | BD7: =S7 -> 0 | BF7: =IF(SUM(Q8:S8)>0,SUM(Q8:S8),0) -> 0 | BG7: =IF(SUM(U8)>0,SUM(U8),0) -> 0 | BH7: =Q8 -> 0 | BI7: =R8 -> 0 | BJ7: =S8 -> 0 | BL7: =IF(SUM(Q9:S9)>0,SUM(Q9:S9),0) -> 0 | BM7: =IF(SUM(U9)>0,SUM(U9),0) -> 0 | BN7: =Q9 -> 0 | BO7: =R9 -> 0 | BP7: =S9 -> 0 | BR7: =IF(SUM(Q10:S10)>0,SUM(Q10:S10),0) -> 0 | BS7: =IF(SUM(U10)>0,SUM(U10),0) -> 0 | BT7: =Q10 -> 0 | BU7: =R10 -> 0 | BV7: =S10 -> 0 | BX7: =IF(SUM(Q11:S11)>0,SUM(Q11:S11),0) -> 0 | BY7: =IF(SUM(U11)>0,SUM(U11),0) -> 0 | BZ7: =Q11 -> 0 | CA7: =R11 -> 0 | CB7: =S11 -> 0 | CD7: =IF(SUM(Q12:S12)>0,SUM(Q12:S12),0) -> 0 | CE7: =IF(SUM(U12)>0,SUM(U12),0) -> 0 | CF7: =Q12 -> 0 | CG7: =R12 -> 0 | CH7: =S12 -> 0 | CJ7: =IF(SUM(Q13:S13)>0,SUM(Q13:S13),0) -> 0 | CK7: =IF(SUM(U13)>0,SUM(U13),0) -> 0 | CL7: =Q13 -> 0 | CM7: =R13 -> 0 | CN7: =S13 -> 0 | CP7: =IF(SUM(Q14:S14)>0,SUM(Q14:S14),0) -> 0 | CQ7: =IF(SUM(U14)>0,SUM(U14),0) -> 0 | CR7: =Q14 -> 0 | CS7: =R14 -> 0 | CT7: =S14 -> 0 | CV7: =IF(SUM(Q15:S15)>0,SUM(Q15:S15),0) -> 0 | CW7: =IF(SUM(U15)>0,SUM(U15),0) -> 0 | CX7: =Q15 -> 0 | CY7: =R15 -> 0 | CZ7: =S15 -> 0 | DB7: =IF(SUM(Q16:S16)>0,SUM(Q16:S16),0) -> 0 | DC7: =IF(SUM(U16)>0,SUM(U16),0) -> 0 | DD7: =Q16 -> 0 | DE7: =R16 -> 0 | DF7: =S16 -> 0 | DH7: =IF(SUM(Q17:S17)>0,SUM(Q17:S17),0) -> 0 | DI7: =IF(SUM(U17)>0,SUM(U17),0) -> 0 | DJ7: =Q17 -> 0 | DK7: =R17 -> 0 | DL7: =S17 -> 0 | DN7: =IF(SUM(Q18:S18)>0,SUM(Q18:S18),0) -> 0 | DO7: =IF(SUM(U18)>0,SUM(U18),0) -> 0 | DP7: =Q18 -> 0 | DQ7: =R18 -> 0 | DR7: =S18 -> 0 | DT7: =IF(SUM(Q19:S19)>0,SUM(Q19:S19),0) -> 0 | DU7: =IF(SUM(U19)>0,SUM(U19),0) -> 0 | DV7: =Q19 -> 0 | DW7: =R19 -> 0 | DX7: =S19 -> 0 | DZ7: =LARGE((DT7,DN7,DH7,DB7,CV7,CP7,CJ7,CD7,BX7,BR7,BL7,BF7,AZ7,AT7,AN7,AH7),1) -> 266 | EA7: =LARGE((AJ7,AP7,AV7,BB7,BH7,BN7,BT7,BZ7,CF7,CL7,CR7,CX7,DD7,DJ7,DP7,DV7),1) -> 91 | EB7: =LARGE((AK7,AQ7,AW7,BC7,BI7,BO7,BU7,CA7,CG7,CM7,CS7,CY7,DE7,DK7,DQ7,DW7),1) -> 93 | EC7: =LARGE((AL7,AR7,AX7,BD7,BJ7,BP7,BV7,CB7,CH7,CN7,CT7,CZ7,DF7,DL7,DR7,DX7),1) -> 83
A8: Ridgeland | AA8: =IF(SUM(E8,J8,O8,T8,Y8,Y32,T32,O32,J32,E32,E56,J56,O56,T56,Y56)>0,(LARGE((E8,J8,O8,T8,Y8,Y32,T32,O32,J32,E32,E56,J56,O56,T56,Y56),1)+LARGE((E8,J8,O8,T8,Y8,Y32,T32,O32,J32,E32,E56,J56,O56,T56,Y56),2)+LARGE((E8,J8,O8,T8,Y8,Y32,T32,O32,J32,E32,E56,J56,O56,T56,Y56),3)+LARGE((E8,J8,O8,T8,Y8,Y32,T32,O32,J32,E32,E56,J56,O56,T56,Y56),4)),"") ->  | AB8: =IF(SUM(E8,J8,O8,T8,Y8,Y32,T32,O32,J32,E32,E56,J56,O56,T56,Y56)>0,(LARGE((E8,J8,O8,T8,Y8,Y32,T32,O32,J32,E32,E56,J56,O56,T56,Y56),1)+LARGE((E8,J8,O8,T8,Y8,Y32,T32,O32,J32,E32,E56,J56,O56,T56,Y56),2)+LARGE((E8,J8,O8,T8,Y8,Y32,T32,O32,J32,E32,E56,J56,O56,T56,Y56),3)+LARGE((E8,J8,O8,T8,Y8,Y32,T32,O32,J32,E32,E56,J56,O56,T56,Y56),4)),"") ->  | AH8: =IF(SUM(V4:X4)>0,SUM(V4:X4),0) -> 264 | AI8: =IF(SUM(Z4)>0,SUM(Z4),0) -> 4 | AJ8: =V4 -> 92 | AK8: =W4 -> 92 | AL8: =X4 -> 80 | AN8: =IF(SUM(V5:X5)>0,SUM(V5:X5),0) -> 0 | AO8: =IF(SUM(Z5)>0,SUM(Z5),0) -> 0 | AP8: =V5 -> 0 | AQ8: =W5 -> 0 | AR8: =X5 -> 0 | AT8: =IF(SUM(V6:X6)>0,SUM(V6:X6),0) -> 0 | AU8: =IF(SUM(Z6)>0,SUM(Z6),0) -> 0 | AV8: =V6 -> 0 | AW8: =W6 -> 0 | AX8: =X6 -> 0 | AZ8: =IF(SUM(V7:X7)>0,SUM(V7:X7),0) -> 0 | BA8: =IF(SUM(Z7)>0,SUM(Z7),0) -> 0 | BB8: =V7 -> 0 | BC8: =W7 -> 0 | BD8: =X7 -> 0 | BF8: =IF(SUM(V8:X8)>0,SUM(V8:X8),0) -> 0 | BG8: =IF(SUM(Z8)>0,SUM(Z8),0) -> 0 | BH8: =V8 -> 0 | BI8: =W8 -> 0 | BJ8: =X8 -> 0 | BL8: =IF(SUM(V9:X9)>0,SUM(V9:X9),0) -> 0 | BM8: =IF(SUM(Z9)>0,SUM(Z9),0) -> 0 | BN8: =V9 -> 0 | BO8: =W9 -> 0 | BP8: =X9 -> 0 | BR8: =IF(SUM(V10:X10)>0,SUM(V10:X10),0) -> 0 | BS8: =IF(SUM(Z10)>0,SUM(Z10),0) -> 0 | BT8: =V10 -> 0 | BU8: =W10 -> 0 | BV8: =X10 -> 0 | BX8: =IF(SUM(V11:X11)>0,SUM(V11:X11),0) -> 0 | BY8: =IF(SUM(Z11)>0,SUM(Z11),0) -> 0 | BZ8: =V11 -> 0 | CA8: =W11 -> 0 | CB8: =X11 -> 0 | CD8: =IF(SUM(V12:X12)>0,SUM(V12:X12),0) -> 0 | CE8: =IF(SUM(Z12)>0,SUM(Z12),0) -> 0 | CF8: =V12 -> 0 | CG8: =W12 -> 0 | CH8: =X12 -> 0 | CJ8: =IF(SUM(V13:X13)>0,SUM(V13:X13),0) -> 0 | CK8: =IF(SUM(Z13)>0,SUM(Z13),0) -> 0 | CL8: =V13 -> 0 | CM8: =W13 -> 0 | CN8: =X13 -> 0 | CP8: =IF(SUM(V14:X14)>0,SUM(V14:X14),0) -> 0 | CQ8: =IF(SUM(Z14)>0,SUM(Z14),0) -> 0 | CR8: =V14 -> 0 | CS8: =W14 -> 0 | CT8: =X14 -> 0 | CV8: =IF(SUM(V15:X15)>0,SUM(V15:X15),0) -> 0 | CW8: =IF(SUM(Z15)>0,SUM(Z15),0) -> 0 | CX8: =V15 -> 0 | CY8: =W15 -> 0 | CZ8: =X15 -> 0 | DB8: =IF(SUM(V16:X16)>0,SUM(V16:X16),0) -> 0 | DC8: =IF(SUM(Z16)>0,SUM(Z16),0) -> 0 | DD8: =V16 -> 0 | DE8: =W16 -> 0 | DF8: =X16 -> 0 | DH8: =IF(SUM(V17:X17)>0,SUM(V17:X17),0) -> 0 | DI8: =IF(SUM(Z17)>0,SUM(Z17),0) -> 0 | DJ8: =V17 -> 0 | DK8: =W17 -> 0 | DL8: =X17 -> 0 | DN8: =IF(SUM(V18:X18)>0,SUM(V18:X18),0) -> 0 | DO8: =IF(SUM(Z18)>0,SUM(Z18),0) -> 0 | DP8: =V18 -> 0 | DQ8: =W18 -> 0 | DR8: =X18 -> 0 | DT8: =IF(SUM(V19:X19)>0,SUM(V19:X19),0) -> 0 | DU8: =IF(SUM(Z19)>0,SUM(Z19),0) -> 0 | DV8: =V19 -> 0 | DW8: =W19 -> 0 | DX8: =X19 -> 0 | DZ8: =LARGE((DT8,DN8,DH8,DB8,CV8,CP8,CJ8,CD8,BX8,BR8,BL8,BF8,AZ8,AT8,AN8,AH8),1) -> 264 | EA8: =LARGE((AJ8,AP8,AV8,BB8,BH8,BN8,BT8,BZ8,CF8,CL8,CR8,CX8,DD8,DJ8,DP8,DV8),1) -> 92 | EB8: =LARGE((AK8,AQ8,AW8,BC8,BI8,BO8,BU8,CA8,CG8,CM8,CS8,CY8,DE8,DK8,DQ8,DW8),1) -> 92 | EC8: =LARGE((AL8,AR8,AX8,BD8,BJ8,BP8,BV8,CB8,CH8,CN8,CT8,CZ8,DF8,DL8,DR8,DX8),1) -> 80
A9: Allatoona | AA9: =IF(SUM(E9,J9,O9,T9,Y9,Y33,T33,O33,J33,E33,E57,J57,O57,T57,Y57)>0,(LARGE((E9,J9,O9,T9,Y9,Y33,T33,O33,J33,E33,E57,J57,O57,T57,Y57),1)+LARGE((E9,J9,O9,T9,Y9,Y33,T33,O33,J33,E33,E57,J57,O57,T57,Y57),2)+LARGE((E9,J9,O9,T9,Y9,Y33,T33,O33,J33,E33,E57,J57,O57,T57,Y57),3)+LARGE((E9,J9,O9,T9,Y9,Y33,T33,O33,J33,E33,E57,J57,O57,T57,Y57),4)),"") ->  | AB9: =IF(SUM(E9,J9,O9,T9,Y9,Y33,T33,O33,J33,E33,E57,J57,O57,T57,Y57)>0,(LARGE((E9,J9,O9,T9,Y9,Y33,T33,O33,J33,E33,E57,J57,O57,T57,Y57),1)+LARGE((E9,J9,O9,T9,Y9,Y33,T33,O33,J33,E33,E57,J57,O57,T57,Y57),2)+LARGE((E9,J9,O9,T9,Y9,Y33,T33,O33,J33,E33,E57,J57,O57,T57,Y57),3)+LARGE((E9,J9,O9,T9,Y9,Y33,T33,O33,J33,E33,E57,J57,O57,T57,Y57),4)),"") ->  | AH9: =IF(SUM(B24:D24)>0,SUM(B24:D24),0) -> 292 | AI9: =IF(SUM(F24)>0,SUM(F24),0) -> 0 | AJ9: =B24 -> 96.5 | AK9: =C24 -> 100 | AL9: =D24 -> 95.5 | AN9: =IF(SUM(B25:D25)>0,SUM(B25:D25),0) -> 0 | AO9: =IF(SUM(F25)>0,SUM(F25),0) -> 0 | AP9: =B25 -> 0 | AQ9: =C25 -> 0 | AR9: =D25 -> 0 | AT9: =IF(SUM(B26:D26)>0,SUM(B26:D26),0) -> 0 | AU9: =IF(SUM(F26)>0,SUM(F26),0) -> 0 | AV9: =B26 -> Daughdrilldrill, Emma (9) | AW9: =C26 -> 0 | AX9: =D26 -> 0 | AZ9: =IF(SUM(B27:D27)>0,SUM(B27:D27),0) -> 0 | BA9: =IF(SUM(F27)>0,SUM(F27),0) -> 0 | BB9: =B27 -> K | BC9: =C27 -> P | BD9: =D27 -> S | BF9: =IF(SUM(B28:D28)>0,SUM(B28:D28),0) -> 0 | BG9: =IF(SUM(F28)>0,SUM(F28),0) -> 0 | BH9: =B28 -> 0 | BI9: =C28 -> 0 | BJ9: =D28 -> 0 | BL9: =IF(SUM(B29:D29)>0,SUM(B29:D29),0) -> 0 | BM9: =IF(SUM(F29)>0,SUM(F29),0) -> 0 | BN9: =B29 -> 0 | BO9: =C29 -> 0 | BP9: =D29 -> 0 | BR9: =IF(SUM(B30:D30)>0,SUM(B30:D30),0) -> 0 | BS9: =IF(SUM(F30)>0,SUM(F30),0) -> 0 | BT9: =B30 -> 0 | BU9: =C30 -> 0 | BV9: =D30 -> 0 | BX9: =IF(SUM(B31:D31)>0,SUM(B31:D31),0) -> 0 | BY9: =IF(SUM(F31)>0,SUM(F31),0) -> 0 | BZ9: =B31 -> 0 | CA9: =C31 -> 0 | CB9: =D31 -> 0 | CD9: =IF(SUM(B32:D32)>0,SUM(B32:D32),0) -> 0 | CE9: =IF(SUM(F32)>0,SUM(F32),0) -> 0 | CF9: =B32 -> 0 | CG9: =C32 -> 0 | CH9: =D32 -> 0 | CJ9: =IF(SUM(B33:D33)>0,SUM(B33:D33),0) -> 0 | CK9: =IF(SUM(F33)>0,SUM(F33),0) -> 0 | CL9: =B33 -> 0 | CM9: =C33 -> 0 | CN9: =D33 -> 0 | CP9: =IF(SUM(B34:D34)>0,SUM(B34:D34),0) -> 0 | CQ9: =IF(SUM(F34)>0,SUM(F34),0) -> 0 | CR9: =B34 -> 0 | CS9: =C34 -> 0 | CT9: =D34 -> 0 | CV9: =IF(SUM(B35:D35)>0,SUM(B35:D35),0) -> 0 | CW9: =IF(SUM(F35)>0,SUM(F35),0) -> 0 | CX9: =B35 -> 0 | CY9: =C35 -> 0 | CZ9: =D35 -> 0 | DB9: =IF(SUM(B36:D36)>0,SUM(B36:D36),0) -> 0 | DC9: =IF(SUM(F36)>0,SUM(F36),0) -> 0 | DD9: =B36 -> 0 | DE9: =C36 -> 0 | DF9: =D36 -> 0 | DH9: =IF(SUM(B37:D37)>0,SUM(B37:D37),0) -> 0 | DI9: =IF(SUM(F37)>0,SUM(F37),0) -> 0 | DJ9: =B37 -> 0 | DK9: =C37 -> 0 | DL9: =D37 -> 0 | DN9: =IF(SUM(B38:D38)>0,SUM(B38:D38),0) -> 0 | DO9: =IF(SUM(F38)>0,SUM(F37),0) -> 0 | DP9: =B38 -> 0 | DQ9: =C38 -> 0 | DR9: =D38 -> 0 | DT9: =IF(SUM(B39:D39)>0,SUM(B39:D39),0) -> 0 | DU9: =IF(SUM(F39)>0,SUM(F39),0) -> 0 | DV9: =B39 -> 0 | DW9: =C39 -> 0 | DX9: =D39 -> 0 | DZ9: =LARGE((DT9,DN9,DH9,DB9,CV9,CP9,CJ9,CD9,BX9,BR9,BL9,BF9,AZ9,AT9,AN9,AH9),1) -> 292 | EA9: =LARGE((AJ9,AP9,AV9,BB9,BH9,BN9,BT9,BZ9,CF9,CL9,CR9,CX9,DD9,DJ9,DP9,DV9),1) -> 96.5 | EB9: =LARGE((AK9,AQ9,AW9,BC9,BI9,BO9,BU9,CA9,CG9,CM9,CS9,CY9,DE9,DK9,DQ9,DW9),1) -> 100 | EC9: =LARGE((AL9,AR9,AX9,BD9,BJ9,BP9,BV9,CB9,CH9,CN9,CT9,CZ9,DF9,DL9,DR9,DX9),1) -> 95.5
A10: Gordon Central | AA10: =IF(SUM(E10,J10,O10,T10,Y10,Y34,T34,O34,J34,E34,E58,J58,O58,T58,Y58)>0,(LARGE((E10,J10,O10,T10,Y10,Y34,T34,O34,J34,E34,E58,J58,O58,T58,Y58),1)+LARGE((E10,J10,O10,T10,Y10,Y34,T34,O34,J34,E34,E58,J58,O58,T58,Y58),2)+LARGE((E10,J10,O10,T10,Y10,Y34,T34,O34,J34,E34,E58,J58,O58,T58,Y58),3)+LARGE((E10,J10,O10,T10,Y10,Y34,T34,O34,J34,E34,E58,J58,O58,T58,Y58),4)),"") ->  | AB10: =IF(SUM(E10,J10,O10,T10,Y10,Y34,T34,O34,J34,E34,E58,J58,O58,T58,Y58)>0,(LARGE((E10,J10,O10,T10,Y10,Y34,T34,O34,J34,E34,E58,J58,O58,T58,Y58),1)+LARGE((E10,J10,O10,T10,Y10,Y34,T34,O34,J34,E34,E58,J58,O58,T58,Y58),2)+LARGE((E10,J10,O10,T10,Y10,Y34,T34,O34,J34,E34,E58,J58,O58,T58,Y58),3)+LARGE((E10,J10,O10,T10,Y10,Y34,T34,O34,J34,E34,E58,J58,O58,T58,Y58),4)),"") ->  | AH10: =IF(SUM(G24:I24)>0,SUM(G24:I24),0) -> 290 | AI10: =IF(SUM(K24)>0,SUM(K24),0) -> 0 | AJ10: =G24 -> 96 | AK10: =H24 -> 99.5 | AL10: =I24 -> 94.5 | AN10: =IF(SUM(G25:I25)>0,SUM(G25:I25),0) -> 0 | AO10: =IF(SUM(K25)>0,SUM(K25),0) -> 0 | AP10: =G25 -> 0 | AQ10: =H25 -> 0 | AR10: =I25 -> 0 | AT10: =IF(SUM(G26:I26)>0,SUM(G26:I26),0) -> 0 | AU10: =IF(SUM(K26)>0,SUM(K26),0) -> 0 | AV10: =G26 -> 0 | AW10: =H26 -> 0 | AX10: =I26 -> 0 | AZ10: =IF(SUM(G27:I27)>0,SUM(G27:I27),0) -> 0 | BA10: =IF(SUM(K27)>0,SUM(K27),0) -> 0 | BB10: =G27 -> K | BC10: =H27 -> P | BD10: =I27 -> S | BF10: =IF(SUM(G28:I28)>0,SUM(G28:I28),0) -> 0 | BG10: =IF(SUM(K28)>0,SUM(K28),0) -> 0 | BH10: =G28 -> 0 | BI10: =H28 -> 0 | BJ10: =I28 -> 0 | BL10: =IF(SUM(G29:I29)>0,SUM(G29:I29),0) -> 0 | BM10: =IF(SUM(K29)>0,SUM(K29),0) -> 0 | BN10: =G29 -> 0 | BO10: =H29 -> 0 | BP10: =I29 -> 0 | BR10: =IF(SUM(G30:I30)>0,SUM(G30:I30),0) -> 0 | BS10: =IF(SUM(K30)>0,SUM(K30),0) -> 0 | BT10: =G30 -> 0 | BU10: =H30 -> 0 | BV10: =I30 -> 0 | BX10: =IF(SUM(G31:I31)>0,SUM(G31:I31),0) -> 0 | BY10: =IF(SUM(K31)>0,SUM(K31),0) -> 0 | BZ10: =G31 -> 0 | CA10: =H31 -> 0 | CB10: =I31 -> 0 | CD10: =IF(SUM(G32:I32)>0,SUM(G32:I32),0) -> 0 | CE10: =IF(SUM(K32)>0,SUM(K32),0) -> 0 | CF10: =G32 -> 0 | CG10: =H32 -> 0 | CH10: =I32 -> 0 | CJ10: =IF(SUM(G33:I33)>0,SUM(G33:I33),0) -> 0 | CK10: =IF(SUM(K33)>0,SUM(K33),0) -> 0 | CL10: =G33 -> 0 | CM10: =H33 -> 0 | CN10: =I33 -> 0 | CP10: =IF(SUM(G34:I34)>0,SUM(G34:I34),0) -> 0 | CQ10: =IF(SUM(K34)>0,SUM(K34),0) -> 0 | CR10: =G34 -> 0 | CS10: =H34 -> 0 | CT10: =I34 -> 0 | CV10: =IF(SUM(G35:I35)>0,SUM(G35:I35),0) -> 0 | CW10: =IF(SUM(K35)>0,SUM(K35),0) -> 0 | CX10: =G35 -> 0 | CY10: =H35 -> 0 | CZ10: =I35 -> 0 | DB10: =IF(SUM(G36:I36)>0,SUM(G36:I36),0) -> 0 | DC10: =IF(SUM(K36)>0,SUM(K36),0) -> 0 | DD10: =G36 -> 0 | DE10: =H36 -> 0 | DF10: =I36 -> 0 | DH10: =IF(SUM(G37:I37)>0,SUM(G37:I37),0) -> 0 | DI10: =IF(SUM(K37)>0,SUM(K37),0) -> 0 | DJ10: =G37 -> 0 | DK10: =H37 -> 0 | DL10: =I37 -> 0 | DN10: =IF(SUM(G38:I38)>0,SUM(G38:I38),0) -> 0 | DO10: =IF(SUM(K38)>0,SUM(K37),0) -> 0 | DP10: =G38 -> 0 | DQ10: =H38 -> 0 | DR10: =I38 -> 0 | DT10: =IF(SUM(G39:I39)>0,SUM(G39:I39),0) -> 0 | DU10: =IF(SUM(K39)>0,SUM(K39),0) -> 0 | DV10: =G39 -> 0 | DW10: =H39 -> 0 | DX10: =I39 -> 0 | DZ10: =LARGE((DT10,DN10,DH10,DB10,CV10,CP10,CJ10,CD10,BX10,BR10,BL10,BF10,AZ10,AT10,AN10,AH10),1) -> 290 | EA10: =LARGE((AJ10,AP10,AV10,BB10,BH10,BN10,BT10,BZ10,CF10,CL10,CR10,CX10,DD10,DJ10,DP10,DV10),1) -> 96 | EB10: =LARGE((AK10,AQ10,AW10,BC10,BI10,BO10,BU10,CA10,CG10,CM10,CS10,CY10,DE10,DK10,DQ10,DW10),1) -> 99.5 | EC10: =LARGE((AL10,AR10,AX10,BD10,BJ10,BP10,BV10,CB10,CH10,CN10,CT10,CZ10,DF10,DL10,DR10,DX10),1) -> 94.5
A11: Etowah | AA11: =IF(SUM(E11,J11,O11,T11,Y11,Y35,T35,O35,J35,E35,E59,J59,O59,T59,Y59)>0,(LARGE((E11,J11,O11,T11,Y11,Y35,T35,O35,J35,E35,E59,J59,O59,T59,Y59),1)+LARGE((E11,J11,O11,T11,Y11,Y35,T35,O35,J35,E35,E59,J59,O59,T59,Y59),2)+LARGE((E11,J11,O11,T11,Y11,Y35,T35,O35,J35,E35,E59,J59,O59,T59,Y59),3)+LARGE((E11,J11,O11,T11,Y11,Y35,T35,O35,J35,E35,E59,J59,O59,T59,Y59),4)),"") ->  | AB11: =IF(SUM(E11,J11,O11,T11,Y11,Y35,T35,O35,J35,E35,E59,J59,O59,T59,Y59)>0,(LARGE((E11,J11,O11,T11,Y11,Y35,T35,O35,J35,E35,E59,J59,O59,T59,Y59),1)+LARGE((E11,J11,O11,T11,Y11,Y35,T35,O35,J35,E35,E59,J59,O59,T59,Y59),2)+LARGE((E11,J11,O11,T11,Y11,Y35,T35,O35,J35,E35,E59,J59,O59,T59,Y59),3)+LARGE((E11,J11,O11,T11,Y11,Y35,T35,O35,J35,E35,E59,J59,O59,T59,Y59),4)),"") ->  | AH11: =IF(SUM(L24:N24)>0,SUM(L24:N24),0) -> 278.5 | AI11: =IF(SUM(P24)>0,SUM(P24),0) -> 0 | AJ11: =L24 -> 94.5 | AK11: =M24 -> 97.5 | AL11: =N24 -> 86.5 | AN11: =IF(SUM(L25:N25)>0,SUM(L25:N25),0) -> 0 | AO11: =IF(SUM(P25)>0,SUM(P25),0) -> 0 | AP11: =L25 -> 0 | AQ11: =M25 -> 0 | AR11: =N25 ->  | AT11: =IF(SUM(L26:N26)>0,SUM(L26:N26),0) -> 0 | AU11: =IF(SUM(P26)>0,SUM(P26),0) -> 0 | AV11: =L26 -> 0 | AW11: =M26 -> 0 | AX11: =N26 -> 0 | AZ11: =IF(SUM(L27:N27)>0,SUM(L27:N27),0) -> 0 | BA11: =IF(SUM(P27)>0,SUM(P27),0) -> 0 | BB11: =L27 -> K | BC11: =M27 -> P | BD11: =N27 -> S | BF11: =IF(SUM(L28:N28)>0,SUM(L28:N28),0) -> 0 | BG11: =IF(SUM(P28)>0,SUM(P28),0) -> 0 | BH11: =L28 -> 0 | BI11: =M28 -> 0 | BJ11: =N28 -> 0 | BL11: =IF(SUM(L29:N29)>0,SUM(L29:N29),0) -> 0 | BM11: =IF(SUM(P29)>0,SUM(P29),0) -> 0 | BN11: =L29 -> 0 | BO11: =M29 -> 0 | BP11: =N29 -> 0 | BR11: =IF(SUM(L30:N30)>0,SUM(L30:N30),0) -> 0 | BS11: =IF(SUM(P30)>0,SUM(P30),0) -> 0 | BT11: =L30 -> 0 | BU11: =M30 -> 0 | BV11: =N30 -> 0 | BX11: =IF(SUM(L31:N31)>0,SUM(L31:N31),0) -> 0 | BY11: =IF(SUM(P31)>0,SUM(P31),0) -> 0 | BZ11: =L31 -> 0 | CA11: =M31 -> 0 | CB11: =N31 -> 0 | CD11: =IF(SUM(L32:N32)>0,SUM(L32:N32),0) -> 0 | CE11: =IF(SUM(P32)>0,SUM(P32),0) -> 0 | CF11: =L32 -> 0 | CG11: =M32 -> 0 | CH11: =N32 -> 0 | CJ11: =IF(SUM(L33:N33)>0,SUM(L33:N33),0) -> 0 | CK11: =IF(SUM(P33)>0,SUM(P33),0) -> 0 | CL11: =L33 -> 0 | CM11: =M33 -> 0 | CN11: =N33 -> 0 | CP11: =IF(SUM(L34:N34)>0,SUM(L34:N34),0) -> 0 | CQ11: =IF(SUM(P34)>0,SUM(P34),0) -> 0 | CR11: =L34 -> 0 | CS11: =M34 -> 0 | CT11: =N34 -> 0 | CV11: =IF(SUM(L35:N35)>0,SUM(L35:N35),0) -> 0 | CW11: =IF(SUM(P35)>0,SUM(P35),0) -> 0 | CX11: =L35 -> 0 | CY11: =M35 -> 0 | CZ11: =N35 -> 0 | DB11: =IF(SUM(L36:N36)>0,SUM(L36:N36),0) -> 0 | DC11: =IF(SUM(P36)>0,SUM(P36),0) -> 0 | DD11: =L36 -> 0 | DE11: =M36 -> 0 | DF11: =N36 -> 0 | DH11: =IF(SUM(L37:N37)>0,SUM(L37:N37),0) -> 0 | DI11: =IF(SUM(P37)>0,SUM(P37),0) -> 0 | DJ11: =L37 -> 0 | DK11: =M37 -> 0 | DL11: =N37 -> 0 | DN11: =IF(SUM(L38:N38)>0,SUM(L38:N38),0) -> 0 | DO11: =IF(SUM(P38)>0,SUM(P37),0) -> 0 | DP11: =L38 -> 0 | DQ11: =M38 -> 0 | DR11: =N38 -> 0 | DT11: =IF(SUM(L39:N39)>0,SUM(L39:N39),0) -> 0 | DU11: =IF(SUM(P39)>0,SUM(P39),0) -> 0 | DV11: =L39 -> 0 | DW11: =M39 -> 0 | DX11: =N39 -> 0 | DZ11: =LARGE((DT11,DN11,DH11,DB11,CV11,CP11,CJ11,CD11,BX11,BR11,BL11,BF11,AZ11,AT11,AN11,AH11),1) -> 278.5 | EA11: =LARGE((AJ11,AP11,AV11,BB11,BH11,BN11,BT11,BZ11,CF11,CL11,CR11,CX11,DD11,DJ11,DP11,DV11),1) -> 94.5 | EB11: =LARGE((AK11,AQ11,AW11,BC11,BI11,BO11,BU11,CA11,CG11,CM11,CS11,CY11,DE11,DK11,DQ11,DW11),1) -> 97.5 | EC11: =LARGE((AL11,AR11,AX11,BD11,BJ11,BP11,BV11,CB11,CH11,CN11,CT11,CZ11,DF11,DL11,DR11,DX11),1) -> 86.5
A12: BYE | AA12: =IF(SUM(E12,J12,O12,T12,Y12,Y36,T36,O36,J36,E36,E60,J60,O60,T60,Y60)>0,(LARGE((E12,J12,O12,T12,Y12,Y36,T36,O36,J36,E36,E60,J60,O60,T60,Y60),1)+LARGE((E12,J12,O12,T12,Y12,Y36,T36,O36,J36,E36,E60,J60,O60,T60,Y60),2)+LARGE((E12,J12,O12,T12,Y12,Y36,T36,O36,J36,E36,E60,J60,O60,T60,Y60),3)+LARGE((E12,J12,O12,T12,Y12,Y36,T36,O36,J36,E36,E60,J60,O60,T60,Y60),4)),"") ->  | AB12: =IF(SUM(E12,J12,O12,T12,Y12,Y36,T36,O36,J36,E36,E60,J60,O60,T60,Y60)>0,(LARGE((E12,J12,O12,T12,Y12,Y36,T36,O36,J36,E36,E60,J60,O60,T60,Y60),1)+LARGE((E12,J12,O12,T12,Y12,Y36,T36,O36,J36,E36,E60,J60,O60,T60,Y60),2)+LARGE((E12,J12,O12,T12,Y12,Y36,T36,O36,J36,E36,E60,J60,O60,T60,Y60),3)+LARGE((E12,J12,O12,T12,Y12,Y36,T36,O36,J36,E36,E60,J60,O60,T60,Y60),4)),"") ->  | AH12: =IF(SUM(Q24:S24)>0,SUM(Q24:S24),0) -> 261.5 | AI12: =IF(SUM(U24)>0,SUM(U24),0) -> 0 | AJ12: =Q24 -> 89.5 | AK12: =R24 -> 92.5 | AL12: =S24 -> 79.5 | AN12: =IF(SUM(Q25:S25)>0,SUM(Q25:S25),0) -> 0 | AO12: =IF(SUM(U25)>0,SUM(U25),0) -> 0 | AP12: =Q25 -> 0 | AQ12: =R25 -> 0 | AR12: =S25 -> 0 | AT12: =IF(SUM(Q26:S26)>0,SUM(Q26:S26),0) -> 0 | AU12: =IF(SUM(U26)>0,SUM(U26),0) -> 0 | AV12: =Q26 -> 0 | AW12: =R26 -> 0 | AX12: =S26 -> 0 | AZ12: =IF(SUM(Q27:S27)>0,SUM(Q27:S27),0) -> 0 | BA12: =IF(SUM(U27)>0,SUM(U27),0) -> 0 | BB12: =Q27 -> K | BC12: =R27 -> P | BD12: =S27 -> S | BF12: =IF(SUM(Q28:S28)>0,SUM(Q28:S28),0) -> 0 | BG12: =IF(SUM(U28)>0,SUM(U28),0) -> 0 | BH12: =Q28 -> 0 | BI12: =R28 -> 0 | BJ12: =S28 -> 0 | BL12: =IF(SUM(Q29:S29)>0,SUM(Q29:S29),0) -> 0 | BM12: =IF(SUM(U29)>0,SUM(U29),0) -> 0 | BN12: =Q29 -> 0 | BO12: =R29 -> 0 | BP12: =S29 -> 0 | BR12: =IF(SUM(Q30:S30)>0,SUM(Q30:S30),0) -> 0 | BS12: =IF(SUM(U30)>0,SUM(U30),0) -> 0 | BT12: =Q30 -> 0 | BU12: =R30 -> 0 | BV12: =S30 -> 0 | BX12: =IF(SUM(Q31:S31)>0,SUM(Q31:S31),0) -> 0 | BY12: =IF(SUM(U31)>0,SUM(U31),0) -> 0 | BZ12: =Q31 -> 0 | CA12: =R31 -> 0 | CB12: =S31 -> 0 | CD12: =IF(SUM(Q32:S32)>0,SUM(Q32:S32),0) -> 0 | CE12: =IF(SUM(U32)>0,SUM(U32),0) -> 0 | CF12: =Q32 -> 0 | CG12: =R32 -> 0 | CH12: =S32 -> 0 | CJ12: =IF(SUM(Q33:S33)>0,SUM(Q33:S33),0) -> 0 | CK12: =IF(SUM(U33)>0,SUM(U33),0) -> 0 | CL12: =Q33 -> 0 | CM12: =R33 -> 0 | CN12: =S33 -> 0 | CP12: =IF(SUM(Q34:S34)>0,SUM(Q34:S34),0) -> 0 | CQ12: =IF(SUM(U34)>0,SUM(U34),0) -> 0 | CR12: =Q34 -> 0 | CS12: =R34 -> 0 | CT12: =S34 -> 0 | CV12: =IF(SUM(Q35:S35)>0,SUM(Q35:S35),0) -> 0 | CW12: =IF(SUM(U35)>0,SUM(U35),0) -> 0 | CX12: =Q35 -> 0 | CY12: =R35 -> 0 | CZ12: =S35 -> 0 | DB12: =IF(SUM(Q36:S36)>0,SUM(Q36:S36),0) -> 0 | DC12: =IF(SUM(U36)>0,SUM(U36),0) -> 0 | DD12: =Q36 -> 0 | DE12: =R36 -> 0 | DF12: =S36 -> 0 | DH12: =IF(SUM(Q37:S37)>0,SUM(Q37:S37),0) -> 0 | DI12: =IF(SUM(U37)>0,SUM(U37),0) -> 0 | DJ12: =Q37 -> 0 | DK12: =R37 -> 0 | DL12: =S37 -> 0 | DN12: =IF(SUM(Q38:S38)>0,SUM(Q38:S38),0) -> 0 | DO12: =IF(SUM(U38)>0,SUM(U37),0) -> 0 | DP12: =Q38 -> 0 | DQ12: =R38 -> 0 | DR12: =S38 -> 0 | DT12: =IF(SUM(Q39:S39)>0,SUM(Q39:S39),0) -> 0 | DU12: =IF(SUM(U39)>0,SUM(U39),0) -> 0 | DV12: =Q39 -> 0 | DW12: =R39 -> 0 | DX12: =S39 -> 0 | DZ12: =LARGE((DT12,DN12,DH12,DB12,CV12,CP12,CJ12,CD12,BX12,BR12,BL12,BF12,AZ12,AT12,AN12,AH12),1) -> 261.5 | EA12: =LARGE((AJ12,AP12,AV12,BB12,BH12,BN12,BT12,BZ12,CF12,CL12,CR12,CX12,DD12,DJ12,DP12,DV12),1) -> 89.5 | EB12: =LARGE((AK12,AQ12,AW12,BC12,BI12,BO12,BU12,CA12,CG12,CM12,CS12,CY12,DE12,DK12,DQ12,DW12),1) -> 92.5 | EC12: =LARGE((AL12,AR12,AX12,BD12,BJ12,BP12,BV12,CB12,CH12,CN12,CT12,CZ12,DF12,DL12,DR12,DX12),1) -> 79.5
A13: Cherokee | AA13: =IF(SUM(E13,J13,O13,T13,Y13,Y37,T37,O37,J37,E37,E61,J61,O61,T61,Y61)>0,(LARGE((E13,J13,O13,T13,Y13,Y37,T37,O37,J37,E37,E61,J61,O61,T61,Y61),1)+LARGE((E13,J13,O13,T13,Y13,Y37,T37,O37,J37,E37,E61,J61,O61,T61,Y61),2)+LARGE((E13,J13,O13,T13,Y13,Y37,T37,O37,J37,E37,E61,J61,O61,T61,Y61),3)+LARGE((E13,J13,O13,T13,Y13,Y37,T37,O37,J37,E37,E61,J61,O61,T61,Y61),4)),"") ->  | AB13: =IF(SUM(E13,J13,O13,T13,Y13,Y37,T37,O37,J37,E37,E61,J61,O61,T61,Y61)>0,(LARGE((E13,J13,O13,T13,Y13,Y37,T37,O37,J37,E37,E61,J61,O61,T61,Y61),1)+LARGE((E13,J13,O13,T13,Y13,Y37,T37,O37,J37,E37,E61,J61,O61,T61,Y61),2)+LARGE((E13,J13,O13,T13,Y13,Y37,T37,O37,J37,E37,E61,J61,O61,T61,Y61),3)+LARGE((E13,J13,O13,T13,Y13,Y37,T37,O37,J37,E37,E61,J61,O61,T61,Y61),4)),"") ->  | AH13: =IF(SUM(V24:X24)>0,SUM(V24:X24),0) -> 264 | AI13: =IF(SUM(Z24)>0,SUM(Z24),0) -> 0 | AJ13: =V24 -> 92 | AK13: =W24 -> 92 | AL13: =X24 -> 80 | AN13: =IF(SUM(V25:X25)>0,SUM(V25:X25),0) -> 0 | AO13: =IF(SUM(Z25)>0,SUM(Z25),0) -> 0 | AP13: =V25 -> 0 | AQ13: =W25 -> 0 | AR13: =X25 -> 0 | AT13: =IF(SUM(V26:X26)>0,SUM(V26:X26),0) -> 0 | AU13: =IF(SUM(Z26)>0,SUM(Z26),0) -> 0 | AV13: =V26 -> CV 10 | AW13: =W26 -> 0 | AX13: =X26 -> 0 | AZ13: =IF(SUM(V27:X27)>0,SUM(V27:X27),0) -> 0 | BA13: =IF(SUM(Z27)>0,SUM(Z27),0) -> 0 | BB13: =V27 -> K | BC13: =W27 -> P | BD13: =X27 -> S | BF13: =IF(SUM(V28:X28)>0,SUM(V28:X28),0) -> 0 | BG13: =IF(SUM(Z28)>0,SUM(Z28),0) -> 0 | BH13: =V28 -> 0 | BI13: =W28 -> 0 | BJ13: =X28 -> 0 | BL13: =IF(SUM(V29:X29)>0,SUM(V29:X29),0) -> 0 | BM13: =IF(SUM(Z29)>0,SUM(Z29),0) -> 0 | BN13: =V29 -> 0 | BO13: =W29 -> 0 | BP13: =X29 -> 0 | BR13: =IF(SUM(V30:X30)>0,SUM(V30:X30),0) -> 0 | BS13: =IF(SUM(Z30)>0,SUM(Z30),0) -> 0 | BT13: =V30 -> 0 | BU13: =W30 -> 0 | BV13: =X30 -> 0 | BX13: =IF(SUM(V31:X31)>0,SUM(V31:X31),0) -> 0 | BY13: =IF(SUM(Z31)>0,SUM(Z31),0) -> 0 | BZ13: =V31 -> 0 | CA13: =W31 -> 0 | CB13: =X31 -> 0 | CD13: =IF(SUM(V32:X32)>0,SUM(V32:X32),0) -> 0 | CE13: =IF(SUM(Z32)>0,SUM(Z32),0) -> 0 | CF13: =V32 -> 0 | CG13: =W32 -> 0 | CH13: =X32 -> 0 | CJ13: =IF(SUM(V33:X33)>0,SUM(V33:X33),0) -> 0 | CK13: =IF(SUM(Z33)>0,SUM(Z33),0) -> 0 | CL13: =V33 -> 0 | CM13: =W33 -> 0 | CN13: =X33 -> 0 | CP13: =IF(SUM(V34:X34)>0,SUM(V34:X34),0) -> 0 | CQ13: =IF(SUM(Z34)>0,SUM(Z34),0) -> 0 | CR13: =V34 -> 0 | CS13: =W34 -> 0 | CT13: =X34 -> 0 | CV13: =IF(SUM(V35:X35)>0,SUM(V35:X35),0) -> 0 | CW13: =IF(SUM(Z35)>0,SUM(Z35),0) -> 0 | CX13: =V35 -> 0 | CY13: =W35 -> 0 | CZ13: =X35 -> 0 | DB13: =IF(SUM(V35:X36)>0,SUM(V36:X36),0) -> 0 | DC13: =IF(SUM(Z36)>0,SUM(Z36),0) -> 0 | DD13: =V36 -> 0 | DE13: =W36 -> 0 | DF13: =X36 -> 0 | DH13: =IF(SUM(V37:X37)>0,SUM(V37:X37),0) -> 0 | DI13: =IF(SUM(Z37)>0,SUM(Z37),0) -> 0 | DJ13: =V37 -> 0 | DK13: =W37 -> 0 | DL13: =X37 -> 0 | DN13: =IF(SUM(V38:X38)>0,SUM(V38:X38),0) -> 0 | DO13: =IF(SUM(Z38)>0,SUM(Z37),0) -> 0 | DP13: =V38 -> 0 | DQ13: =W38 -> 0 | DR13: =X38 -> 0 | DT13: =IF(SUM(V39:X39)>0,SUM(V39:X39),0) -> 0 | DU13: =IF(SUM(Z39)>0,SUM(Z39),0) -> 0 | DV13: =V39 -> 0 | DW13: =W39 -> 0 | DX13: =X39 -> 0 | DZ13: =LARGE((DT13,DN13,DH13,DB13,CV13,CP13,CJ13,CD13,BX13,BR13,BL13,BF13,AZ13,AT13,AN13,AH13),1) -> 264 | EA13: =LARGE((AJ13,AP13,AV13,BB13,BH13,BN13,BT13,BZ13,CF13,CL13,CR13,CX13,DD13,DJ13,DP13,DV13),1) -> 92 | EB13: =LARGE((AK13,AQ13,AW13,BC13,BI13,BO13,BU13,CA13,CG13,CM13,CS13,CY13,DE13,DK13,DQ13,DW13),1) -> 92 | EC13: =LARGE((AL13,AR13,AX13,BD13,BJ13,BP13,BV13,CB13,CH13,CN13,CT13,CZ13,DF13,DL13,DR13,DX13),1) -> 80
A14: Lafayette | AA14: =IF(SUM(E14,J14,O14,T14,Y14,Y38,T38,O38,J38,E38,E62,J62,O62,T62,Y62)>0,(LARGE((E14,J14,O14,T14,Y14,Y38,T38,O38,J38,E38,E62,J62,O62,T62,Y62),1)+LARGE((E14,J14,O14,T14,Y14,Y38,T38,O38,J38,E38,E62,J62,O62,T62,Y62),2)+LARGE((E14,J14,O14,T14,Y14,Y38,T38,O38,J38,E38,E62,J62,O62,T62,Y62),3)+LARGE((E14,J14,O14,T14,Y14,Y38,T38,O38,J38,E38,E62,J62,O62,T62,Y62),4)),"") ->  | AB14: =IF(SUM(E14,J14,O14,T14,Y14,Y38,T38,O38,J38,E38,E62,J62,O62,T62,Y62)>0,(LARGE((E14,J14,O14,T14,Y14,Y38,T38,O38,J38,E38,E62,J62,O62,T62,Y62),1)+LARGE((E14,J14,O14,T14,Y14,Y38,T38,O38,J38,E38,E62,J62,O62,T62,Y62),2)+LARGE((E14,J14,O14,T14,Y14,Y38,T38,O38,J38,E38,E62,J62,O62,T62,Y62),3)+LARGE((E14,J14,O14,T14,Y14,Y38,T38,O38,J38,E38,E62,J62,O62,T62,Y62),4)),"") ->  | AH14: =IF(SUM(B44:D44)>0,SUM(B44:D44),0) -> 0 | AI14: =IF(SUM(F44)>0,SUM(F44),0) -> 0 | AJ14: =B44 -> 0 | AK14: =C44 -> 0 | AL14: =D44 -> 0 | AN14: =IF(SUM(B45:D45)>0,SUM(B45:D45),0) -> 0 | AO14: =IF(SUM(F45)>0,SUM(F45),0) -> 0 | AP14: =B45 -> 0 | AQ14: =C45 -> 0 | AR14: =D45 -> 0 | AT14: =IF(SUM(B46:D46)>0,SUM(B46:D46),0) -> 0 | AU14: =IF(SUM(F46)>0,SUM(F46),0) -> 0 | AV14: =B46 -> 0 | AW14: =C46 -> 0 | AX14: =D46 -> 0 | AZ14: =IF(SUM(B47:D47)>0,SUM(B47:D47),0) -> 0 | BA14: =IF(SUM(F47)>0,SUM(F47),0) -> 0 | BB14: =B47 -> 0 | BC14: =C47 -> 0 | BD14: =D47 -> 0 | BF14: =IF(SUM(B48:D48)>0,SUM(B48:D48),0) -> 0 | BG14: =IF(SUM(F48)>0,SUM(F48),0) -> 0 | BH14: =B48 -> 0 | BI14: =C48 -> 0 | BJ14: =D48 -> 0 | BL14: =IF(SUM(B49:D49)>0,SUM(B49:D49),0) -> 0 | BM14: =IF(SUM(F49)>0,SUM(F49),0) -> 0 | BN14: =B49 -> 0 | BO14: =C49 -> 0 | BP14: =D49 -> 0 | BR14: =IF(SUM(B50:D50)>0,SUM(B50:D50),0) -> 0 | BS14: =IF(SUM(F50)>0,SUM(F50),0) -> 0 | BT14: =B50 -> CV 11 | BU14: =C50 -> 0 | BV14: =D50 -> 0 | BX14: =IF(SUM(B51:D51)>0,SUM(B51:D51),0) -> 0 | BY14: =IF(SUM(F51)>0,SUM(F51),0) -> 0 | BZ14: =B51 -> K | CA14: =C51 -> P | CB14: =D51 -> S | CD14: =IF(SUM(B52:D52)>0,SUM(B52:D52),0) -> 0 | CE14: =IF(SUM(F52)>0,SUM(F52),0) -> 0 | CF14: =B52 -> 0 | CG14: =C52 -> 0 | CH14: =D52 -> 0 | CJ14: =IF(SUM(B53:D53)>0,SUM(B53:D53),0) -> 0 | CK14: =IF(SUM(F53)>0,SUM(F53),0) -> 0 | CL14: =B53 -> 0 | CM14: =C53 -> 0 | CN14: =D53 -> 0 | CP14: =IF(SUM(B54:D54)>0,SUM(B54:D54),0) -> 0 | CQ14: =IF(SUM(F54)>0,SUM(F54),0) -> 0 | CR14: =B54 -> 0 | CS14: =C54 -> 0 | CT14: =D54 -> 0 | CV14: =IF(SUM(B55:D55)>0,SUM(B55:D55),0) -> 0 | CW14: =IF(SUM(F55)>0,SUM(F55),0) -> 0 | CX14: =B55 -> 0 | CY14: =C55 -> 0 | CZ14: =D55 -> 0 | DB14: =IF(SUM(B56:D56)>0,SUM(B56:D56),0) -> 0 | DC14: =IF(SUM(F56)>0,SUM(F56),0) -> 0 | DD14: =B56 -> 0 | DE14: =C56 -> 0 | DF14: =D56 -> 0 | DH14: =IF(SUM(B57:D57)>0,SUM(B57:D57),0) -> 0 | DI14: =IF(SUM(F57)>0,SUM(F57),0) -> 0 | DJ14: =B57 -> 0 | DK14: =C57 -> 0 | DL14: =D57 -> 0 | DN14: =IF(SUM(B58:D58)>0,SUM(B58:D58),0) -> 0 | DO14: =IF(SUM(F58)>0,SUM(F58),0) -> 0 | DP14: =B58 -> 0 | DQ14: =C58 -> 0 | DR14: =D58 -> 0 | DT14: =IF(SUM(B59:D59)>0,SUM(B59:D59),0) -> 0 | DU14: =IF(SUM(F59)>0,SUM(F59),0) -> 0 | DV14: =B59 -> 0 | DW14: =C59 -> 0 | DX14: =D59 -> 0 | DZ14: =LARGE((DT14,DN14,DH14,DB14,CV14,CP14,CJ14,CD14,BX14,BR14,BL14,BF14,AZ14,AT14,AN14,AH14),1) -> 0 | EA14: =LARGE((AJ14,AP14,AV14,BB14,BH14,BN14,BT14,BZ14,CF14,CL14,CR14,CX14,DD14,DJ14,DP14,DV14),1) -> 0 | EB14: =LARGE((AK14,AQ14,AW14,BC14,BI14,BO14,BU14,CA14,CG14,CM14,CS14,CY14,DE14,DK14,DQ14,DW14),1) -> 0 | EC14: =LARGE((AL14,AR14,AX14,BD14,BJ14,BP14,BV14,CB14,CH14,CN14,CT14,CZ14,DF14,DL14,DR14,DX14),1) -> 0
A15: @ Dalton | AA15: =IF(SUM(E15,J15,O15,T15,Y15,Y39,T39,O39,J39,E39,E63,J63,O63,T63,Y63)>0,(LARGE((E15,J15,O15,T15,Y15,Y39,T39,O39,J39,E39,E63,J63,O63,T63,Y63),1)+LARGE((E15,J15,O15,T15,Y15,Y39,T39,O39,J39,E39,E63,J63,O63,T63,Y63),2)+LARGE((E15,J15,O15,T15,Y15,Y39,T39,O39,J39,E39,E63,J63,O63,T63,Y63),3)+LARGE((E15,J15,O15,T15,Y15,Y39,T39,O39,J39,E39,E63,J63,O63,T63,Y63),4)),"") ->  | AB15: =IF(SUM(E15,J15,O15,T15,Y15,Y39,T39,O39,J39,E39,E63,J63,O63,T63,Y63)>0,(LARGE((E15,J15,O15,T15,Y15,Y39,T39,O39,J39,E39,E63,J63,O63,T63,Y63),1)+LARGE((E15,J15,O15,T15,Y15,Y39,T39,O39,J39,E39,E63,J63,O63,T63,Y63),2)+LARGE((E15,J15,O15,T15,Y15,Y39,T39,O39,J39,E39,E63,J63,O63,T63,Y63),3)+LARGE((E15,J15,O15,T15,Y15,Y39,T39,O39,J39,E39,E63,J63,O63,T63,Y63),4)),"") ->  | AH15: =IF(SUM(G44:I44)>0,SUM(G44:I44),0) -> 0 | AI15: =IF(SUM(K44)>0,SUM(K44),0) -> 0 | AJ15: =G44 -> 0 | AK15: =H44 -> 0 | AL15: =I44 -> 0 | AN15: =IF(SUM(G45:I45)>0,SUM(G45:I45),0) -> 0 | AO15: =IF(SUM(K45)>0,SUM(K45),0) -> 0 | AP15: =G45 -> 0 | AQ15: =H45 -> 0 | AR15: =I45 -> 0 | AT15: =IF(SUM(G46:I46)>0,SUM(G46:I46),0) -> 0 | AU15: =IF(SUM(K46)>0,SUM(K46),0) -> 0 | AV15: =G46 -> 0 | AW15: =H46 -> 0 | AX15: =I46 -> 0 | AZ15: =IF(SUM(G47:I47)>0,SUM(G47:I47),0) -> 0 | BA15: =IF(SUM(K47)>0,SUM(K47),0) -> 0 | BB15: =G47 -> 0 | BC15: =H47 -> 0 | BD15: =I47 -> 0 | BF15: =IF(SUM(G48:I48)>0,SUM(G48:I48),0) -> 0 | BG15: =IF(SUM(K48)>0,SUM(K48),0) -> 0 | BH15: =G48 -> 0 | BI15: =H48 -> 0 | BJ15: =I48 -> 0 | BL15: =IF(SUM(G49:I49)>0,SUM(G49:I49),0) -> 0 | BM15: =IF(SUM(K49)>0,SUM(K49),0) -> 0 | BN15: =G49 -> 0 | BO15: =H49 -> 0 | BP15: =I49 -> 0 | BR15: =IF(SUM(G50:I50)>0,SUM(G50:I50),0) -> 0 | BS15: =IF(SUM(K50)>0,SUM(K50),0) -> 0 | BT15: =G50 -> CV 12 | BU15: =H50 -> 0 | BV15: =I50 -> 0 | BX15: =IF(SUM(G51:I51)>0,SUM(G51:I51),0) -> 0 | BY15: =IF(SUM(K51)>0,SUM(K51),0) -> 0 | BZ15: =G51 -> K | CA15: =H51 -> P | CB15: =I51 -> S | CD15: =IF(SUM(G52:I52)>0,SUM(G52:I52),0) -> 0 | CE15: =IF(SUM(K52)>0,SUM(K52),0) -> 0 | CF15: =G52 -> 0 | CG15: =H52 -> 0 | CH15: =I52 -> 0 | CJ15: =IF(SUM(G53:I53)>0,SUM(G53:I53),0) -> 0 | CK15: =IF(SUM(K53)>0,SUM(K53),0) -> 0 | CL15: =G53 -> 0 | CM15: =H53 -> 0 | CN15: =I53 -> 0 | CP15: =IF(SUM(G54:I54)>0,SUM(G54:I54),0) -> 0 | CQ15: =IF(SUM(K54)>0,SUM(K54),0) -> 0 | CR15: =G54 -> 0 | CS15: =H54 -> 0 | CT15: =I54 -> 0 | CV15: =IF(SUM(G55:I55)>0,SUM(G55:I55),0) -> 0 | CW15: =IF(SUM(K55)>0,SUM(K55),0) -> 0 | CX15: =G55 -> 0 | CY15: =H55 -> 0 | CZ15: =I55 -> 0 | DB15: =IF(SUM(G56:I56)>0,SUM(G56:I56),0) -> 0 | DC15: =IF(SUM(K56)>0,SUM(K56),0) -> 0 | DD15: =G56 -> 0 | DE15: =H56 -> 0 | DF15: =I56 -> 0 | DH15: =IF(SUM(G57:I57)>0,SUM(G57:I57),0) -> 0 | DI15: =IF(SUM(K57)>0,SUM(K57),0) -> 0 | DJ15: =G57 -> 0 | DK15: =H57 -> 0 | DL15: =I57 -> 0 | DN15: =IF(SUM(G58:I58)>0,SUM(G58:I58),0) -> 0 | DO15: =IF(SUM(K58)>0,SUM(K58),0) -> 0 | DP15: =G58 -> 0 | DQ15: =H58 -> 0 | DR15: =I58 -> 0 | DT15: =IF(SUM(G59:I59)>0,SUM(G59:I59),0) -> 0 | DU15: =IF(SUM(K59)>0,SUM(K59),0) -> 0 | DV15: =G59 -> 0 | DW15: =H59 -> 0 | DX15: =I59 -> 0 | DZ15: =LARGE((DT15,DN15,DH15,DB15,CV15,CP15,CJ15,CD15,BX15,BR15,BL15,BF15,AZ15,AT15,AN15,AH15),1) -> 0 | EA15: =LARGE((AJ15,AP15,AV15,BB15,BH15,BN15,BT15,BZ15,CF15,CL15,CR15,CX15,DD15,DJ15,DP15,DV15),1) -> 0 | EB15: =LARGE((AK15,AQ15,AW15,BC15,BI15,BO15,BU15,CA15,CG15,CM15,CS15,CY15,DE15,DK15,DQ15,DW15),1) -> 0 | EC15: =LARGE((AL15,AR15,AX15,BD15,BJ15,BP15,BV15,CB15,CH15,CN15,CT15,CZ15,DF15,DL15,DR15,DX15),1) -> 0
A16: Woodstock | AA16: =IF(SUM(E16,J16,O16,T16,Y16,Y40,T40,O40,J40,E40,E64,J64,O64,T64,Y64)>0,(LARGE((E16,J16,O16,T16,Y16,Y40,T40,O40,J40,E40,E64,J64,O64,T64,Y64),1)+LARGE((E16,J16,O16,T16,Y16,Y40,T40,O40,J40,E40,E64,J64,O64,T64,Y64),2)+LARGE((E16,J16,O16,T16,Y16,Y40,T40,O40,J40,E40,E64,J64,O64,T64,Y64),3)+LARGE((E16,J16,O16,T16,Y16,Y40,T40,O40,J40,E40,E64,J64,O64,T64,Y64),4)),"") ->  | AB16: =IF(SUM(E16,J16,O16,T16,Y16,Y40,T40,O40,J40,E40,E64,J64,O64,T64,Y64)>0,(LARGE((E16,J16,O16,T16,Y16,Y40,T40,O40,J40,E40,E64,J64,O64,T64,Y64),1)+LARGE((E16,J16,O16,T16,Y16,Y40,T40,O40,J40,E40,E64,J64,O64,T64,Y64),2)+LARGE((E16,J16,O16,T16,Y16,Y40,T40,O40,J40,E40,E64,J64,O64,T64,Y64),3)+LARGE((E16,J16,O16,T16,Y16,Y40,T40,O40,J40,E40,E64,J64,O64,T64,Y64),4)),"") ->  | AH16: =IF(SUM(L44:N44)>0,SUM(L44:N44),0) -> 0 | AI16: =IF(SUM(P44)>0,SUM(P44),0) -> 0 | AJ16: =L44 -> 0 | AK16: =M44 -> 0 | AL16: =N44 -> 0 | AN16: =IF(SUM(L45:N45)>0,SUM(L45:N45),0) -> 0 | AO16: =IF(SUM(P45)>0,SUM(P45),0) -> 0 | AP16: =L45 -> 0 | AQ16: =M45 -> 0 | AR16: =N45 -> 0 | AT16: =IF(SUM(L46:N46)>0,SUM(L46:N46),0) -> 0 | AU16: =IF(SUM(P46)>0,SUM(P46),0) -> 0 | AV16: =L46 -> 0 | AW16: =M46 -> 0 | AX16: =N46 -> 0 | AZ16: =IF(SUM(L47:N47)>0,SUM(L47:N47),0) -> 0 | BA16: =IF(SUM(P47)>0,SUM(P47),0) -> 0 | BB16: =L47 -> 0 | BC16: =M47 -> 0 | BD16: =N47 -> 0 | BF16: =IF(SUM(L48:N48)>0,SUM(L48:N48),0) -> 0 | BG16: =IF(SUM(P48)>0,SUM(P48),0) -> 0 | BH16: =L48 -> 0 | BI16: =M48 -> 0 | BJ16: =N48 -> 0 | BL16: =IF(SUM(L49:N49)>0,SUM(L49:N49),0) -> 0 | BM16: =IF(SUM(P49)>0,SUM(P49),0) -> 0 | BN16: =L49 -> 0 | BO16: =M49 -> 0 | BP16: =N49 -> 0 | BR16: =IF(SUM(L50:N50)>0,SUM(L50:N50),0) -> 0 | BS16: =IF(SUM(P50)>0,SUM(P50),0) -> 0 | BT16: =L50 -> CV 13 | BU16: =M50 -> 0 | BV16: =N50 -> 0 | BX16: =IF(SUM(L51:N51)>0,SUM(L51:N51),0) -> 0 | BY16: =IF(SUM(P51)>0,SUM(P51),0) -> 0 | BZ16: =L51 -> K | CA16: =M51 -> P | CB16: =N51 -> S | CD16: =IF(SUM(L52:N52)>0,SUM(L52:N52),0) -> 0 | CE16: =IF(SUM(P52)>0,SUM(P52),0) -> 0 | CF16: =L52 -> 0 | CG16: =M52 -> 0 | CH16: =N52 -> 0 | CJ16: =IF(SUM(L53:N53)>0,SUM(L53:N53),0) -> 0 | CK16: =IF(SUM(P53)>0,SUM(P53),0) -> 0 | CL16: =L53 -> 0 | CM16: =M53 -> 0 | CN16: =N53 -> 0 | CP16: =IF(SUM(L54:N54)>0,SUM(L54:N54),0) -> 0 | CQ16: =IF(SUM(P54)>0,SUM(P54),0) -> 0 | CR16: =L54 -> 0 | CS16: =M54 -> 0 | CT16: =N54 -> 0 | CV16: =IF(SUM(L55:N55)>0,SUM(L55:N55),0) -> 0 | CW16: =IF(SUM(P55)>0,SUM(P55),0) -> 0 | CX16: =L55 -> 0 | CY16: =M55 -> 0 | CZ16: =N55 -> 0 | DB16: =IF(SUM(L56:N56)>0,SUM(L56:N56),0) -> 0 | DC16: =IF(SUM(P56)>0,SUM(P56),0) -> 0 | DD16: =L56 -> 0 | DE16: =M56 -> 0 | DF16: =N56 -> 0 | DH16: =IF(SUM(L57:N57)>0,SUM(L57:N57),0) -> 0 | DI16: =IF(SUM(P57)>0,SUM(P57),0) -> 0 | DJ16: =L57 -> 0 | DK16: =M57 -> 0 | DL16: =N57 -> 0 | DN16: =IF(SUM(L58:N58)>0,SUM(L58:N58),0) -> 0 | DO16: =IF(SUM(P58)>0,SUM(P58),0) -> 0 | DP16: =L58 -> 0 | DQ16: =M58 -> 0 | DR16: =N58 -> 0 | DT16: =IF(SUM(L59:N59)>0,SUM(L59:N59),0) -> 0 | DU16: =IF(SUM(P59)>0,SUM(P59),0) -> 0 | DV16: =L59 -> 0 | DW16: =M59 -> 0 | DX16: =N59 -> 0 | DZ16: =LARGE((DT16,DN16,DH16,DB16,CV16,CP16,CJ16,CD16,BX16,BR16,BL16,BF16,AZ16,AT16,AN16,AH16),1) -> 0 | EA16: =LARGE((AJ16,AP16,AV16,BB16,BH16,BN16,BT16,BZ16,CF16,CL16,CR16,CX16,DD16,DJ16,DP16,DV16),1) -> 0 | EB16: =LARGE((AK16,AQ16,AW16,BC16,BI16,BO16,BU16,CA16,CG16,CM16,CS16,CY16,DE16,DK16,DQ16,DW16),1) -> 0 | EC16: =LARGE((AL16,AR16,AX16,BD16,BJ16,BP16,BV16,CB16,CH16,CN16,CT16,CZ16,DF16,DL16,DR16,DX16),1) -> 0
A17: @ Ridgeland | AA17: =IF(SUM(E17,J17,O17,T17,Y17,Y41,T41,O41,J41,E41,E65,J65,O65,T65,Y65)>0,(LARGE((E17,J17,O17,T17,Y17,Y41,T41,O41,J41,E41,E65,J65,O65,T65,Y65),1)+LARGE((E17,J17,O17,T17,Y17,Y41,T41,O41,J41,E41,E65,J65,O65,T65,Y65),2)+LARGE((E17,J17,O17,T17,Y17,Y41,T41,O41,J41,E41,E65,J65,O65,T65,Y65),3)+LARGE((E17,J17,O17,T17,Y17,Y41,T41,O41,J41,E41,E65,J65,O65,T65,Y65),4)),"") ->  | AB17: =IF(SUM(E17,J17,O17,T17,Y17,Y41,T41,O41,J41,E41,E65,J65,O65,T65,Y65)>0,(LARGE((E17,J17,O17,T17,Y17,Y41,T41,O41,J41,E41,E65,J65,O65,T65,Y65),1)+LARGE((E17,J17,O17,T17,Y17,Y41,T41,O41,J41,E41,E65,J65,O65,T65,Y65),2)+LARGE((E17,J17,O17,T17,Y17,Y41,T41,O41,J41,E41,E65,J65,O65,T65,Y65),3)+LARGE((E17,J17,O17,T17,Y17,Y41,T41,O41,J41,E41,E65,J65,O65,T65,Y65),4)),"") ->  | AH17: =IF(SUM(Q44:S44)>0,SUM(Q44:S44),0) -> 0 | AI17: =IF(SUM(U44)>0,SUM(U44),0) -> 0 | AJ17: =Q44 -> 0 | AK17: =R44 -> 0 | AL17: =S44 -> 0 | AN17: =IF(SUM(Q45:S45)>0,SUM(Q45:S45),0) -> 0 | AO17: =IF(SUM(U45)>0,SUM(U45),0) -> 0 | AP17: =Q45 -> 0 | AQ17: =R45 -> 0 | AR17: =S45 -> 0 | AT17: =IF(SUM(Q46:S46)>0,SUM(Q46:S46),0) -> 0 | AU17: =IF(SUM(U46)>0,SUM(U46),0) -> 0 | AV17: =Q46 -> 0 | AW17: =R46 -> 0 | AX17: =S46 -> 0 | AZ17: =IF(SUM(Q47:S47)>0,SUM(Q47:S47),0) -> 0 | BA17: =IF(SUM(U47)>0,SUM(U47),0) -> 0 | BB17: =Q47 -> 0 | BC17: =R47 -> 0 | BD17: =S47 -> 0 | BF17: =IF(SUM(Q48:S48)>0,SUM(Q48:S48),0) -> 0 | BG17: =IF(SUM(U48)>0,SUM(U48),0) -> 0 | BH17: =Q48 -> 0 | BI17: =R48 -> 0 | BJ17: =S48 -> 0 | BL17: =IF(SUM(Q49:S49)>0,SUM(Q49:S49),0) -> 0 | BM17: =IF(SUM(U49)>0,SUM(U49),0) -> 0 | BN17: =Q49 -> 0 | BO17: =R49 -> 0 | BP17: =S49 -> 0 | BR17: =IF(SUM(Q50:S50)>0,SUM(Q50:S50),0) -> 0 | BS17: =IF(SUM(U50)>0,SUM(U50),0) -> 0 | BT17: =Q50 -> CV 14 | BU17: =R50 -> 0 | BV17: =S50 -> 0 | BX17: =IF(SUM(Q51:S51)>0,SUM(Q51:S51),0) -> 0 | BY17: =IF(SUM(U51)>0,SUM(U51),0) -> 0 | BZ17: =Q51 -> K | CA17: =R51 -> P | CB17: =S51 -> S | CD17: =IF(SUM(Q52:S52)>0,SUM(Q52:S52),0) -> 0 | CE17: =IF(SUM(U52)>0,SUM(U52),0) -> 0 | CF17: =Q52 -> 0 | CG17: =R52 -> 0 | CH17: =S52 -> 0 | CJ17: =IF(SUM(Q53:S53)>0,SUM(Q53:S53),0) -> 0 | CK17: =IF(SUM(U53)>0,SUM(U53),0) -> 0 | CL17: =Q53 -> 0 | CM17: =R53 -> 0 | CN17: =S53 -> 0 | CP17: =IF(SUM(Q54:S54)>0,SUM(Q54:S54),0) -> 0 | CQ17: =IF(SUM(U54)>0,SUM(U54),0) -> 0 | CR17: =Q54 -> 0 | CS17: =R54 -> 0 | CT17: =S54 -> 0 | CV17: =IF(SUM(Q54:S55)>0,SUM(Q55:S55),0) -> 0 | CW17: =IF(SUM(U55)>0,SUM(U55),0) -> 0 | CX17: =Q55 -> 0 | CY17: =R55 -> 0 | CZ17: =S55 -> 0 | DB17: =IF(SUM(Q56:S56)>0,SUM(Q56:S56),0) -> 0 | DC17: =IF(SUM(U56)>0,SUM(U56),0) -> 0 | DD17: =Q56 -> 0 | DE17: =R56 -> 0 | DF17: =S56 -> 0 | DH17: =IF(SUM(Q57:S57)>0,SUM(Q57:S57),0) -> 0 | DI17: =IF(SUM(U57)>0,SUM(U57),0) -> 0 | DJ17: =Q57 -> 0 | DK17: =R57 -> 0 | DL17: =S57 -> 0 | DN17: =IF(SUM(Q58:S58)>0,SUM(Q58:S58),0) -> 0 | DO17: =IF(SUM(U58)>0,SUM(U58),0) -> 0 | DP17: =Q58 -> 0 | DQ17: =R58 -> 0 | DR17: =S58 -> 0 | DT17: =IF(SUM(Q59:S59)>0,SUM(Q59:S59),0) -> 0 | DU17: =IF(SUM(U59)>0,SUM(U59),0) -> 0 | DV17: =Q59 -> 0 | DW17: =R59 -> 0 | DX17: =S59 -> 0 | DZ17: =LARGE((DT17,DN17,DH17,DB17,CV17,CP17,CJ17,CD17,BX17,BR17,BL17,BF17,AZ17,AT17,AN17,AH17),1) -> 0 | EA17: =LARGE((AJ17,AP17,AV17,BB17,BH17,BN17,BT17,BZ17,CF17,CL17,CR17,CX17,DD17,DJ17,DP17,DV17),1) -> 0 | EB17: =LARGE((AK17,AQ17,AW17,BC17,BI17,BO17,BU17,CA17,CG17,CM17,CS17,CY17,DE17,DK17,DQ17,DW17),1) -> 0 | EC17: =LARGE((AL17,AR17,AX17,BD17,BJ17,BP17,BV17,CB17,CH17,CN17,CT17,CZ17,DF17,DL17,DR17,DX17),1) -> 0
A18: @ Alatoona | AA18: =IF(SUM(E18,J18,O18,T18,Y18,Y42,T42,O42,J42,E42,E66,J66,O66,T66,Y66)>0,(LARGE((E18,J18,O18,T18,Y18,Y42,T42,O42,J42,E42,E66,J66,O66,T66,Y66),1)+LARGE((E18,J18,O18,T18,Y18,Y42,T42,O42,J42,E42,E66,J66,O66,T66,Y66),2)+LARGE((E18,J18,O18,T18,Y18,Y42,T42,O42,J42,E42,E66,J66,O66,T66,Y66),3)+LARGE((E18,J18,O18,T18,Y18,Y42,T42,O42,J42,E42,E66,J66,O66,T66,Y66),4)),"") ->  | AB18: =IF(SUM(E18,J18,O18,T18,Y18,Y42,T42,O42,J42,E42,E66,J66,O66,T66,Y66)>0,(LARGE((E18,J18,O18,T18,Y18,Y42,T42,O42,J42,E42,E66,J66,O66,T66,Y66),1)+LARGE((E18,J18,O18,T18,Y18,Y42,T42,O42,J42,E42,E66,J66,O66,T66,Y66),2)+LARGE((E18,J18,O18,T18,Y18,Y42,T42,O42,J42,E42,E66,J66,O66,T66,Y66),3)+LARGE((E18,J18,O18,T18,Y18,Y42,T42,O42,J42,E42,E66,J66,O66,T66,Y66),4)),"") ->  | AH18: =IF(SUM(V44:X44)>0,SUM(V44:X44),0) -> 0 | AI18: =IF(SUM(Z44)>0,SUM(Z44),0) -> 0 | AJ18: =V44 -> 0 | AK18: =W44 -> 0 | AL18: =X44 -> 0 | AN18: =IF(SUM(V45:X45)>0,SUM(V45:X45),0) -> 0 | AO18: =IF(SUM(Z45)>0,SUM(Z45),0) -> 0 | AP18: =V45 -> 0 | AQ18: =W45 -> 0 | AR18: =X45 -> 0 | AT18: =IF(SUM(V46:X46)>0,SUM(V46:X46),0) -> 0 | AU18: =IF(SUM(Z46)>0,SUM(Z46),0) -> 0 | AV18: =V46 -> 0 | AW18: =W46 -> 0 | AX18: =X46 -> 0 | AZ18: =IF(SUM(V47:X47)>0,SUM(V47:X47),0) -> 0 | BA18: =IF(SUM(Z47)>0,SUM(Z47),0) -> 0 | BB18: =V47 -> 0 | BC18: =W47 -> 0 | BD18: =X47 -> 0 | BF18: =IF(SUM(V48:X48)>0,SUM(V48:X48),0) -> 0 | BG18: =IF(SUM(Z48)>0,SUM(Z48),0) -> 0 | BH18: =V48 -> 0 | BI18: =W48 -> 0 | BJ18: =X48 -> 0 | BL18: =IF(SUM(V49:X49)>0,SUM(V49:X49),0) -> 0 | BM18: =IF(SUM(Z49)>0,SUM(Z49),0) -> 0 | BN18: =V49 -> 0 | BO18: =W49 -> 0 | BP18: =X49 -> 0 | BR18: =IF(SUM(V50:X50)>0,SUM(V50:X50),0) -> 0 | BS18: =IF(SUM(Z50)>0,SUM(Z50),0) -> 0 | BT18: =V50 -> CV15 | BU18: =W50 -> 0 | BV18: =X50 -> 0 | BX18: =IF(SUM(V51:X51)>0,SUM(V51:X51),0) -> 0 | BY18: =IF(SUM(Z51)>0,SUM(Z51),0) -> 0 | BZ18: =V51 -> K | CA18: =W51 -> P | CB18: =X51 -> S | CD18: =IF(SUM(V52:X52)>0,SUM(V52:X52),0) -> 0 | CE18: =IF(SUM(Z52)>0,SUM(Z52),0) -> 0 | CF18: =V52 -> 0 | CG18: =W52 -> 0 | CH18: =X52 -> 0 | CJ18: =IF(SUM(V53:X53)>0,SUM(V53:X53),0) -> 0 | CK18: =IF(SUM(Z53)>0,SUM(Z53),0) -> 0 | CL18: =V53 -> 0 | CM18: =W53 -> 0 | CN18: =X53 -> 0 | CP18: =IF(SUM(V54:X54)>0,SUM(V54:X54),0) -> 0 | CQ18: =IF(SUM(Z54)>0,SUM(Z54),0) -> 0 | CR18: =V54 -> 0 | CS18: =W54 -> 0 | CT18: =X54 -> 0 | CV18: =IF(SUM(V55:X55)>0,SUM(V55:X55),0) -> 0 | CW18: =IF(SUM(Z55)>0,SUM(Z55),0) -> 0 | CX18: =V55 -> 0 | CY18: =W55 -> 0 | CZ18: =X55 -> 0 | DB18: =IF(SUM(V56:X56)>0,SUM(V56:X56),0) -> 0 | DC18: =IF(SUM(Z56)>0,SUM(Z56),0) -> 0 | DD18: =V56 -> 0 | DE18: =W56 -> 0 | DF18: =X56 -> 0 | DH18: =IF(SUM(V57:X57)>0,SUM(V57:X57),0) -> 0 | DI18: =IF(SUM(Z57)>0,SUM(Z57),0) -> 0 | DJ18: =V57 -> 0 | DK18: =W57 -> 0 | DL18: =X57 -> 0 | DN18: =IF(SUM(V58:X58)>0,SUM(V58:X58),0) -> 0 | DO18: =IF(SUM(Z58)>0,SUM(Z58),0) -> 0 | DP18: =V58 -> 0 | DQ18: =W58 -> 0 | DR18: =X58 -> 0 | DT18: =IF(SUM(V59:X59)>0,SUM(V59:X59),0) -> 0 | DU18: =IF(SUM(Z59)>0,SUM(Z59),0) -> 0 | DV18: =V59 -> 0 | DW18: =W59 -> 0 | DX18: =X59 -> 0 | DZ18: =LARGE((DT18,DN18,DH18,DB18,CV18,CP18,CJ18,CD18,BX18,BR18,BL18,BF18,AZ18,AT18,AN18,AH18),1) -> 0 | EA18: =LARGE((AJ18,AP18,AV18,BB18,BH18,BN18,BT18,BZ18,CF18,CL18,CR18,CX18,DD18,DJ18,DP18,DV18),1) -> 0 | EB18: =LARGE((AK18,AQ18,AW18,BC18,BI18,BO18,BU18,CA18,CG18,CM18,CS18,CY18,DE18,DK18,DQ18,DW18),1) -> 0 | EC18: =LARGE((AL18,AR18,AX18,BD18,BJ18,BP18,BV18,CB18,CH18,CN18,CT18,CZ18,DF18,DL18,DR18,DX18),1) -> 0
A19: @ Gordon Central | AA19: =IF(SUM(E19,J19,O19,T19,Y19,Y43,T43,O43,J43,E43,E67,J67,O67,T67,Y67)>0,(LARGE((E19,J19,O19,T19,Y19,Y43,T43,O43,J43,E43,E67,J67,O67,T67,Y67),1)+LARGE((E19,J19,O19,T19,Y19,Y43,T43,O43,J43,E43,E67,J67,O67,T67,Y67),2)+LARGE((E19,J19,O19,T19,Y19,Y43,T43,O43,J43,E43,E67,J67,O67,T67,Y67),3)+LARGE((E19,J19,O19,T19,Y19,Y43,T43,O43,J43,E43,E67,J67,O67,T67,Y67),4)),"") ->  | AB19: =IF(SUM(E19,J19,O19,T19,Y19,Y43,T43,O43,J43,E43,E67,J67,O67,T67,Y67)>0,(LARGE((E19,J19,O19,T19,Y19,Y43,T43,O43,J43,E43,E67,J67,O67,T67,Y67),1)+LARGE((E19,J19,O19,T19,Y19,Y43,T43,O43,J43,E43,E67,J67,O67,T67,Y67),2)+LARGE((E19,J19,O19,T19,Y19,Y43,T43,O43,J43,E43,E67,J67,O67,T67,Y67),3)+LARGE((E19,J19,O19,T19,Y19,Y43,T43,O43,J43,E43,E67,J67,O67,T67,Y67),4)),"") ->  | AH19: =SUM(AH4:AH18) -> 2775 | AI19: 55 | AJ19: 937.5 | AK19: 962.5 | AL19: 875 | AN19: 1119 | AO19: 44 | AP19: 376 | AQ19: 390 | AR19: 353 | AT19: 0 | AU19: 0 | AV19: 0 | AW19: 0 | AX19: 0 | AZ19: 0 | BA19: 0 | BB19: 0 | BC19: 0 | BD19: 0 | BF19: 0 | BG19: 0 | BH19: 0 | BI19: 0 | BJ19: 0 | BL19: 0 | BM19: 0 | BN19: 0 | BO19: 0 | BP19: 0 | BR19: 0 | BS19: 0 | BT19: 0 | BU19: 0 | BV19: 0 | BX19: 0 | BY19: 0 | BZ19: 0 | CA19: 0 | CB19: 0 | CD19: 0 | CE19: 0 | CF19: 0 | CG19: 0 | CH19: 0 | CJ19: 0 | CK19: 0 | CL19: 0 | CM19: 0 | CN19: 0 | CP19: 0 | CQ19: 0 | CR19: 0 | CS19: 0 | CT19: 0 | CV19: 0 | CW19: 0 | CX19: 0 | CY19: 0 | CZ19: 0 | DB19: 0 | DC19: 0 | DD19: 0 | DE19: 0 | DF19: 0 | DH19: 0 | DI19: 0 | DJ19: 0 | DK19: 0 | DL19: 0 | DN19: 0 | DO19: =SUM(DO4:DO18) -> 0 | DP19: =SUM(DP4:DP18) -> 0 | DQ19: =SUM(DQ4:DQ18) -> 0 | DR19: =SUM(DR4:DR18) -> 0 | DT19: =SUM(DT4:DT18) -> 0 | DU19: =SUM(DU4:DU18) -> 0 | DV19: =SUM(DV4:DV18) -> 0 | DW19: =SUM(DW4:DW18) -> 0 | DX19: =SUM(DX4:DX18) -> 0 | DZ19: =LARGE((DT19,DN19,DH19,DB19,CV19,CP19,CJ19,CD19,BX19,BR19,BL19,BF19,AZ19,AT19,AN19,AH19),1) -> 2775 | EA19: =LARGE((AJ19,AP19,AV19,BB19,BH19,BN19,BT19,BZ19,CF19,CL19,CR19,CX19,DD19,DJ19,DP19,DV19),1) -> 937.5 | EB19: =LARGE((AK19,AQ19,AW19,BC19,BI19,BO19,BU19,CA19,CG19,CM19,CS19,CY19,DE19,DK19,DQ19,DW19),1) -> 962.5 | EC19: =LARGE((AL19,AR19,AX19,BD19,BJ19,BP19,BV19,CB19,CH19,CN19,CT19,CZ19,DF19,DL19,DR19,DX19),1) -> 875
A20: @ Etowah | AA20: =IF(SUM(E20,J20,O20,T20,Y20,Y44,T44,O44,J44,E44,E68,J68,O68,T68,Y68)>0,(LARGE((E20,J20,O20,T20,Y20,Y44,T44,O44,J44,E44,E68,J68,O68,T68,Y68),1)+LARGE((E20,J20,O20,T20,Y20,Y44,T44,O44,J44,E44,E68,J68,O68,T68,Y68),2)+LARGE((E20,J20,O20,T20,Y20,Y44,T44,O44,J44,E44,E68,J68,O68,T68,Y68),3)+LARGE((E20,J20,O20,T20,Y20,Y44,T44,O44,J44,E44,E68,J68,O68,T68,Y68),4)),"") ->  | AB20: =IF(SUM(E20,J20,O20,T20,Y20,Y44,T44,O44,J44,E44,E68,J68,O68,T68,Y68)>0,(LARGE((E20,J20,O20,T20,Y20,Y44,T44,O44,J44,E44,E68,J68,O68,T68,Y68),1)+LARGE((E20,J20,O20,T20,Y20,Y44,T44,O44,J44,E44,E68,J68,O68,T68,Y68),2)+LARGE((E20,J20,O20,T20,Y20,Y44,T44,O44,J44,E44,E68,J68,O68,T68,Y68),3)+LARGE((E20,J20,O20,T20,Y20,Y44,T44,O44,J44,E44,E68,J68,O68,T68,Y68),4)),"") ->  | AH20: =SUM(AH5:AH19) -> 5256 | AI20: 90 | AJ20: 1779 | AK20: 1825 | AL20: 1652 | AN20: =SUM(AN5:AN19) -> 1948 | AO20: 72 | AP20: 655 | AQ20: 680 | AR20: 613 | AT20: =SUM(AT5:AT19) -> 0 | AU20: 0 | AV20: 0 | AW20: 0 | AX20: 0 | AZ20: =SUM(AZ5:AZ19) -> 0 | BA20: 0 | BB20: 0 | BC20: 0 | BD20: 0 | BF20: =SUM(BF5:BF19) -> 0 | BG20: 0 | BH20: 0 | BI20: 0 | BJ20: 0 | BL20: =SUM(BL5:BL19) -> 0 | BM20: 0 | BN20: 0 | BO20: 0 | BP20: 0 | BR20: =SUM(BR5:BR19) -> 0 | BS20: 0 | BT20: 0 | BU20: 0 | BV20: 0 | BX20: =SUM(BX5:BX19) -> 0 | BY20: 0 | BZ20: 0 | CA20: 0 | CB20: 0 | CD20: =SUM(CD5:CD19) -> 0 | CE20: 0 | CF20: 0 | CG20: 0 | CH20: 0 | CJ20: =SUM(CJ5:CJ19) -> 0 | CK20: 0 | CL20: 0 | CM20: 0 | CN20: 0 | CP20: =SUM(CP5:CP19) -> 0 | CQ20: 0 | CR20: 0 | CS20: 0 | CT20: 0 | CV20: =SUM(CV5:CV19) -> 0 | CW20: 0 | CX20: 0 | CY20: 0 | CZ20: 0 | DB20: =SUM(DB5:DB19) -> 0 | DC20: 0 | DD20: 0 | DE20: 0 | DF20: 0 | DH20: =SUM(DH5:DH19) -> 0 | DI20: 0 | DJ20: 0 | DK20: 0 | DL20: 0 | DN20: =SUM(DN5:DN19) -> 0 | DO20: 0 | DP20: 0 | DQ20: 0 | DR20: 0 | DT20: =SUM(DT5:DT19) -> 0 | DU20: 0 | DV20: 0 | DW20: 0 | DX20: 0 | DZ20: =LARGE((DT20,DN20,DH20,DB20,CV20,CP20,CJ20,CD20,BX20,BR20,BL20,BF20,AZ20,AT20,AN20,AH20),1) -> 5256 | EA20: =LARGE((AJ20,AP20,AV20,BB20,BH20,BN20,BT20,BZ20,CF20,CL20,CR20,CX20,DD20,DJ20,DP20,DV20),1) -> 1779 | EB20: =LARGE((AK20,AQ20,AW20,BC20,BI20,BO20,BU20,CA20,CG20,CM20,CS20,CY20,DE20,DK20,DQ20,DW20),1) -> 1825 | EC20: =LARGE((AL20,AR20,AX20,BD20,BJ20,BP20,BV20,CB20,CH20,CN20,CT20,CZ20,DF20,DL20,DR20,DX20),1) -> 1652
A21: BYE | AA21: =IF(SUM(E21,J21,O21,T21,Y21,Y45,T45,O45,J45,E45,E69,J69,O69,T69,Y69)>0,(LARGE((E21,J21,O21,T21,Y21,Y45,T45,O45,J45,E45,E69,J69,O69,T69,Y69),1)+LARGE((E21,J21,O21,T21,Y21,Y45,T45,O45,J45,E45,E69,J69,O69,T69,Y69),2)+LARGE((E21,J21,O21,T21,Y21,Y45,T45,O45,J45,E45,E69,J69,O69,T69,Y69),3)+LARGE((E21,J21,O21,T21,Y21,Y45,T45,O45,J45,E45,E69,J69,O69,T69,Y69),4)),"") ->  | AB21: =IF(SUM(E21,J21,O21,T21,Y21,Y45,T45,O45,J45,E45,E69,J69,O69,T69,Y69)>0,(LARGE((E21,J21,O21,T21,Y21,Y45,T45,O45,J45,E45,E69,J69,O69,T69,Y69),1)+LARGE((E21,J21,O21,T21,Y21,Y45,T45,O45,J45,E45,E69,J69,O69,T69,Y69),2)+LARGE((E21,J21,O21,T21,Y21,Y45,T45,O45,J45,E45,E69,J69,O69,T69,Y69),3)+LARGE((E21,J21,O21,T21,Y21,Y45,T45,O45,J45,E45,E69,J69,O69,T69,Y69),4)),"") ->  | AH21: =SUM(AH6:AH20) -> 10223 | AI21: 164 | AJ21: 3462 | AK21: 3551 | AL21: 3210 | AN21: =SUM(AN6:AN20) -> 3605 | AO21: 131 | AP21: 1214 | AQ21: 1260 | AR21: 1131 | AT21: =SUM(AT6:AT20) -> 0 | AU21: 0 | AV21: 0 | AW21: 0 | AX21: 0 | AZ21: =SUM(AZ6:AZ20) -> 0 | BA21: 0 | BB21: 0 | BC21: 0 | BD21: 0 | BF21: =SUM(BF6:BF20) -> 0 | BG21: 0 | BH21: 0 | BI21: 0 | BJ21: 0 | BL21: =SUM(BL6:BL20) -> 0 | BM21: 0 | BN21: 0 | BO21: 0 | BP21: 0 | BR21: =SUM(BR6:BR20) -> 0 | BS21: 0 | BT21: 0 | BU21: 0 | BV21: 0 | BX21: =SUM(BX6:BX20) -> 0 | BY21: 0 | BZ21: 0 | CA21: 0 | CB21: 0 | CD21: =SUM(CD6:CD20) -> 0 | CE21: 0 | CF21: 0 | CG21: 0 | CH21: 0 | CJ21: =SUM(CJ6:CJ20) -> 0 | CK21: 0 | CL21: 0 | CM21: 0 | CN21: 0 | CP21: =SUM(CP6:CP20) -> 0 | CQ21: 0 | CR21: 0 | CS21: 0 | CT21: 0 | CV21: =SUM(CV6:CV20) -> 0 | CW21: 0 | CX21: 0 | CY21: 0 | CZ21: 0 | DB21: =SUM(DB6:DB20) -> 0 | DC21: 0 | DD21: 0 | DE21: 0 | DF21: 0 | DH21: =SUM(DH6:DH20) -> 0 | DI21: 0 | DJ21: 0 | DK21: 0 | DL21: 0 | DN21: =SUM(DN6:DN20) -> 0 | DO21: 0 | DP21: 0 | DQ21: 0 | DR21: 0 | DT21: =SUM(DT6:DT20) -> 0 | DU21: 0 | DV21: 0 | DW21: 0 | DX21: 0 | DZ21: =LARGE((DT21,DN21,DH21,DB21,CV21,CP21,CJ21,CD21,BX21,BR21,BL21,BF21,AZ21,AT21,AN21,AH21),1) -> 10223 | EA21: =LARGE((AJ21,AP21,AV21,BB21,BH21,BN21,BT21,BZ21,CF21,CL21,CR21,CX21,DD21,DJ21,DP21,DV21),1) -> 3462 | EB21: =LARGE((AK21,AQ21,AW21,BC21,BI21,BO21,BU21,CA21,CG21,CM21,CS21,CY21,DE21,DK21,DQ21,DW21),1) -> 3551 | EC21: =LARGE((AL21,AR21,AX21,BD21,BJ21,BP21,BV21,CB21,CH21,CN21,CT21,CZ21,DF21,DL21,DR21,DX21),1) -> 3210
A22: Area Sectional/Playoff | AA22: =IF(SUM(E22,J22,O22,T22,Y22,Y46,T46,O46,J46,E46,E70,J70,O70,T70,Y70)>0,(LARGE((E22,J22,O22,T22,Y22,Y46,T46,O46,J46,E46,E70,J70,O70,T70,Y70),1)+LARGE((E22,J22,O22,T22,Y22,Y46,T46,O46,J46,E46,E70,J70,O70,T70,Y70),2)+LARGE((E22,J22,O22,T22,Y22,Y46,T46,O46,J46,E46,E70,J70,O70,T70,Y70),3)+LARGE((E22,J22,O22,T22,Y22,Y46,T46,O46,J46,E46,E70,J70,O70,T70,Y70),4)),"") ->  | AB22: =IF(SUM(E22,J22,O22,T22,Y22,Y46,T46,O46,J46,E46,E70,J70,O70,T70,Y70)>0,(LARGE((E22,J22,O22,T22,Y22,Y46,T46,O46,J46,E46,E70,J70,O70,T70,Y70),1)+LARGE((E22,J22,O22,T22,Y22,Y46,T46,O46,J46,E46,E70,J70,O70,T70,Y70),2)+LARGE((E22,J22,O22,T22,Y22,Y46,T46,O46,J46,E46,E70,J70,O70,T70,Y70),3)+LARGE((E22,J22,O22,T22,Y22,Y46,T46,O46,J46,E46,E70,J70,O70,T70,Y70),4)),"") ->  | AH22: =SUM(AH7:AH21) -> 20170 | AI22: 320 | AJ22: 6830 | AK22: 7004 | AL22: 6336 | AN22: =SUM(AN7:AN21) -> 6929 | AO22: 250 | AP22: 2333 | AQ22: 2423 | AR22: 2173 | AT22: =SUM(AT7:AT21) -> 0 | AU22: 0 | AV22: 0 | AW22: 0 | AX22: 0 | AZ22: =SUM(AZ7:AZ21) -> 0 | BA22: 0 | BB22: 0 | BC22: 0 | BD22: 0 | BF22: =SUM(BF7:BF21) -> 0 | BG22: 0 | BH22: 0 | BI22: 0 | BJ22: 0 | BL22: =SUM(BL7:BL21) -> 0 | BM22: 0 | BN22: 0 | BO22: 0 | BP22: 0 | BR22: =SUM(BR7:BR21) -> 0 | BS22: 0 | BT22: 0 | BU22: 0 | BV22: 0 | BX22: =SUM(BX7:BX21) -> 0 | BY22: 0 | BZ22: 0 | CA22: 0 | CB22: 0 | CD22: =SUM(CD7:CD21) -> 0 | CE22: 0 | CF22: 0 | CG22: 0 | CH22: 0 | CJ22: =SUM(CJ7:CJ21) -> 0 | CK22: 0 | CL22: 0 | CM22: 0 | CN22: 0 | CP22: =SUM(CP7:CP21) -> 0 | CQ22: 0 | CR22: 0 | CS22: 0 | CT22: 0 | CV22: =SUM(CV7:CV21) -> 0 | CW22: 0 | CX22: 0 | CY22: 0 | CZ22: 0 | DB22: =SUM(DB7:DB21) -> 0 | DC22: 0 | DD22: 0 | DE22: 0 | DF22: 0 | DH22: =SUM(DH7:DH21) -> 0 | DI22: 0 | DJ22: 0 | DK22: 0 | DL22: 0 | DN22: =SUM(DN7:DN21) -> 0 | DO22: 0 | DP22: 0 | DQ22: 0 | DR22: 0 | DT22: =SUM(DT7:DT21) -> 0 | DU22: 0 | DV22: 0 | DW22: 0 | DX22: 0 | DZ22: =LARGE((DT22,DN22,DH22,DB22,CV22,CP22,CJ22,CD22,BX22,BR22,BL22,BF22,AZ22,AT22,AN22,AH22),1) -> 20170 | EA22: =LARGE((AJ22,AP22,AV22,BB22,BH22,BN22,BT22,BZ22,CF22,CL22,CR22,CX22,DD22,DJ22,DP22,DV22),1) -> 6830 | EB22: =LARGE((AK22,AQ22,AW22,BC22,BI22,BO22,BU22,CA22,CG22,CM22,CS22,CY22,DE22,DK22,DQ22,DW22),1) -> 7004 | EC22: =LARGE((AL22,AR22,AX22,BD22,BJ22,BP22,BV22,CB22,CH22,CN22,CT22,CZ22,DF22,DL22,DR22,DX22),1) -> 6336
A23: Area Championship | AA23: =IF(SUM(E23,J23,O23,T23,Y23,Y47,T47,O47,J47,E47,E71,J71,O71,T71,Y71)>0,(LARGE((E23,J23,O23,T23,Y23,Y47,T47,O47,J47,E47,E71,J71,O71,T71,Y71),1)+LARGE((E23,J23,O23,T23,Y23,Y47,T47,O47,J47,E47,E71,J71,O71,T71,Y71),2)+LARGE((E23,J23,O23,T23,Y23,Y47,T47,O47,J47,E47,E71,J71,O71,T71,Y71),3)+LARGE((E23,J23,O23,T23,Y23,Y47,T47,O47,J47,E47,E71,J71,O71,T71,Y71),4)),"") ->  | AB23: =IF(SUM(E23,J23,O23,T23,Y23,Y47,T47,O47,J47,E47,E71,J71,O71,T71,Y71)>0,(LARGE((E23,J23,O23,T23,Y23,Y47,T47,O47,J47,E47,E71,J71,O71,T71,Y71),1)+LARGE((E23,J23,O23,T23,Y23,Y47,T47,O47,J47,E47,E71,J71,O71,T71,Y71),2)+LARGE((E23,J23,O23,T23,Y23,Y47,T47,O47,J47,E47,E71,J71,O71,T71,Y71),3)+LARGE((E23,J23,O23,T23,Y23,Y47,T47,O47,J47,E47,E71,J71,O71,T71,Y71),4)),"") ->  | AH23: =SUM(AH8:AH22) -> 40074 | AI23: 633 | AJ23: 13569 | AK23: 13916 | AL23: 12589 | AN23: =SUM(AN8:AN22) -> 13601 | AO23: 497 | AP23: 4578 | AQ23: 4753 | AR23: 4270 | AT23: =SUM(AT8:AT22) -> 0 | AU23: 0 | AV23: 0 | AW23: 0 | AX23: 0 | AZ23: =SUM(AZ8:AZ22) -> 0 | BA23: 0 | BB23: 0 | BC23: 0 | BD23: 0 | BF23: =SUM(BF8:BF22) -> 0 | BG23: 0 | BH23: 0 | BI23: 0 | BJ23: 0 | BL23: =SUM(BL8:BL22) -> 0 | BM23: 0 | BN23: 0 | BO23: 0 | BP23: 0 | BR23: =SUM(BR8:BR22) -> 0 | BS23: 0 | BT23: 0 | BU23: 0 | BV23: 0 | BX23: =SUM(BX8:BX22) -> 0 | BY23: 0 | BZ23: 0 | CA23: 0 | CB23: 0 | CD23: =SUM(CD8:CD22) -> 0 | CE23: 0 | CF23: 0 | CG23: 0 | CH23: 0 | CJ23: =SUM(CJ8:CJ22) -> 0 | CK23: 0 | CL23: 0 | CM23: 0 | CN23: 0 | CP23: =SUM(CP8:CP22) -> 0 | CQ23: 0 | CR23: 0 | CS23: 0 | CT23: 0 | CV23: =SUM(CV8:CV22) -> 0 | CW23: 0 | CX23: 0 | CY23: 0 | CZ23: 0 | DB23: =SUM(DB8:DB22) -> 0 | DC23: 0 | DD23: 0 | DE23: 0 | DF23: 0 | DH23: =SUM(DH8:DH22) -> 0 | DI23: 0 | DJ23: 0 | DK23: 0 | DL23: 0 | DN23: =SUM(DN8:DN22) -> 0 | DO23: 0 | DP23: 0 | DQ23: 0 | DR23: 0 | DT23: =SUM(DT8:DT22) -> 0 | DU23: 0 | DV23: 0 | DW23: 0 | DX23: 0
A24: Average | B24: =IF(SUM(B4:B23)=0,0,AVERAGE(B4:B23)) -> 96.5 | C24: =IF(SUM(C4:C23)=0,0,AVERAGE(C4:C23)) -> 100 | D24: =IF(SUM(D4:D23)=0,0,AVERAGE(D4:D23)) -> 95.5 | E24: =IF(SUM(E4:E23)=0,0,AVERAGE(E4:E23)) -> 292 | G24: =IF(SUM(G4:G23)=0,0,AVERAGE(G4:G23)) -> 96 | H24: =IF(SUM(H4:H23)=0,0,AVERAGE(H4:H23)) -> 99.5 | I24: =IF(SUM(I4:I23)=0,0,AVERAGE(I4:I23)) -> 94.5 | J24: =IF(SUM(J4:J23)=0,0,AVERAGE(J4:J23)) -> 290 | L24: =IF(SUM(L4:L23)=0,0,AVERAGE(L4:L23)) -> 94.5 | M24: =IF(SUM(M4:M23)=0,0,AVERAGE(M4:M23)) -> 97.5 | N24: =IF(SUM(N4:N23)=0,0,AVERAGE(N4:N23)) -> 86.5 | O24: =IF(SUM(O4:O23)=0,0,AVERAGE(O4:O23)) -> 278.5 | Q24: =IF(SUM(Q4:Q23)=0,0,AVERAGE(Q4:Q23)) -> 89.5 | R24: =IF(SUM(R4:R23)=0,0,AVERAGE(R4:R23)) -> 92.5 | S24: =IF(SUM(S4:S23)=0,0,AVERAGE(S4:S23)) -> 79.5 | T24: =IF(SUM(T4:T23)=0,0,AVERAGE(T4:T23)) -> 261.5 | V24: =IF(SUM(V4:V23)=0,0,AVERAGE(V4:V23)) -> 92 | W24: =IF(SUM(W4:W23)=0,0,AVERAGE(W4:W23)) -> 92 | X24: =IF(SUM(X4:X23)=0,0,AVERAGE(X4:X23)) -> 80 | Y24: =IF(SUM(Y4:Y23)=0,0,AVERAGE(Y4:Y23)) -> 264 | AA24: =IF(SUM(AA4:AA23)=0,0,AVERAGE(AA4:AA23)) -> 1122 | AB24: =IF(SUM(AB4:AB23)=0,0,AVERAGE(AB4:AB23)) -> 47.5 | AK24: =TEXT(AH4, "000")&TEXT(AI4, "-00") & TEXT(AL4, "-000") & TEXT(AK4, "-000") & TEXT(AJ4, "-000") -> 294-20-098-100-096 | AL24: =COUNTIF(AK24:AK38, ">=" & AK24) -> 1 | AM24: =RANK(AL24,AL24:AL38,1)+COUNTIF(AK24:AK24,AK24)-1 -> 1 | AQ24: =TEXT(AN4, "000") & TEXT(AO4, "-00") & TEXT(AR4, "-000") & TEXT(AQ4, "-000") & TEXT(AP4, "-000") -> 290-16-093-100-097 | AR24: =COUNTIF(AQ24:AQ38, ">=" & AQ24) -> 2 | AS24: =RANK(AR24,AR24:AR38,1)+COUNTIF(AQ24:AQ24,AQ24)-1 -> 2 | AW24: =TEXT(AT4, "000") & TEXT(AU4, "-00") & TEXT(AX4, "-000") & TEXT(AW4, "-000") & TEXT(AV4, "-000") -> 000-00-000-000-000 | AX24: =COUNTIF(AW24:AW38, ">=" & AW24) -> 15 | AY24: =RANK(AX24,AX24:AX38,1)+COUNTIF(AW24:AW24,AW24)-1 -> 3 | BC24: =TEXT(AZ4, "000") & TEXT(BA4, "-00") & TEXT(BD4, "-000") & TEXT(BC4, "-000") & TEXT(BB4, "-000") -> 000-00-000-000-000 | BD24: =COUNTIF(BC24:BC38, ">=" & BC24) -> 15 | BE24: =RANK(BD24,BD24:BD38,1)+COUNTIF(BC24:BC24,BC24)-1 -> 6 | BI24: =TEXT(BF4, "000") & TEXT(BG4, "-00") & TEXT(BJ4, "-000") & TEXT(BI4, "-000") & TEXT(BH4, "-000") -> 000-00-000-000-000 | BJ24: =COUNTIF(BI24:BI38, ">=" & BI24) -> 15 | BK24: =RANK(BJ24,BJ24:BJ38,1)+COUNTIF(BI24:BI24,BI24)-1 -> 1 | BO24: =TEXT(BL4, "000") & TEXT(BM4, "-00") & TEXT(BP4, "-000") & TEXT(BO4, "-000") & TEXT(BN4, "-000") -> 000-00-000-000-000 | BP24: =COUNTIF(BO24:BO38, ">=" & BO24) -> 15 | BQ24: =RANK(BP24,BP24:BP38,1)+COUNTIF(BO24:BO24,BO24)-1 -> 1 | BU24: =TEXT(BR4, "000") & TEXT(BS4, "-00") & TEXT(BV4, "-000") & TEXT(BU4, "-000") & TEXT(BT4, "-000") -> 000-00-000-000-000 | BV24: =COUNTIF(BU24:BU38, ">=" & BU24) -> 15 | BW24: =RANK(BV24,BV24:BV38,1)+COUNTIF(BU24:BU24,BU24)-1 -> 6 | CA24: =TEXT(BX4, "000") & TEXT(BY4, "-00") & TEXT(CB4, "-000") & TEXT(CA4, "-000") & TEXT(BZ4, "-000") -> 000-00-000-000-000 | CB24: =COUNTIF(CA24:CA38, ">=" & CA24) -> 15 | CC24: =RANK(CB24,CB24:CB38,1)+COUNTIF(CA24:CA24,CA24)-1 -> 6 | CG24: =TEXT(CD4, "000") & TEXT(CE4, "-00") & TEXT(CH4, "-000") & TEXT(CG4, "-000") & TEXT(CF4, "-000") -> 000-00-000-000-000 | CH24: =COUNTIF(CG24:CG38, ">=" & CG24) -> 15 | CI24: =RANK(CH24,CH24:CH38,1)+COUNTIF(CG24:CG24,CG24)-1 -> 1 | CM24: =TEXT(CJ4, "000") & TEXT(CK4, "-00") & TEXT(CN4, "-000") & TEXT(CM4, "-000") & TEXT(CL4, "-000") -> 000-00-000-000-000 | CN24: =COUNTIF(CM24:CM38, ">=" & CM24) -> 15 | CO24: =RANK(CN24,CN24:CN38,1)+COUNTIF(CM24:CM24,CM24)-1 -> 1 | CS24: =TEXT(CP4, "000") & TEXT(CQ4, "-00") & TEXT(CT4, "-000") & TEXT(CS4, "-000") & TEXT(CR4, "-000") -> 000-00-000-000-000 | CT24: =COUNTIF(CS24:CS38, ">=" & CS24) -> 15 | CU24: =RANK(CT24,CT24:CT38,1)+COUNTIF(CS24:CS24,CS24)-1 -> 1 | CY24: =TEXT(CV4, "000") & TEXT(CW4, "-00") & TEXT(CZ4, "-000") & TEXT(CY4, "-000") & TEXT(CX4, "-000") -> 000-00-000-000-000 | CZ24: =COUNTIF(CY24:CY38, ">=" & CY24) -> 15 | DA24: =RANK(CZ24,CZ24:CZ38,1)+COUNTIF(CY24:CY24,CY24)-1 -> 1 | DE24: =TEXT(DB4, "000") & TEXT(DC4, "-00") & TEXT(DF4, "-000") & TEXT(DE4, "-000") & TEXT(DD4, "-000") -> 000-00-000-000-000 | DF24: =COUNTIF(DE24:DE38, ">=" & DE24) -> 15 | DG24: =RANK(DF24,DF24:DF38,1)+COUNTIF(DE24:DE24,DE24)-1 -> 1 | DK24: =TEXT(DH4, "000") & TEXT(DI4, "-00") & TEXT(DL4, "-000") & TEXT(DK4, "-000") & TEXT(DJ4, "-000") -> 000-00-000-000-000 | DL24: =COUNTIF(DK24:DK38, ">=" & DK24) -> 15 | DM24: =RANK(DL24,DL24:DL38,1)+COUNTIF(DK24:DK24,DK24)-1 -> 1 | DQ24: =TEXT(DN4, "000") & TEXT(DO4, "-00") & TEXT(DR4, "-000") & TEXT(DQ4, "-000") & TEXT(DP4, "-000") -> 000-00-000-000-000 | DR24: =COUNTIF(DQ24:DQ38, ">=" & DQ24) -> 15 | DS24: =RANK(DR24,DR24:DR38,1)+COUNTIF(DQ24:DQ24,DQ24)-1 -> 1 | DW24: =TEXT(DT4, "000") & TEXT(DU4, "-00") & TEXT(DX4, "-000") & TEXT(DW4, "-000") & TEXT(DV4, "-000") -> 000-00-000-000-000 | DX24: =COUNTIF(DW24:DW38, ">=" & DW24) -> 15 | DY24: =RANK(DX24,DX24:DX38,1)+COUNTIF(DW24:DW24,DW24)-1 -> 1
A25: CV | AC25: =A25 -> CV | AK25: 289-16-094-099-096 | AL25: =COUNTIF(AK24:AK38, ">=" & AK25) -> 4 | AM25: =RANK(AL25,AL24:AL38,1)+COUNTIF(AK24:AK25,AK25)-1 -> 4 | AQ25: 291-13-095-100-096 | AR25: =COUNTIF(AQ24:AQ38, ">=" & AQ25) -> 1 | AS25: =RANK(AR25,AR24:AR38,1)+COUNTIF(AQ24:AQ25,AQ25)-1 -> 1 | AW25: 000-00-000-000-000 | AX25: =COUNTIF(AW24:AW38, ">=" & AW25) -> 15 | AY25: =RANK(AX25,AX24:AX38,1)+COUNTIF(AW24:AW25,AW25)-1 -> 4 | BC25: 000-00-000-000-000 | BD25: =COUNTIF(BC24:BC38, ">=" & BC25) -> 15 | BE25: =RANK(BD25,BD24:BD38,1)+COUNTIF(BC24:BC25,BC25)-1 -> 7 | BI25: 000-00-000-000-000 | BJ25: =COUNTIF(BI24:BI38, ">=" & BI25) -> 15 | BK25: =RANK(BJ25,BJ24:BJ38,1)+COUNTIF(BI24:BI25,BI25)-1 -> 2 | BO25: 000-00-000-000-000 | BP25: =COUNTIF(BO24:BO38, ">=" & BO25) -> 15 | BQ25: =RANK(BP25,BP24:BP38,1)+COUNTIF(BO24:BO25,BO25)-1 -> 2 | BU25: 000-00-000-000-000 | BV25: =COUNTIF(BU24:BU38, ">=" & BU25) -> 15 | BW25: =RANK(BV25,BV24:BV38,1)+COUNTIF(BU24:BU25,BU25)-1 -> 7 | CA25: 000-00-000-000-000 | CB25: =COUNTIF(CA24:CA38, ">=" & CA25) -> 15 | CC25: =RANK(CB25,CB24:CB38,1)+COUNTIF(CA24:CA25,CA25)-1 -> 7 | CG25: 000-00-000-000-000 | CH25: =COUNTIF(CG24:CG38, ">=" & CG25) -> 15 | CI25: =RANK(CH25,CH24:CH38,1)+COUNTIF(CG24:CG25,CG25)-1 -> 2 | CM25: 000-00-000-000-000 | CN25: =COUNTIF(CM24:CM38, ">=" & CM25) -> 15 | CO25: =RANK(CN25,CN24:CN38,1)+COUNTIF(CM24:CM25,CM25)-1 -> 2 | CS25: 000-00-000-000-000 | CT25: =COUNTIF(CS24:CS38, ">=" & CS25) -> 15 | CU25: =RANK(CT25,CT24:CT38,1)+COUNTIF(CS24:CS25,CS25)-1 -> 2 | CY25: 000-00-000-000-000 | CZ25: =COUNTIF(CY24:CY38, ">=" & CY25) -> 15 | DA25: =RANK(CZ25,CZ24:CZ38,1)+COUNTIF(CY24:CY25,CY25)-1 -> 2 | DE25: 000-00-000-000-000 | DF25: =COUNTIF(DE24:DE38, ">=" & DE25) -> 15 | DG25: =RANK(DF25,DF24:DF38,1)+COUNTIF(DE24:DE25,DE25)-1 -> 2 | DK25: 000-00-000-000-000 | DL25: =COUNTIF(DK24:DK38, ">=" & DK25) -> 15 | DM25: =RANK(DL25,DL24:DL38,1)+COUNTIF(DK24:DK25,DK25)-1 -> 2 | DQ25: 000-00-000-000-000 | DR25: =COUNTIF(DQ24:DQ38, ">=" & DQ25) -> 15 | DS25: =RANK(DR25,DR24:DR38,1)+COUNTIF(DQ24:DQ25,DQ25)-1 -> 2 | DW25: 000-00-000-000-000 | DX25: =COUNTIF(DW24:DW38, ">=" & DW25) -> 15 | DY25: =RANK(DX25,DX24:DX38,1)+COUNTIF(DW24:DW25,DW25)-1 -> 2
A26: Cartersville | B26: Daughdrilldrill, Emma (9) | V26: CV 10 | AC26: =B22 -> 0 | AD26: =G22 -> 0 | AE26: =L22 -> 0 | AF26: =Q22 -> 0 | AG26: =V22 -> 0 | AK26: 276-08-084-098-094 | AL26: =COUNTIF(AK24:AK38, ">=" & AK26) -> 6 | AM26: =RANK(AL26,AL24:AL38,1)+COUNTIF(AK24:AK26,AK26)-1 -> 6 | AQ26: 281-12-089-097-095 | AR26: =COUNTIF(AQ24:AQ38, ">=" & AQ26) -> 3 | AS26: =RANK(AR26,AR24:AR38,1)+COUNTIF(AQ24:AQ26,AQ26)-1 -> 3 | AW26: 000-00-000-000-000 | AX26: =COUNTIF(AW24:AW38, ">=" & AW26) -> 15 | AY26: =RANK(AX26,AX24:AX38,1)+COUNTIF(AW24:AW26,AW26)-1 -> 5 | BC26: 000-00-000-000-000 | BD26: =COUNTIF(BC24:BC38, ">=" & BC26) -> 15 | BE26: =RANK(BD26,BD24:BD38,1)+COUNTIF(BC24:BC26,BC26)-1 -> 8 | BI26: 000-00-000-000-000 | BJ26: =COUNTIF(BI24:BI38, ">=" & BI26) -> 15 | BK26: =RANK(BJ26,BJ24:BJ38,1)+COUNTIF(BI24:BI26,BI26)-1 -> 3 | BO26: 000-00-000-000-000 | BP26: =COUNTIF(BO24:BO38, ">=" & BO26) -> 15 | BQ26: =RANK(BP26,BP24:BP38,1)+COUNTIF(BO24:BO26,BO26)-1 -> 3 | BU26: 000-00-000-000-000 | BV26: =COUNTIF(BU24:BU38, ">=" & BU26) -> 15 | BW26: =RANK(BV26,BV24:BV38,1)+COUNTIF(BU24:BU26,BU26)-1 -> 8 | CA26: 000-00-000-000-000 | CB26: =COUNTIF(CA24:CA38, ">=" & CA26) -> 15 | CC26: =RANK(CB26,CB24:CB38,1)+COUNTIF(CA24:CA26,CA26)-1 -> 8 | CG26: 000-00-000-000-000 | CH26: =COUNTIF(CG24:CG38, ">=" & CG26) -> 15 | CI26: =RANK(CH26,CH24:CH38,1)+COUNTIF(CG24:CG26,CG26)-1 -> 3 | CM26: 000-00-000-000-000 | CN26: =COUNTIF(CM24:CM38, ">=" & CM26) -> 15 | CO26: =RANK(CN26,CN24:CN38,1)+COUNTIF(CM24:CM26,CM26)-1 -> 3 | CS26: 000-00-000-000-000 | CT26: =COUNTIF(CS24:CS38, ">=" & CS26) -> 15 | CU26: =RANK(CT26,CT24:CT38,1)+COUNTIF(CS24:CS26,CS26)-1 -> 3 | CY26: 000-00-000-000-000 | CZ26: =COUNTIF(CY24:CY38, ">=" & CY26) -> 15 | DA26: =RANK(CZ26,CZ24:CZ38,1)+COUNTIF(CY24:CY26,CY26)-1 -> 3 | DE26: 000-00-000-000-000 | DF26: =COUNTIF(DE24:DE38, ">=" & DE26) -> 15 | DG26: =RANK(DF26,DF24:DF38,1)+COUNTIF(DE24:DE26,DE26)-1 -> 3 | DK26: 000-00-000-000-000 | DL26: =COUNTIF(DK24:DK38, ">=" & DK26) -> 15 | DM26: =RANK(DL26,DL24:DL38,1)+COUNTIF(DK24:DK26,DK26)-1 -> 3 | DQ26: 000-00-000-000-000 | DR26: =COUNTIF(DQ24:DQ38, ">=" & DQ26) -> 15 | DS26: =RANK(DR26,DR24:DR38,1)+COUNTIF(DQ24:DQ26,DQ26)-1 -> 3 | DW26: 000-00-000-000-000 | DX26: =COUNTIF(DW24:DW38, ">=" & DW26) -> 15 | DY26: =RANK(DX26,DX24:DX38,1)+COUNTIF(DW24:DW26,DW26)-1 -> 3
A27: VS | B27: K | C27: P | D27: S | E27: AGGR | F27: *10 | G27: K | H27: P | I27: S | J27: AGGR | K27: *10 | L27: K | M27: P | N27: S | O27: AGGR | P27: *10 | Q27: K | R27: P | S27: S | T27: AGGR | U27: *10 | V27: K | W27: P | X27: S | Y27: AGGR | Z27: *10 | AC27: =IF(SUM(E24:E39)>0,LARGE(E24:E39,1),0) -> 292 | AD27: =IF(SUM(J24:J39)>0,LARGE(J24:J39,1),0) -> 290 | AE27: =IF(SUM(O24:O39)>0,LARGE(O24:O39,1),0) -> 278.5 | AF27: =IF(SUM(T24:T39)>0,LARGE(T24:T39,1),0) -> 261.5 | AG27: =IF(SUM(Y24:Y39)>0,LARGE(Y24:Y39,1),0) -> 264 | AK27: 266-07-083-092-091 | AL27: =COUNTIF(AK24:AK38, ">=" & AK27) -> 7 | AM27: =RANK(AL27,AL24:AL38,1)+COUNTIF(AK24:AK27,AK27)-1 -> 7 | AQ27: 257-03-076-093-088 | AR27: =COUNTIF(AQ24:AQ38, ">=" & AQ27) -> 4 | AS27: =RANK(AR27,AR24:AR38,1)+COUNTIF(AQ24:AQ27,AQ27)-1 -> 4 | AW27: 000-00-000-000-000 | AX27: =COUNTIF(AW24:AW38, ">=" & AW27) -> 15 | AY27: =RANK(AX27,AX24:AX38,1)+COUNTIF(AW24:AW27,AW27)-1 -> 6 | BC27: 000-00-000-000-000 | BD27: =COUNTIF(BC24:BC38, ">=" & BC27) -> 15 | BE27: =RANK(BD27,BD24:BD38,1)+COUNTIF(BC24:BC27,BC27)-1 -> 9 | BI27: 000-00-000-000-000 | BJ27: =COUNTIF(BI24:BI38, ">=" & BI27) -> 15 | BK27: =RANK(BJ27,BJ24:BJ38,1)+COUNTIF(BI24:BI27,BI27)-1 -> 4 | BO27: 000-00-000-000-000 | BP27: =COUNTIF(BO24:BO38, ">=" & BO27) -> 15 | BQ27: =RANK(BP27,BP24:BP38,1)+COUNTIF(BO24:BO27,BO27)-1 -> 4 | BU27: 000-00-000-000-000 | BV27: =COUNTIF(BU24:BU38, ">=" & BU27) -> 15 | BW27: =RANK(BV27,BV24:BV38,1)+COUNTIF(BU24:BU27,BU27)-1 -> 9 | CA27: 000-00-000-000-000 | CB27: =COUNTIF(CA24:CA38, ">=" & CA27) -> 15 | CC27: =RANK(CB27,CB24:CB38,1)+COUNTIF(CA24:CA27,CA27)-1 -> 9 | CG27: 000-00-000-000-000 | CH27: =COUNTIF(CG24:CG38, ">=" & CG27) -> 15 | CI27: =RANK(CH27,CH24:CH38,1)+COUNTIF(CG24:CG27,CG27)-1 -> 4 | CM27: 000-00-000-000-000 | CN27: =COUNTIF(CM24:CM38, ">=" & CM27) -> 15 | CO27: =RANK(CN27,CN24:CN38,1)+COUNTIF(CM24:CM27,CM27)-1 -> 4 | CS27: 000-00-000-000-000 | CT27: =COUNTIF(CS24:CS38, ">=" & CS27) -> 15 | CU27: =RANK(CT27,CT24:CT38,1)+COUNTIF(CS24:CS27,CS27)-1 -> 4 | CY27: 000-00-000-000-000 | CZ27: =COUNTIF(CY24:CY38, ">=" & CY27) -> 15 | DA27: =RANK(CZ27,CZ24:CZ38,1)+COUNTIF(CY24:CY27,CY27)-1 -> 4 | DE27: 000-00-000-000-000 | DF27: =COUNTIF(DE24:DE38, ">=" & DE27) -> 15 | DG27: =RANK(DF27,DF24:DF38,1)+COUNTIF(DE24:DE27,DE27)-1 -> 4 | DK27: 000-00-000-000-000 | DL27: =COUNTIF(DK24:DK38, ">=" & DK27) -> 15 | DM27: =RANK(DL27,DL24:DL38,1)+COUNTIF(DK24:DK27,DK27)-1 -> 4 | DQ27: 000-00-000-000-000 | DR27: =COUNTIF(DQ24:DQ38, ">=" & DQ27) -> 15 | DS27: =RANK(DR27,DR24:DR38,1)+COUNTIF(DQ24:DQ27,DQ27)-1 -> 4 | DW27: 000-00-000-000-000 | DX27: =COUNTIF(DW24:DW38, ">=" & DW27) -> 15 | DY27: =RANK(DX27,DX24:DX38,1)+COUNTIF(DW24:DW27,DW27)-1 -> 4
A28: @ Cherokee | E28: =IF(SUM(B28:D28)>0,SUM(B28:D28),"") ->  | J28: =IF(SUM(G28:I28)>0,SUM(G28:I28),"") ->  | O28: =IF(SUM(L28:N28)>0,SUM(L28:N28),"") ->  | T28: =IF(SUM(Q28:S28)>0,SUM(Q28:S28),"") ->  | Y28: =IF(SUM(V28:X28)>0,SUM(V28:X28),"") ->  | AK28: 264-04-080-092-092 | AL28: =COUNTIF(AK24:AK38, ">=" & AK28) -> 8 | AM28: =RANK(AL28,AL24:AL38,1)+COUNTIF(AK24:AK28,AK28)-1 -> 8 | AQ28: 000-00-000-000-000 | AR28: =COUNTIF(AQ24:AQ38, ">=" & AQ28) -> 14 | AS28: =RANK(AR28,AR24:AR38,1)+COUNTIF(AQ24:AQ28,AQ28)-1 -> 5 | AW28: 000-00-000-000-000 | AX28: =COUNTIF(AW24:AW38, ">=" & AW28) -> 15 | AY28: =RANK(AX28,AX24:AX38,1)+COUNTIF(AW24:AW28,AW28)-1 -> 7 | BC28: 000-00-000-000-000 | BD28: =COUNTIF(BC24:BC38, ">=" & BC28) -> 15 | BE28: =RANK(BD28,BD24:BD38,1)+COUNTIF(BC24:BC28,BC28)-1 -> 10 | BI28: 000-00-000-000-000 | BJ28: =COUNTIF(BI24:BI38, ">=" & BI28) -> 15 | BK28: =RANK(BJ28,BJ24:BJ38,1)+COUNTIF(BI24:BI28,BI28)-1 -> 5 | BO28: 000-00-000-000-000 | BP28: =COUNTIF(BO24:BO38, ">=" & BO28) -> 15 | BQ28: =RANK(BP28,BP24:BP38,1)+COUNTIF(BO24:BO28,BO28)-1 -> 5 | BU28: 000-00-000-000-000 | BV28: =COUNTIF(BU24:BU38, ">=" & BU28) -> 15 | BW28: =RANK(BV28,BV24:BV38,1)+COUNTIF(BU24:BU28,BU28)-1 -> 10 | CA28: 000-00-000-000-000 | CB28: =COUNTIF(CA24:CA38, ">=" & CA28) -> 15 | CC28: =RANK(CB28,CB24:CB38,1)+COUNTIF(CA24:CA28,CA28)-1 -> 10 | CG28: 000-00-000-000-000 | CH28: =COUNTIF(CG24:CG38, ">=" & CG28) -> 15 | CI28: =RANK(CH28,CH24:CH38,1)+COUNTIF(CG24:CG28,CG28)-1 -> 5 | CM28: 000-00-000-000-000 | CN28: =COUNTIF(CM24:CM38, ">=" & CM28) -> 15 | CO28: =RANK(CN28,CN24:CN38,1)+COUNTIF(CM24:CM28,CM28)-1 -> 5 | CS28: 000-00-000-000-000 | CT28: =COUNTIF(CS24:CS38, ">=" & CS28) -> 15 | CU28: =RANK(CT28,CT24:CT38,1)+COUNTIF(CS24:CS28,CS28)-1 -> 5 | CY28: 000-00-000-000-000 | CZ28: =COUNTIF(CY24:CY38, ">=" & CY28) -> 15 | DA28: =RANK(CZ28,CZ24:CZ38,1)+COUNTIF(CY24:CY28,CY28)-1 -> 5 | DE28: 000-00-000-000-000 | DF28: =COUNTIF(DE24:DE38, ">=" & DE28) -> 15 | DG28: =RANK(DF28,DF24:DF38,1)+COUNTIF(DE24:DE28,DE28)-1 -> 5 | DK28: 000-00-000-000-000 | DL28: =COUNTIF(DK24:DK38, ">=" & DK28) -> 15 | DM28: =RANK(DL28,DL24:DL38,1)+COUNTIF(DK24:DK28,DK28)-1 -> 5 | DQ28: 000-00-000-000-000 | DR28: =COUNTIF(DQ24:DQ38, ">=" & DQ28) -> 15 | DS28: =RANK(DR28,DR24:DR38,1)+COUNTIF(DQ24:DQ28,DQ28)-1 -> 5 | DW28: 000-00-000-000-000 | DX28: =COUNTIF(DW24:DW38, ">=" & DW28) -> 15 | DY28: =RANK(DX28,DX24:DX38,1)+COUNTIF(DW24:DW28,DW28)-1 -> 5
A29: @LaFayette | AK29: 292-00-096-100-097 | AL29: =COUNTIF(AK24:AK38, ">=" & AK29) -> 2 | AM29: =RANK(AL29,AL24:AL38,1)+COUNTIF(AK24:AK29,AK29)-1 -> 2 | AQ29: 000-00-000-000-000 | AR29: =COUNTIF(AQ24:AQ38, ">=" & AQ29) -> 14 | AS29: =RANK(AR29,AR24:AR38,1)+COUNTIF(AQ24:AQ29,AQ29)-1 -> 6 | AW29: 000-00-000-000Daughdrilldrill, Emma (9) | AX29: =COUNTIF(AW24:AW38, ">=" & AW29) -> 1 | AY29: =RANK(AX29,AX24:AX38,1)+COUNTIF(AW24:AW29,AW29)-1 -> 1 | BC29: 000-00SPK | BD29: =COUNTIF(BC24:BC38, ">=" & BC29) -> 5 | BE29: =RANK(BD29,BD24:BD38,1)+COUNTIF(BC24:BC29,BC29)-1 -> 1 | BI29: 000-00-000-000-000 | BJ29: =COUNTIF(BI24:BI38, ">=" & BI29) -> 15 | BK29: =RANK(BJ29,BJ24:BJ38,1)+COUNTIF(BI24:BI29,BI29)-1 -> 6 | BO29: 000-00-000-000-000 | BP29: =COUNTIF(BO24:BO38, ">=" & BO29) -> 15 | BQ29: =RANK(BP29,BP24:BP38,1)+COUNTIF(BO24:BO29,BO29)-1 -> 6 | BU29: 000-00-000-000-000 | BV29: =COUNTIF(BU24:BU38, ">=" & BU29) -> 15 | BW29: =RANK(BV29,BV24:BV38,1)+COUNTIF(BU24:BU29,BU29)-1 -> 11 | CA29: 000-00-000-000-000 | CB29: =COUNTIF(CA24:CA38, ">=" & CA29) -> 15 | CC29: =RANK(CB29,CB24:CB38,1)+COUNTIF(CA24:CA29,CA29)-1 -> 11 | CG29: 000-00-000-000-000 | CH29: =COUNTIF(CG24:CG38, ">=" & CG29) -> 15 | CI29: =RANK(CH29,CH24:CH38,1)+COUNTIF(CG24:CG29,CG29)-1 -> 6 | CM29: 000-00-000-000-000 | CN29: =COUNTIF(CM24:CM38, ">=" & CM29) -> 15 | CO29: =RANK(CN29,CN24:CN38,1)+COUNTIF(CM24:CM29,CM29)-1 -> 6 | CS29: 000-00-000-000-000 | CT29: =COUNTIF(CS24:CS38, ">=" & CS29) -> 15 | CU29: =RANK(CT29,CT24:CT38,1)+COUNTIF(CS24:CS29,CS29)-1 -> 6 | CY29: 000-00-000-000-000 | CZ29: =COUNTIF(CY24:CY38, ">=" & CY29) -> 15 | DA29: =RANK(CZ29,CZ24:CZ38,1)+COUNTIF(CY24:CY29,CY29)-1 -> 6 | DE29: 000-00-000-000-000 | DF29: =COUNTIF(DE24:DE38, ">=" & DE29) -> 15 | DG29: =RANK(DF29,DF24:DF38,1)+COUNTIF(DE24:DE29,DE29)-1 -> 6 | DK29: 000-00-000-000-000 | DL29: =COUNTIF(DK24:DK38, ">=" & DK29) -> 15 | DM29: =RANK(DL29,DL24:DL38,1)+COUNTIF(DK24:DK29,DK29)-1 -> 6 | DQ29: 000-00-000-000-000 | DR29: =COUNTIF(DQ24:DQ38, ">=" & DQ29) -> 15 | DS29: =RANK(DR29,DR24:DR38,1)+COUNTIF(DQ24:DQ29,DQ29)-1 -> 6 | DW29: 000-00-000-000-000 | DX29: =COUNTIF(DW24:DW38, ">=" & DW29) -> 15 | DY29: =RANK(DX29,DX24:DX38,1)+COUNTIF(DW24:DW29,DW29)-1 -> 6
A30: Dalton | AA30: s | AK30: 290-00-095-100-096 | AL30: =COUNTIF(AK24:AK38, ">=" & AK30) -> 3 | AM30: =RANK(AL30,AL24:AL38,1)+COUNTIF(AK24:AK30,AK30)-1 -> 3 | AQ30: 000-00-000-000-000 | AR30: =COUNTIF(AQ24:AQ38, ">=" & AQ30) -> 14 | AS30: =RANK(AR30,AR24:AR38,1)+COUNTIF(AQ24:AQ30,AQ30)-1 -> 7 | AW30: 000-00-000-000-000 | AX30: =COUNTIF(AW24:AW38, ">=" & AW30) -> 15 | AY30: =RANK(AX30,AX24:AX38,1)+COUNTIF(AW24:AW30,AW30)-1 -> 8 | BC30: 000-00SPK | BD30: =COUNTIF(BC24:BC38, ">=" & BC30) -> 5 | BE30: =RANK(BD30,BD24:BD38,1)+COUNTIF(BC24:BC30,BC30)-1 -> 2 | BI30: 000-00-000-000-000 | BJ30: =COUNTIF(BI24:BI38, ">=" & BI30) -> 15 | BK30: =RANK(BJ30,BJ24:BJ38,1)+COUNTIF(BI24:BI30,BI30)-1 -> 7 | BO30: 000-00-000-000-000 | BP30: =COUNTIF(BO24:BO38, ">=" & BO30) -> 15 | BQ30: =RANK(BP30,BP24:BP38,1)+COUNTIF(BO24:BO30,BO30)-1 -> 7 | BU30: 000-00-000-000-000 | BV30: =COUNTIF(BU24:BU38, ">=" & BU30) -> 15 | BW30: =RANK(BV30,BV24:BV38,1)+COUNTIF(BU24:BU30,BU30)-1 -> 12 | CA30: 000-00-000-000-000 | CB30: =COUNTIF(CA24:CA38, ">=" & CA30) -> 15 | CC30: =RANK(CB30,CB24:CB38,1)+COUNTIF(CA24:CA30,CA30)-1 -> 12 | CG30: 000-00-000-000-000 | CH30: =COUNTIF(CG24:CG38, ">=" & CG30) -> 15 | CI30: =RANK(CH30,CH24:CH38,1)+COUNTIF(CG24:CG30,CG30)-1 -> 7 | CM30: 000-00-000-000-000 | CN30: =COUNTIF(CM24:CM38, ">=" & CM30) -> 15 | CO30: =RANK(CN30,CN24:CN38,1)+COUNTIF(CM24:CM30,CM30)-1 -> 7 | CS30: 000-00-000-000-000 | CT30: =COUNTIF(CS24:CS38, ">=" & CS30) -> 15 | CU30: =RANK(CT30,CT24:CT38,1)+COUNTIF(CS24:CS30,CS30)-1 -> 7 | CY30: 000-00-000-000-000 | CZ30: =COUNTIF(CY24:CY38, ">=" & CY30) -> 15 | DA30: =RANK(CZ30,CZ24:CZ38,1)+COUNTIF(CY24:CY30,CY30)-1 -> 7 | DE30: 000-00-000-000-000 | DF30: =COUNTIF(DE24:DE38, ">=" & DE30) -> 15 | DG30: =RANK(DF30,DF24:DF38,1)+COUNTIF(DE24:DE30,DE30)-1 -> 7 | DK30: 000-00-000-000-000 | DL30: =COUNTIF(DK24:DK38, ">=" & DK30) -> 15 | DM30: =RANK(DL30,DL24:DL38,1)+COUNTIF(DK24:DK30,DK30)-1 -> 7 | DQ30: 000-00-000-000-000 | DR30: =COUNTIF(DQ24:DQ38, ">=" & DQ30) -> 15 | DS30: =RANK(DR30,DR24:DR38,1)+COUNTIF(DQ24:DQ30,DQ30)-1 -> 7 | DW30: 000-00-000-000-000 | DX30: =COUNTIF(DW24:DW38, ">=" & DW30) -> 15 | DY30: =RANK(DX30,DX24:DX38,1)+COUNTIF(DW24:DW30,DW30)-1 -> 7
A31: @Woodstock | AA31: e | AK31: 279-00-087-098-095 | AL31: =COUNTIF(AK24:AK38, ">=" & AK31) -> 5 | AM31: =RANK(AL31,AL24:AL38,1)+COUNTIF(AK24:AK31,AK31)-1 -> 5 | AQ31: 000-00 -000-000 | AR31: =COUNTIF(AQ24:AQ38, ">=" & AQ31) -> 15 | AS31: =RANK(AR31,AR24:AR38,1)+COUNTIF(AQ24:AQ31,AQ31)-1 -> 15 | AW31: 000-00-000-000-000 | AX31: =COUNTIF(AW24:AW38, ">=" & AW31) -> 15 | AY31: =RANK(AX31,AX24:AX38,1)+COUNTIF(AW24:AW31,AW31)-1 -> 9 | BC31: 000-00SPK | BD31: =COUNTIF(BC24:BC38, ">=" & BC31) -> 5 | BE31: =RANK(BD31,BD24:BD38,1)+COUNTIF(BC24:BC31,BC31)-1 -> 3 | BI31: 000-00-000-000-000 | BJ31: =COUNTIF(BI24:BI38, ">=" & BI31) -> 15 | BK31: =RANK(BJ31,BJ24:BJ38,1)+COUNTIF(BI24:BI31,BI31)-1 -> 8 | BO31: 000-00-000-000-000 | BP31: =COUNTIF(BO24:BO38, ">=" & BO31) -> 15 | BQ31: =RANK(BP31,BP24:BP38,1)+COUNTIF(BO24:BO31,BO31)-1 -> 8 | BU31: 000-00-000-000-000 | BV31: =COUNTIF(BU24:BU38, ">=" & BU31) -> 15 | BW31: =RANK(BV31,BV24:BV38,1)+COUNTIF(BU24:BU31,BU31)-1 -> 13 | CA31: 000-00-000-000-000 | CB31: =COUNTIF(CA24:CA38, ">=" & CA31) -> 15 | CC31: =RANK(CB31,CB24:CB38,1)+COUNTIF(CA24:CA31,CA31)-1 -> 13 | CG31: 000-00-000-000-000 | CH31: =COUNTIF(CG24:CG38, ">=" & CG31) -> 15 | CI31: =RANK(CH31,CH24:CH38,1)+COUNTIF(CG24:CG31,CG31)-1 -> 8 | CM31: 000-00-000-000-000 | CN31: =COUNTIF(CM24:CM38, ">=" & CM31) -> 15 | CO31: =RANK(CN31,CN24:CN38,1)+COUNTIF(CM24:CM31,CM31)-1 -> 8 | CS31: 000-00-000-000-000 | CT31: =COUNTIF(CS24:CS38, ">=" & CS31) -> 15 | CU31: =RANK(CT31,CT24:CT38,1)+COUNTIF(CS24:CS31,CS31)-1 -> 8 | CY31: 000-00-000-000-000 | CZ31: =COUNTIF(CY24:CY38, ">=" & CY31) -> 15 | DA31: =RANK(CZ31,CZ24:CZ38,1)+COUNTIF(CY24:CY31,CY31)-1 -> 8 | DE31: 000-00-000-000-000 | DF31: =COUNTIF(DE24:DE38, ">=" & DE31) -> 15 | DG31: =RANK(DF31,DF24:DF38,1)+COUNTIF(DE24:DE31,DE31)-1 -> 8 | DK31: 000-00-000-000-000 | DL31: =COUNTIF(DK24:DK38, ">=" & DK31) -> 15 | DM31: =RANK(DL31,DL24:DL38,1)+COUNTIF(DK24:DK31,DK31)-1 -> 8 | DQ31: 000-00-000-000-000 | DR31: =COUNTIF(DQ24:DQ38, ">=" & DQ31) -> 15 | DS31: =RANK(DR31,DR24:DR38,1)+COUNTIF(DQ24:DQ31,DQ31)-1 -> 8 | DW31: 000-00-000-000-000 | DX31: =COUNTIF(DW24:DW38, ">=" & DW31) -> 15 | DY31: =RANK(DX31,DX24:DX38,1)+COUNTIF(DW24:DW31,DW31)-1 -> 8
A32: Ridgeland | AA32: e | AK32: 262-00-080-093-090 | AL32: =COUNTIF(AK24:AK38, ">=" & AK32) -> 10 | AM32: =RANK(AL32,AL24:AL38,1)+COUNTIF(AK24:AK32,AK32)-1 -> 10 | AQ32: 000-00-000-000-000 | AR32: =COUNTIF(AQ24:AQ38, ">=" & AQ32) -> 14 | AS32: =RANK(AR32,AR24:AR38,1)+COUNTIF(AQ24:AQ32,AQ32)-1 -> 8 | AW32: 000-00-000-000-000 | AX32: =COUNTIF(AW24:AW38, ">=" & AW32) -> 15 | AY32: =RANK(AX32,AX24:AX38,1)+COUNTIF(AW24:AW32,AW32)-1 -> 10 | BC32: 000-00SPK | BD32: =COUNTIF(BC24:BC38, ">=" & BC32) -> 5 | BE32: =RANK(BD32,BD24:BD38,1)+COUNTIF(BC24:BC32,BC32)-1 -> 4 | BI32: 000-00-000-000-000 | BJ32: =COUNTIF(BI24:BI38, ">=" & BI32) -> 15 | BK32: =RANK(BJ32,BJ24:BJ38,1)+COUNTIF(BI24:BI32,BI32)-1 -> 9 | BO32: 000-00-000-000-000 | BP32: =COUNTIF(BO24:BO38, ">=" & BO32) -> 15 | BQ32: =RANK(BP32,BP24:BP38,1)+COUNTIF(BO24:BO32,BO32)-1 -> 9 | BU32: 000-00-000-000-000 | BV32: =COUNTIF(BU24:BU38, ">=" & BU32) -> 15 | BW32: =RANK(BV32,BV24:BV38,1)+COUNTIF(BU24:BU32,BU32)-1 -> 14 | CA32: 000-00-000-000-000 | CB32: =COUNTIF(CA24:CA38, ">=" & CA32) -> 15 | CC32: =RANK(CB32,CB24:CB38,1)+COUNTIF(CA24:CA32,CA32)-1 -> 14 | CG32: 000-00-000-000-000 | CH32: =COUNTIF(CG24:CG38, ">=" & CG32) -> 15 | CI32: =RANK(CH32,CH24:CH38,1)+COUNTIF(CG24:CG32,CG32)-1 -> 9 | CM32: 000-00-000-000-000 | CN32: =COUNTIF(CM24:CM38, ">=" & CM32) -> 15 | CO32: =RANK(CN32,CN24:CN38,1)+COUNTIF(CM24:CM32,CM32)-1 -> 9 | CS32: 000-00-000-000-000 | CT32: =COUNTIF(CS24:CS38, ">=" & CS32) -> 15 | CU32: =RANK(CT32,CT24:CT38,1)+COUNTIF(CS24:CS32,CS32)-1 -> 9 | CY32: 000-00-000-000-000 | CZ32: =COUNTIF(CY24:CY38, ">=" & CY32) -> 15 | DA32: =RANK(CZ32,CZ24:CZ38,1)+COUNTIF(CY24:CY32,CY32)-1 -> 9 | DE32: 000-00-000-000-000 | DF32: =COUNTIF(DE24:DE38, ">=" & DE32) -> 15 | DG32: =RANK(DF32,DF24:DF38,1)+COUNTIF(DE24:DE32,DE32)-1 -> 9 | DK32: 000-00-000-000-000 | DL32: =COUNTIF(DK24:DK38, ">=" & DK32) -> 15 | DM32: =RANK(DL32,DL24:DL38,1)+COUNTIF(DK24:DK32,DK32)-1 -> 9 | DQ32: 000-00-000-000-000 | DR32: =COUNTIF(DQ24:DQ38, ">=" & DQ32) -> 15 | DS32: =RANK(DR32,DR24:DR38,1)+COUNTIF(DQ24:DQ32,DQ32)-1 -> 9 | DW32: 000-00-000-000-000 | DX32: =COUNTIF(DW24:DW38, ">=" & DW32) -> 15 | DY32: =RANK(DX32,DX24:DX38,1)+COUNTIF(DW24:DW32,DW32)-1 -> 9
A33: Allatoona | AK33: 264-00-080-092-092 | AL33: =COUNTIF(AK24:AK38, ">=" & AK33) -> 9 | AM33: =RANK(AL33,AL24:AL38,1)+COUNTIF(AK24:AK33,AK33)-1 -> 9 | AQ33: 000-00-000-000-000 | AR33: =COUNTIF(AQ24:AQ38, ">=" & AQ33) -> 14 | AS33: =RANK(AR33,AR24:AR38,1)+COUNTIF(AQ24:AQ33,AQ33)-1 -> 9 | AW33: 000-00-000-000CV 10 | AX33: =COUNTIF(AW24:AW38, ">=" & AW33) -> 2 | AY33: =RANK(AX33,AX24:AX38,1)+COUNTIF(AW24:AW33,AW33)-1 -> 2 | BC33: 000-00SPK | BD33: =COUNTIF(BC24:BC38, ">=" & BC33) -> 5 | BE33: =RANK(BD33,BD24:BD38,1)+COUNTIF(BC24:BC33,BC33)-1 -> 5 | BI33: 000-00-000-000-000 | BJ33: =COUNTIF(BI24:BI38, ">=" & BI33) -> 15 | BK33: =RANK(BJ33,BJ24:BJ38,1)+COUNTIF(BI24:BI33,BI33)-1 -> 10 | BO33: 000-00-000-000-000 | BP33: =COUNTIF(BO24:BO38, ">=" & BO33) -> 15 | BQ33: =RANK(BP33,BP24:BP38,1)+COUNTIF(BO24:BO33,BO33)-1 -> 10 | BU33: 000-00-000-000-000 | BV33: =COUNTIF(BU24:BU38, ">=" & BU33) -> 15 | BW33: =RANK(BV33,BV24:BV38,1)+COUNTIF(BU24:BU33,BU33)-1 -> 15 | CA33: 000-00-000-000-000 | CB33: =COUNTIF(CA24:CA38, ">=" & CA33) -> 15 | CC33: =RANK(CB33,CB24:CB38,1)+COUNTIF(CA24:CA33,CA33)-1 -> 15 | CG33: 000-00-000-000-000 | CH33: =COUNTIF(CG24:CG38, ">=" & CG33) -> 15 | CI33: =RANK(CH33,CH24:CH38,1)+COUNTIF(CG24:CG33,CG33)-1 -> 10 | CM33: 000-00-000-000-000 | CN33: =COUNTIF(CM24:CM38, ">=" & CM33) -> 15 | CO33: =RANK(CN33,CN24:CN38,1)+COUNTIF(CM24:CM33,CM33)-1 -> 10 | CS33: 000-00-000-000-000 | CT33: =COUNTIF(CS24:CS38, ">=" & CS33) -> 15 | CU33: =RANK(CT33,CT24:CT38,1)+COUNTIF(CS24:CS33,CS33)-1 -> 10 | CY33: 000-00-000-000-000 | CZ33: =COUNTIF(CY24:CY38, ">=" & CY33) -> 15 | DA33: =RANK(CZ33,CZ24:CZ38,1)+COUNTIF(CY24:CY33,CY33)-1 -> 10 | DE33: 000-00-000-000-000 | DF33: =COUNTIF(DE24:DE38, ">=" & DE33) -> 15 | DG33: =RANK(DF33,DF24:DF38,1)+COUNTIF(DE24:DE33,DE33)-1 -> 10 | DK33: 000-00-000-000-000 | DL33: =COUNTIF(DK24:DK38, ">=" & DK33) -> 15 | DM33: =RANK(DL33,DL24:DL38,1)+COUNTIF(DK24:DK33,DK33)-1 -> 10 | DQ33: 000-00-000-000-000 | DR33: =COUNTIF(DQ24:DQ38, ">=" & DQ33) -> 15 | DS33: =RANK(DR33,DR24:DR38,1)+COUNTIF(DQ24:DQ33,DQ33)-1 -> 10 | DW33: 000-00-000-000-000 | DX33: =COUNTIF(DW24:DW38, ">=" & DW33) -> 15 | DY33: =RANK(DX33,DX24:DX38,1)+COUNTIF(DW24:DW33,DW33)-1 -> 10
A34: Gordon Central | AA34: a | AK34: 000-00-000-000-000 | AL34: =COUNTIF(AK24:AK38, ">=" & AK34) -> 15 | AM34: =RANK(AL34,AL24:AL38,1)+COUNTIF(AK24:AK34,AK34)-1 -> 11 | AQ34: 000-00-000-000-000 | AR34: =COUNTIF(AQ24:AQ38, ">=" & AQ34) -> 14 | AS34: =RANK(AR34,AR24:AR38,1)+COUNTIF(AQ24:AQ34,AQ34)-1 -> 10 | AW34: 000-00-000-000-000 | AX34: =COUNTIF(AW24:AW38, ">=" & AW34) -> 15 | AY34: =RANK(AX34,AX24:AX38,1)+COUNTIF(AW24:AW34,AW34)-1 -> 11 | BC34: 000-00-000-000-000 | BD34: =COUNTIF(BC24:BC38, ">=" & BC34) -> 15 | BE34: =RANK(BD34,BD24:BD38,1)+COUNTIF(BC24:BC34,BC34)-1 -> 11 | BI34: 000-00-000-000-000 | BJ34: =COUNTIF(BI24:BI38, ">=" & BI34) -> 15 | BK34: =RANK(BJ34,BJ24:BJ38,1)+COUNTIF(BI24:BI34,BI34)-1 -> 11 | BO34: 000-00-000-000-000 | BP34: =COUNTIF(BO24:BO38, ">=" & BO34) -> 15 | BQ34: =RANK(BP34,BP24:BP38,1)+COUNTIF(BO24:BO34,BO34)-1 -> 11 | BU34: 000-00-000-000CV 11 | BV34: =COUNTIF(BU24:BU38, ">=" & BU34) -> 5 | BW34: =RANK(BV34,BV24:BV38,1)+COUNTIF(BU24:BU34,BU34)-1 -> 5 | CA34: 000-00SPK | CB34: =COUNTIF(CA24:CA38, ">=" & CA34) -> 5 | CC34: =RANK(CB34,CB24:CB38,1)+COUNTIF(CA24:CA34,CA34)-1 -> 1 | CG34: 000-00-000-000-000 | CH34: =COUNTIF(CG24:CG38, ">=" & CG34) -> 15 | CI34: =RANK(CH34,CH24:CH38,1)+COUNTIF(CG24:CG34,CG34)-1 -> 11 | CM34: 000-00-000-000-000 | CN34: =COUNTIF(CM24:CM38, ">=" & CM34) -> 15 | CO34: =RANK(CN34,CN24:CN38,1)+COUNTIF(CM24:CM34,CM34)-1 -> 11 | CS34: 000-00-000-000-000 | CT34: =COUNTIF(CS24:CS38, ">=" & CS34) -> 15 | CU34: =RANK(CT34,CT24:CT38,1)+COUNTIF(CS24:CS34,CS34)-1 -> 11 | CY34: 000-00-000-000-000 | CZ34: =COUNTIF(CY24:CY38, ">=" & CY34) -> 15 | DA34: =RANK(CZ34,CZ24:CZ38,1)+COUNTIF(CY24:CY34,CY34)-1 -> 11 | DE34: 000-00-000-000-000 | DF34: =COUNTIF(DE24:DE38, ">=" & DE34) -> 15 | DG34: =RANK(DF34,DF24:DF38,1)+COUNTIF(DE24:DE34,DE34)-1 -> 11 | DK34: 000-00-000-000-000 | DL34: =COUNTIF(DK24:DK38, ">=" & DK34) -> 15 | DM34: =RANK(DL34,DL24:DL38,1)+COUNTIF(DK24:DK34,DK34)-1 -> 11 | DQ34: 000-00-000-000-000 | DR34: =COUNTIF(DQ24:DQ38, ">=" & DQ34) -> 15 | DS34: =RANK(DR34,DR24:DR38,1)+COUNTIF(DQ24:DQ34,DQ34)-1 -> 11 | DW34: 000-00-000-000-000 | DX34: =COUNTIF(DW24:DW38, ">=" & DW34) -> 15 | DY34: =RANK(DX34,DX24:DX38,1)+COUNTIF(DW24:DW34,DW34)-1 -> 11
A35: Etowah | AA35: b | AK35: 000-00-000-000-000 | AL35: =COUNTIF(AK24:AK38, ">=" & AK35) -> 15 | AM35: =RANK(AL35,AL24:AL38,1)+COUNTIF(AK24:AK35,AK35)-1 -> 12 | AQ35: 000-00-000-000-000 | AR35: =COUNTIF(AQ24:AQ38, ">=" & AQ35) -> 14 | AS35: =RANK(AR35,AR24:AR38,1)+COUNTIF(AQ24:AQ35,AQ35)-1 -> 11 | AW35: 000-00-000-000-000 | AX35: =COUNTIF(AW24:AW38, ">=" & AW35) -> 15 | AY35: =RANK(AX35,AX24:AX38,1)+COUNTIF(AW24:AW35,AW35)-1 -> 12 | BC35: 000-00-000-000-000 | BD35: =COUNTIF(BC24:BC38, ">=" & BC35) -> 15 | BE35: =RANK(BD35,BD24:BD38,1)+COUNTIF(BC24:BC35,BC35)-1 -> 12 | BI35: 000-00-000-000-000 | BJ35: =COUNTIF(BI24:BI38, ">=" & BI35) -> 15 | BK35: =RANK(BJ35,BJ24:BJ38,1)+COUNTIF(BI24:BI35,BI35)-1 -> 12 | BO35: 000-00-000-000-000 | BP35: =COUNTIF(BO24:BO38, ">=" & BO35) -> 15 | BQ35: =RANK(BP35,BP24:BP38,1)+COUNTIF(BO24:BO35,BO35)-1 -> 12 | BU35: 000-00-000-000CV 12 | BV35: =COUNTIF(BU24:BU38, ">=" & BU35) -> 4 | BW35: =RANK(BV35,BV24:BV38,1)+COUNTIF(BU24:BU35,BU35)-1 -> 4 | CA35: 000-00SPK | CB35: =COUNTIF(CA24:CA38, ">=" & CA35) -> 5 | CC35: =RANK(CB35,CB24:CB38,1)+COUNTIF(CA24:CA35,CA35)-1 -> 2 | CG35: 000-00-000-000-000 | CH35: =COUNTIF(CG24:CG38, ">=" & CG35) -> 15 | CI35: =RANK(CH35,CH24:CH38,1)+COUNTIF(CG24:CG35,CG35)-1 -> 12 | CM35: 000-00-000-000-000 | CN35: =COUNTIF(CM24:CM38, ">=" & CM35) -> 15 | CO35: =RANK(CN35,CN24:CN38,1)+COUNTIF(CM24:CM35,CM35)-1 -> 12 | CS35: 000-00-000-000-000 | CT35: =COUNTIF(CS24:CS38, ">=" & CS35) -> 15 | CU35: =RANK(CT35,CT24:CT38,1)+COUNTIF(CS24:CS35,CS35)-1 -> 12 | CY35: 000-00-000-000-000 | CZ35: =COUNTIF(CY24:CY38, ">=" & CY35) -> 15 | DA35: =RANK(CZ35,CZ24:CZ38,1)+COUNTIF(CY24:CY35,CY35)-1 -> 12 | DE35: 000-00-000-000-000 | DF35: =COUNTIF(DE24:DE38, ">=" & DE35) -> 15 | DG35: =RANK(DF35,DF24:DF38,1)+COUNTIF(DE24:DE35,DE35)-1 -> 12 | DK35: 000-00-000-000-000 | DL35: =COUNTIF(DK24:DK38, ">=" & DK35) -> 15 | DM35: =RANK(DL35,DL24:DL38,1)+COUNTIF(DK24:DK35,DK35)-1 -> 12 | DQ35: 000-00-000-000-000 | DR35: =COUNTIF(DQ24:DQ38, ">=" & DQ35) -> 15 | DS35: =RANK(DR35,DR24:DR38,1)+COUNTIF(DQ24:DQ35,DQ35)-1 -> 12 | DW35: 000-00-000-000-000 | DX35: =COUNTIF(DW24:DW38, ">=" & DW35) -> 15 | DY35: =RANK(DX35,DX24:DX38,1)+COUNTIF(DW24:DW35,DW35)-1 -> 12
A36: BYE | AA36: o | AK36: 000-00-000-000-000 | AL36: =COUNTIF(AK24:AK38, ">=" & AK36) -> 15 | AM36: =RANK(AL36,AL24:AL38,1)+COUNTIF(AK24:AK36,AK36)-1 -> 13 | AQ36: 000-00-000-000-000 | AR36: =COUNTIF(AQ24:AQ38, ">=" & AQ36) -> 14 | AS36: =RANK(AR36,AR24:AR38,1)+COUNTIF(AQ24:AQ36,AQ36)-1 -> 12 | AW36: 000-00-000-000-000 | AX36: =COUNTIF(AW24:AW38, ">=" & AW36) -> 15 | AY36: =RANK(AX36,AX24:AX38,1)+COUNTIF(AW24:AW36,AW36)-1 -> 13 | BC36: 000-00-000-000-000 | BD36: =COUNTIF(BC24:BC38, ">=" & BC36) -> 15 | BE36: =RANK(BD36,BD24:BD38,1)+COUNTIF(BC24:BC36,BC36)-1 -> 13 | BI36: 000-00-000-000-000 | BJ36: =COUNTIF(BI24:BI38, ">=" & BI36) -> 15 | BK36: =RANK(BJ36,BJ24:BJ38,1)+COUNTIF(BI24:BI36,BI36)-1 -> 13 | BO36: 000-00-000-000-000 | BP36: =COUNTIF(BO24:BO38, ">=" & BO36) -> 15 | BQ36: =RANK(BP36,BP24:BP38,1)+COUNTIF(BO24:BO36,BO36)-1 -> 13 | BU36: 000-00-000-000CV 13 | BV36: =COUNTIF(BU24:BU38, ">=" & BU36) -> 3 | BW36: =RANK(BV36,BV24:BV38,1)+COUNTIF(BU24:BU36,BU36)-1 -> 3 | CA36: 000-00SPK | CB36: =COUNTIF(CA24:CA38, ">=" & CA36) -> 5 | CC36: =RANK(CB36,CB24:CB38,1)+COUNTIF(CA24:CA36,CA36)-1 -> 3 | CG36: 000-00-000-000-000 | CH36: =COUNTIF(CG24:CG38, ">=" & CG36) -> 15 | CI36: =RANK(CH36,CH24:CH38,1)+COUNTIF(CG24:CG36,CG36)-1 -> 13 | CM36: 000-00-000-000-000 | CN36: =COUNTIF(CM24:CM38, ">=" & CM36) -> 15 | CO36: =RANK(CN36,CN24:CN38,1)+COUNTIF(CM24:CM36,CM36)-1 -> 13 | CS36: 000-00-000-000-000 | CT36: =COUNTIF(CS24:CS38, ">=" & CS36) -> 15 | CU36: =RANK(CT36,CT24:CT38,1)+COUNTIF(CS24:CS36,CS36)-1 -> 13 | CY36: 000-00-000-000-000 | CZ36: =COUNTIF(CY24:CY38, ">=" & CY36) -> 15 | DA36: =RANK(CZ36,CZ24:CZ38,1)+COUNTIF(CY24:CY36,CY36)-1 -> 13 | DE36: 000-00-000-000-000 | DF36: =COUNTIF(DE24:DE38, ">=" & DE36) -> 15 | DG36: =RANK(DF36,DF24:DF38,1)+COUNTIF(DE24:DE36,DE36)-1 -> 13 | DK36: 000-00-000-000-000 | DL36: =COUNTIF(DK24:DK38, ">=" & DK36) -> 15 | DM36: =RANK(DL36,DL24:DL38,1)+COUNTIF(DK24:DK36,DK36)-1 -> 13 | DQ36: 000-00-000-000-000 | DR36: =COUNTIF(DQ24:DQ38, ">=" & DQ36) -> 15 | DS36: =RANK(DR36,DR24:DR38,1)+COUNTIF(DQ24:DQ36,DQ36)-1 -> 13 | DW36: 000-00-000-000-000 | DX36: =COUNTIF(DW24:DW38, ">=" & DW36) -> 15 | DY36: =RANK(DX36,DX24:DX38,1)+COUNTIF(DW24:DW36,DW36)-1 -> 13
A37: Cherokee | AA37: v | AK37: 000-00-000-000-000 | AL37: =COUNTIF(AK24:AK38, ">=" & AK37) -> 15 | AM37: =RANK(AL37,AL24:AL38,1)+COUNTIF(AK24:AK37,AK37)-1 -> 14 | AQ37: 000-00-000-000-000 | AR37: =COUNTIF(AQ24:AQ38, ">=" & AQ37) -> 14 | AS37: =RANK(AR37,AR24:AR38,1)+COUNTIF(AQ24:AQ37,AQ37)-1 -> 13 | AW37: 000-00-000-000-000 | AX37: =COUNTIF(AW24:AW38, ">=" & AW37) -> 15 | AY37: =RANK(AX37,AX24:AX38,1)+COUNTIF(AW24:AW37,AW37)-1 -> 14 | BC37: 000-00-000-000-000 | BD37: =COUNTIF(BC24:BC38, ">=" & BC37) -> 15 | BE37: =RANK(BD37,BD24:BD38,1)+COUNTIF(BC24:BC37,BC37)-1 -> 14 | BI37: 000-00-000-000-000 | BJ37: =COUNTIF(BI24:BI38, ">=" & BI37) -> 15 | BK37: =RANK(BJ37,BJ24:BJ38,1)+COUNTIF(BI24:BI37,BI37)-1 -> 14 | BO37: 000-00-000-000-000 | BP37: =COUNTIF(BO24:BO38, ">=" & BO37) -> 15 | BQ37: =RANK(BP37,BP24:BP38,1)+COUNTIF(BO24:BO37,BO37)-1 -> 14 | BU37: 000-00-000-000CV 14 | BV37: =COUNTIF(BU24:BU38, ">=" & BU37) -> 2 | BW37: =RANK(BV37,BV24:BV38,1)+COUNTIF(BU24:BU37,BU37)-1 -> 2 | CA37: 000-00SPK | CB37: =COUNTIF(CA24:CA38, ">=" & CA37) -> 5 | CC37: =RANK(CB37,CB24:CB38,1)+COUNTIF(CA24:CA37,CA37)-1 -> 4 | CG37: 000-00-000-000-000 | CH37: =COUNTIF(CG24:CG38, ">=" & CG37) -> 15 | CI37: =RANK(CH37,CH24:CH38,1)+COUNTIF(CG24:CG37,CG37)-1 -> 14 | CM37: 000-00-000-000-000 | CN37: =COUNTIF(CM24:CM38, ">=" & CM37) -> 15 | CO37: =RANK(CN37,CN24:CN38,1)+COUNTIF(CM24:CM37,CM37)-1 -> 14 | CS37: 000-00-000-000-000 | CT37: =COUNTIF(CS24:CS38, ">=" & CS37) -> 15 | CU37: =RANK(CT37,CT24:CT38,1)+COUNTIF(CS24:CS37,CS37)-1 -> 14 | CY37: 000-00-000-000-000 | CZ37: =COUNTIF(CY24:CY38, ">=" & CY37) -> 15 | DA37: =RANK(CZ37,CZ24:CZ38,1)+COUNTIF(CY24:CY37,CY37)-1 -> 14 | DE37: 000-00-000-000-000 | DF37: =COUNTIF(DE24:DE38, ">=" & DE37) -> 15 | DG37: =RANK(DF37,DF24:DF38,1)+COUNTIF(DE24:DE37,DE37)-1 -> 14 | DK37: 000-00-000-000-000 | DL37: =COUNTIF(DK24:DK38, ">=" & DK37) -> 15 | DM37: =RANK(DL37,DL24:DL38,1)+COUNTIF(DK24:DK37,DK37)-1 -> 14 | DQ37: 000-00-000-000-000 | DR37: =COUNTIF(DQ24:DQ38, ">=" & DQ37) -> 15 | DS37: =RANK(DR37,DR24:DR38,1)+COUNTIF(DQ24:DQ37,DQ37)-1 -> 14 | DW37: 000-00-000-000-000 | DX37: =COUNTIF(DW24:DW38, ">=" & DW37) -> 15 | DY37: =RANK(DX37,DX24:DX38,1)+COUNTIF(DW24:DW37,DW37)-1 -> 14
A38: Lafayette | AA38: e | AK38: 000-00-000-000-000 | AL38: =COUNTIF(AK24:AK38, ">=" & AK38) -> 15 | AM38: =RANK(AL38,AL24:AL38,1)+COUNTIF(AK24:AK38,AK38)-1 -> 15 | AQ38: 000-00-000-000-000 | AR38: =COUNTIF(AQ24:AQ38, ">=" & AQ38) -> 14 | AS38: =RANK(AR38,AR24:AR38,1)+COUNTIF(AQ24:AQ38,AQ38)-1 -> 14 | AW38: 000-00-000-000-000 | AX38: =COUNTIF(AW24:AW38, ">=" & AW38) -> 15 | AY38: =RANK(AX38,AX24:AX38,1)+COUNTIF(AW24:AW38,AW38)-1 -> 15 | BC38: 000-00-000-000-000 | BD38: =COUNTIF(BC24:BC38, ">=" & BC38) -> 15 | BE38: =RANK(BD38,BD24:BD38,1)+COUNTIF(BC24:BC38,BC38)-1 -> 15 | BI38: 000-00-000-000-000 | BJ38: =COUNTIF(BI24:BI38, ">=" & BI38) -> 15 | BK38: =RANK(BJ38,BJ24:BJ38,1)+COUNTIF(BI24:BI38,BI38)-1 -> 15 | BO38: 000-00-000-000-000 | BP38: =COUNTIF(BO24:BO38, ">=" & BO38) -> 15 | BQ38: =RANK(BP38,BP24:BP38,1)+COUNTIF(BO24:BO38,BO38)-1 -> 15 | BU38: 000-00-000-000CV15 | BV38: =COUNTIF(BU24:BU38, ">=" & BU38) -> 1 | BW38: =RANK(BV38,BV24:BV38,1)+COUNTIF(BU24:BU38,BU38)-1 -> 1 | CA38: 000-00SPK | CB38: =COUNTIF(CA24:CA38, ">=" & CA38) -> 5 | CC38: =RANK(CB38,CB24:CB38,1)+COUNTIF(CA24:CA38,CA38)-1 -> 5 | CG38: 000-00-000-000-000 | CH38: =COUNTIF(CG24:CG38, ">=" & CG38) -> 15 | CI38: =RANK(CH38,CH24:CH38,1)+COUNTIF(CG24:CG38,CG38)-1 -> 15 | CM38: 000-00-000-000-000 | CN38: =COUNTIF(CM24:CM38, ">=" & CM38) -> 15 | CO38: =RANK(CN38,CN24:CN38,1)+COUNTIF(CM24:CM38,CM38)-1 -> 15 | CS38: 000-00-000-000-000 | CT38: =COUNTIF(CS24:CS38, ">=" & CS38) -> 15 | CU38: =RANK(CT38,CT24:CT38,1)+COUNTIF(CS24:CS38,CS38)-1 -> 15 | CY38: 000-00-000-000-000 | CZ38: =COUNTIF(CY24:CY38, ">=" & CY38) -> 15 | DA38: =RANK(CZ38,CZ24:CZ38,1)+COUNTIF(CY24:CY38,CY38)-1 -> 15 | DE38: 000-00-000-000-000 | DF38: =COUNTIF(DE24:DE38, ">=" & DE38) -> 15 | DG38: =RANK(DF38,DF24:DF38,1)+COUNTIF(DE24:DE38,DE38)-1 -> 15 | DK38: 000-00-000-000-000 | DL38: =COUNTIF(DK24:DK38, ">=" & DK38) -> 15 | DM38: =RANK(DL38,DL24:DL38,1)+COUNTIF(DK24:DK38,DK38)-1 -> 15 | DQ38: 000-00-000-000-000 | DR38: =COUNTIF(DQ24:DQ38, ">=" & DQ38) -> 15 | DS38: =RANK(DR38,DR24:DR38,1)+COUNTIF(DQ24:DQ38,DQ38)-1 -> 15 | DW38: 000-00-000-000-000 | DX38: =COUNTIF(DW24:DW38, ">=" & DW38) -> 15 | DY38: =RANK(DX38,DX24:DX38,1)+COUNTIF(DW24:DW38,DW38)-1 -> 15
A39: @ Dalton | AH39: =IF((OR(AA4="Forfeit",AA4="Win")),0,SUMIFS(AH4:AH18,AM24:AM38,"<=4")) -> 1165 | AI39: =IF((OR(AA4="Forfeit",AA4="Win")),0,SUMIFS(AI4:AI18,AM24:AM38,"<=4")) -> 36 | AJ39: =IF((OR(AA4="Forfeit",AA4="Win")),0,SUMIFS(AJ4:AJ18, AM24:AM38, "<=4")) -> 384.5 | AK39: =IF((OR(AA4="Forfeit",AA4="Win")),0,SUMIFS(AK4:AK18, AM24:AM38, "<=4")) -> 398.5 | AL39: =IF((OR(AA4="Forfeit",AA4="Win")),0,SUMIFS(AL4:AL18, AM24:AM38, "<=4")) -> 382 | AN39: =IF((OR(AA5="Forfeit",AA5="Win")),0,SUMIFS(AN4:AN18,AS24:AS38,"<=4")) -> 1119 | AO39: =IF((OR(AA5="Forfeit",AA5="Win")),0,SUMIFS(AO4:AO18,AS24:AS38,"<=4")) -> 44 | AP39: =IF((OR(AA5="Forfeit",AA5="Win")),0,SUMIFS(AP4:AP18, AS24:AS38, "<=4")) -> 376 | AQ39: =IF((OR(AA5="Forfeit",AA5="Win")),0,SUMIFS(AQ4:AQ18, AS24:AS38, "<=4")) -> 390 | AR39: =IF((OR(AA5="Forfeit",AA5="Win")),0,SUMIFS(AR4:AR18, AS24:AS38, "<=4")) -> 353 | AT39: =IF((OR(AA6="Forfeit",AA6="Win")),0,SUMIFS(AT4:AT18,AY24:AY38,"<=4")) -> 0 | AU39: =IF((OR(AA6="Forfeit",AA6="Win")),0,SUMIFS(AU4:AU18,AY24:AY38,"<=4")) -> 0 | AV39: =IF((OR(AA6="Forfeit",AA6="Win")),0,SUMIFS(AV4:AV18, AY24:AY38, "<=4")) -> 0 | AW39: =IF((OR(AA6="Forfeit",AA6="Win")),0,SUMIFS(AW4:AW18, AY24:AY38, "<=4")) -> 0 | AX39: =IF((OR(AA6="Forfeit",AA6="Win")),0,SUMIFS(AX4:AX18, AY24:AY38, "<=4")) -> 0 | AZ39: =IF((OR(AA7="Forfeit",AA7="Win")),0,SUMIFS(AZ4:AZ18,BE24:BE38,"<=4")) -> 0 | BA39: =IF((OR(AA7="Forfeit",AA7="Win")),0,SUMIFS(BA4:BA18,BE24:BE38,"<=4")) -> 0 | BB39: =IF((OR(AA7="Forfeit",AA7="Win")),0,SUMIFS(BB4:BB18, BE24:BE38, "<=4")) -> 0 | BC39: =IF((OR(AA7="Forfeit",AA7="Win")),0,SUMIFS(BC4:BC18, BE24:BE38, "<=4")) -> 0 | BD39: =IF((OR(AA7="Forfeit",AA7="Win")),0,SUMIFS(BD4:BD18, BE24:BE38, "<=4")) -> 0 | BF39: =IF((OR(AA8="Forfeit",AA8="Win")),0,SUMIFS(BF4:BF18,BK24:BK38,"<=4")) -> 0 | BG39: =IF((OR(AA8="Forfeit",AA8="Win")),0,SUMIFS(BG4:BG18,BK24:BK38,"<=4")) -> 0 | BH39: =IF((OR(AA8="Forfeit",AA8="Win")),0,SUMIFS(BH4:BH18, BK24:BK38, "<=4")) -> 0 | BI39: =IF((OR(AA8="Forfeit",AA8="Win")),0,SUMIFS(BI4:BI18, BK24:BK38, "<=4")) -> 0 | BJ39: =IF((OR(AA8="Forfeit",AA8="Win")),0,SUMIFS(BJ4:BJ18, BK24:BK38, "<=4")) -> 0 | BL39: =IF((OR(AA9="Forfeit",AA9="Win")),0,SUMIFS(BL4:BL18,BQ24:BQ38,"<=4")) -> 0 | BM39: =IF((OR(AA9="Forfeit",AA9="Win")),0,SUMIFS(BM4:BM18,BQ24:BQ38,"<=4")) -> 0 | BN39: =IF((OR(AA9="Forfeit",AA9="Win")),0,SUMIFS(BN4:BN18, BQ24:BQ38, "<=4")) -> 0 | BO39: =IF((OR(AA9="Forfeit",AA9="Win")),0,SUMIFS(BO4:BO18, BQ24:BQ38, "<=4")) -> 0 | BP39: =IF((OR(AA9="Forfeit",AA9="Win")),0,SUMIFS(BP4:BP18, BQ24:BQ38, "<=4")) -> 0 | BR39: =IF((OR(AA10="Forfeit",AA10="Win")),0,SUMIFS(BR4:BR18,BW24:BW38,"<=4")) -> 0 | BS39: =IF((OR(AA10="Forfeit",AA10="Win")),0,SUMIFS(BS4:BS18,BW24:BW38,"<=4")) -> 0 | BT39: =IF((OR(AA10="Forfeit",AA10="Win")),0,SUMIFS(BT4:BT18, BW24:BW38, "<=4")) -> 0 | BU39: =IF((OR(AA10="Forfeit",AA10="Win")),0,SUMIFS(BU4:BU18, BW24:BW38, "<=4")) -> 0 | BV39: =IF((OR(AA10="Forfeit",AA10="Win")),0,SUMIFS(BV4:BV18, BW24:BW38, "<=4")) -> 0 | BX39: =IF((OR(AA11="Forfeit",AA11="Win")),0,SUMIFS(BX4:BX18,CC24:CC38,"<=4")) -> 0 | BY39: =IF((OR(AA11="Forfeit",AA11="Win")),0,SUMIFS(BY4:BY18,CC24:CC38,"<=4")) -> 0 | BZ39: =IF((OR(AA11="Forfeit",AA11="Win")),0,SUMIFS(BZ4:BZ18, CC24:CC38, "<=4")) -> 0 | CA39: =IF((OR(AA11="Forfeit",AA11="Win")),0,SUMIFS(CA4:CA18, CC24:CC38, "<=4")) -> 0 | CB39: =IF((OR(AA11="Forfeit",AA11="Win")),0,SUMIFS(CB4:CB18, CC24:CC38, "<=4")) -> 0 | CD39: =IF((OR(AA12="Forfeit",AA12="Win")),0,SUMIFS(CD4:CD18,CI24:CI38,"<=4")) -> 0 | CE39: =IF((OR(AA12="Forfeit",AA12="Win")),0,SUMIFS(CE4:CE18,CI24:CI38,"<=4")) -> 0 | CF39: =IF((OR(AA12="Forfeit",AA12="Win")),0,SUMIFS(CF4:CF18, CI24:CI38, "<=4")) -> 0 | CG39: =IF((OR(AA12="Forfeit",AA12="Win")),0,SUMIFS(CG4:CG18, CI24:CI38, "<=4")) -> 0 | CH39: =IF((OR(AA12="Forfeit",AA12="Win")),0,SUMIFS(CH4:CH18, CI24:CI38, "<=4")) -> 0 | CJ39: =IF((OR(AA13="Forfeit",AA13="Win")),0,SUMIFS(CJ4:CJ18,CO24:CO38,"<=4")) -> 0 | CK39: =IF((OR(AA13="Forfeit",AA13="Win")),0,SUMIFS(CK4:CK18,CO24:CO38,"<=4")) -> 0 | CL39: =IF((OR(AA13="Forfeit",AA13="Win")),0,SUMIFS(CL4:CL18, CO24:CO38, "<=4")) -> 0 | CM39: =IF((OR(AA13="Forfeit",AA13="Win")),0,SUMIFS(CM4:CM18, CO24:CO38, "<=4")) -> 0 | CN39: =IF((OR(AA13="Forfeit",AA13="Win")),0,SUMIFS(CN4:CN18, CO24:CO38, "<=4")) -> 0 | CP39: =IF((OR(AA14="Forfeit",AA14="Win")),0,SUMIFS(CP4:CP18,CU24:CU38,"<=4")) -> 0 | CQ39: =IF((OR(AA14="Forfeit",AA14="Win")),0,SUMIFS(CQ4:CQ18,CU24:CU38,"<=4")) -> 0 | CR39: =IF((OR(AA14="Forfeit",AA14="Win")),0,SUMIFS(CR4:CR18, CU24:CU38, "<=4")) -> 0 | CS39: =IF((OR(AA14="Forfeit",AA14="Win")),0,SUMIFS(CS4:CS18, CU24:CU38, "<=4")) -> 0 | CT39: =IF((OR(AA14="Forfeit",AA14="Win")),0,SUMIFS(CT4:CT18, CU24:CU38, "<=4")) -> 0 | CV39: =IF((OR(AA15="Forfeit",AA15="Win")),0,SUMIFS(CV4:CV18,DA24:DA38,"<=4")) -> 0 | CW39: =IF((OR(AA15="Forfeit",AA15="Win")),0,SUMIFS(CW4:CW18,DA24:DA38,"<=4")) -> 0 | CX39: =IF((OR(AA15="Forfeit",AA15="Win")),0,SUMIFS(CX4:CX18, DA24:DA38, "<=4")) -> 0 | CY39: =IF((OR(AA15="Forfeit",AA15="Win")),0,SUMIFS(CY4:CY18, DA24:DA38, "<=4")) -> 0 | CZ39: =IF((OR(AA15="Forfeit",AA15="Win")),0,SUMIFS(CZ4:CZ18, DA24:DA38, "<=4")) -> 0 | DB39: =IF((OR(AA16="Forfeit",AA16="Win")),0,SUMIFS(DB4:DB18,DG24:DG38,"<=4")) -> 0 | DC39: =IF((OR(AA16="Forfeit",AA16="Win")),0,SUMIFS(DC4:DC18,DG24:DG38,"<=4")) -> 0 | DD39: =IF((OR(AA16="Forfeit",AA16="Win")),0,SUMIFS(DD4:DD18, DG24:DG38, "<=4")) -> 0 | DE39: =IF((OR(AA16="Forfeit",AA16="Win")),0,SUMIFS(DE4:DE18, DG24:DG38, "<=4")) -> 0 | DF39: =IF((OR(AA16="Forfeit",AA16="Win")),0,SUMIFS(DF4:DF18, DG24:DG38, "<=4")) -> 0 | DH39: =IF((OR(AA17="Forfeit",AA17="Win")),0,SUMIFS(DH4:DH18,DM24:DM38,"<=4")) -> 0 | DI39: =IF((OR(AA17="Forfeit",AA17="Win")),0,SUMIFS(DI4:DI18,DM24:DM38,"<=4")) -> 0 | DJ39: =IF((OR(AA17="Forfeit",AA17="Win")),0,SUMIFS(DJ4:DJ18, DM24:DM38, "<=4")) -> 0 | DK39: =IF((OR(AA17="Forfeit",AA17="Win")),0,SUMIFS(DK4:DK18, DM24:DM38, "<=4")) -> 0 | DL39: =IF((OR(AA17="Forfeit",AA17="Win")),0,SUMIFS(DL4:DL18, DM24:DM38, "<=4")) -> 0 | DN39: =IF((OR(AA18="Forfeit",AA18="Win")),0,SUMIFS(DN4:DN18,DS24:DS38,"<=4")) -> 0 | DO39: =IF((OR(AA18="Forfeit",AA18="Win")),0,SUMIFS(DO4:DO18,DS24:DS38,"<=4")) -> 0 | DP39: =IF((OR(AA18="Forfeit",AA18="Win")),0,SUMIFS(DP4:DP18,DS24:DS38,"<=4")) -> 0 | DQ39: =IF((OR(AA18="Forfeit",AA18="Win")),0,SUMIFS(DQ4:DQ18,DS24:DS38,"<=4")) -> 0 | DR39: =IF((OR(AA18="Forfeit",AA18="Win")),0,SUMIFS(DR4:DR18,DS24:DS38,"<=4")) -> 0 | DT39: =IF((OR(AA19="Forfeit",AA19="Win")),0,SUMIFS(DT4:DT18,DY24:DY38,"<=4")) -> 0 | DU39: =IF((OR(AA19="Forfeit",AA19="Win")),0,SUMIFS(DU4:DU18,DY24:DY38,"<=4")) -> 0 | DV39: =IF((OR(AA19="Forfeit",AA19="Win")),0,SUMIFS(DV4:DV18,DY24:DY38,"<=4")) -> 0 | DW39: =IF((OR(AA19="Forfeit",AA19="Win")),0,SUMIFS(DW4:DW18,DY24:DY38,"<=4")) -> 0 | DX39: =IF((OR(AA19="Forfeit",AA19="Win")),0,SUMIFS(DX4:DX18,DY24:DY38,"<=4")) -> 0
A40: Woodstock
A41: @ Ridgeland
A42: @ Alatoona
A43: @ Gordon Central
A44: @ Etowah
A45: BYE
A46: Area Sectional/Playoff
A47: Area Championship
A48: Average | B48: =IF(SUM(B28:B47)=0,0,AVERAGE(B28:B47)) -> 0 | C48: =IF(SUM(C28:C47)=0,0,AVERAGE(C28:C47)) -> 0 | D48: =IF(SUM(D28:D47)=0,0,AVERAGE(D28:D47)) -> 0 | E48: =IF(SUM(E28:E47)=0,0,AVERAGE(E28:E47)) -> 0 | G48: =IF(SUM(G28:G47)=0,0,AVERAGE(G28:G47)) -> 0 | H48: =IF(SUM(H28:H47)=0,0,AVERAGE(H28:H47)) -> 0 | I48: =IF(SUM(I28:I47)=0,0,AVERAGE(I28:I47)) -> 0 | J48: =IF(SUM(J28:J47)=0,0,AVERAGE(J28:J47)) -> 0 | L48: =IF(SUM(L28:L47)=0,0,AVERAGE(L28:L47)) -> 0 | M48: =IF(SUM(M28:M47)=0,0,AVERAGE(M28:M47)) -> 0 | N48: =IF(SUM(N28:N47)=0,0,AVERAGE(N28:N47)) -> 0 | O48: =IF(SUM(O28:O47)=0,0,AVERAGE(O28:O47)) -> 0 | Q48: =IF(SUM(Q28:Q47)=0,0,AVERAGE(Q28:Q47)) -> 0 | R48: =IF(SUM(R28:R47)=0,0,AVERAGE(R28:R47)) -> 0 | S48: =IF(SUM(S28:S47)=0,0,AVERAGE(S28:S47)) -> 0 | T48: =IF(SUM(T28:T47)=0,0,AVERAGE(T28:T47)) -> 0 | V48: =IF(SUM(V28:V47)=0,0,AVERAGE(V28:V47)) -> 0 | W48: =IF(SUM(W28:W47)=0,0,AVERAGE(W28:W47)) -> 0 | X48: =IF(SUM(X28:X47)=0,0,AVERAGE(X28:X47)) -> 0 | Y48: =IF(SUM(Y28:Y47)=0,0,AVERAGE(Y28:Y47)) -> 0
AC49: =A25 -> CV
A50: Cartersville | B50: CV 11 | G50: CV 12 | L50: CV 13 | Q50: CV 14 | V50: CV15 | AC50: =B42 -> 0 | AD50: =G42 -> 0 | AE50: =L42 -> 0 | AF50: =Q42 -> 0 | AG50: =V42 -> 0
A51: VS | B51: K | C51: P | D51: S | E51: AGGR | F51: *10 | G51: K | H51: P | I51: S | J51: AGGR | K51: *10 | L51: K | M51: P | N51: S | O51: AGGR | P51: *10 | Q51: K | R51: P | S51: S | T51: AGGR | U51: *10 | V51: K | W51: P | X51: S | Y51: AGGR | Z51: *10 | AC51: =IF(SUM(E44:E59)>0,LARGE(E44:E59,1),0) -> 0 | AD51: =IF(SUM(J44:J59)>0,LARGE(J44:J59,1),0) -> 0 | AE51: =IF(SUM(O44:O59)>0,LARGE(O44:O59,1),0) -> 0 | AF51: =IF(SUM(T44:T59)>0,LARGE(T44:T59,1),0) -> 0 | AG51: =IF(SUM(Y44:Y59)>0,LARGE(Y44:Y59,1),0) -> 0
A52: @ Cherokee | E52: =IF(SUM(B52:D52)>0,SUM(B52:D52),"") ->  | J52: =IF(SUM(G52:I52)>0,SUM(G52:I52),"") ->  | O52: =IF(SUM(L52:N52)>0,SUM(L52:N52),"") ->  | T52: =IF(SUM(Q52:S52)>0,SUM(Q52:S52),"") ->  | Y52: =IF(SUM(V52:X52)>0,SUM(V52:X52),"") -> 
A53: @LaFayette
A54: Dalton | AA54: s
A55: @Woodstock | AA55: e
A56: Ridgeland | AA56: e
A57: Allatoona
A58: Gordon Central | AA58: a
A59: Etowah | AA59: b
A60: BYE | AA60: o
A61: Cherokee | AA61: v
A62: Lafayette | AA62: e
A63: @ Dalton
A64: Woodstock
A65: @ Ridgeland
A66: @ Alatoona
A67: @ Gordon Central
A68: @ Etowah
A69: BYE
A70: Area Sectional/Playoff
A71: Area Championship
A72: Average | B72: =IF(SUM(B52:B71)=0,0,AVERAGE(B52:B71)) -> 0 | C72: =IF(SUM(C52:C71)=0,0,AVERAGE(C52:C71)) -> 0 | D72: =IF(SUM(D52:D71)=0,0,AVERAGE(D52:D71)) -> 0 | E72: =IF(SUM(E52:E71)=0,0,AVERAGE(E52:E71)) -> 0 | G72: =IF(SUM(G52:G71)=0,0,AVERAGE(G52:G71)) -> 0 | H72: =IF(SUM(H52:H71)=0,0,AVERAGE(H52:H71)) -> 0 | I72: =IF(SUM(I52:I71)=0,0,AVERAGE(I52:I71)) -> 0 | J72: =IF(SUM(J52:J71)=0,0,AVERAGE(J52:J71)) -> 0 | L72: =IF(SUM(L52:L71)=0,0,AVERAGE(L52:L71)) -> 0 | M72: =IF(SUM(M52:M71)=0,0,AVERAGE(M52:M71)) -> 0 | N72: =IF(SUM(N52:N71)=0,0,AVERAGE(N52:N71)) -> 0 | O72: =IF(SUM(O52:O71)=0,0,AVERAGE(O52:O71)) -> 0 | Q72: =IF(SUM(Q52:Q71)=0,0,AVERAGE(Q52:Q71)) -> 0 | R72: =IF(SUM(R52:R71)=0,0,AVERAGE(R52:R71)) -> 0 | S72: =IF(SUM(S52:S71)=0,0,AVERAGE(S52:S71)) -> 0 | T72: =IF(SUM(T52:T71)=0,0,AVERAGE(T52:T71)) -> 0 | V72: =IF(SUM(V52:V71)=0,0,AVERAGE(V52:V71)) -> 0 | W72: =IF(SUM(W52:W71)=0,0,AVERAGE(W52:W71)) -> 0 | X72: =IF(SUM(X52:X71)=0,0,AVERAGE(X52:X71)) -> 0 | Y72: =IF(SUM(Y52:Y71)=0,0,AVERAGE(Y52:Y71)) -> 0
AC74: =A98 -> CK
A75: Cherokee | B75: Crane, Thomas (12) | G75: Matiak, Ayva (11) | L75: Hood, Lily (11) | Q75: Semones, Katelyn (11) | V75: Divver, Derek (10) | AA75: MATCH | AC75: =B75 -> Crane, Thomas (12) | AD75: =G75 -> Matiak, Ayva (11) | AE75: =L75 -> Hood, Lily (11) | AF75: =Q75 -> Semones, Katelyn (11) | AG75: =V75 -> Divver, Derek (10) | AH75: Match 1 | AM75: RK | AN75: Match 2 | AS75: RK | AT75: Match 3 | AY75: RK | AZ75: Match 4 | BE75: RK | BF75: Match 5 | BK75: RK | BL75: Match 6 | BQ75: RK | BR75: Match 7 | BW75: RK | BX75: Match 8 | CC75: RK | CD75: Match 9 | CI75: RK | CJ75: Match 10 | CO75: RK | CP75: Match 11 | CU75: RK | CV75: Match 12 | DA75: RK | DB75: Match 13 | DG75: RK | DH75: Match 14 | DM75: RK | DN75: Area Sectional/Playoff | DS75: RK | DT75: Area Championship | DY75: RK | DZ75: AGGR | EA75: Kneeling | EB75: Prone | EC75: Standing
A76: VS | B76: K | C76: P | D76: S | E76: AGGR | F76: *10 | G76: K | H76: P | I76: S | J76: AGGR | K76: *10 | L76: K | M76: P | N76: S | O76: AGGR | P76: *10 | Q76: K | R76: P | S76: S | T76: AGGR | U76: *10 | V76: K | W76: P | X76: S | Y76: AGGR | Z76: *10 | AA76: SCORE | AB76: *10 | AC76: =IF(SUM(E77:E92)>0,LARGE(E77:E92,1),0) -> 277 | AD76: =IF(SUM(J77:J92)>0,LARGE(J77:J92,1),0) -> 276 | AE76: =IF(SUM(O77:O92)>0,LARGE(O77:O92,1),0) -> 285 | AF76: =IF(SUM(T77:T92)>0,LARGE(T77:T92,1),0) -> 277 | AG76: =IF(SUM(Y77:Y92)>0,LARGE(Y77:Y92,1),0) -> 272 | AH76: AGGR | AI76: *10 | AJ76: K | AK76: P | AL76: S | AN76: AGGR | AO76: *10 | AP76: K | AQ76: P | AR76: S | AT76: AGGR | AU76: *10 | AV76: K | AW76: P | AX76: S | AZ76: AGGR | BA76: *10 | BB76: K | BC76: P | BD76: S | BF76: AGGR | BG76: *10 | BH76: K | BI76: P | BJ76: S | BL76: AGGR | BM76: *10 | BN76: K | BO76: P | BP76: S | BR76: AGGR | BS76: *10 | BT76: K | BU76: P | BV76: S | BX76: AGGR | BY76: *10 | BZ76: K | CA76: P | CB76: S | CD76: AGGR | CE76: *10 | CF76: K | CG76: P | CH76: S | CJ76: AGGR | CK76: *10 | CL76: K | CM76: P | CN76: S | CP76: AGGR | CQ76: *10 | CR76: K | CS76: P | CT76: S | CV76: AGGR | CW76: *10 | CX76: K | CY76: P | CZ76: S | DB76: AGGR | DC76: *10 | DD76: K | DE76: P | DF76: S | DH76: AGGR | DI76: *10 | DJ76: K | DK76: P | DL76: S | DN76: AGGR | DO76: *10 | DP76: K | DQ76: P | DR76: S | DT76: AGGR | DU76: *10 | DV76: K | DW76: P | DX76: S | DZ76: Large | EA76: Large | EB76: Large | EC76: Large
A77: Cartersville | B77: 95 | C77: 96 | D77: 86 | E77: =IF(SUM(B77:D77)>0,SUM(B77:D77),"") -> 277 | F77: 11 | G77: 93 | H77: 95 | I77: 88 | J77: =IF(SUM(G77:I77)>0,SUM(G77:I77),"") -> 276 | K77: 5 | L77: 93 | M77: 98 | N77: 94 | O77: =IF(SUM(L77:N77)>0,SUM(L77:N77),"") -> 285 | P77: 13 | Q77: 97 | R77: 93 | S77: 87 | T77: =IF(SUM(Q77:S77)>0,SUM(Q77:S77),"") -> 277 | U77: 9 | V77: 90 | W77: 98 | X77: 84 | Y77: =IF(SUM(V77:X77)>0,SUM(V77:X77),"") -> 272 | Z77: 6 | AA77: =IF(SUM(E77,J77,O77,T77,Y77,Y101,T101,O101,J101,E101,E125,J125,O125,T125,Y125)>0,(LARGE((E77,J77,O77,T77,Y77,Y101,T101,O101,J101,E101,E125,J125,O125,T125,Y125),1)+LARGE((E77,J77,O77,T77,Y77,Y101,T101,O101,J101,E101,E125,J125,O125,T125,Y125),2)+LARGE((E77,J77,O77,T77,Y77,Y101,T101,O101,J101,E101,E125,J125,O125,T125,Y125),3)+LARGE((E77,J77,O77,T77,Y77,Y101,T101,O101,J101,E101,E125,J125,O125,T125,Y125),4)),"") -> 1115 | AB77: 38 | AH77: =IF(SUM(B77:D77)>0,SUM(B77:D77),0) -> 277 | AI77: =IF(SUM(F77)>0,SUM(F77),0) -> 11 | AJ77: =B77 -> 95 | AK77: =C77 -> 96 | AL77: =D77 -> 86 | AN77: =IF(SUM(B78:D78)>0,SUM(B78:D78),0) -> 0 | AO77: =IF(SUM(F78)>0,SUM(F78),0) -> 0 | AP77: =B78 -> 0 | AQ77: =C78 -> 0 | AR77: =D78 -> 0 | AT77: =IF(SUM(B79:D79)>0,SUM(B79:D79),0) -> 0 | AU77: =IF(SUM(F79)>0,SUM(F79),0) -> 0 | AV77: =B79 -> 0 | AW77: =C79 -> 0 | AX77: =D79 -> 0 | AZ77: =IF(SUM(B80:D80)>0,SUM(B80:D80),0) -> 0 | BA77: =IF(SUM(F80)>0,SUM(F80),0) -> 0 | BB77: =B80 -> 0 | BC77: =C80 -> 0 | BD77: =D80 -> 0 | BF77: =IF(SUM(B81:D81)>0,SUM(B81:D81),0) -> 0 | BG77: =IF(SUM(F81)>0,SUM(F81),0) -> 0 | BH77: =B81 -> 0 | BI77: =C81 -> 0 | BJ77: =D81 -> 0 | BL77: =IF(SUM(B82:D82)>0,SUM(B82:D82),0) -> 0 | BM77: =IF(SUM(F82)>0,SUM(F82),0) -> 0 | BN77: =B82 -> 0 | BO77: =C82 -> 0 | BP77: =D82 -> 0 | BR77: =IF(SUM(B83:D83)>0,SUM(B83:D83),0) -> 0 | BS77: =IF(SUM(F83)>0,SUM(F83),0) -> 0 | BT77: =B83 -> 0 | BU77: =C83 -> 0 | BV77: =D83 -> 0 | BX77: =IF(SUM(B84:D84)>0,SUM(B84:D84),0) -> 0 | BY77: =IF(SUM(F84)>0,SUM(F84),0) -> 0 | BZ77: =B84 -> 0 | CA77: =C84 -> 0 | CB77: =D84 -> 0 | CD77: =IF(SUM(B85:D85)>0,SUM(B85:D85),0) -> 0 | CE77: =IF(SUM(F85)>0,SUM(F85),0) -> 0 | CF77: =B85 -> 0 | CG77: =C85 -> 0 | CH77: =D85 -> 0 | CJ77: =IF(SUM(B86:D86)>0,SUM(B86:D86),0) -> 0 | CK77: =IF(SUM(F86)>0,SUM(F86),0) -> 0 | CL77: =B86 -> 0 | CM77: =C86 -> 0 | CN77: =D86 -> 0 | CP77: =IF(SUM(B87:D87)>0,SUM(B87:D87),0) -> 0 | CQ77: =IF(SUM(F87)>0,SUM(F87),0) -> 0 | CR77: =B87 -> 0 | CS77: =C87 -> 0 | CT77: =D87 -> 0 | CV77: =IF(SUM(B88:D88)>0,SUM(B88:D88),0) -> 0 | CW77: =IF(SUM(F88)>0,SUM(F88),0) -> 0 | CX77: =B88 -> 0 | CY77: =C88 -> 0 | CZ77: =D88 -> 0 | DB77: =IF(SUM(B89:D89)>0,SUM(B89:D89),0) -> 0 | DC77: =IF(SUM(F89)>0,SUM(F89),0) -> 0 | DD77: =B89 -> 0 | DE77: =C89 -> 0 | DF77: =D89 -> 0 | DH77: =IF(SUM(B90:D90)>0,SUM(B90:D90),0) -> 0 | DI77: =IF(SUM(F90)>0,SUM(F90),0) -> 0 | DJ77: =B90 -> 0 | DK77: =C90 -> 0 | DL77: =D90 -> 0 | DN77: =IF(SUM(B91:D91)>0,SUM(B91:D91),0) -> 0 | DO77: =IF(SUM(F91)>0,SUM(F91),0) -> 0 | DP77: =B91 -> 0 | DQ77: =C91 -> 0 | DR77: =D91 -> 0 | DT77: =IF(SUM(B92:D92)>0,SUM(B92:D92),0) -> 0 | DU77: =IF(SUM(F92)>0,SUM(F92),0) -> 0 | DV77: =B92 -> 0 | DW77: =C92 -> 0 | DX77: =D92 -> 0 | DZ77: =LARGE((DT77,DN77,DH77,DB77,CV77,CP77,CJ77,CD77,BX77,BR77,BL77,BF77,AZ77,AT77,AN77,AH77),1) -> 277 | EA77: =LARGE((AJ77,AP77,AV77,BB77,BH77,BN77,BT77,BZ77,CF77,CL77,CR77,CX77,DD77,DJ77,DP77,DV77),1) -> 95 | EB77: =LARGE((AK77,AQ77,AW77,BC77,BI77,BO77,BU77,CA77,CG77,CM77,CS77,CY77,DE77,DK77,DQ77,DW77),1) -> 96 | EC77: =LARGE((AL77,AR77,AX77,BD77,BJ77,BP77,BV77,CB77,CH77,CN77,CT77,CZ77,DF77,DL77,DR77,DX77),1) -> 86
A78: Gordon Central | AA78: =IF(SUM(E78,J78,O78,T78,Y78,Y102,T102,O102,J102,E102,E126,J126,O126,T126,Y126)>0,(LARGE((E78,J78,O78,T78,Y78,Y102,T102,O102,J102,E102,E126,J126,O126,T126,Y126),1)+LARGE((E78,J78,O78,T78,Y78,Y102,T102,O102,J102,E102,E126,J126,O126,T126,Y126),2)+LARGE((E78,J78,O78,T78,Y78,Y102,T102,O102,J102,E102,E126,J126,O126,T126,Y126),3)+LARGE((E78,J78,O78,T78,Y78,Y102,T102,O102,J102,E102,E126,J126,O126,T126,Y126),4)),"") ->  | AB78: =IF(SUM(E78,J78,O78,T78,Y78,Y102,T102,O102,J102,E102,E126,J126,O126,T126,Y126)>0, LARGE((E78,J78,O78,T78,Y78,Y102,T102,O102,J102,E102,E126,J126,O126,T126,Y126),1+LARGE((E78,J78,O78,T78,Y78,Y102,T102,O102,J102,E102,E126,J126,O126,T126,Y126),2)+LARGE((E78,J78,O78,T78,Y78,Y102,T102,O102,J102,E102,E126,J126,O126,T126,Y126),3)+LARGE((E78,J78,O78,T78,Y78,Y102,T102,O102,J102,E102,E126,J126,O126,T126,Y126),4)),"") ->  | AH78: =IF(SUM(G77:I77)>0,SUM(G77:I77),0) -> 276 | AI78: =IF(SUM(K77)>0,SUM(K77),0) -> 5 | AJ78: =G77 -> 93 | AK78: =H77 -> 95 | AL78: =I77 -> 88 | AN78: =IF(SUM(G78:I78)>0,SUM(G78:I78),0) -> 0 | AO78: =IF(SUM(K78)>0,SUM(K78),0) -> 0 | AP78: =G78 -> 0 | AQ78: =H78 -> 0 | AR78: =I78 -> 0 | AT78: =IF(SUM(G79:I79)>0,SUM(G79:I79),0) -> 0 | AU78: =IF(SUM(K79)>0,SUM(K79),0) -> 0 | AV78: =G79 -> 0 | AW78: =H79 -> 0 | AX78: =I79 -> 0 | AZ78: =IF(SUM(G80:I80)>0,SUM(G80:I80),0) -> 0 | BA78: =IF(SUM(K80)>0,SUM(K80),0) -> 0 | BB78: =G80 -> 0 | BC78: =H80 -> 0 | BD78: =I80 -> 0 | BF78: =IF(SUM(G81:I81)>0,SUM(G81:I81),0) -> 0 | BG78: =IF(SUM(K81)>0,SUM(K81),0) -> 0 | BH78: =G81 -> 0 | BI78: =H81 -> 0 | BJ78: =I81 -> 0 | BL78: =IF(SUM(G82:I82)>0,SUM(G82:I82),0) -> 0 | BM78: =IF(SUM(K82)>0,SUM(K82),0) -> 0 | BN78: =G82 -> 0 | BO78: =H82 -> 0 | BP78: =I82 -> 0 | BR78: =IF(SUM(G83:I83)>0,SUM(G83:I83),0) -> 0 | BS78: =IF(SUM(K83)>0,SUM(K83),0) -> 0 | BT78: =G83 -> 0 | BU78: =H83 -> 0 | BV78: =I83 -> 0 | BX78: =IF(SUM(G84:I84)>0,SUM(G84:I84),0) -> 0 | BY78: =IF(SUM(K84)>0,SUM(K84),0) -> 0 | BZ78: =G84 -> 0 | CA78: =H84 -> 0 | CB78: =I84 -> 0 | CD78: =IF(SUM(G85:I85)>0,SUM(G85:I85),0) -> 0 | CE78: =IF(SUM(K85)>0,SUM(K85),0) -> 0 | CF78: =G85 -> 0 | CG78: =H85 -> 0 | CH78: =I85 -> 0 | CJ78: =IF(SUM(G86:I86)>0,SUM(G86:I86),0) -> 0 | CK78: =IF(SUM(K86)>0,SUM(K86),0) -> 0 | CL78: =G86 -> 0 | CM78: =H86 -> 0 | CN78: =I86 -> 0 | CP78: =IF(SUM(G87:I87)>0,SUM(G87:I87),0) -> 0 | CQ78: =IF(SUM(K87)>0,SUM(K87),0) -> 0 | CR78: =G87 -> 0 | CS78: =H87 -> 0 | CT78: =I87 -> 0 | CV78: =IF(SUM(G88:I88)>0,SUM(G88:I88),0) -> 0 | CW78: =IF(SUM(K88)>0,SUM(K88),0) -> 0 | CX78: =G88 -> 0 | CY78: =H88 -> 0 | CZ78: =I88 -> 0 | DB78: =IF(SUM(G89:I89)>0,SUM(G89:I89),0) -> 0 | DC78: =IF(SUM(K89)>0,SUM(K89),0) -> 0 | DD78: =G89 -> 0 | DE78: =H89 -> 0 | DF78: =I89 -> 0 | DH78: =IF(SUM(G90:I90)>0,SUM(G90:I90),0) -> 0 | DI78: =IF(SUM(K90)>0,SUM(K90),0) -> 0 | DJ78: =G90 -> 0 | DK78: =H90 -> 0 | DL78: =I90 -> 0 | DN78: =IF(SUM(G91:I91)>0,SUM(G91:I91),0) -> 0 | DO78: =IF(SUM(K91)>0,SUM(K91),0) -> 0 | DP78: =G91 -> 0 | DQ78: =H91 -> 0 | DR78: =I91 -> 0 | DT78: =IF(SUM(G92:I92)>0,SUM(G92:I92),0) -> 0 | DU78: =IF(SUM(K92)>0,SUM(K92),0) -> 0 | DV78: =G92 -> 0 | DW78: =H92 -> 0 | DX78: =I92 -> 0 | DZ78: =LARGE((DT78,DN78,DH78,DB78,CV78,CP78,CJ78,CD78,BX78,BR78,BL78,BF78,AZ78,AT78,AN78,AH78),1) -> 276 | EA78: =LARGE((AJ78,AP78,AV78,BB78,BH78,BN78,BT78,BZ78,CF78,CL78,CR78,CX78,DD78,DJ78,DP78,DV78),1) -> 93 | EB78: =LARGE((AK78,AQ78,AW78,BC78,BI78,BO78,BU78,CA78,CG78,CM78,CS78,CY78,DE78,DK78,DQ78,DW78),1) -> 95 | EC78: =LARGE((AL78,AR78,AX78,BD78,BJ78,BP78,BV78,CB78,CH78,CN78,CT78,CZ78,DF78,DL78,DR78,DX78),1) -> 88
A79: @ LaFayette | AA79: =IF(SUM(E79,J79,O79,T79,Y79,Y103,T103,O103,J103,E103,E127,J127,O127,T127,Y127)>0,(LARGE((E79,J79,O79,T79,Y79,Y103,T103,O103,J103,E103,E127,J127,O127,T127,Y127),1)+LARGE((E79,J79,O79,T79,Y79,Y103,T103,O103,J103,E103,E127,J127,O127,T127,Y127),2)+LARGE((E79,J79,O79,T79,Y79,Y103,T103,O103,J103,E103,E127,J127,O127,T127,Y127),3)+LARGE((E79,J79,O79,T79,Y79,Y103,T103,O103,J103,E103,E127,J127,O127,T127,Y127),4)),"") ->  | AB79: =IF(SUM(E79,J79,O79,T79,Y79,Y103,T103,O103,J103,E103,E127,J127,O127,T127,Y127)>0, LARGE((E79,J79,O79,T79,Y79,Y103,T103,O103,J103,E103,E127,J127,O127,T127,Y127),1+LARGE((E79,J79,O79,T79,Y79,Y103,T103,O103,J103,E103,E127,J127,O127,T127,Y127),2)+LARGE((E79,J79,O79,T79,Y79,Y103,T103,O103,J103,E103,E127,J127,O127,T127,Y127),3)+LARGE((E79,J79,O79,T79,Y79,Y103,T103,O103,J103,E103,E127,J127,O127,T127,Y127),4)),"") ->  | AH79: =IF(SUM(L77:N77)>0,SUM(L77:N77),0) -> 285 | AI79: =IF(SUM(P77)>0,SUM(P77),0) -> 13 | AJ79: =L77 -> 93 | AK79: =M77 -> 98 | AL79: =N77 -> 94 | AN79: =IF(SUM(L78:N78)>0,SUM(L78:N78),0) -> 0 | AO79: =IF(SUM(P78)>0,SUM(P78),0) -> 0 | AP79: =L78 -> 0 | AQ79: =M78 -> 0 | AR79: =N78 -> 0 | AT79: =IF(SUM(L79:N79)>0,SUM(L79:N79),0) -> 0 | AU79: =IF(SUM(P79)>0,SUM(P79),0) -> 0 | AV79: =L79 -> 0 | AW79: =M79 -> 0 | AX79: =N79 -> 0 | AZ79: =IF(SUM(L80:N80)>0,SUM(L80:N80),0) -> 0 | BA79: =IF(SUM(P80)>0,SUM(P80),0) -> 0 | BB79: =L80 -> 0 | BC79: =M80 -> 0 | BD79: =N80 -> 0 | BF79: =IF(SUM(L81:N81)>0,SUM(L81:N81),0) -> 0 | BG79: =IF(SUM(P81)>0,SUM(P81),0) -> 0 | BH79: =L81 -> 0 | BI79: =M81 -> 0 | BJ79: =N81 -> 0 | BL79: =IF(SUM(L82:N82)>0,SUM(L82:N82),0) -> 0 | BM79: =IF(SUM(P82)>0,SUM(P82),0) -> 0 | BN79: =L82 -> 0 | BO79: =M82 -> 0 | BP79: =N82 -> 0 | BR79: =IF(SUM(L83:N83)>0,SUM(L83:N83),0) -> 0 | BS79: =IF(SUM(P83)>0,SUM(P83),0) -> 0 | BT79: =L83 -> 0 | BU79: =M83 -> 0 | BV79: =N83 -> 0 | BX79: =IF(SUM(L84:N84)>0,SUM(L84:N84),0) -> 0 | BY79: =IF(SUM(P84)>0,SUM(P84),0) -> 0 | BZ79: =L84 -> 0 | CA79: =M84 -> 0 | CB79: =N84 -> 0 | CD79: =IF(SUM(L85:N85)>0,SUM(L85:N85),0) -> 0 | CE79: =IF(SUM(P85)>0,SUM(P85),0) -> 0 | CF79: =L85 -> 0 | CG79: =M85 -> 0 | CH79: =N85 -> 0 | CJ79: =IF(SUM(L86:N86)>0,SUM(L86:N86),0) -> 0 | CK79: =IF(SUM(P86)>0,SUM(P86),0) -> 0 | CL79: =L86 -> 0 | CM79: =M86 -> 0 | CN79: =N86 -> 0 | CP79: =IF(SUM(L87:N87)>0,SUM(L87:N87),0) -> 0 | CQ79: =IF(SUM(P87)>0,SUM(P87),0) -> 0 | CR79: =L87 -> 0 | CS79: =M87 -> 0 | CT79: =N87 -> 0 | CV79: =IF(SUM(L88:N88)>0,SUM(L88:N88),0) -> 0 | CW79: =IF(SUM(P88)>0,SUM(P88),0) -> 0 | CX79: =L88 -> 0 | CY79: =M88 -> 0 | CZ79: =N88 -> 0 | DB79: =IF(SUM(L89:N89)>0,SUM(L89:N89),0) -> 0 | DC79: =IF(SUM(P89)>0,SUM(P89),0) -> 0 | DD79: =L89 -> 0 | DE79: =M89 -> 0 | DF79: =N89 -> 0 | DH79: =IF(SUM(L90:N90)>0,SUM(L90:N90),0) -> 0 | DI79: =IF(SUM(P90)>0,SUM(P90),0) -> 0 | DJ79: =L90 -> 0 | DK79: =M90 -> 0 | DL79: =N90 -> 0 | DN79: =IF(SUM(L91:N91)>0,SUM(L91:N91),0) -> 0 | DO79: =IF(SUM(P91)>0,SUM(P91),0) -> 0 | DP79: =L91 -> 0 | DQ79: =M91 -> 0 | DR79: =N91 -> 0 | DT79: =IF(SUM(L92:N92)>0,SUM(L92:N92),0) -> 0 | DU79: =IF(SUM(P92)>0,SUM(P92),0) -> 0 | DV79: =L92 -> 0 | DW79: =M92 -> 0 | DX79: =N92 -> 0 | DZ79: =LARGE((DT79,DN79,DH79,DB79,CV79,CP79,CJ79,CD79,BX79,BR79,BL79,BF79,AZ79,AT79,AN79,AH79),1) -> 285 | EA79: =LARGE((AJ79,AP79,AV79,BB79,BH79,BN79,BT79,BZ79,CF79,CL79,CR79,CX79,DD79,DJ79,DP79,DV79),1) -> 93 | EB79: =LARGE((AK79,AQ79,AW79,BC79,BI79,BO79,BU79,CA79,CG79,CM79,CS79,CY79,DE79,DK79,DQ79,DW79),1) -> 98 | EC79: =LARGE((AL79,AR79,AX79,BD79,BJ79,BP79,BV79,CB79,CH79,CN79,CT79,CZ79,DF79,DL79,DR79,DX79),1) -> 94
A80: Dalton | AA80: =IF(SUM(E80,J80,O80,T80,Y80,Y104,T104,O104,J104,E104,E128,J128,O128,T128,Y128)>0,(LARGE((E80,J80,O80,T80,Y80,Y104,T104,O104,J104,E104,E128,J128,O128,T128,Y128),1)+LARGE((E80,J80,O80,T80,Y80,Y104,T104,O104,J104,E104,E128,J128,O128,T128,Y128),2)+LARGE((E80,J80,O80,T80,Y80,Y104,T104,O104,J104,E104,E128,J128,O128,T128,Y128),3)+LARGE((E80,J80,O80,T80,Y80,Y104,T104,O104,J104,E104,E128,J128,O128,T128,Y128),4)),"") ->  | AB80: =IF(SUM(E80,J80,O80,T80,Y80,Y104,T104,O104,J104,E104,E128,J128,O128,T128,Y128)>0, LARGE((E80,J80,O80,T80,Y80,Y104,T104,O104,J104,E104,E128,J128,O128,T128,Y128),1+LARGE((E80,J80,O80,T80,Y80,Y104,T104,O104,J104,E104,E128,J128,O128,T128,Y128),2)+LARGE((E80,J80,O80,T80,Y80,Y104,T104,O104,J104,E104,E128,J128,O128,T128,Y128),3)+LARGE((E80,J80,O80,T80,Y80,Y104,T104,O104,J104,E104,E128,J128,O128,T128,Y128),4)),"") ->  | AH80: =IF(SUM(Q77:S77)>0,SUM(Q77:S77),0) -> 277 | AI80: =IF(SUM(U77)>0,SUM(U77),0) -> 9 | AJ80: =Q77 -> 97 | AK80: =R77 -> 93 | AL80: =S77 -> 87 | AN80: =IF(SUM(Q78:S78)>0,SUM(Q78:S78),0) -> 0 | AO80: =IF(SUM(U78)>0,SUM(U78),0) -> 0 | AP80: =Q78 -> 0 | AQ80: =R78 -> 0 | AR80: =S78 -> 0 | AT80: =IF(SUM(Q79:S79)>0,SUM(Q79:S79),0) -> 0 | AU80: =IF(SUM(U79)>0,SUM(U79),0) -> 0 | AV80: =Q79 -> 0 | AW80: =R79 -> 0 | AX80: =S79 -> 0 | AZ80: =IF(SUM(Q80:S80)>0,SUM(Q80:S80),0) -> 0 | BA80: =IF(SUM(U80)>0,SUM(U80),0) -> 0 | BB80: =Q80 -> 0 | BC80: =R80 -> 0 | BD80: =S80 -> 0 | BF80: =IF(SUM(Q81:S81)>0,SUM(Q81:S81),0) -> 0 | BG80: =IF(SUM(U81)>0,SUM(U81),0) -> 0 | BH80: =Q81 -> 0 | BI80: =R81 -> 0 | BJ80: =S81 -> 0 | BL80: =IF(SUM(Q82:S82)>0,SUM(Q82:S82),0) -> 0 | BM80: =IF(SUM(U82)>0,SUM(U82),0) -> 0 | BN80: =Q82 -> 0 | BO80: =R82 -> 0 | BP80: =S82 -> 0 | BR80: =IF(SUM(Q83:S83)>0,SUM(Q83:S83),0) -> 0 | BS80: =IF(SUM(U83)>0,SUM(U83),0) -> 0 | BT80: =Q83 -> 0 | BU80: =R83 -> 0 | BV80: =S83 -> 0 | BX80: =IF(SUM(Q84:S84)>0,SUM(Q84:S84),0) -> 0 | BY80: =IF(SUM(U84)>0,SUM(U84),0) -> 0 | BZ80: =Q84 -> 0 | CA80: =R84 -> 0 | CB80: =S84 -> 0 | CD80: =IF(SUM(Q85:S85)>0,SUM(Q85:S85),0) -> 0 | CE80: =IF(SUM(U85)>0,SUM(U85),0) -> 0 | CF80: =Q85 -> 0 | CG80: =R85 -> 0 | CH80: =S85 -> 0 | CJ80: =IF(SUM(Q86:S86)>0,SUM(Q86:S86),0) -> 0 | CK80: =IF(SUM(U86)>0,SUM(U86),0) -> 0 | CL80: =Q86 -> 0 | CM80: =R86 -> 0 | CN80: =S86 -> 0 | CP80: =IF(SUM(Q87:S87)>0,SUM(Q87:S87),0) -> 0 | CQ80: =IF(SUM(U87)>0,SUM(U87),0) -> 0 | CR80: =Q87 -> 0 | CS80: =R87 -> 0 | CT80: =S87 -> 0 | CV80: =IF(SUM(Q88:S88)>0,SUM(Q88:S88),0) -> 0 | CW80: =IF(SUM(U88)>0,SUM(U88),0) -> 0 | CX80: =Q88 -> 0 | CY80: =R88 -> 0 | CZ80: =S88 -> 0 | DB80: =IF(SUM(Q89:S89)>0,SUM(Q89:S89),0) -> 0 | DC80: =IF(SUM(U89)>0,SUM(U89),0) -> 0 | DD80: =Q89 -> 0 | DE80: =R89 -> 0 | DF80: =S89 -> 0 | DH80: =IF(SUM(Q90:S90)>0,SUM(Q90:S90),0) -> 0 | DI80: =IF(SUM(U90)>0,SUM(U90),0) -> 0 | DJ80: =Q90 -> 0 | DK80: =R90 -> 0 | DL80: =S90 -> 0 | DN80: =IF(SUM(Q91:S91)>0,SUM(Q91:S91),0) -> 0 | DO80: =IF(SUM(U91)>0,SUM(U91),0) -> 0 | DP80: =Q91 -> 0 | DQ80: =R91 -> 0 | DR80: =S91 -> 0 | DT80: =IF(SUM(Q92:S92)>0,SUM(Q92:S92),0) -> 0 | DU80: =IF(SUM(U92)>0,SUM(U92),0) -> 0 | DV80: =Q92 -> 0 | DW80: =R92 -> 0 | DX80: =S92 -> 0 | DZ80: =LARGE((DT80,DN80,DH80,DB80,CV80,CP80,CJ80,CD80,BX80,BR80,BL80,BF80,AZ80,AT80,AN80,AH80),1) -> 277 | EA80: =LARGE((AJ80,AP80,AV80,BB80,BH80,BN80,BT80,BZ80,CF80,CL80,CR80,CX80,DD80,DJ80,DP80,DV80),1) -> 97 | EB80: =LARGE((AK80,AQ80,AW80,BC80,BI80,BO80,BU80,CA80,CG80,CM80,CS80,CY80,DE80,DK80,DQ80,DW80),1) -> 93 | EC80: =LARGE((AL80,AR80,AX80,BD80,BJ80,BP80,BV80,CB80,CH80,CN80,CT80,CZ80,DF80,DL80,DR80,DX80),1) -> 87
A81: @ Etowah | AA81: =IF(SUM(E81,J81,O81,T81,Y81,Y105,T105,O105,J105,E105,E129,J129,O129,T129,Y129)>0,(LARGE((E81,J81,O81,T81,Y81,Y105,T105,O105,J105,E105,E129,J129,O129,T129,Y129),1)+LARGE((E81,J81,O81,T81,Y81,Y105,T105,O105,J105,E105,E129,J129,O129,T129,Y129),2)+LARGE((E81,J81,O81,T81,Y81,Y105,T105,O105,J105,E105,E129,J129,O129,T129,Y129),3)+LARGE((E81,J81,O81,T81,Y81,Y105,T105,O105,J105,E105,E129,J129,O129,T129,Y129),4)),"") ->  | AB81: =IF(SUM(E81,J81,O81,T81,Y81,Y105,T105,O105,J105,E105,E129,J129,O129,T129,Y129)>0, LARGE((E81,J81,O81,T81,Y81,Y105,T105,O105,J105,E105,E129,J129,O129,T129,Y129),1+LARGE((E81,J81,O81,T81,Y81,Y105,T105,O105,J105,E105,E129,J129,O129,T129,Y129),2)+LARGE((E81,J81,O81,T81,Y81,Y105,T105,O105,J105,E105,E129,J129,O129,T129,Y129),3)+LARGE((E81,J81,O81,T81,Y81,Y105,T105,O105,J105,E105,E129,J129,O129,T129,Y129),4)),"") ->  | AH81: =IF(SUM(V77:X77)>0,SUM(V77:X77),0) -> 272 | AI81: =IF(SUM(Z77)>0,SUM(Z77),0) -> 6 | AJ81: =V77 -> 90 | AK81: =W77 -> 98 | AL81: =X77 -> 84 | AN81: =IF(SUM(V78:X78)>0,SUM(V78:X78),0) -> 0 | AO81: =IF(SUM(Z78)>0,SUM(Z78),0) -> 0 | AP81: =V78 -> 0 | AQ81: =W78 -> 0 | AR81: =X78 -> 0 | AT81: =IF(SUM(V79:X79)>0,SUM(V79:X79),0) -> 0 | AU81: =IF(SUM(Z79)>0,SUM(Z79),0) -> 0 | AV81: =V79 -> 0 | AW81: =W79 -> 0 | AX81: =X79 -> 0 | AZ81: =IF(SUM(V80:X80)>0,SUM(V80:X80),0) -> 0 | BA81: =IF(SUM(Z80)>0,SUM(Z80),0) -> 0 | BB81: =V80 -> 0 | BC81: =W80 -> 0 | BD81: =X80 -> 0 | BF81: =IF(SUM(V81:X81)>0,SUM(V81:X81),0) -> 0 | BG81: =IF(SUM(Z81)>0,SUM(Z81),0) -> 0 | BH81: =V81 -> 0 | BI81: =W81 -> 0 | BJ81: =X81 -> 0 | BL81: =IF(SUM(V82:X82)>0,SUM(V82:X82),0) -> 0 | BM81: =IF(SUM(Z82)>0,SUM(Z82),0) -> 0 | BN81: =V82 -> 0 | BO81: =W82 -> 0 | BP81: =X82 -> 0 | BR81: =IF(SUM(V83:X83)>0,SUM(V83:X83),0) -> 0 | BS81: =IF(SUM(Z83)>0,SUM(Z83),0) -> 0 | BT81: =V83 -> 0 | BU81: =W83 -> 0 | BV81: =X83 -> 0 | BX81: =IF(SUM(V84:X84)>0,SUM(V84:X84),0) -> 0 | BY81: =IF(SUM(Z84)>0,SUM(Z84),0) -> 0 | BZ81: =V84 -> 0 | CA81: =W84 -> 0 | CB81: =X84 -> 0 | CD81: =IF(SUM(V85:X85)>0,SUM(V85:X85),0) -> 0 | CE81: =IF(SUM(Z85)>0,SUM(Z85),0) -> 0 | CF81: =V85 -> 0 | CG81: =W85 -> 0 | CH81: =X85 -> 0 | CJ81: =IF(SUM(V86:X86)>0,SUM(V86:X86),0) -> 0 | CK81: =IF(SUM(Z86)>0,SUM(Z86),0) -> 0 | CL81: =V86 -> 0 | CM81: =W86 -> 0 | CN81: =X86 -> 0 | CP81: =IF(SUM(V87:X87)>0,SUM(V87:X87),0) -> 0 | CQ81: =IF(SUM(Z87)>0,SUM(Z87),0) -> 0 | CR81: =V87 -> 0 | CS81: =W87 -> 0 | CT81: =X87 -> 0 | CV81: =IF(SUM(V88:X88)>0,SUM(V88:X88),0) -> 0 | CW81: =IF(SUM(Z88)>0,SUM(Z88),0) -> 0 | CX81: =V88 -> 0 | CY81: =W88 -> 0 | CZ81: =X88 -> 0 | DB81: =IF(SUM(V89:X89)>0,SUM(V89:X89),0) -> 0 | DC81: =IF(SUM(Z89)>0,SUM(Z89),0) -> 0 | DD81: =V89 -> 0 | DE81: =W89 -> 0 | DF81: =X89 -> 0 | DH81: =IF(SUM(V90:X90)>0,SUM(V90:X90),0) -> 0 | DI81: =IF(SUM(Z90)>0,SUM(Z90),0) -> 0 | DJ81: =V90 -> 0 | DK81: =W90 -> 0 | DL81: =X90 -> 0 | DN81: =IF(SUM(V91:X91)>0,SUM(V91:X91),0) -> 0 | DO81: =IF(SUM(Z91)>0,SUM(Z91),0) -> 0 | DP81: =V91 -> 0 | DQ81: =W91 -> 0 | DR81: =X91 -> 0 | DT81: =IF(SUM(V92:X92)>0,SUM(V92:X92),0) -> 0 | DU81: =IF(SUM(Z92)>0,SUM(Z92),0) -> 0 | DV81: =V92 -> 0 | DW81: =W92 -> 0 | DX81: =X92 -> 0 | DZ81: =LARGE((DT81,DN81,DH81,DB81,CV81,CP81,CJ81,CD81,BX81,BR81,BL81,BF81,AZ81,AT81,AN81,AH81),1) -> 272 | EA81: =LARGE((AJ81,AP81,AV81,BB81,BH81,BN81,BT81,BZ81,CF81,CL81,CR81,CX81,DD81,DJ81,DP81,DV81),1) -> 90 | EB81: =LARGE((AK81,AQ81,AW81,BC81,BI81,BO81,BU81,CA81,CG81,CM81,CS81,CY81,DE81,DK81,DQ81,DW81),1) -> 98 | EC81: =LARGE((AL81,AR81,AX81,BD81,BJ81,BP81,BV81,CB81,CH81,CN81,CT81,CZ81,DF81,DL81,DR81,DX81),1) -> 84
A82: Woodstock | AA82: =IF(SUM(E82,J82,O82,T82,Y82,Y106,T106,O106,J106,E106,E130,J130,O130,T130,Y130)>0,(LARGE((E82,J82,O82,T82,Y82,Y106,T106,O106,J106,E106,E130,J130,O130,T130,Y130),1)+LARGE((E82,J82,O82,T82,Y82,Y106,T106,O106,J106,E106,E130,J130,O130,T130,Y130),2)+LARGE((E82,J82,O82,T82,Y82,Y106,T106,O106,J106,E106,E130,J130,O130,T130,Y130),3)+LARGE((E82,J82,O82,T82,Y82,Y106,T106,O106,J106,E106,E130,J130,O130,T130,Y130),4)),"") ->  | AB82: =IF(SUM(E82,J82,O82,T82,Y82,Y106,T106,O106,J106,E106,E130,J130,O130,T130,Y130)>0, LARGE((E82,J82,O82,T82,Y82,Y106,T106,O106,J106,E106,E130,J130,O130,T130,Y130),1+LARGE((E82,J82,O82,T82,Y82,Y106,T106,O106,J106,E106,E130,J130,O130,T130,Y130),2)+LARGE((E82,J82,O82,T82,Y82,Y106,T106,O106,J106,E106,E130,J130,O130,T130,Y130),3)+LARGE((E82,J82,O82,T82,Y82,Y106,T106,O106,J106,E106,E130,J130,O130,T130,Y130),4)),"") ->  | AH82: =IF(SUM(B97:D97)>0,SUM(B97:D97),0) -> 277 | AI82: =IF(SUM(F97)>0,SUM(F97),0) -> 0 | AJ82: =B97 -> 95 | AK82: =C97 -> 96 | AL82: =D97 -> 86 | AN82: =IF(SUM(B98:D98)>0,SUM(B98:D98),0) -> 0 | AO82: =IF(SUM(F98)>0,SUM(F98),0) -> 0 | AP82: =B98 -> 0 | AQ82: =C98 -> 0 | AR82: =D98 -> 0 | AT82: =IF(SUM(B99:D99)>0,SUM(B99:D99),0) -> 0 | AU82: =IF(SUM(F99)>0,SUM(F99),0) -> 0 | AV82: =B99 -> Henry, Shay (10 | AW82: =C99 -> 0 | AX82: =D99 -> 0 | AZ82: =IF(SUM(B100:D100)>0,SUM(B100:D100),0) -> 0 | BA82: =IF(SUM(F100)>0,SUM(F100),0) -> 0 | BB82: =B100 -> K | BC82: =C100 -> P | BD82: =D100 -> S | BF82: =IF(SUM(B101:D101)>0,SUM(B101:D101),0) -> 0 | BG82: =IF(SUM(F101)>0,SUM(F101),0) -> 0 | BH82: =B101 -> 0 | BI82: =C101 -> 0 | BJ82: =D101 -> 0 | BL82: =IF(SUM(B102:D102)>0,SUM(B102:D102),0) -> 0 | BM82: =IF(SUM(F102)>0,SUM(F102),0) -> 0 | BN82: =B102 -> 0 | BO82: =C102 -> 0 | BP82: =D102 -> 0 | BR82: =IF(SUM(B103:D103)>0,SUM(B103:D103),0) -> 0 | BS82: =IF(SUM(F103)>0,SUM(F103),0) -> 0 | BT82: =B103 -> 0 | BU82: =C103 -> 0 | BV82: =D103 -> 0 | BX82: =IF(SUM(B104:D104)>0,SUM(B104:D104),0) -> 0 | BY82: =IF(SUM(F104)>0,SUM(F104),0) -> 0 | BZ82: =B104 -> 0 | CA82: =C104 -> 0 | CB82: =D104 -> 0 | CD82: =IF(SUM(B105:D105)>0,SUM(B105:D105),0) -> 0 | CE82: =IF(SUM(F105)>0,SUM(F105),0) -> 0 | CF82: =B105 -> 0 | CG82: =C105 -> 0 | CH82: =D105 -> 0 | CJ82: =IF(SUM(B106:D106)>0,SUM(B106:D106),0) -> 0 | CK82: =IF(SUM(F106)>0,SUM(F106),0) -> 0 | CL82: =B106 -> 0 | CM82: =C106 -> 0 | CN82: =D106 -> 0 | CP82: =IF(SUM(B107:D107)>0,SUM(B107:D107),0) -> 0 | CQ82: =IF(SUM(F107)>0,SUM(F107),0) -> 0 | CR82: =B107 -> 0 | CS82: =C107 -> 0 | CT82: =D107 -> 0 | CV82: =IF(SUM(B108:D108)>0,SUM(B108:D108),0) -> 0 | CW82: =IF(SUM(F108)>0,SUM(F108),0) -> 0 | CX82: =B108 -> 0 | CY82: =C108 -> 0 | CZ82: =D108 -> 0 | DB82: =IF(SUM(B109:D109)>0,SUM(B109:D109),0) -> 0 | DC82: =IF(SUM(F109)>0,SUM(F109),0) -> 0 | DD82: =B109 -> 0 | DE82: =C109 -> 0 | DF82: =D109 -> 0 | DH82: =IF(SUM(B110:D110)>0,SUM(B110:D110),0) -> 0 | DI82: =IF(SUM(F110)>0,SUM(F110),0) -> 0 | DJ82: =B110 -> 0 | DK82: =C110 -> 0 | DL82: =D110 -> 0 | DN82: =IF(SUM(B111:D111)>0,SUM(B111:D111),0) -> 0 | DO82: =IF(SUM(F111)>0,SUM(F110),0) -> 0 | DP82: =B111 -> 0 | DQ82: =C111 -> 0 | DR82: =D111 -> 0 | DT82: =IF(SUM(B112:D112)>0,SUM(B112:D112),0) -> 0 | DU82: =IF(SUM(F112)>0,SUM(F112),0) -> 0 | DV82: =B112 -> 0 | DW82: =C112 -> 0 | DX82: =D112 -> 0 | DZ82: =LARGE((DT82,DN82,DH82,DB82,CV82,CP82,CJ82,CD82,BX82,BR82,BL82,BF82,AZ82,AT82,AN82,AH82),1) -> 277 | EA82: =LARGE((AJ82,AP82,AV82,BB82,BH82,BN82,BT82,BZ82,CF82,CL82,CR82,CX82,DD82,DJ82,DP82,DV82),1) -> 95 | EB82: =LARGE((AK82,AQ82,AW82,BC82,BI82,BO82,BU82,CA82,CG82,CM82,CS82,CY82,DE82,DK82,DQ82,DW82),1) -> 96 | EC82: =LARGE((AL82,AR82,AX82,BD82,BJ82,BP82,BV82,CB82,CH82,CN82,CT82,CZ82,DF82,DL82,DR82,DX82),1) -> 86
A83: @ Allatoona | AA83: =IF(SUM(E83,J83,O83,T83,Y83,Y107,T107,O107,J107,E107,E131,J131,O131,T131,Y131)>0,(LARGE((E83,J83,O83,T83,Y83,Y107,T107,O107,J107,E107,E131,J131,O131,T131,Y131),1)+LARGE((E83,J83,O83,T83,Y83,Y107,T107,O107,J107,E107,E131,J131,O131,T131,Y131),2)+LARGE((E83,J83,O83,T83,Y83,Y107,T107,O107,J107,E107,E131,J131,O131,T131,Y131),3)+LARGE((E83,J83,O83,T83,Y83,Y107,T107,O107,J107,E107,E131,J131,O131,T131,Y131),4)),"") ->  | AB83: =IF(SUM(E83,J83,O83,T83,Y83,Y107,T107,O107,J107,E107,E131,J131,O131,T131,Y131)>0, LARGE((E83,J83,O83,T83,Y83,Y107,T107,O107,J107,E107,E131,J131,O131,T131,Y131),1+LARGE((E83,J83,O83,T83,Y83,Y107,T107,O107,J107,E107,E131,J131,O131,T131,Y131),2)+LARGE((E83,J83,O83,T83,Y83,Y107,T107,O107,J107,E107,E131,J131,O131,T131,Y131),3)+LARGE((E83,J83,O83,T83,Y83,Y107,T107,O107,J107,E107,E131,J131,O131,T131,Y131),4)),"") ->  | AH83: =IF(SUM(G97:I97)>0,SUM(G97:I97),0) -> 276 | AI83: =IF(SUM(K97)>0,SUM(K97),0) -> 0 | AJ83: =G97 -> 93 | AK83: =H97 -> 95 | AL83: =I97 -> 88 | AN83: =IF(SUM(G98:I98)>0,SUM(G98:I98),0) -> 0 | AO83: =IF(SUM(K98)>0,SUM(K98),0) -> 0 | AP83: =G98 -> 0 | AQ83: =H98 -> 0 | AR83: =I98 -> 0 | AT83: =IF(SUM(G99:I99)>0,SUM(G99:I99),0) -> 0 | AU83: =IF(SUM(K99)>0,SUM(K99),0) -> 0 | AV83: =G99 -> Flint, Tyler (11) | AW83: =H99 -> 0 | AX83: =I99 -> 0 | AZ83: =IF(SUM(G100:I100)>0,SUM(G100:I100),0) -> 0 | BA83: =IF(SUM(K100)>0,SUM(K100),0) -> 0 | BB83: =G100 -> K | BC83: =H100 -> P | BD83: =I100 -> S | BF83: =IF(SUM(G101:I101)>0,SUM(G101:I101),0) -> 0 | BG83: =IF(SUM(K101)>0,SUM(K101),0) -> 0 | BH83: =G101 -> 0 | BI83: =H101 -> 0 | BJ83: =I101 -> 0 | BL83: =IF(SUM(G102:I102)>0,SUM(G102:I102),0) -> 0 | BM83: =IF(SUM(K102)>0,SUM(K102),0) -> 0 | BN83: =G102 -> 0 | BO83: =H102 -> 0 | BP83: =I102 -> 0 | BR83: =IF(SUM(G103:I103)>0,SUM(G103:I103),0) -> 0 | BS83: =IF(SUM(K103)>0,SUM(K103),0) -> 0 | BT83: =G103 -> 0 | BU83: =H103 -> 0 | BV83: =I103 -> 0 | BX83: =IF(SUM(G104:I104)>0,SUM(G104:I104),0) -> 0 | BY83: =IF(SUM(K104)>0,SUM(K104),0) -> 0 | BZ83: =G104 -> 0 | CA83: =H104 -> 0 | CB83: =I104 -> 0 | CD83: =IF(SUM(G105:I105)>0,SUM(G105:I105),0) -> 0 | CE83: =IF(SUM(K105)>0,SUM(K105),0) -> 0 | CF83: =G105 -> 0 | CG83: =H105 -> 0 | CH83: =I105 -> 0 | CJ83: =IF(SUM(G106:I106)>0,SUM(G106:I106),0) -> 0 | CK83: =IF(SUM(K106)>0,SUM(K106),0) -> 0 | CL83: =G106 -> 0 | CM83: =H106 -> 0 | CN83: =I106 -> 0 | CP83: =IF(SUM(G107:I107)>0,SUM(G107:I107),0) -> 0 | CQ83: =IF(SUM(K107)>0,SUM(K107),0) -> 0 | CR83: =G107 -> 0 | CS83: =H107 -> 0 | CT83: =I107 -> 0 | CV83: =IF(SUM(G108:I108)>0,SUM(G108:I108),0) -> 0 | CW83: =IF(SUM(K108)>0,SUM(K108),0) -> 0 | CX83: =G108 -> 0 | CY83: =H108 -> 0 | CZ83: =I108 -> 0 | DB83: =IF(SUM(G109:I109)>0,SUM(G109:I109),0) -> 0 | DC83: =IF(SUM(K109)>0,SUM(K109),0) -> 0 | DD83: =G109 -> 0 | DE83: =H109 -> 0 | DF83: =I109 -> 0 | DH83: =IF(SUM(G110:I110)>0,SUM(G110:I110),0) -> 0 | DI83: =IF(SUM(K110)>0,SUM(K110),0) -> 0 | DJ83: =G110 -> 0 | DK83: =H110 -> 0 | DL83: =I110 -> 0 | DN83: =IF(SUM(G111:I111)>0,SUM(G111:I111),0) -> 0 | DO83: =IF(SUM(K111)>0,SUM(K110),0) -> 0 | DP83: =G111 -> 0 | DQ83: =H111 -> 0 | DR83: =I111 -> 0 | DT83: =IF(SUM(G112:I112)>0,SUM(G112:I112),0) -> 0 | DU83: =IF(SUM(K112)>0,SUM(K112),0) -> 0 | DV83: =G112 -> 0 | DW83: =H112 -> 0 | DX83: =I112 -> 0 | DZ83: =LARGE((DT83,DN83,DH83,DB83,CV83,CP83,CJ83,CD83,BX83,BR83,BL83,BF83,AZ83,AT83,AN83,AH83),1) -> 276 | EA83: =LARGE((AJ83,AP83,AV83,BB83,BH83,BN83,BT83,BZ83,CF83,CL83,CR83,CX83,DD83,DJ83,DP83,DV83),1) -> 93 | EB83: =LARGE((AK83,AQ83,AW83,BC83,BI83,BO83,BU83,CA83,CG83,CM83,CS83,CY83,DE83,DK83,DQ83,DW83),1) -> 95 | EC83: =LARGE((AL83,AR83,AX83,BD83,BJ83,BP83,BV83,CB83,CH83,CN83,CT83,CZ83,DF83,DL83,DR83,DX83),1) -> 88
A84: BYE | AA84: =IF(SUM(E84,J84,O84,T84,Y84,Y108,T108,O108,J108,E108,E132,J132,O132,T132,Y132)>0,(LARGE((E84,J84,O84,T84,Y84,Y108,T108,O108,J108,E108,E132,J132,O132,T132,Y132),1)+LARGE((E84,J84,O84,T84,Y84,Y108,T108,O108,J108,E108,E132,J132,O132,T132,Y132),2)+LARGE((E84,J84,O84,T84,Y84,Y108,T108,O108,J108,E108,E132,J132,O132,T132,Y132),3)+LARGE((E84,J84,O84,T84,Y84,Y108,T108,O108,J108,E108,E132,J132,O132,T132,Y132),4)),"") ->  | AB84: =IF(SUM(E84,J84,O84,T84,Y84,Y108,T108,O108,J108,E108,E132,J132,O132,T132,Y132)>0, LARGE((E84,J84,O84,T84,Y84,Y108,T108,O108,J108,E108,E132,J132,O132,T132,Y132),1+LARGE((E84,J84,O84,T84,Y84,Y108,T108,O108,J108,E108,E132,J132,O132,T132,Y132),2)+LARGE((E84,J84,O84,T84,Y84,Y108,T108,O108,J108,E108,E132,J132,O132,T132,Y132),3)+LARGE((E84,J84,O84,T84,Y84,Y108,T108,O108,J108,E108,E132,J132,O132,T132,Y132),4)),"") ->  | AH84: =IF(SUM(L97:N97)>0,SUM(L97:N97),0) -> 285 | AI84: =IF(SUM(P97)>0,SUM(P97),0) -> 0 | AJ84: =L97 -> 93 | AK84: =M97 -> 98 | AL84: =N97 -> 94 | AN84: =IF(SUM(L98:N98)>0,SUM(L98:N98),0) -> 0 | AO84: =IF(SUM(P98)>0,SUM(P98),0) -> 0 | AP84: =L98 -> 0 | AQ84: =M98 -> 0 | AR84: =N98 -> 0 | AT84: =IF(SUM(L99:N99)>0,SUM(L99:N99),0) -> 0 | AU84: =IF(SUM(P99)>0,SUM(P99),0) -> 0 | AV84: =L99 -> Reeves, Chancelor (10) | AW84: =M99 -> 0 | AX84: =N99 -> 0 | AZ84: =IF(SUM(L100:N100)>0,SUM(L100:N100),0) -> 0 | BA84: =IF(SUM(P100)>0,SUM(P100),0) -> 0 | BB84: =L100 -> K | BC84: =M100 -> P | BD84: =N100 -> S | BF84: =IF(SUM(L101:N101)>0,SUM(L101:N101),0) -> 0 | BG84: =IF(SUM(P101)>0,SUM(P101),0) -> 0 | BH84: =L101 -> 0 | BI84: =M101 -> 0 | BJ84: =N101 -> 0 | BL84: =IF(SUM(L102:N102)>0,SUM(L102:N102),0) -> 0 | BM84: =IF(SUM(P102)>0,SUM(P102),0) -> 0 | BN84: =L102 -> 0 | BO84: =M102 -> 0 | BP84: =N102 -> 0 | BR84: =IF(SUM(L103:N103)>0,SUM(L103:N103),0) -> 0 | BS84: =IF(SUM(P103)>0,SUM(P103),0) -> 0 | BT84: =L103 -> 0 | BU84: =M103 -> 0 | BV84: =N103 -> 0 | BX84: =IF(SUM(L104:N104)>0,SUM(L104:N104),0) -> 0 | BY84: =IF(SUM(P104)>0,SUM(P104),0) -> 0 | BZ84: =L104 -> 0 | CA84: =M104 -> 0 | CB84: =N104 -> 0 | CD84: =IF(SUM(L105:N105)>0,SUM(L105:N105),0) -> 0 | CE84: =IF(SUM(P105)>0,SUM(P105),0) -> 0 | CF84: =L105 -> 0 | CG84: =M105 -> 0 | CH84: =N105 -> 0 | CJ84: =IF(SUM(L106:N106)>0,SUM(L106:N106),0) -> 0 | CK84: =IF(SUM(P106)>0,SUM(P106),0) -> 0 | CL84: =L106 -> 0 | CM84: =M106 -> 0 | CN84: =N106 -> 0 | CP84: =IF(SUM(L107:N107)>0,SUM(L107:N107),0) -> 0 | CQ84: =IF(SUM(P107)>0,SUM(P107),0) -> 0 | CR84: =L107 -> 0 | CS84: =M107 -> 0 | CT84: =N107 -> 0 | CV84: =IF(SUM(L108:N108)>0,SUM(L108:N108),0) -> 0 | CW84: =IF(SUM(P108)>0,SUM(P108),0) -> 0 | CX84: =L108 -> 0 | CY84: =M108 -> 0 | CZ84: =N108 -> 0 | DB84: =IF(SUM(L109:N109)>0,SUM(L109:N109),0) -> 0 | DC84: =IF(SUM(P109)>0,SUM(P109),0) -> 0 | DD84: =L109 -> 0 | DE84: =M109 -> 0 | DF84: =N109 -> 0 | DH84: =IF(SUM(L110:N110)>0,SUM(L110:N110),0) -> 0 | DI84: =IF(SUM(P110)>0,SUM(P110),0) -> 0 | DJ84: =L110 -> 0 | DK84: =M110 -> 0 | DL84: =N110 -> 0 | DN84: =IF(SUM(L111:N111)>0,SUM(L111:N111),0) -> 0 | DO84: =IF(SUM(P111)>0,SUM(P110),0) -> 0 | DP84: =L111 -> 0 | DQ84: =M111 -> 0 | DR84: =N111 -> 0 | DT84: =IF(SUM(L112:N112)>0,SUM(L112:N112),0) -> 0 | DU84: =IF(SUM(P112)>0,SUM(P112),0) -> 0 | DV84: =L112 -> 0 | DW84: =M112 -> 0 | DX84: =N112 -> 0 | DZ84: =LARGE((DT84,DN84,DH84,DB84,CV84,CP84,CJ84,CD84,BX84,BR84,BL84,BF84,AZ84,AT84,AN84,AH84),1) -> 285 | EA84: =LARGE((AJ84,AP84,AV84,BB84,BH84,BN84,BT84,BZ84,CF84,CL84,CR84,CX84,DD84,DJ84,DP84,DV84),1) -> 93 | EB84: =LARGE((AK84,AQ84,AW84,BC84,BI84,BO84,BU84,CA84,CG84,CM84,CS84,CY84,DE84,DK84,DQ84,DW84),1) -> 98 | EC84: =LARGE((AL84,AR84,AX84,BD84,BJ84,BP84,BV84,CB84,CH84,CN84,CT84,CZ84,DF84,DL84,DR84,DX84),1) -> 94
A85: Ridgeland | AA85: =IF(SUM(E85,J85,O85,T85,Y85,Y109,T109,O109,J109,E109,E133,J133,O133,T133,Y133)>0,(LARGE((E85,J85,O85,T85,Y85,Y109,T109,O109,J109,E109,E133,J133,O133,T133,Y133),1)+LARGE((E85,J85,O85,T85,Y85,Y109,T109,O109,J109,E109,E133,J133,O133,T133,Y133),2)+LARGE((E85,J85,O85,T85,Y85,Y109,T109,O109,J109,E109,E133,J133,O133,T133,Y133),3)+LARGE((E85,J85,O85,T85,Y85,Y109,T109,O109,J109,E109,E133,J133,O133,T133,Y133),4)),"") ->  | AB85: =IF(SUM(E85,J85,O85,T85,Y85,Y109,T109,O109,J109,E109,E133,J133,O133,T133,Y133)>0, LARGE((E85,J85,O85,T85,Y85,Y109,T109,O109,J109,E109,E133,J133,O133,T133,Y133),1+LARGE((E85,J85,O85,T85,Y85,Y109,T109,O109,J109,E109,E133,J133,O133,T133,Y133),2)+LARGE((E85,J85,O85,T85,Y85,Y109,T109,O109,J109,E109,E133,J133,O133,T133,Y133),3)+LARGE((E85,J85,O85,T85,Y85,Y109,T109,O109,J109,E109,E133,J133,O133,T133,Y133),4)),"") ->  | AH85: =IF(SUM(Q97:S97)>0,SUM(Q97:S97),0) -> 277 | AI85: =IF(SUM(U97)>0,SUM(U97),0) -> 0 | AJ85: =Q97 -> 97 | AK85: =R97 -> 93 | AL85: =S97 -> 87 | AN85: =IF(SUM(Q98:S98)>0,SUM(Q98:S98),0) -> 0 | AO85: =IF(SUM(U98)>0,SUM(U98),0) -> 0 | AP85: =Q98 -> 0 | AQ85: =R98 -> 0 | AR85: =S98 -> 0 | AT85: =IF(SUM(Q99:S99)>0,SUM(Q99:S99),0) -> 0 | AU85: =IF(SUM(U99)>0,SUM(U99),0) -> 0 | AV85: =Q99 -> Lane, Shayla (9) | AW85: =R99 -> 0 | AX85: =S99 -> 0 | AZ85: =IF(SUM(Q100:S100)>0,SUM(Q100:S100),0) -> 0 | BA85: =IF(SUM(U100)>0,SUM(U100),0) -> 0 | BB85: =Q100 -> K | BC85: =R100 -> P | BD85: =S100 -> S | BF85: =IF(SUM(Q101:S101)>0,SUM(Q101:S101),0) -> 0 | BG85: =IF(SUM(U101)>0,SUM(U101),0) -> 0 | BH85: =Q101 -> 0 | BI85: =R101 -> 0 | BJ85: =S101 -> 0 | BL85: =IF(SUM(Q102:S102)>0,SUM(Q102:S102),0) -> 0 | BM85: =IF(SUM(U102)>0,SUM(U102),0) -> 0 | BN85: =Q102 -> 0 | BO85: =R102 -> 0 | BP85: =S102 -> 0 | BR85: =IF(SUM(Q103:S103)>0,SUM(Q103:S103),0) -> 0 | BS85: =IF(SUM(U103)>0,SUM(U103),0) -> 0 | BT85: =Q103 -> 0 | BU85: =R103 -> 0 | BV85: =S103 -> 0 | BX85: =IF(SUM(Q104:S104)>0,SUM(Q104:S104),0) -> 0 | BY85: =IF(SUM(U104)>0,SUM(U104),0) -> 0 | BZ85: =Q104 -> 0 | CA85: =R104 -> 0 | CB85: =S104 -> 0 | CD85: =IF(SUM(Q105:S105)>0,SUM(Q105:S105),0) -> 0 | CE85: =IF(SUM(U105)>0,SUM(U105),0) -> 0 | CF85: =Q105 -> 0 | CG85: =R105 -> 0 | CH85: =S105 -> 0 | CJ85: =IF(SUM(Q106:S106)>0,SUM(Q106:S106),0) -> 0 | CK85: =IF(SUM(U106)>0,SUM(U106),0) -> 0 | CL85: =Q106 -> 0 | CM85: =R106 -> 0 | CN85: =S106 -> 0 | CP85: =IF(SUM(Q107:S107)>0,SUM(Q107:S107),0) -> 0 | CQ85: =IF(SUM(U107)>0,SUM(U107),0) -> 0 | CR85: =Q107 -> 0 | CS85: =R107 -> 0 | CT85: =S107 -> 0 | CV85: =IF(SUM(Q108:S108)>0,SUM(Q108:S108),0) -> 0 | CW85: =IF(SUM(U108)>0,SUM(U108),0) -> 0 | CX85: =Q108 -> 0 | CY85: =R108 -> 0 | CZ85: =S108 -> 0 | DB85: =IF(SUM(Q109:S109)>0,SUM(Q109:S109),0) -> 0 | DC85: =IF(SUM(U109)>0,SUM(U109),0) -> 0 | DD85: =Q109 -> 0 | DE85: =R109 -> 0 | DF85: =S109 -> 0 | DH85: =IF(SUM(Q110:S110)>0,SUM(Q110:S110),0) -> 0 | DI85: =IF(SUM(U110)>0,SUM(U110),0) -> 0 | DJ85: =Q110 -> 0 | DK85: =R110 -> 0 | DL85: =S110 -> 0 | DN85: =IF(SUM(Q111:S111)>0,SUM(Q111:S111),0) -> 0 | DO85: =IF(SUM(U111)>0,SUM(U110),0) -> 0 | DP85: =Q111 -> 0 | DQ85: =R111 -> 0 | DR85: =S111 -> 0 | DT85: =IF(SUM(Q112:S112)>0,SUM(Q112:S112),0) -> 0 | DU85: =IF(SUM(U112)>0,SUM(U112),0) -> 0 | DV85: =Q112 -> 0 | DW85: =R112 -> 0 | DX85: =S112 -> 0 | DZ85: =LARGE((DT85,DN85,DH85,DB85,CV85,CP85,CJ85,CD85,BX85,BR85,BL85,BF85,AZ85,AT85,AN85,AH85),1) -> 277 | EA85: =LARGE((AJ85,AP85,AV85,BB85,BH85,BN85,BT85,BZ85,CF85,CL85,CR85,CX85,DD85,DJ85,DP85,DV85),1) -> 97 | EB85: =LARGE((AK85,AQ85,AW85,BC85,BI85,BO85,BU85,CA85,CG85,CM85,CS85,CY85,DE85,DK85,DQ85,DW85),1) -> 93 | EC85: =LARGE((AL85,AR85,AX85,BD85,BJ85,BP85,BV85,CB85,CH85,CN85,CT85,CZ85,DF85,DL85,DR85,DX85),1) -> 87
A86: @ Cartersville | AA86: =IF(SUM(E86,J86,O86,T86,Y86,Y110,T110,O110,J110,E110,E134,J134,O134,T134,Y134)>0,(LARGE((E86,J86,O86,T86,Y86,Y110,T110,O110,J110,E110,E134,J134,O134,T134,Y134),1)+LARGE((E86,J86,O86,T86,Y86,Y110,T110,O110,J110,E110,E134,J134,O134,T134,Y134),2)+LARGE((E86,J86,O86,T86,Y86,Y110,T110,O110,J110,E110,E134,J134,O134,T134,Y134),3)+LARGE((E86,J86,O86,T86,Y86,Y110,T110,O110,J110,E110,E134,J134,O134,T134,Y134),4)),"") ->  | AB86: =IF(SUM(E86,J86,O86,T86,Y86,Y110,T110,O110,J110,E110,E134,J134,O134,T134,Y134)>0, LARGE((E86,J86,O86,T86,Y86,Y110,T110,O110,J110,E110,E134,J134,O134,T134,Y134),1+LARGE((E86,J86,O86,T86,Y86,Y110,T110,O110,J110,E110,E134,J134,O134,T134,Y134),2)+LARGE((E86,J86,O86,T86,Y86,Y110,T110,O110,J110,E110,E134,J134,O134,T134,Y134),3)+LARGE((E86,J86,O86,T86,Y86,Y110,T110,O110,J110,E110,E134,J134,O134,T134,Y134),4)),"") ->  | AH86: =IF(SUM(V97:X97)>0,SUM(V97:X97),0) -> 272 | AI86: =IF(SUM(Z97)>0,SUM(Z97),0) -> 0 | AJ86: =V97 -> 90 | AK86: =W97 -> 98 | AL86: =X97 -> 84 | AN86: =IF(SUM(V98:X98)>0,SUM(V98:X98),0) -> 0 | AO86: =IF(SUM(Z98)>0,SUM(Z98),0) -> 0 | AP86: =V98 -> 0 | AQ86: =W98 -> 0 | AR86: =X98 -> 0 | AT86: =IF(SUM(V99:X99)>0,SUM(V99:X99),0) -> 0 | AU86: =IF(SUM(Z99)>0,SUM(Z99),0) -> 0 | AV86: =V99 -> CK 10 | AW86: =W99 -> 0 | AX86: =X99 -> 0 | AZ86: =IF(SUM(V100:X100)>0,SUM(V100:X100),0) -> 0 | BA86: =IF(SUM(Z100)>0,SUM(Z100),0) -> 0 | BB86: =V100 -> K | BC86: =W100 -> P | BD86: =X100 -> S | BF86: =IF(SUM(V101:X101)>0,SUM(V101:X101),0) -> 0 | BG86: =IF(SUM(Z101)>0,SUM(Z101),0) -> 0 | BH86: =V101 -> 0 | BI86: =W101 -> 0 | BJ86: =X101 -> 0 | BL86: =IF(SUM(V102:X102)>0,SUM(V102:X102),0) -> 0 | BM86: =IF(SUM(Z102)>0,SUM(Z102),0) -> 0 | BN86: =V102 -> 0 | BO86: =W102 -> 0 | BP86: =X102 -> 0 | BR86: =IF(SUM(V103:X103)>0,SUM(V103:X103),0) -> 0 | BS86: =IF(SUM(Z103)>0,SUM(Z103),0) -> 0 | BT86: =V103 -> 0 | BU86: =W103 -> 0 | BV86: =X103 -> 0 | BX86: =IF(SUM(V104:X104)>0,SUM(V104:X104),0) -> 0 | BY86: =IF(SUM(Z104)>0,SUM(Z104),0) -> 0 | BZ86: =V104 -> 0 | CA86: =W104 -> 0 | CB86: =X104 -> 0 | CD86: =IF(SUM(V105:X105)>0,SUM(V105:X105),0) -> 0 | CE86: =IF(SUM(Z105)>0,SUM(Z105),0) -> 0 | CF86: =V105 -> 0 | CG86: =W105 -> 0 | CH86: =X105 -> 0 | CJ86: =IF(SUM(V106:X106)>0,SUM(V106:X106),0) -> 0 | CK86: =IF(SUM(Z106)>0,SUM(Z106),0) -> 0 | CL86: =V106 -> 0 | CM86: =W106 -> 0 | CN86: =X106 -> 0 | CP86: =IF(SUM(V107:X107)>0,SUM(V107:X107),0) -> 0 | CQ86: =IF(SUM(Z107)>0,SUM(Z107),0) -> 0 | CR86: =V107 -> 0 | CS86: =W107 -> 0 | CT86: =X107 -> 0 | CV86: =IF(SUM(V108:X108)>0,SUM(V108:X108),0) -> 0 | CW86: =IF(SUM(Z108)>0,SUM(Z108),0) -> 0 | CX86: =V108 -> 0 | CY86: =W108 -> 0 | CZ86: =X108 -> 0 | DB86: =IF(SUM(V108:X109)>0,SUM(V109:X109),0) -> 0 | DC86: =IF(SUM(Z109)>0,SUM(Z109),0) -> 0 | DD86: =V109 -> 0 | DE86: =W109 -> 0 | DF86: =X109 -> 0 | DH86: =IF(SUM(V110:X110)>0,SUM(V110:X110),0) -> 0 | DI86: =IF(SUM(Z110)>0,SUM(Z110),0) -> 0 | DJ86: =V110 -> 0 | DK86: =W110 -> 0 | DL86: =X110 -> 0 | DN86: =IF(SUM(V111:X111)>0,SUM(V111:X111),0) -> 0 | DO86: =IF(SUM(Z111)>0,SUM(Z110),0) -> 0 | DP86: =V111 -> 0 | DQ86: =W111 -> 0 | DR86: =X111 -> 0 | DT86: =IF(SUM(V112:X112)>0,SUM(V112:X112),0) -> 0 | DU86: =IF(SUM(Z112)>0,SUM(Z112),0) -> 0 | DV86: =V112 -> 0 | DW86: =W112 -> 0 | DX86: =X112 -> 0 | DZ86: =LARGE((DT86,DN86,DH86,DB86,CV86,CP86,CJ86,CD86,BX86,BR86,BL86,BF86,AZ86,AT86,AN86,AH86),1) -> 272 | EA86: =LARGE((AJ86,AP86,AV86,BB86,BH86,BN86,BT86,BZ86,CF86,CL86,CR86,CX86,DD86,DJ86,DP86,DV86),1) -> 90 | EB86: =LARGE((AK86,AQ86,AW86,BC86,BI86,BO86,BU86,CA86,CG86,CM86,CS86,CY86,DE86,DK86,DQ86,DW86),1) -> 98 | EC86: =LARGE((AL86,AR86,AX86,BD86,BJ86,BP86,BV86,CB86,CH86,CN86,CT86,CZ86,DF86,DL86,DR86,DX86),1) -> 84
A87: @Gordon Central | AA87: =IF(SUM(E87,J87,O87,T87,Y87,Y111,T111,O111,J111,E111,E135,J135,O135,T135,Y135)>0,(LARGE((E87,J87,O87,T87,Y87,Y111,T111,O111,J111,E111,E135,J135,O135,T135,Y135),1)+LARGE((E87,J87,O87,T87,Y87,Y111,T111,O111,J111,E111,E135,J135,O135,T135,Y135),2)+LARGE((E87,J87,O87,T87,Y87,Y111,T111,O111,J111,E111,E135,J135,O135,T135,Y135),3)+LARGE((E87,J87,O87,T87,Y87,Y111,T111,O111,J111,E111,E135,J135,O135,T135,Y135),4)),"") ->  | AB87: =IF(SUM(E87,J87,O87,T87,Y87,Y111,T111,O111,J111,E111,E135,J135,O135,T135,Y135)>0, LARGE((E87,J87,O87,T87,Y87,Y111,T111,O111,J111,E111,E135,J135,O135,T135,Y135),1+LARGE((E87,J87,O87,T87,Y87,Y111,T111,O111,J111,E111,E135,J135,O135,T135,Y135),2)+LARGE((E87,J87,O87,T87,Y87,Y111,T111,O111,J111,E111,E135,J135,O135,T135,Y135),3)+LARGE((E87,J87,O87,T87,Y87,Y111,T111,O111,J111,E111,E135,J135,O135,T135,Y135),4)),"") ->  | AH87: =IF(SUM(B117:D117)>0,SUM(B117:D117),0) -> 0 | AI87: =IF(SUM(F117)>0,SUM(F117),0) -> 0 | AJ87: =B117 -> 0 | AK87: =C117 -> 0 | AL87: =D117 -> 0 | AN87: =IF(SUM(B118:D118)>0,SUM(B118:D118),0) -> 0 | AO87: =IF(SUM(F118)>0,SUM(F118),0) -> 0 | AP87: =B118 -> 0 | AQ87: =C118 -> 0 | AR87: =D118 -> 0 | AT87: =IF(SUM(B119:D119)>0,SUM(B119:D119),0) -> 0 | AU87: =IF(SUM(F119)>0,SUM(F119),0) -> 0 | AV87: =B119 -> 0 | AW87: =C119 -> 0 | AX87: =D119 -> 0 | AZ87: =IF(SUM(B120:D120)>0,SUM(B120:D120),0) -> 0 | BA87: =IF(SUM(F120)>0,SUM(F120),0) -> 0 | BB87: =B120 -> 0 | BC87: =C120 -> 0 | BD87: =D120 -> 0 | BF87: =IF(SUM(B121:D121)>0,SUM(B121:D121),0) -> 0 | BG87: =IF(SUM(F121)>0,SUM(F121),0) -> 0 | BH87: =B121 -> 0 | BI87: =C121 -> 0 | BJ87: =D121 -> 0 | BL87: =IF(SUM(B122:D122)>0,SUM(B122:D122),0) -> 0 | BM87: =IF(SUM(F122)>0,SUM(F122),0) -> 0 | BN87: =B122 -> 0 | BO87: =C122 -> 0 | BP87: =D122 -> 0 | BR87: =IF(SUM(B123:D123)>0,SUM(B123:D123),0) -> 0 | BS87: =IF(SUM(F123)>0,SUM(F123),0) -> 0 | BT87: =B123 -> CK 11 | BU87: =C123 -> 0 | BV87: =D123 -> 0 | BX87: =IF(SUM(B124:D124)>0,SUM(B124:D124),0) -> 0 | BY87: =IF(SUM(F124)>0,SUM(F124),0) -> 0 | BZ87: =B124 -> K | CA87: =C124 -> P | CB87: =D124 -> S | CD87: =IF(SUM(B125:D125)>0,SUM(B125:D125),0) -> 0 | CE87: =IF(SUM(F125)>0,SUM(F125),0) -> 0 | CF87: =B125 -> 0 | CG87: =C125 -> 0 | CH87: =D125 -> 0 | CJ87: =IF(SUM(B126:D126)>0,SUM(B126:D126),0) -> 0 | CK87: =IF(SUM(F126)>0,SUM(F126),0) -> 0 | CL87: =B126 -> 0 | CM87: =C126 -> 0 | CN87: =D126 -> 0 | CP87: =IF(SUM(B127:D127)>0,SUM(B127:D127),0) -> 0 | CQ87: =IF(SUM(F127)>0,SUM(F127),0) -> 0 | CR87: =B127 -> 0 | CS87: =C127 -> 0 | CT87: =D127 -> 0 | CV87: =IF(SUM(B128:D128)>0,SUM(B128:D128),0) -> 0 | CW87: =IF(SUM(F128)>0,SUM(F128),0) -> 0 | CX87: =B128 -> 0 | CY87: =C128 -> 0 | CZ87: =D128 -> 0 | DB87: =IF(SUM(B129:D129)>0,SUM(B129:D129),0) -> 0 | DC87: =IF(SUM(F129)>0,SUM(F129),0) -> 0 | DD87: =B129 -> 0 | DE87: =C129 -> 0 | DF87: =D129 -> 0 | DH87: =IF(SUM(B130:D130)>0,SUM(B130:D130),0) -> 0 | DI87: =IF(SUM(F130)>0,SUM(F130),0) -> 0 | DJ87: =B130 -> 0 | DK87: =C130 -> 0 | DL87: =D130 -> 0 | DN87: =IF(SUM(B131:D131)>0,SUM(B131:D131),0) -> 0 | DO87: =IF(SUM(F131)>0,SUM(F131),0) -> 0 | DP87: =B131 -> 0 | DQ87: =C131 -> 0 | DR87: =D131 -> 0 | DT87: =IF(SUM(B132:D132)>0,SUM(B132:D132),0) -> 0 | DU87: =IF(SUM(F132)>0,SUM(F132),0) -> 0 | DV87: =B132 -> 0 | DW87: =C132 -> 0 | DX87: =D132 -> 0 | DZ87: =LARGE((DT87,DN87,DH87,DB87,CV87,CP87,CJ87,CD87,BX87,BR87,BL87,BF87,AZ87,AT87,AN87,AH87),1) -> 0 | EA87: =LARGE((AJ87,AP87,AV87,BB87,BH87,BN87,BT87,BZ87,CF87,CL87,CR87,CX87,DD87,DJ87,DP87,DV87),1) -> 0 | EB87: =LARGE((AK87,AQ87,AW87,BC87,BI87,BO87,BU87,CA87,CG87,CM87,CS87,CY87,DE87,DK87,DQ87,DW87),1) -> 0 | EC87: =LARGE((AL87,AR87,AX87,BD87,BJ87,BP87,BV87,CB87,CH87,CN87,CT87,CZ87,DF87,DL87,DR87,DX87),1) -> 0
A88: LaFayette | AA88: =IF(SUM(E88,J88,O88,T88,Y88,Y112,T112,O112,J112,E112,E136,J136,O136,T136,Y136)>0,(LARGE((E88,J88,O88,T88,Y88,Y112,T112,O112,J112,E112,E136,J136,O136,T136,Y136),1)+LARGE((E88,J88,O88,T88,Y88,Y112,T112,O112,J112,E112,E136,J136,O136,T136,Y136),2)+LARGE((E88,J88,O88,T88,Y88,Y112,T112,O112,J112,E112,E136,J136,O136,T136,Y136),3)+LARGE((E88,J88,O88,T88,Y88,Y112,T112,O112,J112,E112,E136,J136,O136,T136,Y136),4)),"") ->  | AB88: =IF(SUM(E88,J88,O88,T88,Y88,Y112,T112,O112,J112,E112,E136,J136,O136,T136,Y136)>0, LARGE((E88,J88,O88,T88,Y88,Y112,T112,O112,J112,E112,E136,J136,O136,T136,Y136),1+LARGE((E88,J88,O88,T88,Y88,Y112,T112,O112,J112,E112,E136,J136,O136,T136,Y136),2)+LARGE((E88,J88,O88,T88,Y88,Y112,T112,O112,J112,E112,E136,J136,O136,T136,Y136),3)+LARGE((E88,J88,O88,T88,Y88,Y112,T112,O112,J112,E112,E136,J136,O136,T136,Y136),4)),"") ->  | AH88: =IF(SUM(G117:I117)>0,SUM(G117:I117),0) -> 0 | AI88: =IF(SUM(K117)>0,SUM(K117),0) -> 0 | AJ88: =G117 -> 0 | AK88: =H117 -> 0 | AL88: =I117 -> 0 | AN88: =IF(SUM(G118:I118)>0,SUM(G118:I118),0) -> 0 | AO88: =IF(SUM(K118)>0,SUM(K118),0) -> 0 | AP88: =G118 -> 0 | AQ88: =H118 -> 0 | AR88: =I118 -> 0 | AT88: =IF(SUM(G119:I119)>0,SUM(G119:I119),0) -> 0 | AU88: =IF(SUM(K119)>0,SUM(K119),0) -> 0 | AV88: =G119 -> 0 | AW88: =H119 -> 0 | AX88: =I119 -> 0 | AZ88: =IF(SUM(G120:I120)>0,SUM(G120:I120),0) -> 0 | BA88: =IF(SUM(K120)>0,SUM(K120),0) -> 0 | BB88: =G120 -> 0 | BC88: =H120 -> 0 | BD88: =I120 -> 0 | BF88: =IF(SUM(G121:I121)>0,SUM(G121:I121),0) -> 0 | BG88: =IF(SUM(K121)>0,SUM(K121),0) -> 0 | BH88: =G121 -> 0 | BI88: =H121 -> 0 | BJ88: =I121 -> 0 | BL88: =IF(SUM(G122:I122)>0,SUM(G122:I122),0) -> 0 | BM88: =IF(SUM(K122)>0,SUM(K122),0) -> 0 | BN88: =G122 -> 0 | BO88: =H122 -> 0 | BP88: =I122 -> 0 | BR88: =IF(SUM(G123:I123)>0,SUM(G123:I123),0) -> 0 | BS88: =IF(SUM(K123)>0,SUM(K123),0) -> 0 | BT88: =G123 -> CK 12 | BU88: =H123 -> 0 | BV88: =I123 -> 0 | BX88: =IF(SUM(G124:I124)>0,SUM(G124:I124),0) -> 0 | BY88: =IF(SUM(K124)>0,SUM(K124),0) -> 0 | BZ88: =G124 -> K | CA88: =H124 -> P | CB88: =I124 -> S | CD88: =IF(SUM(G125:I125)>0,SUM(G125:I125),0) -> 0 | CE88: =IF(SUM(K125)>0,SUM(K125),0) -> 0 | CF88: =G125 -> 0 | CG88: =H125 -> 0 | CH88: =I125 -> 0 | CJ88: =IF(SUM(G126:I126)>0,SUM(G126:I126),0) -> 0 | CK88: =IF(SUM(K126)>0,SUM(K126),0) -> 0 | CL88: =G126 -> 0 | CM88: =H126 -> 0 | CN88: =I126 -> 0 | CP88: =IF(SUM(G127:I127)>0,SUM(G127:I127),0) -> 0 | CQ88: =IF(SUM(K127)>0,SUM(K127),0) -> 0 | CR88: =G127 -> 0 | CS88: =H127 -> 0 | CT88: =I127 -> 0 | CV88: =IF(SUM(G128:I128)>0,SUM(G128:I128),0) -> 0 | CW88: =IF(SUM(K128)>0,SUM(K128),0) -> 0 | CX88: =G128 -> 0 | CY88: =H128 -> 0 | CZ88: =I128 -> 0 | DB88: =IF(SUM(G129:I129)>0,SUM(G129:I129),0) -> 0 | DC88: =IF(SUM(K129)>0,SUM(K129),0) -> 0 | DD88: =G129 -> 0 | DE88: =H129 -> 0 | DF88: =I129 -> 0 | DH88: =IF(SUM(G130:I130)>0,SUM(G130:I130),0) -> 0 | DI88: =IF(SUM(K130)>0,SUM(K130),0) -> 0 | DJ88: =G130 -> 0 | DK88: =H130 -> 0 | DL88: =I130 -> 0 | DN88: =IF(SUM(G131:I131)>0,SUM(G131:I131),0) -> 0 | DO88: =IF(SUM(K131)>0,SUM(K131),0) -> 0 | DP88: =G131 -> 0 | DQ88: =H131 -> 0 | DR88: =I131 -> 0 | DT88: =IF(SUM(G132:I132)>0,SUM(G132:I132),0) -> 0 | DU88: =IF(SUM(K132)>0,SUM(K132),0) -> 0 | DV88: =G132 -> 0 | DW88: =H132 -> 0 | DX88: =I132 -> 0 | DZ88: =LARGE((DT88,DN88,DH88,DB88,CV88,CP88,CJ88,CD88,BX88,BR88,BL88,BF88,AZ88,AT88,AN88,AH88),1) -> 0 | EA88: =LARGE((AJ88,AP88,AV88,BB88,BH88,BN88,BT88,BZ88,CF88,CL88,CR88,CX88,DD88,DJ88,DP88,DV88),1) -> 0 | EB88: =LARGE((AK88,AQ88,AW88,BC88,BI88,BO88,BU88,CA88,CG88,CM88,CS88,CY88,DE88,DK88,DQ88,DW88),1) -> 0 | EC88: =LARGE((AL88,AR88,AX88,BD88,BJ88,BP88,BV88,CB88,CH88,CN88,CT88,CZ88,DF88,DL88,DR88,DX88),1) -> 0
A89: @ Dalton | AA89: =IF(SUM(E89,J89,O89,T89,Y89,Y113,T113,O113,J113,E113,E137,J137,O137,T137,Y137)>0,(LARGE((E89,J89,O89,T89,Y89,Y113,T113,O113,J113,E113,E137,J137,O137,T137,Y137),1)+LARGE((E89,J89,O89,T89,Y89,Y113,T113,O113,J113,E113,E137,J137,O137,T137,Y137),2)+LARGE((E89,J89,O89,T89,Y89,Y113,T113,O113,J113,E113,E137,J137,O137,T137,Y137),3)+LARGE((E89,J89,O89,T89,Y89,Y113,T113,O113,J113,E113,E137,J137,O137,T137,Y137),4)),"") ->  | AB89: =IF(SUM(E89,J89,O89,T89,Y89,Y113,T113,O113,J113,E113,E137,J137,O137,T137,Y137)>0, LARGE((E89,J89,O89,T89,Y89,Y113,T113,O113,J113,E113,E137,J137,O137,T137,Y137),1+LARGE((E89,J89,O89,T89,Y89,Y113,T113,O113,J113,E113,E137,J137,O137,T137,Y137),2)+LARGE((E89,J89,O89,T89,Y89,Y113,T113,O113,J113,E113,E137,J137,O137,T137,Y137),3)+LARGE((E89,J89,O89,T89,Y89,Y113,T113,O113,J113,E113,E137,J137,O137,T137,Y137),4)),"") ->  | AH89: =IF(SUM(L117:N117)>0,SUM(L117:N117),0) -> 0 | AI89: =IF(SUM(P117)>0,SUM(P117),0) -> 0 | AJ89: =L117 -> 0 | AK89: =M117 -> 0 | AL89: =N117 -> 0 | AN89: =IF(SUM(L118:N118)>0,SUM(L118:N118),0) -> 0 | AO89: =IF(SUM(P118)>0,SUM(P118),0) -> 0 | AP89: =L118 -> 0 | AQ89: =M118 -> 0 | AR89: =N118 -> 0 | AT89: =IF(SUM(L119:N119)>0,SUM(L119:N119),0) -> 0 | AU89: =IF(SUM(P119)>0,SUM(P119),0) -> 0 | AV89: =L119 -> 0 | AW89: =M119 -> 0 | AX89: =N119 -> 0 | AZ89: =IF(SUM(L120:N120)>0,SUM(L120:N120),0) -> 0 | BA89: =IF(SUM(P120)>0,SUM(P120),0) -> 0 | BB89: =L120 -> 0 | BC89: =M120 -> 0 | BD89: =N120 -> 0 | BF89: =IF(SUM(L121:N121)>0,SUM(L121:N121),0) -> 0 | BG89: =IF(SUM(P121)>0,SUM(P121),0) -> 0 | BH89: =L121 -> 0 | BI89: =M121 -> 0 | BJ89: =N121 -> 0 | BL89: =IF(SUM(L122:N122)>0,SUM(L122:N122),0) -> 0 | BM89: =IF(SUM(P122)>0,SUM(P122),0) -> 0 | BN89: =L122 -> 0 | BO89: =M122 -> 0 | BP89: =N122 -> 0 | BR89: =IF(SUM(L123:N123)>0,SUM(L123:N123),0) -> 0 | BS89: =IF(SUM(P123)>0,SUM(P123),0) -> 0 | BT89: =L123 -> CK 13 | BU89: =M123 -> 0 | BV89: =N123 -> 0 | BX89: =IF(SUM(L124:N124)>0,SUM(L124:N124),0) -> 0 | BY89: =IF(SUM(P124)>0,SUM(P124),0) -> 0 | BZ89: =L124 -> K | CA89: =M124 -> P | CB89: =N124 -> S | CD89: =IF(SUM(L125:N125)>0,SUM(L125:N125),0) -> 0 | CE89: =IF(SUM(P125)>0,SUM(P125),0) -> 0 | CF89: =L125 -> 0 | CG89: =M125 -> 0 | CH89: =N125 -> 0 | CJ89: =IF(SUM(L126:N126)>0,SUM(L126:N126),0) -> 0 | CK89: =IF(SUM(P126)>0,SUM(P126),0) -> 0 | CL89: =L126 -> 0 | CM89: =M126 -> 0 | CN89: =N126 -> 0 | CP89: =IF(SUM(L127:N127)>0,SUM(L127:N127),0) -> 0 | CQ89: =IF(SUM(P127)>0,SUM(P127),0) -> 0 | CR89: =L127 -> 0 | CS89: =M127 -> 0 | CT89: =N127 -> 0 | CV89: =IF(SUM(L128:N128)>0,SUM(L128:N128),0) -> 0 | CW89: =IF(SUM(P128)>0,SUM(P128),0) -> 0 | CX89: =L128 -> 0 | CY89: =M128 -> 0 | CZ89: =N128 -> 0 | DB89: =IF(SUM(L129:N129)>0,SUM(L129:N129),0) -> 0 | DC89: =IF(SUM(P129)>0,SUM(P129),0) -> 0 | DD89: =L129 -> 0 | DE89: =M129 -> 0 | DF89: =N129 -> 0 | DH89: =IF(SUM(L130:N130)>0,SUM(L130:N130),0) -> 0 | DI89: =IF(SUM(P130)>0,SUM(P130),0) -> 0 | DJ89: =L130 -> 0 | DK89: =M130 -> 0 | DL89: =N130 -> 0 | DN89: =IF(SUM(L131:N131)>0,SUM(L131:N131),0) -> 0 | DO89: =IF(SUM(P131)>0,SUM(P131),0) -> 0 | DP89: =L131 -> 0 | DQ89: =M131 -> 0 | DR89: =N131 -> 0 | DT89: =IF(SUM(L132:N132)>0,SUM(L132:N132),0) -> 0 | DU89: =IF(SUM(P132)>0,SUM(P132),0) -> 0 | DV89: =L132 -> 0 | DW89: =M132 -> 0 | DX89: =N132 -> 0 | DZ89: =LARGE((DT89,DN89,DH89,DB89,CV89,CP89,CJ89,CD89,BX89,BR89,BL89,BF89,AZ89,AT89,AN89,AH89),1) -> 0 | EA89: =LARGE((AJ89,AP89,AV89,BB89,BH89,BN89,BT89,BZ89,CF89,CL89,CR89,CX89,DD89,DJ89,DP89,DV89),1) -> 0 | EB89: =LARGE((AK89,AQ89,AW89,BC89,BI89,BO89,BU89,CA89,CG89,CM89,CS89,CY89,DE89,DK89,DQ89,DW89),1) -> 0 | EC89: =LARGE((AL89,AR89,AX89,BD89,BJ89,BP89,BV89,CB89,CH89,CN89,CT89,CZ89,DF89,DL89,DR89,DX89),1) -> 0
A90: Etowah | AA90: =IF(SUM(E90,J90,O90,T90,Y90,Y114,T114,O114,J114,E114,E138,J138,O138,T138,Y138)>0,(LARGE((E90,J90,O90,T90,Y90,Y114,T114,O114,J114,E114,E138,J138,O138,T138,Y138),1)+LARGE((E90,J90,O90,T90,Y90,Y114,T114,O114,J114,E114,E138,J138,O138,T138,Y138),2)+LARGE((E90,J90,O90,T90,Y90,Y114,T114,O114,J114,E114,E138,J138,O138,T138,Y138),3)+LARGE((E90,J90,O90,T90,Y90,Y114,T114,O114,J114,E114,E138,J138,O138,T138,Y138),4)),"") ->  | AB90: =IF(SUM(E90,J90,O90,T90,Y90,Y114,T114,O114,J114,E114,E138,J138,O138,T138,Y138)>0, LARGE((E90,J90,O90,T90,Y90,Y114,T114,O114,J114,E114,E138,J138,O138,T138,Y138),1+LARGE((E90,J90,O90,T90,Y90,Y114,T114,O114,J114,E114,E138,J138,O138,T138,Y138),2)+LARGE((E90,J90,O90,T90,Y90,Y114,T114,O114,J114,E114,E138,J138,O138,T138,Y138),3)+LARGE((E90,J90,O90,T90,Y90,Y114,T114,O114,J114,E114,E138,J138,O138,T138,Y138),4)),"") ->  | AH90: =IF(SUM(Q117:S117)>0,SUM(Q117:S117),0) -> 0 | AI90: =IF(SUM(U117)>0,SUM(U117),0) -> 0 | AJ90: =Q117 -> 0 | AK90: =R117 -> 0 | AL90: =S117 -> 0 | AN90: =IF(SUM(Q118:S118)>0,SUM(Q118:S118),0) -> 0 | AO90: =IF(SUM(U118)>0,SUM(U118),0) -> 0 | AP90: =Q118 -> 0 | AQ90: =R118 -> 0 | AR90: =S118 -> 0 | AT90: =IF(SUM(Q119:S119)>0,SUM(Q119:S119),0) -> 0 | AU90: =IF(SUM(U119)>0,SUM(U119),0) -> 0 | AV90: =Q119 -> 0 | AW90: =R119 -> 0 | AX90: =S119 -> 0 | AZ90: =IF(SUM(Q120:S120)>0,SUM(Q120:S120),0) -> 0 | BA90: =IF(SUM(U120)>0,SUM(U120),0) -> 0 | BB90: =Q120 -> 0 | BC90: =R120 -> 0 | BD90: =S120 -> 0 | BF90: =IF(SUM(Q121:S121)>0,SUM(Q121:S121),0) -> 0 | BG90: =IF(SUM(U121)>0,SUM(U121),0) -> 0 | BH90: =Q121 -> 0 | BI90: =R121 -> 0 | BJ90: =S121 -> 0 | BL90: =IF(SUM(Q122:S122)>0,SUM(Q122:S122),0) -> 0 | BM90: =IF(SUM(U122)>0,SUM(U122),0) -> 0 | BN90: =Q122 -> 0 | BO90: =R122 -> 0 | BP90: =S122 -> 0 | BR90: =IF(SUM(Q123:S123)>0,SUM(Q123:S123),0) -> 0 | BS90: =IF(SUM(U123)>0,SUM(U123),0) -> 0 | BT90: =Q123 -> CK 14 | BU90: =R123 -> 0 | BV90: =S123 -> 0 | BX90: =IF(SUM(Q124:S124)>0,SUM(Q124:S124),0) -> 0 | BY90: =IF(SUM(U124)>0,SUM(U124),0) -> 0 | BZ90: =Q124 -> K | CA90: =R124 -> P | CB90: =S124 -> S | CD90: =IF(SUM(Q125:S125)>0,SUM(Q125:S125),0) -> 0 | CE90: =IF(SUM(U125)>0,SUM(U125),0) -> 0 | CF90: =Q125 -> 0 | CG90: =R125 -> 0 | CH90: =S125 -> 0 | CJ90: =IF(SUM(Q126:S126)>0,SUM(Q126:S126),0) -> 0 | CK90: =IF(SUM(U126)>0,SUM(U126),0) -> 0 | CL90: =Q126 -> 0 | CM90: =R126 -> 0 | CN90: =S126 -> 0 | CP90: =IF(SUM(Q127:S127)>0,SUM(Q127:S127),0) -> 0 | CQ90: =IF(SUM(U127)>0,SUM(U127),0) -> 0 | CR90: =Q127 -> 0 | CS90: =R127 -> 0 | CT90: =S127 -> 0 | CV90: =IF(SUM(Q127:S128)>0,SUM(Q128:S128),0) -> 0 | CW90: =IF(SUM(U128)>0,SUM(U128),0) -> 0 | CX90: =Q128 -> 0 | CY90: =R128 -> 0 | CZ90: =S128 -> 0 | DB90: =IF(SUM(Q129:S129)>0,SUM(Q129:S129),0) -> 0 | DC90: =IF(SUM(U129)>0,SUM(U129),0) -> 0 | DD90: =Q129 -> 0 | DE90: =R129 -> 0 | DF90: =S129 -> 0 | DH90: =IF(SUM(Q130:S130)>0,SUM(Q130:S130),0) -> 0 | DI90: =IF(SUM(U130)>0,SUM(U130),0) -> 0 | DJ90: =Q130 -> 0 | DK90: =R130 -> 0 | DL90: =S130 -> 0 | DN90: =IF(SUM(Q131:S131)>0,SUM(Q131:S131),0) -> 0 | DO90: =IF(SUM(U131)>0,SUM(U131),0) -> 0 | DP90: =Q131 -> 0 | DQ90: =R131 -> 0 | DR90: =S131 -> 0 | DT90: =IF(SUM(Q132:S132)>0,SUM(Q132:S132),0) -> 0 | DU90: =IF(SUM(U132)>0,SUM(U132),0) -> 0 | DV90: =Q132 -> 0 | DW90: =R132 -> 0 | DX90: =S132 -> 0 | DZ90: =LARGE((DT90,DN90,DH90,DB90,CV90,CP90,CJ90,CD90,BX90,BR90,BL90,BF90,AZ90,AT90,AN90,AH90),1) -> 0 | EA90: =LARGE((AJ90,AP90,AV90,BB90,BH90,BN90,BT90,BZ90,CF90,CL90,CR90,CX90,DD90,DJ90,DP90,DV90),1) -> 0 | EB90: =LARGE((AK90,AQ90,AW90,BC90,BI90,BO90,BU90,CA90,CG90,CM90,CS90,CY90,DE90,DK90,DQ90,DW90),1) -> 0 | EC90: =LARGE((AL90,AR90,AX90,BD90,BJ90,BP90,BV90,CB90,CH90,CN90,CT90,CZ90,DF90,DL90,DR90,DX90),1) -> 0
A91: @ Woodstock | AA91: =IF(SUM(E91,J91,O91,T91,Y91,Y115,T115,O115,J115,E115,E139,J139,O139,T139,Y139)>0,(LARGE((E91,J91,O91,T91,Y91,Y115,T115,O115,J115,E115,E139,J139,O139,T139,Y139),1)+LARGE((E91,J91,O91,T91,Y91,Y115,T115,O115,J115,E115,E139,J139,O139,T139,Y139),2)+LARGE((E91,J91,O91,T91,Y91,Y115,T115,O115,J115,E115,E139,J139,O139,T139,Y139),3)+LARGE((E91,J91,O91,T91,Y91,Y115,T115,O115,J115,E115,E139,J139,O139,T139,Y139),4)),"") ->  | AB91: =IF(SUM(E91,J91,O91,T91,Y91,Y115,T115,O115,J115,E115,E139,J139,O139,T139,Y139)>0, LARGE((E91,J91,O91,T91,Y91,Y115,T115,O115,J115,E115,E139,J139,O139,T139,Y139),1+LARGE((E91,J91,O91,T91,Y91,Y115,T115,O115,J115,E115,E139,J139,O139,T139,Y139),2)+LARGE((E91,J91,O91,T91,Y91,Y115,T115,O115,J115,E115,E139,J139,O139,T139,Y139),3)+LARGE((E91,J91,O91,T91,Y91,Y115,T115,O115,J115,E115,E139,J139,O139,T139,Y139),4)),"") ->  | AH91: =IF(SUM(V117:X117)>0,SUM(V117:X117),0) -> 0 | AI91: =IF(SUM(Z117)>0,SUM(Z117),0) -> 0 | AJ91: =V117 -> 0 | AK91: =W117 -> 0 | AL91: =X117 -> 0 | AN91: =IF(SUM(V118:X118)>0,SUM(V118:X118),0) -> 0 | AO91: =IF(SUM(Z118)>0,SUM(Z118),0) -> 0 | AP91: =V118 -> 0 | AQ91: =W118 -> 0 | AR91: =X118 -> 0 | AT91: =IF(SUM(V119:X119)>0,SUM(V119:X119),0) -> 0 | AU91: =IF(SUM(Z119)>0,SUM(Z119),0) -> 0 | AV91: =V119 -> 0 | AW91: =W119 -> 0 | AX91: =X119 -> 0 | AZ91: =IF(SUM(V120:X120)>0,SUM(V120:X120),0) -> 0 | BA91: =IF(SUM(Z120)>0,SUM(Z120),0) -> 0 | BB91: =V120 -> 0 | BC91: =W120 -> 0 | BD91: =X120 -> 0 | BF91: =IF(SUM(V121:X121)>0,SUM(V121:X121),0) -> 0 | BG91: =IF(SUM(Z121)>0,SUM(Z121),0) -> 0 | BH91: =V121 -> 0 | BI91: =W121 -> 0 | BJ91: =X121 -> 0 | BL91: =IF(SUM(V122:X122)>0,SUM(V122:X122),0) -> 0 | BM91: =IF(SUM(Z122)>0,SUM(Z122),0) -> 0 | BN91: =V122 -> 0 | BO91: =W122 -> 0 | BP91: =X122 -> 0 | BR91: =IF(SUM(V123:X123)>0,SUM(V123:X123),0) -> 0 | BS91: =IF(SUM(Z123)>0,SUM(Z123),0) -> 0 | BT91: =V123 -> CK 15 | BU91: =W123 -> 0 | BV91: =X123 -> 0 | BX91: =IF(SUM(V124:X124)>0,SUM(V124:X124),0) -> 0 | BY91: =IF(SUM(Z124)>0,SUM(Z124),0) -> 0 | BZ91: =V124 -> K | CA91: =W124 -> P | CB91: =X124 -> S | CD91: =IF(SUM(V125:X125)>0,SUM(V125:X125),0) -> 0 | CE91: =IF(SUM(Z125)>0,SUM(Z125),0) -> 0 | CF91: =V125 -> 0 | CG91: =W125 -> 0 | CH91: =X125 -> 0 | CJ91: =IF(SUM(V126:X126)>0,SUM(V126:X126),0) -> 0 | CK91: =IF(SUM(Z126)>0,SUM(Z126),0) -> 0 | CL91: =V126 -> 0 | CM91: =W126 -> 0 | CN91: =X126 -> 0 | CP91: =IF(SUM(V127:X127)>0,SUM(V127:X127),0) -> 0 | CQ91: =IF(SUM(Z127)>0,SUM(Z127),0) -> 0 | CR91: =V127 -> 0 | CS91: =W127 -> 0 | CT91: =X127 -> 0 | CV91: =IF(SUM(V128:X128)>0,SUM(V128:X128),0) -> 0 | CW91: =IF(SUM(Z128)>0,SUM(Z128),0) -> 0 | CX91: =V128 -> 0 | CY91: =W128 -> 0 | CZ91: =X128 -> 0 | DB91: =IF(SUM(V129:X129)>0,SUM(V129:X129),0) -> 0 | DC91: =IF(SUM(Z129)>0,SUM(Z129),0) -> 0 | DD91: =V129 -> 0 | DE91: =W129 -> 0 | DF91: =X129 -> 0 | DH91: =IF(SUM(V130:X130)>0,SUM(V130:X130),0) -> 0 | DI91: =IF(SUM(Z130)>0,SUM(Z130),0) -> 0 | DJ91: =V130 -> 0 | DK91: =W130 -> 0 | DL91: =X130 -> 0 | DN91: =IF(SUM(V131:X131)>0,SUM(V131:X131),0) -> 0 | DO91: =IF(SUM(Z131)>0,SUM(Z131),0) -> 0 | DP91: =V131 -> 0 | DQ91: =W131 -> 0 | DR91: =X131 -> 0 | DT91: =IF(SUM(V132:X132)>0,SUM(V132:X132),0) -> 0 | DU91: =IF(SUM(Z132)>0,SUM(Z132),0) -> 0 | DV91: =V132 -> 0 | DW91: =W132 -> 0 | DX91: =X132 -> 0 | DZ91: =LARGE((DT91,DN91,DH91,DB91,CV91,CP91,CJ91,CD91,BX91,BR91,BL91,BF91,AZ91,AT91,AN91,AH91),1) -> 0 | EA91: =LARGE((AJ91,AP91,AV91,BB91,BH91,BN91,BT91,BZ91,CF91,CL91,CR91,CX91,DD91,DJ91,DP91,DV91),1) -> 0 | EB91: =LARGE((AK91,AQ91,AW91,BC91,BI91,BO91,BU91,CA91,CG91,CM91,CS91,CY91,DE91,DK91,DQ91,DW91),1) -> 0 | EC91: =LARGE((AL91,AR91,AX91,BD91,BJ91,BP91,BV91,CB91,CH91,CN91,CT91,CZ91,DF91,DL91,DR91,DX91),1) -> 0
A92: Allatoona | AA92: =IF(SUM(E92,J92,O92,T92,Y92,Y116,T116,O116,J116,E116,E140,J140,O140,T140,Y140)>0,(LARGE((E92,J92,O92,T92,Y92,Y116,T116,O116,J116,E116,E140,J140,O140,T140,Y140),1)+LARGE((E92,J92,O92,T92,Y92,Y116,T116,O116,J116,E116,E140,J140,O140,T140,Y140),2)+LARGE((E92,J92,O92,T92,Y92,Y116,T116,O116,J116,E116,E140,J140,O140,T140,Y140),3)+LARGE((E92,J92,O92,T92,Y92,Y116,T116,O116,J116,E116,E140,J140,O140,T140,Y140),4)),"") ->  | AB92: =IF(SUM(E92,J92,O92,T92,Y92,Y116,T116,O116,J116,E116,E140,J140,O140,T140,Y140)>0, LARGE((E92,J92,O92,T92,Y92,Y116,T116,O116,J116,E116,E140,J140,O140,T140,Y140),1+LARGE((E92,J92,O92,T92,Y92,Y116,T116,O116,J116,E116,E140,J140,O140,T140,Y140),2)+LARGE((E92,J92,O92,T92,Y92,Y116,T116,O116,J116,E116,E140,J140,O140,T140,Y140),3)+LARGE((E92,J92,O92,T92,Y92,Y116,T116,O116,J116,E116,E140,J140,O140,T140,Y140),4)),"") ->  | AH92: =SUM(AH77:AH91) -> 2774 | AI92: 44 | AJ92: 936 | AK92: 960 | AL92: 878 | AN92: =SUM(AN77:AN91) -> 0 | AO92: 0 | AP92: 0 | AQ92: 0 | AR92: 0 | AT92: =SUM(AT77:AT91) -> 0 | AU92: 0 | AV92: 0 | AW92: 0 | AX92: 0 | AZ92: =SUM(AZ77:AZ91) -> 0 | BA92: 0 | BB92: 0 | BC92: 0 | BD92: 0 | BF92: =SUM(BF77:BF91) -> 0 | BG92: 0 | BH92: 0 | BI92: 0 | BJ92: 0 | BL92: =SUM(BL77:BL91) -> 0 | BM92: 0 | BN92: 0 | BO92: 0 | BP92: 0 | BR92: =SUM(BR77:BR91) -> 0 | BS92: 0 | BT92: 0 | BU92: 0 | BV92: 0 | BX92: =SUM(BX77:BX91) -> 0 | BY92: 0 | BZ92: 0 | CA92: 0 | CB92: 0 | CD92: =SUM(CD77:CD91) -> 0 | CE92: 0 | CF92: 0 | CG92: 0 | CH92: 0 | CJ92: =SUM(CJ77:CJ91) -> 0 | CK92: 0 | CL92: 0 | CM92: 0 | CN92: 0 | CP92: =SUM(CP77:CP91) -> 0 | CQ92: 0 | CR92: 0 | CS92: 0 | CT92: 0 | CV92: =SUM(CV77:CV91) -> 0 | CW92: 0 | CX92: 0 | CY92: 0 | CZ92: 0 | DB92: =SUM(DB77:DB91) -> 0 | DC92: 0 | DD92: 0 | DE92: 0 | DF92: 0 | DH92: =SUM(DH77:DH91) -> 0 | DI92: 0 | DJ92: 0 | DK92: 0 | DL92: 0 | DN92: =SUM(DN77:DN91) -> 0 | DO92: =SUM(DO77:DO91) -> 0 | DP92: =SUM(DP77:DP91) -> 0 | DQ92: =SUM(DQ77:DQ91) -> 0 | DR92: =SUM(DR77:DR91) -> 0 | DT92: =SUM(DT77:DT91) -> 0 | DU92: =SUM(DU77:DU91) -> 0 | DV92: =SUM(DV77:DV91) -> 0 | DW92: =SUM(DW77:DW91) -> 0 | DX92: =SUM(DX77:DX91) -> 0 | DZ92: =LARGE((DT92,DN92,DH92,DB92,CV92,CP92,CJ92,CD92,BX92,BR92,BL92,BF92,AZ92,AT92,AN92,AH92),1) -> 2774 | EA92: =LARGE((AJ92,AP92,AV92,BB92,BH92,BN92,BT92,BZ92,CF92,CL92,CR92,CX92,DD92,DJ92,DP92,DV92),1) -> 936 | EB92: =LARGE((AK92,AQ92,AW92,BC92,BI92,BO92,BU92,CA92,CG92,CM92,CS92,CY92,DE92,DK92,DQ92,DW92),1) -> 960 | EC92: =LARGE((AL92,AR92,AX92,BD92,BJ92,BP92,BV92,CB92,CH92,CN92,CT92,CZ92,DF92,DL92,DR92,DX92),1) -> 878
A93: BYE | AA93: =IF(SUM(E93,J93,O93,T93,Y93,Y117,T117,O117,J117,E117,E141,J141,O141,T141,Y141)>0,(LARGE((E93,J93,O93,T93,Y93,Y117,T117,O117,J117,E117,E141,J141,O141,T141,Y141),1)+LARGE((E93,J93,O93,T93,Y93,Y117,T117,O117,J117,E117,E141,J141,O141,T141,Y141),2)+LARGE((E93,J93,O93,T93,Y93,Y117,T117,O117,J117,E117,E141,J141,O141,T141,Y141),3)+LARGE((E93,J93,O93,T93,Y93,Y117,T117,O117,J117,E117,E141,J141,O141,T141,Y141),4)),"") ->  | AB93: =IF(SUM(E93,J93,O93,T93,Y93,Y117,T117,O117,J117,E117,E141,J141,O141,T141,Y141)>0, LARGE((E93,J93,O93,T93,Y93,Y117,T117,O117,J117,E117,E141,J141,O141,T141,Y141),1+LARGE((E93,J93,O93,T93,Y93,Y117,T117,O117,J117,E117,E141,J141,O141,T141,Y141),2)+LARGE((E93,J93,O93,T93,Y93,Y117,T117,O117,J117,E117,E141,J141,O141,T141,Y141),3)+LARGE((E93,J93,O93,T93,Y93,Y117,T117,O117,J117,E117,E141,J141,O141,T141,Y141),4)),"") ->  | AH93: =SUM(AH78:AH92) -> 5271 | AI93: 77 | AJ93: 1777 | AK93: 1824 | AL93: 1670 | AN93: =SUM(AN78:AN92) -> 0 | AO93: 0 | AP93: 0 | AQ93: 0 | AR93: 0 | AT93: =SUM(AT78:AT92) -> 0 | AU93: 0 | AV93: 0 | AW93: 0 | AX93: 0 | AZ93: =SUM(AZ78:AZ92) -> 0 | BA93: 0 | BB93: 0 | BC93: 0 | BD93: 0 | BF93: =SUM(BF78:BF92) -> 0 | BG93: 0 | BH93: 0 | BI93: 0 | BJ93: 0 | BL93: =SUM(BL78:BL92) -> 0 | BM93: 0 | BN93: 0 | BO93: 0 | BP93: 0 | BR93: =SUM(BR78:BR92) -> 0 | BS93: 0 | BT93: 0 | BU93: 0 | BV93: 0 | BX93: =SUM(BX78:BX92) -> 0 | BY93: 0 | BZ93: 0 | CA93: 0 | CB93: 0 | CD93: =SUM(CD78:CD92) -> 0 | CE93: 0 | CF93: 0 | CG93: 0 | CH93: 0 | CJ93: =SUM(CJ78:CJ92) -> 0 | CK93: 0 | CL93: 0 | CM93: 0 | CN93: 0 | CP93: =SUM(CP78:CP92) -> 0 | CQ93: 0 | CR93: 0 | CS93: 0 | CT93: 0 | CV93: =SUM(CV78:CV92) -> 0 | CW93: 0 | CX93: 0 | CY93: 0 | CZ93: 0 | DB93: =SUM(DB78:DB92) -> 0 | DC93: 0 | DD93: 0 | DE93: 0 | DF93: 0 | DH93: =SUM(DH78:DH92) -> 0 | DI93: 0 | DJ93: 0 | DK93: 0 | DL93: 0 | DN93: =SUM(DN78:DN92) -> 0 | DO93: 0 | DP93: 0 | DQ93: 0 | DR93: 0 | DT93: =SUM(DT78:DT92) -> 0 | DU93: =SUM(DU78:DU92) -> 0 | DV93: =SUM(DV78:DV92) -> 0 | DW93: =SUM(DW78:DW92) -> 0 | DX93: =SUM(DX78:DX92) -> 0 | DZ93: =LARGE((DT93,DN93,DH93,DB93,CV93,CP93,CJ93,CD93,BX93,BR93,BL93,BF93,AZ93,AT93,AN93,AH93),1) -> 5271 | EA93: =LARGE((AJ93,AP93,AV93,BB93,BH93,BN93,BT93,BZ93,CF93,CL93,CR93,CX93,DD93,DJ93,DP93,DV93),1) -> 1777 | EB93: =LARGE((AK93,AQ93,AW93,BC93,BI93,BO93,BU93,CA93,CG93,CM93,CS93,CY93,DE93,DK93,DQ93,DW93),1) -> 1824 | EC93: =LARGE((AL93,AR93,AX93,BD93,BJ93,BP93,BV93,CB93,CH93,CN93,CT93,CZ93,DF93,DL93,DR93,DX93),1) -> 1670
A94: @ Ridgeland | AA94: =IF(SUM(E94,J94,O94,T94,Y94,Y118,T118,O118,J118,E118,E142,J142,O142,T142,Y142)>0,(LARGE((E94,J94,O94,T94,Y94,Y118,T118,O118,J118,E118,E142,J142,O142,T142,Y142),1)+LARGE((E94,J94,O94,T94,Y94,Y118,T118,O118,J118,E118,E142,J142,O142,T142,Y142),2)+LARGE((E94,J94,O94,T94,Y94,Y118,T118,O118,J118,E118,E142,J142,O142,T142,Y142),3)+LARGE((E94,J94,O94,T94,Y94,Y118,T118,O118,J118,E118,E142,J142,O142,T142,Y142),4)),"") ->  | AB94: =IF(SUM(E94,J94,O94,T94,Y94,Y118,T118,O118,J118,E118,E142,J142,O142,T142,Y142)>0, LARGE((E94,J94,O94,T94,Y94,Y118,T118,O118,J118,E118,E142,J142,O142,T142,Y142),1+LARGE((E94,J94,O94,T94,Y94,Y118,T118,O118,J118,E118,E142,J142,O142,T142,Y142),2)+LARGE((E94,J94,O94,T94,Y94,Y118,T118,O118,J118,E118,E142,J142,O142,T142,Y142),3)+LARGE((E94,J94,O94,T94,Y94,Y118,T118,O118,J118,E118,E142,J142,O142,T142,Y142),4)),"") ->  | AH94: =SUM(AH79:AH93) -> 10266 | AI94: 149 | AJ94: 3461 | AK94: 3553 | AL94: 3252 | AN94: =SUM(AN79:AN93) -> 0 | AO94: 0 | AP94: 0 | AQ94: 0 | AR94: 0 | AT94: =SUM(AT79:AT93) -> 0 | AU94: 0 | AV94: 0 | AW94: 0 | AX94: 0 | AZ94: =SUM(AZ79:AZ93) -> 0 | BA94: 0 | BB94: 0 | BC94: 0 | BD94: 0 | BF94: =SUM(BF79:BF93) -> 0 | BG94: 0 | BH94: 0 | BI94: 0 | BJ94: 0 | BL94: =SUM(BL79:BL93) -> 0 | BM94: 0 | BN94: 0 | BO94: 0 | BP94: 0 | BR94: =SUM(BR79:BR93) -> 0 | BS94: 0 | BT94: 0 | BU94: 0 | BV94: 0 | BX94: =SUM(BX79:BX93) -> 0 | BY94: 0 | BZ94: 0 | CA94: 0 | CB94: 0 | CD94: =SUM(CD79:CD93) -> 0 | CE94: 0 | CF94: 0 | CG94: 0 | CH94: 0 | CJ94: =SUM(CJ79:CJ93) -> 0 | CK94: 0 | CL94: 0 | CM94: 0 | CN94: 0 | CP94: =SUM(CP79:CP93) -> 0 | CQ94: 0 | CR94: 0 | CS94: 0 | CT94: 0 | CV94: =SUM(CV79:CV93) -> 0 | CW94: 0 | CX94: 0 | CY94: 0 | CZ94: 0 | DB94: =SUM(DB79:DB93) -> 0 | DC94: 0 | DD94: 0 | DE94: 0 | DF94: 0 | DH94: =SUM(DH79:DH93) -> 0 | DI94: 0 | DJ94: 0 | DK94: 0 | DL94: 0 | DN94: =SUM(DN79:DN93) -> 0 | DO94: 0 | DP94: 0 | DQ94: 0 | DR94: 0 | DT94: 0 | DU94: 0 | DV94: 0 | DW94: 0 | DX94: 0 | DZ94: =LARGE((DT94,DN94,DH94,DB94,CV94,CP94,CJ94,CD94,BX94,BR94,BL94,BF94,AZ94,AT94,AN94,AH94),1) -> 10266 | EA94: =LARGE((AJ94,AP94,AV94,BB94,BH94,BN94,BT94,BZ94,CF94,CL94,CR94,CX94,DD94,DJ94,DP94,DV94),1) -> 3461 | EB94: =LARGE((AK94,AQ94,AW94,BC94,BI94,BO94,BU94,CA94,CG94,CM94,CS94,CY94,DE94,DK94,DQ94,DW94),1) -> 3553 | EC94: =LARGE((AL94,AR94,AX94,BD94,BJ94,BP94,BV94,CB94,CH94,CN94,CT94,CZ94,DF94,DL94,DR94,DX94),1) -> 3252
A95: Area Sectional/Playoff | AA95: =IF(SUM(E95,J95,O95,T95,Y95,Y119,T119,O119,J119,E119,E143,J143,O143,T143,Y143)>0,(LARGE((E95,J95,O95,T95,Y95,Y119,T119,O119,J119,E119,E143,J143,O143,T143,Y143),1)+LARGE((E95,J95,O95,T95,Y95,Y119,T119,O119,J119,E119,E143,J143,O143,T143,Y143),2)+LARGE((E95,J95,O95,T95,Y95,Y119,T119,O119,J119,E119,E143,J143,O143,T143,Y143),3)+LARGE((E95,J95,O95,T95,Y95,Y119,T119,O119,J119,E119,E143,J143,O143,T143,Y143),4)),"") ->  | AB95: =IF(SUM(E95,J95,O95,T95,Y95,Y119,T119,O119,J119,E119,E143,J143,O143,T143,Y143)>0, LARGE((E95,J95,O95,T95,Y95,Y119,T119,O119,J119,E119,E143,J143,O143,T143,Y143),1+LARGE((E95,J95,O95,T95,Y95,Y119,T119,O119,J119,E119,E143,J143,O143,T143,Y143),2)+LARGE((E95,J95,O95,T95,Y95,Y119,T119,O119,J119,E119,E143,J143,O143,T143,Y143),3)+LARGE((E95,J95,O95,T95,Y95,Y119,T119,O119,J119,E119,E143,J143,O143,T143,Y143),4)),"") ->  | AH95: =SUM(AH80:AH94) -> 20247 | AI95: 285 | AJ95: 6829 | AK95: 7008 | AL95: 6410 | AN95: =SUM(AN80:AN94) -> 0 | AO95: 0 | AP95: 0 | AQ95: 0 | AR95: 0 | AT95: =SUM(AT80:AT94) -> 0 | AU95: 0 | AV95: 0 | AW95: 0 | AX95: 0 | AZ95: =SUM(AZ80:AZ94) -> 0 | BA95: 0 | BB95: 0 | BC95: 0 | BD95: 0 | BF95: =SUM(BF80:BF94) -> 0 | BG95: 0 | BH95: 0 | BI95: 0 | BJ95: 0 | BL95: =SUM(BL80:BL94) -> 0 | BM95: 0 | BN95: 0 | BO95: 0 | BP95: 0 | BR95: =SUM(BR80:BR94) -> 0 | BS95: 0 | BT95: 0 | BU95: 0 | BV95: 0 | BX95: =SUM(BX80:BX94) -> 0 | BY95: 0 | BZ95: 0 | CA95: 0 | CB95: 0 | CD95: =SUM(CD80:CD94) -> 0 | CE95: 0 | CF95: 0 | CG95: 0 | CH95: 0 | CJ95: =SUM(CJ80:CJ94) -> 0 | CK95: 0 | CL95: 0 | CM95: 0 | CN95: 0 | CP95: =SUM(CP80:CP94) -> 0 | CQ95: 0 | CR95: 0 | CS95: 0 | CT95: 0 | CV95: =SUM(CV80:CV94) -> 0 | CW95: 0 | CX95: 0 | CY95: 0 | CZ95: 0 | DB95: =SUM(DB80:DB94) -> 0 | DC95: 0 | DD95: 0 | DE95: 0 | DF95: 0 | DH95: =SUM(DH80:DH94) -> 0 | DI95: 0 | DJ95: 0 | DK95: 0 | DL95: 0 | DN95: =SUM(DN80:DN94) -> 0 | DO95: 0 | DP95: 0 | DQ95: 0 | DR95: 0 | DT95: 0 | DU95: 0 | DV95: 0 | DW95: 0 | DX95: 0 | DZ95: =LARGE((DT95,DN95,DH95,DB95,CV95,CP95,CJ95,CD95,BX95,BR95,BL95,BF95,AZ95,AT95,AN95,AH95),1) -> 20247 | EA95: =LARGE((AJ95,AP95,AV95,BB95,BH95,BN95,BT95,BZ95,CF95,CL95,CR95,CX95,DD95,DJ95,DP95,DV95),1) -> 6829 | EB95: =LARGE((AK95,AQ95,AW95,BC95,BI95,BO95,BU95,CA95,CG95,CM95,CS95,CY95,DE95,DK95,DQ95,DW95),1) -> 7008 | EC95: =LARGE((AL95,AR95,AX95,BD95,BJ95,BP95,BV95,CB95,CH95,CN95,CT95,CZ95,DF95,DL95,DR95,DX95),1) -> 6410
A96: Area Championship | AA96: =IF(SUM(E96,J96,O96,T96,Y96,Y120,T120,O120,J120,E120,E144,J144,O144,T144,Y144)>0,(LARGE((E96,J96,O96,T96,Y96,Y120,T120,O120,J120,E120,E144,J144,O144,T144,Y144),1)+LARGE((E96,J96,O96,T96,Y96,Y120,T120,O120,J120,E120,E144,J144,O144,T144,Y144),2)+LARGE((E96,J96,O96,T96,Y96,Y120,T120,O120,J120,E120,E144,J144,O144,T144,Y144),3)+LARGE((E96,J96,O96,T96,Y96,Y120,T120,O120,J120,E120,E144,J144,O144,T144,Y144),4)),"") ->  | AB96: =IF(SUM(E96,J96,O96,T96,Y96,Y120,T120,O120,J120,E120,E144,J144,O144,T144,Y144)>0, LARGE((E96,J96,O96,T96,Y96,Y120,T120,O120,J120,E120,E144,J144,O144,T144,Y144),1+LARGE((E96,J96,O96,T96,Y96,Y120,T120,O120,J120,E120,E144,J144,O144,T144,Y144),2)+LARGE((E96,J96,O96,T96,Y96,Y120,T120,O120,J120,E120,E144,J144,O144,T144,Y144),3)+LARGE((E96,J96,O96,T96,Y96,Y120,T120,O120,J120,E120,E144,J144,O144,T144,Y144),4)),"") ->  | AH96: =SUM(AH81:AH95) -> 40217 | AI96: 561 | AJ96: 13561 | AK96: 13923 | AL96: 12733 | AN96: =SUM(AN81:AN95) -> 0 | AO96: 0 | AP96: 0 | AQ96: 0 | AR96: 0 | AT96: =SUM(AT81:AT95) -> 0 | AU96: 0 | AV96: 0 | AW96: 0 | AX96: 0 | AZ96: =SUM(AZ81:AZ95) -> 0 | BA96: 0 | BB96: 0 | BC96: 0 | BD96: 0 | BF96: =SUM(BF81:BF95) -> 0 | BG96: 0 | BH96: 0 | BI96: 0 | BJ96: 0 | BL96: =SUM(BL81:BL95) -> 0 | BM96: 0 | BN96: 0 | BO96: 0 | BP96: 0 | BR96: =SUM(BR81:BR95) -> 0 | BS96: 0 | BT96: 0 | BU96: 0 | BV96: 0 | BX96: =SUM(BX81:BX95) -> 0 | BY96: 0 | BZ96: 0 | CA96: 0 | CB96: 0 | CD96: =SUM(CD81:CD95) -> 0 | CE96: 0 | CF96: 0 | CG96: 0 | CH96: 0 | CJ96: =SUM(CJ81:CJ95) -> 0 | CK96: 0 | CL96: 0 | CM96: 0 | CN96: 0 | CP96: =SUM(CP81:CP95) -> 0 | CQ96: 0 | CR96: 0 | CS96: 0 | CT96: 0 | CV96: =SUM(CV81:CV95) -> 0 | CW96: 0 | CX96: 0 | CY96: 0 | CZ96: 0 | DB96: =SUM(DB81:DB95) -> 0 | DC96: 0 | DD96: 0 | DE96: 0 | DF96: 0 | DH96: =SUM(DH81:DH95) -> 0 | DI96: 0 | DJ96: 0 | DK96: 0 | DL96: 0 | DN96: =SUM(DN81:DN95) -> 0 | DO96: 0 | DP96: 0 | DQ96: 0 | DR96: 0 | DT96: 0 | DU96: 0 | DV96: 0 | DW96: 0 | DX96: 0
A97: Average | B97: =IF(SUM(B77:B96)=0,0,AVERAGE(B77:B96)) -> 95 | C97: =IF(SUM(C77:C96)=0,0,AVERAGE(C77:C96)) -> 96 | D97: =IF(SUM(D77:D96)=0,0,AVERAGE(D77:D96)) -> 86 | E97: =IF(SUM(E77:E96)=0,0,AVERAGE(E77:E96)) -> 277 | G97: =IF(SUM(G77:G96)=0,0,AVERAGE(G77:G96)) -> 93 | H97: =IF(SUM(H77:H96)=0,0,AVERAGE(H77:H96)) -> 95 | I97: =IF(SUM(I77:I96)=0,0,AVERAGE(I77:I96)) -> 88 | J97: =IF(SUM(J77:J96)=0,0,AVERAGE(J77:J96)) -> 276 | L97: =IF(SUM(L77:L96)=0,0,AVERAGE(L77:L96)) -> 93 | M97: =IF(SUM(M77:M96)=0,0,AVERAGE(M77:M96)) -> 98 | N97: =IF(SUM(N77:N96)=0,0,AVERAGE(N77:N96)) -> 94 | O97: =IF(SUM(O77:O96)=0,0,AVERAGE(O77:O96)) -> 285 | Q97: =IF(SUM(Q77:Q96)=0,0,AVERAGE(Q77:Q96)) -> 97 | R97: =IF(SUM(R77:R96)=0,0,AVERAGE(R77:R96)) -> 93 | S97: =IF(SUM(S77:S96)=0,0,AVERAGE(S77:S96)) -> 87 | T97: =IF(SUM(T77:T96)=0,0,AVERAGE(T77:T96)) -> 277 | V97: =IF(SUM(V77:V96)=0,0,AVERAGE(V77:V96)) -> 90 | W97: =IF(SUM(W77:W96)=0,0,AVERAGE(W77:W96)) -> 98 | X97: =IF(SUM(X77:X96)=0,0,AVERAGE(X77:X96)) -> 84 | Y97: =IF(SUM(Y77:Y96)=0,0,AVERAGE(Y77:Y96)) -> 272 | AA97: =IF(SUM(AA77:AA96)=0,0,AVERAGE(AA77:AA96)) -> 1115 | AB97: =IF(SUM(AB77:AB96)=0,0,AVERAGE(AB77:AB96)) -> 38 | AK97: =TEXT(AH77, "000")&TEXT(AI77, "-00") & TEXT(AL77, "-000") & TEXT(AK77, "-000") & TEXT(AJ77, "-000") -> 277-11-086-096-095 | AL97: =COUNTIF(AK97:AK111, ">=" & AK97) -> 3 | AM97: =RANK(AL97,AL97:AL111,1)+COUNTIF(AK97:AK97,AK97)-1 -> 3 | AQ97: =TEXT(AN77, "000") & TEXT(AO77, "-00") & TEXT(AR77, "-000") & TEXT(AQ77, "-000") & TEXT(AP77, "-000") -> 000-00-000-000-000 | AR97: =COUNTIF(AQ97:AQ111, ">=" & AQ97) -> 15 | AS97: =RANK(AR97,AR97:AR111,1)+COUNTIF(AQ97:AQ97,AQ97)-1 -> 1 | AW97: =TEXT(AT77, "000") & TEXT(AU77, "-00") & TEXT(AX77, "-000") & TEXT(AW77, "-000") & TEXT(AV77, "-000") -> 000-00-000-000-000 | AX97: =COUNTIF(AW97:AW111, ">=" & AW97) -> 15 | AY97: =RANK(AX97,AX97:AX111,1)+COUNTIF(AW97:AW97,AW97)-1 -> 6 | BC97: =TEXT(AZ77, "000") & TEXT(BA77, "-00") & TEXT(BD77, "-000") & TEXT(BC77, "-000") & TEXT(BB77, "-000") -> 000-00-000-000-000 | BD97: =COUNTIF(BC97:BC111, ">=" & BC97) -> 15 | BE97: =RANK(BD97,BD97:BD111,1)+COUNTIF(BC97:BC97,BC97)-1 -> 6 | BI97: =TEXT(BF77, "000") & TEXT(BG77, "-00") & TEXT(BJ77, "-000") & TEXT(BI77, "-000") & TEXT(BH77, "-000") -> 000-00-000-000-000 | BJ97: =COUNTIF(BI97:BI111, ">=" & BI97) -> 15 | BK97: =RANK(BJ97,BJ97:BJ111,1)+COUNTIF(BI97:BI97,BI97)-1 -> 1 | BO97: =TEXT(BL77, "000") & TEXT(BM77, "-00") & TEXT(BP77, "-000") & TEXT(BO77, "-000") & TEXT(BN77, "-000") -> 000-00-000-000-000 | BP97: =COUNTIF(BO97:BO111, ">=" & BO97) -> 15 | BQ97: =RANK(BP97,BP97:BP111,1)+COUNTIF(BO97:BO97,BO97)-1 -> 1 | BU97: =TEXT(BR77, "000") & TEXT(BS77, "-00") & TEXT(BV77, "-000") & TEXT(BU77, "-000") & TEXT(BT77, "-000") -> 000-00-000-000-000 | BV97: =COUNTIF(BU97:BU111, ">=" & BU97) -> 15 | BW97: =RANK(BV97,BV97:BV111,1)+COUNTIF(BU97:BU97,BU97)-1 -> 6 | CA97: =TEXT(BX77, "000") & TEXT(BY77, "-00") & TEXT(CB77, "-000") & TEXT(CA77, "-000") & TEXT(BZ77, "-000") -> 000-00-000-000-000 | CB97: =COUNTIF(CA97:CA111, ">=" & CA97) -> 15 | CC97: =RANK(CB97,CB97:CB111,1)+COUNTIF(CA97:CA97,CA97)-1 -> 6 | CG97: =TEXT(CD77, "000") & TEXT(CE77, "-00") & TEXT(CH77, "-000") & TEXT(CG77, "-000") & TEXT(CF77, "-000") -> 000-00-000-000-000 | CH97: =COUNTIF(CG97:CG111, ">=" & CG97) -> 15 | CI97: =RANK(CH97,CH97:CH111,1)+COUNTIF(CG97:CG97,CG97)-1 -> 1 | CM97: =TEXT(CJ77, "000") & TEXT(CK77, "-00") & TEXT(CN77, "-000") & TEXT(CM77, "-000") & TEXT(CL77, "-000") -> 000-00-000-000-000 | CN97: =COUNTIF(CM97:CM111, ">=" & CM97) -> 15 | CO97: =RANK(CN97,CN97:CN111,1)+COUNTIF(CM97:CM97,CM97)-1 -> 1 | CS97: =TEXT(CP77, "000") & TEXT(CQ77, "-00") & TEXT(CT77, "-000") & TEXT(CS77, "-000") & TEXT(CR77, "-000") -> 000-00-000-000-000 | CT97: =COUNTIF(CS97:CS111, ">=" & CS97) -> 15 | CU97: =RANK(CT97,CT97:CT111,1)+COUNTIF(CS97:CS97,CS97)-1 -> 1 | CY97: =TEXT(CV77, "000") & TEXT(CW77, "-00") & TEXT(CZ77, "-000") & TEXT(CY77, "-000") & TEXT(CX77, "-000") -> 000-00-000-000-000 | CZ97: =COUNTIF(CY97:CY111, ">=" & CY97) -> 15 | DA97: =RANK(CZ97,CZ97:CZ111,1)+COUNTIF(CY97:CY97,CY97)-1 -> 1 | DE97: =TEXT(DB77, "000") & TEXT(DC77, "-00") & TEXT(DF77, "-000") & TEXT(DE77, "-000") & TEXT(DD77, "-000") -> 000-00-000-000-000 | DF97: =COUNTIF(DE97:DE111, ">=" & DE97) -> 15 | DG97: =RANK(DF97,DF97:DF111,1)+COUNTIF(DE97:DE97,DE97)-1 -> 1 | DK97: =TEXT(DH77, "000") & TEXT(DI77, "-00") & TEXT(DL77, "-000") & TEXT(DK77, "-000") & TEXT(DJ77, "-000") -> 000-00-000-000-000 | DL97: =COUNTIF(DK97:DK111, ">=" & DK97) -> 15 | DM97: =RANK(DL97,DL97:DL111,1)+COUNTIF(DK97:DK97,DK97)-1 -> 1 | DQ97: =TEXT(DN77, "000") & TEXT(DO77, "-00") & TEXT(DR77, "-000") & TEXT(DQ77, "-000") & TEXT(DP77, "-000") -> 000-00-000-000-000 | DR97: =COUNTIF(DQ97:DQ111, ">=" & DQ97) -> 15 | DS97: =RANK(DR97,DR97:DR111,1)+COUNTIF(DQ97:DQ97,DQ97)-1 -> 1 | DW97: =TEXT(DT77, "000") & TEXT(DU77, "-00") & TEXT(DX77, "-000") & TEXT(DW77, "-000") & TEXT(DV77, "-000") -> 000-00-000-000-000 | DX97: =COUNTIF(DW97:DW111, ">=" & DW97) -> 15 | DY97: =RANK(DX97,DX97:DX111,1)+COUNTIF(DW97:DW97,DW97)-1 -> 1
A98: CK | AC98: =A98 -> CK | AK98: 276-05-088-095-093 | AL98: =COUNTIF(AK97:AK111, ">=" & AK98) -> 7 | AM98: =RANK(AL98,AL97:AL111,1)+COUNTIF(AK97:AK98,AK98)-1 -> 7 | AQ98: 000-00-000-000-000 | AR98: =COUNTIF(AQ97:AQ111, ">=" & AQ98) -> 15 | AS98: =RANK(AR98,AR97:AR111,1)+COUNTIF(AQ97:AQ98,AQ98)-1 -> 2 | AW98: 000-00-000-000-000 | AX98: =COUNTIF(AW97:AW111, ">=" & AW98) -> 15 | AY98: =RANK(AX98,AX97:AX111,1)+COUNTIF(AW97:AW98,AW98)-1 -> 7 | BC98: 000-00-000-000-000 | BD98: =COUNTIF(BC97:BC111, ">=" & BC98) -> 15 | BE98: =RANK(BD98,BD97:BD111,1)+COUNTIF(BC97:BC98,BC98)-1 -> 7 | BI98: 000-00-000-000-000 | BJ98: =COUNTIF(BI97:BI111, ">=" & BI98) -> 15 | BK98: =RANK(BJ98,BJ97:BJ111,1)+COUNTIF(BI97:BI98,BI98)-1 -> 2 | BO98: 000-00-000-000-000 | BP98: =COUNTIF(BO97:BO111, ">=" & BO98) -> 15 | BQ98: =RANK(BP98,BP97:BP111,1)+COUNTIF(BO97:BO98,BO98)-1 -> 2 | BU98: 000-00-000-000-000 | BV98: =COUNTIF(BU97:BU111, ">=" & BU98) -> 15 | BW98: =RANK(BV98,BV97:BV111,1)+COUNTIF(BU97:BU98,BU98)-1 -> 7 | CA98: 000-00-000-000-000 | CB98: =COUNTIF(CA97:CA111, ">=" & CA98) -> 15 | CC98: =RANK(CB98,CB97:CB111,1)+COUNTIF(CA97:CA98,CA98)-1 -> 7 | CG98: 000-00-000-000-000 | CH98: =COUNTIF(CG97:CG111, ">=" & CG98) -> 15 | CI98: =RANK(CH98,CH97:CH111,1)+COUNTIF(CG97:CG98,CG98)-1 -> 2 | CM98: 000-00-000-000-000 | CN98: =COUNTIF(CM97:CM111, ">=" & CM98) -> 15 | CO98: =RANK(CN98,CN97:CN111,1)+COUNTIF(CM97:CM98,CM98)-1 -> 2 | CS98: 000-00-000-000-000 | CT98: =COUNTIF(CS97:CS111, ">=" & CS98) -> 15 | CU98: =RANK(CT98,CT97:CT111,1)+COUNTIF(CS97:CS98,CS98)-1 -> 2 | CY98: 000-00-000-000-000 | CZ98: =COUNTIF(CY97:CY111, ">=" & CY98) -> 15 | DA98: =RANK(CZ98,CZ97:CZ111,1)+COUNTIF(CY97:CY98,CY98)-1 -> 2 | DE98: 000-00-000-000-000 | DF98: =COUNTIF(DE97:DE111, ">=" & DE98) -> 15 | DG98: =RANK(DF98,DF97:DF111,1)+COUNTIF(DE97:DE98,DE98)-1 -> 2 | DK98: 000-00-000-000-000 | DL98: =COUNTIF(DK97:DK111, ">=" & DK98) -> 15 | DM98: =RANK(DL98,DL97:DL111,1)+COUNTIF(DK97:DK98,DK98)-1 -> 2 | DQ98: 000-00-000-000-000 | DR98: =COUNTIF(DQ97:DQ111, ">=" & DQ98) -> 15 | DS98: =RANK(DR98,DR97:DR111,1)+COUNTIF(DQ97:DQ98,DQ98)-1 -> 2 | DW98: 000-00-000-000-000 | DX98: =COUNTIF(DW97:DW111, ">=" & DW98) -> 15 | DY98: =RANK(DX98,DX97:DX111,1)+COUNTIF(DW97:DW98,DW98)-1 -> 2
A99: Cherokee | B99: Henry, Shay (10 | G99: Flint, Tyler (11) | L99: Reeves, Chancelor (10) | Q99: Lane, Shayla (9) | V99: CK 10 | AC99: =B95 -> 0 | AD99: =G95 -> 0 | AE99: =L95 -> 0 | AF99: =Q95 -> 0 | AG99: =V95 -> 0 | AK99: 285-13-094-098-093 | AL99: =COUNTIF(AK97:AK111, ">=" & AK99) -> 1 | AM99: =RANK(AL99,AL97:AL111,1)+COUNTIF(AK97:AK99,AK99)-1 -> 1 | AQ99: 000-00-000-000-000 | AR99: =COUNTIF(AQ97:AQ111, ">=" & AQ99) -> 15 | AS99: =RANK(AR99,AR97:AR111,1)+COUNTIF(AQ97:AQ99,AQ99)-1 -> 3 | AW99: 000-00-000-000-000 | AX99: =COUNTIF(AW97:AW111, ">=" & AW99) -> 15 | AY99: =RANK(AX99,AX97:AX111,1)+COUNTIF(AW97:AW99,AW99)-1 -> 8 | BC99: 000-00-000-000-000 | BD99: =COUNTIF(BC97:BC111, ">=" & BC99) -> 15 | BE99: =RANK(BD99,BD97:BD111,1)+COUNTIF(BC97:BC99,BC99)-1 -> 8 | BI99: 000-00-000-000-000 | BJ99: =COUNTIF(BI97:BI111, ">=" & BI99) -> 15 | BK99: =RANK(BJ99,BJ97:BJ111,1)+COUNTIF(BI97:BI99,BI99)-1 -> 3 | BO99: 000-00-000-000-000 | BP99: =COUNTIF(BO97:BO111, ">=" & BO99) -> 15 | BQ99: =RANK(BP99,BP97:BP111,1)+COUNTIF(BO97:BO99,BO99)-1 -> 3 | BU99: 000-00-000-000-000 | BV99: =COUNTIF(BU97:BU111, ">=" & BU99) -> 15 | BW99: =RANK(BV99,BV97:BV111,1)+COUNTIF(BU97:BU99,BU99)-1 -> 8 | CA99: 000-00-000-000-000 | CB99: =COUNTIF(CA97:CA111, ">=" & CA99) -> 15 | CC99: =RANK(CB99,CB97:CB111,1)+COUNTIF(CA97:CA99,CA99)-1 -> 8 | CG99: 000-00-000-000-000 | CH99: =COUNTIF(CG97:CG111, ">=" & CG99) -> 15 | CI99: =RANK(CH99,CH97:CH111,1)+COUNTIF(CG97:CG99,CG99)-1 -> 3 | CM99: 000-00-000-000-000 | CN99: =COUNTIF(CM97:CM111, ">=" & CM99) -> 15 | CO99: =RANK(CN99,CN97:CN111,1)+COUNTIF(CM97:CM99,CM99)-1 -> 3 | CS99: 000-00-000-000-000 | CT99: =COUNTIF(CS97:CS111, ">=" & CS99) -> 15 | CU99: =RANK(CT99,CT97:CT111,1)+COUNTIF(CS97:CS99,CS99)-1 -> 3 | CY99: 000-00-000-000-000 | CZ99: =COUNTIF(CY97:CY111, ">=" & CY99) -> 15 | DA99: =RANK(CZ99,CZ97:CZ111,1)+COUNTIF(CY97:CY99,CY99)-1 -> 3 | DE99: 000-00-000-000-000 | DF99: =COUNTIF(DE97:DE111, ">=" & DE99) -> 15 | DG99: =RANK(DF99,DF97:DF111,1)+COUNTIF(DE97:DE99,DE99)-1 -> 3 | DK99: 000-00-000-000-000 | DL99: =COUNTIF(DK97:DK111, ">=" & DK99) -> 15 | DM99: =RANK(DL99,DL97:DL111,1)+COUNTIF(DK97:DK99,DK99)-1 -> 3 | DQ99: 000-00-000-000-000 | DR99: =COUNTIF(DQ97:DQ111, ">=" & DQ99) -> 15 | DS99: =RANK(DR99,DR97:DR111,1)+COUNTIF(DQ97:DQ99,DQ99)-1 -> 3 | DW99: 000-00-000-000-000 | DX99: =COUNTIF(DW97:DW111, ">=" & DW99) -> 15 | DY99: =RANK(DX99,DX97:DX111,1)+COUNTIF(DW97:DW99,DW99)-1 -> 3
A100: VS | B100: K | C100: P | D100: S | E100: AGGR | F100: *10 | G100: K | H100: P | I100: S | J100: AGGR | K100: *10 | L100: K | M100: P | N100: S | O100: AGGR | P100: *10 | Q100: K | R100: P | S100: S | T100: AGGR | U100: *10 | V100: K | W100: P | X100: S | Y100: AGGR | Z100: *10 | AC100: =IF(SUM(E97:E112)>0,LARGE(E97:E112,1),0) -> 277 | AD100: =IF(SUM(J97:J112)>0,LARGE(J97:J112,1),0) -> 276 | AE100: =IF(SUM(O97:O112)>0,LARGE(O97:O112,1),0) -> 285 | AF100: =IF(SUM(T97:T112)>0,LARGE(T97:T112,1),0) -> 277 | AG100: =IF(SUM(Y97:Y112)>0,LARGE(Y97:Y112,1),0) -> 272 | AK100: 277-09-087-093-097 | AL100: =COUNTIF(AK97:AK111, ">=" & AK100) -> 4 | AM100: =RANK(AL100,AL97:AL111,1)+COUNTIF(AK97:AK100,AK100)-1 -> 4 | AQ100: 000-00-000-000-000 | AR100: =COUNTIF(AQ97:AQ111, ">=" & AQ100) -> 15 | AS100: =RANK(AR100,AR97:AR111,1)+COUNTIF(AQ97:AQ100,AQ100)-1 -> 4 | AW100: 000-00-000-000-000 | AX100: =COUNTIF(AW97:AW111, ">=" & AW100) -> 15 | AY100: =RANK(AX100,AX97:AX111,1)+COUNTIF(AW97:AW100,AW100)-1 -> 9 | BC100: 000-00-000-000-000 | BD100: =COUNTIF(BC97:BC111, ">=" & BC100) -> 15 | BE100: =RANK(BD100,BD97:BD111,1)+COUNTIF(BC97:BC100,BC100)-1 -> 9 | BI100: 000-00-000-000-000 | BJ100: =COUNTIF(BI97:BI111, ">=" & BI100) -> 15 | BK100: =RANK(BJ100,BJ97:BJ111,1)+COUNTIF(BI97:BI100,BI100)-1 -> 4 | BO100: 000-00-000-000-000 | BP100: =COUNTIF(BO97:BO111, ">=" & BO100) -> 15 | BQ100: =RANK(BP100,BP97:BP111,1)+COUNTIF(BO97:BO100,BO100)-1 -> 4 | BU100: 000-00-000-000-000 | BV100: =COUNTIF(BU97:BU111, ">=" & BU100) -> 15 | BW100: =RANK(BV100,BV97:BV111,1)+COUNTIF(BU97:BU100,BU100)-1 -> 9 | CA100: 000-00-000-000-000 | CB100: =COUNTIF(CA97:CA111, ">=" & CA100) -> 15 | CC100: =RANK(CB100,CB97:CB111,1)+COUNTIF(CA97:CA100,CA100)-1 -> 9 | CG100: 000-00-000-000-000 | CH100: =COUNTIF(CG97:CG111, ">=" & CG100) -> 15 | CI100: =RANK(CH100,CH97:CH111,1)+COUNTIF(CG97:CG100,CG100)-1 -> 4 | CM100: 000-00-000-000-000 | CN100: =COUNTIF(CM97:CM111, ">=" & CM100) -> 15 | CO100: =RANK(CN100,CN97:CN111,1)+COUNTIF(CM97:CM100,CM100)-1 -> 4 | CS100: 000-00-000-000-000 | CT100: =COUNTIF(CS97:CS111, ">=" & CS100) -> 15 | CU100: =RANK(CT100,CT97:CT111,1)+COUNTIF(CS97:CS100,CS100)-1 -> 4 | CY100: 000-00-000-000-000 | CZ100: =COUNTIF(CY97:CY111, ">=" & CY100) -> 15 | DA100: =RANK(CZ100,CZ97:CZ111,1)+COUNTIF(CY97:CY100,CY100)-1 -> 4 | DE100: 000-00-000-000-000 | DF100: =COUNTIF(DE97:DE111, ">=" & DE100) -> 15 | DG100: =RANK(DF100,DF97:DF111,1)+COUNTIF(DE97:DE100,DE100)-1 -> 4 | DK100: 000-00-000-000-000 | DL100: =COUNTIF(DK97:DK111, ">=" & DK100) -> 15 | DM100: =RANK(DL100,DL97:DL111,1)+COUNTIF(DK97:DK100,DK100)-1 -> 4 | DQ100: 000-00-000-000-000 | DR100: =COUNTIF(DQ97:DQ111, ">=" & DQ100) -> 15 | DS100: =RANK(DR100,DR97:DR111,1)+COUNTIF(DQ97:DQ100,DQ100)-1 -> 4 | DW100: 000-00-000-000-000 | DX100: =COUNTIF(DW97:DW111, ">=" & DW100) -> 15 | DY100: =RANK(DX100,DX97:DX111,1)+COUNTIF(DW97:DW100,DW100)-1 -> 4
A101: Cartersville | J101: =IF(SUM(G101:I101)>0,SUM(G101:I101),"") ->  | O101: =IF(SUM(L101:N101)>0,SUM(L101:N101),"") ->  | T101: =IF(SUM(Q101:S101)>0,SUM(Q101:S101),"") ->  | Y101: =IF(SUM(V101:X101)>0,SUM(V101:X101),"") ->  | AK101: 272-06-084-098-090 | AL101: =COUNTIF(AK97:AK111, ">=" & AK101) -> 9 | AM101: =RANK(AL101,AL97:AL111,1)+COUNTIF(AK97:AK101,AK101)-1 -> 9 | AQ101: 000-00-000-000-000 | AR101: =COUNTIF(AQ97:AQ111, ">=" & AQ101) -> 15 | AS101: =RANK(AR101,AR97:AR111,1)+COUNTIF(AQ97:AQ101,AQ101)-1 -> 5 | AW101: 000-00-000-000-000 | AX101: =COUNTIF(AW97:AW111, ">=" & AW101) -> 15 | AY101: =RANK(AX101,AX97:AX111,1)+COUNTIF(AW97:AW101,AW101)-1 -> 10 | BC101: 000-00-000-000-000 | BD101: =COUNTIF(BC97:BC111, ">=" & BC101) -> 15 | BE101: =RANK(BD101,BD97:BD111,1)+COUNTIF(BC97:BC101,BC101)-1 -> 10 | BI101: 000-00-000-000-000 | BJ101: =COUNTIF(BI97:BI111, ">=" & BI101) -> 15 | BK101: =RANK(BJ101,BJ97:BJ111,1)+COUNTIF(BI97:BI101,BI101)-1 -> 5 | BO101: 000-00-000-000-000 | BP101: =COUNTIF(BO97:BO111, ">=" & BO101) -> 15 | BQ101: =RANK(BP101,BP97:BP111,1)+COUNTIF(BO97:BO101,BO101)-1 -> 5 | BU101: 000-00-000-000-000 | BV101: =COUNTIF(BU97:BU111, ">=" & BU101) -> 15 | BW101: =RANK(BV101,BV97:BV111,1)+COUNTIF(BU97:BU101,BU101)-1 -> 10 | CA101: 000-00-000-000-000 | CB101: =COUNTIF(CA97:CA111, ">=" & CA101) -> 15 | CC101: =RANK(CB101,CB97:CB111,1)+COUNTIF(CA97:CA101,CA101)-1 -> 10 | CG101: 000-00-000-000-000 | CH101: =COUNTIF(CG97:CG111, ">=" & CG101) -> 15 | CI101: =RANK(CH101,CH97:CH111,1)+COUNTIF(CG97:CG101,CG101)-1 -> 5 | CM101: 000-00-000-000-000 | CN101: =COUNTIF(CM97:CM111, ">=" & CM101) -> 15 | CO101: =RANK(CN101,CN97:CN111,1)+COUNTIF(CM97:CM101,CM101)-1 -> 5 | CS101: 000-00-000-000-000 | CT101: =COUNTIF(CS97:CS111, ">=" & CS101) -> 15 | CU101: =RANK(CT101,CT97:CT111,1)+COUNTIF(CS97:CS101,CS101)-1 -> 5 | CY101: 000-00-000-000-000 | CZ101: =COUNTIF(CY97:CY111, ">=" & CY101) -> 15 | DA101: =RANK(CZ101,CZ97:CZ111,1)+COUNTIF(CY97:CY101,CY101)-1 -> 5 | DE101: 000-00-000-000-000 | DF101: =COUNTIF(DE97:DE111, ">=" & DE101) -> 15 | DG101: =RANK(DF101,DF97:DF111,1)+COUNTIF(DE97:DE101,DE101)-1 -> 5 | DK101: 000-00-000-000-000 | DL101: =COUNTIF(DK97:DK111, ">=" & DK101) -> 15 | DM101: =RANK(DL101,DL97:DL111,1)+COUNTIF(DK97:DK101,DK101)-1 -> 5 | DQ101: 000-00-000-000-000 | DR101: =COUNTIF(DQ97:DQ111, ">=" & DQ101) -> 15 | DS101: =RANK(DR101,DR97:DR111,1)+COUNTIF(DQ97:DQ101,DQ101)-1 -> 5 | DW101: 000-00-000-000-000 | DX101: =COUNTIF(DW97:DW111, ">=" & DW101) -> 15 | DY101: =RANK(DX101,DX97:DX111,1)+COUNTIF(DW97:DW101,DW101)-1 -> 5
A102: Gordon Central | AK102: 277-00-086-096-095 | AL102: =COUNTIF(AK97:AK111, ">=" & AK102) -> 6 | AM102: =RANK(AL102,AL97:AL111,1)+COUNTIF(AK97:AK102,AK102)-1 -> 6 | AQ102: 000-00-000-000-000 | AR102: =COUNTIF(AQ97:AQ111, ">=" & AQ102) -> 15 | AS102: =RANK(AR102,AR97:AR111,1)+COUNTIF(AQ97:AQ102,AQ102)-1 -> 6 | AW102: 000-00-000-000Henry, Shay (10 | AX102: =COUNTIF(AW97:AW111, ">=" & AW102) -> 3 | AY102: =RANK(AX102,AX97:AX111,1)+COUNTIF(AW97:AW102,AW102)-1 -> 3 | BC102: 000-00SPK | BD102: =COUNTIF(BC97:BC111, ">=" & BC102) -> 5 | BE102: =RANK(BD102,BD97:BD111,1)+COUNTIF(BC97:BC102,BC102)-1 -> 1 | BI102: 000-00-000-000-000 | BJ102: =COUNTIF(BI97:BI111, ">=" & BI102) -> 15 | BK102: =RANK(BJ102,BJ97:BJ111,1)+COUNTIF(BI97:BI102,BI102)-1 -> 6 | BO102: 000-00-000-000-000 | BP102: =COUNTIF(BO97:BO111, ">=" & BO102) -> 15 | BQ102: =RANK(BP102,BP97:BP111,1)+COUNTIF(BO97:BO102,BO102)-1 -> 6 | BU102: 000-00-000-000-000 | BV102: =COUNTIF(BU97:BU111, ">=" & BU102) -> 15 | BW102: =RANK(BV102,BV97:BV111,1)+COUNTIF(BU97:BU102,BU102)-1 -> 11 | CA102: 000-00-000-000-000 | CB102: =COUNTIF(CA97:CA111, ">=" & CA102) -> 15 | CC102: =RANK(CB102,CB97:CB111,1)+COUNTIF(CA97:CA102,CA102)-1 -> 11 | CG102: 000-00-000-000-000 | CH102: =COUNTIF(CG97:CG111, ">=" & CG102) -> 15 | CI102: =RANK(CH102,CH97:CH111,1)+COUNTIF(CG97:CG102,CG102)-1 -> 6 | CM102: 000-00-000-000-000 | CN102: =COUNTIF(CM97:CM111, ">=" & CM102) -> 15 | CO102: =RANK(CN102,CN97:CN111,1)+COUNTIF(CM97:CM102,CM102)-1 -> 6 | CS102: 000-00-000-000-000 | CT102: =COUNTIF(CS97:CS111, ">=" & CS102) -> 15 | CU102: =RANK(CT102,CT97:CT111,1)+COUNTIF(CS97:CS102,CS102)-1 -> 6 | CY102: 000-00-000-000-000 | CZ102: =COUNTIF(CY97:CY111, ">=" & CY102) -> 15 | DA102: =RANK(CZ102,CZ97:CZ111,1)+COUNTIF(CY97:CY102,CY102)-1 -> 6 | DE102: 000-00-000-000-000 | DF102: =COUNTIF(DE97:DE111, ">=" & DE102) -> 15 | DG102: =RANK(DF102,DF97:DF111,1)+COUNTIF(DE97:DE102,DE102)-1 -> 6 | DK102: 000-00-000-000-000 | DL102: =COUNTIF(DK97:DK111, ">=" & DK102) -> 15 | DM102: =RANK(DL102,DL97:DL111,1)+COUNTIF(DK97:DK102,DK102)-1 -> 6 | DQ102: 000-00-000-000-000 | DR102: =COUNTIF(DQ97:DQ111, ">=" & DQ102) -> 15 | DS102: =RANK(DR102,DR97:DR111,1)+COUNTIF(DQ97:DQ102,DQ102)-1 -> 6 | DW102: 000-00-000-000-000 | DX102: =COUNTIF(DW97:DW111, ">=" & DW102) -> 15 | DY102: =RANK(DX102,DX97:DX111,1)+COUNTIF(DW97:DW102,DW102)-1 -> 6
A103: @ LaFayette | AA103: s | AK103: 276-00-088-095-093 | AL103: =COUNTIF(AK97:AK111, ">=" & AK103) -> 8 | AM103: =RANK(AL103,AL97:AL111,1)+COUNTIF(AK97:AK103,AK103)-1 -> 8 | AQ103: 000-00-000-000-000 | AR103: =COUNTIF(AQ97:AQ111, ">=" & AQ103) -> 15 | AS103: =RANK(AR103,AR97:AR111,1)+COUNTIF(AQ97:AQ103,AQ103)-1 -> 7 | AW103: 000-00-000-000Flint, Tyler (11) | AX103: =COUNTIF(AW97:AW111, ">=" & AW103) -> 4 | AY103: =RANK(AX103,AX97:AX111,1)+COUNTIF(AW97:AW103,AW103)-1 -> 4 | BC103: 000-00SPK | BD103: =COUNTIF(BC97:BC111, ">=" & BC103) -> 5 | BE103: =RANK(BD103,BD97:BD111,1)+COUNTIF(BC97:BC103,BC103)-1 -> 2 | BI103: 000-00-000-000-000 | BJ103: =COUNTIF(BI97:BI111, ">=" & BI103) -> 15 | BK103: =RANK(BJ103,BJ97:BJ111,1)+COUNTIF(BI97:BI103,BI103)-1 -> 7 | BO103: 000-00-000-000-000 | BP103: =COUNTIF(BO97:BO111, ">=" & BO103) -> 15 | BQ103: =RANK(BP103,BP97:BP111,1)+COUNTIF(BO97:BO103,BO103)-1 -> 7 | BU103: 000-00-000-000-000 | BV103: =COUNTIF(BU97:BU111, ">=" & BU103) -> 15 | BW103: =RANK(BV103,BV97:BV111,1)+COUNTIF(BU97:BU103,BU103)-1 -> 12 | CA103: 000-00-000-000-000 | CB103: =COUNTIF(CA97:CA111, ">=" & CA103) -> 15 | CC103: =RANK(CB103,CB97:CB111,1)+COUNTIF(CA97:CA103,CA103)-1 -> 12 | CG103: 000-00-000-000-000 | CH103: =COUNTIF(CG97:CG111, ">=" & CG103) -> 15 | CI103: =RANK(CH103,CH97:CH111,1)+COUNTIF(CG97:CG103,CG103)-1 -> 7 | CM103: 000-00-000-000-000 | CN103: =COUNTIF(CM97:CM111, ">=" & CM103) -> 15 | CO103: =RANK(CN103,CN97:CN111,1)+COUNTIF(CM97:CM103,CM103)-1 -> 7 | CS103: 000-00-000-000-000 | CT103: =COUNTIF(CS97:CS111, ">=" & CS103) -> 15 | CU103: =RANK(CT103,CT97:CT111,1)+COUNTIF(CS97:CS103,CS103)-1 -> 7 | CY103: 000-00-000-000-000 | CZ103: =COUNTIF(CY97:CY111, ">=" & CY103) -> 15 | DA103: =RANK(CZ103,CZ97:CZ111,1)+COUNTIF(CY97:CY103,CY103)-1 -> 7 | DE103: 000-00-000-000-000 | DF103: =COUNTIF(DE97:DE111, ">=" & DE103) -> 15 | DG103: =RANK(DF103,DF97:DF111,1)+COUNTIF(DE97:DE103,DE103)-1 -> 7 | DK103: 000-00-000-000-000 | DL103: =COUNTIF(DK97:DK111, ">=" & DK103) -> 15 | DM103: =RANK(DL103,DL97:DL111,1)+COUNTIF(DK97:DK103,DK103)-1 -> 7 | DQ103: 000-00-000-000-000 | DR103: =COUNTIF(DQ97:DQ111, ">=" & DQ103) -> 15 | DS103: =RANK(DR103,DR97:DR111,1)+COUNTIF(DQ97:DQ103,DQ103)-1 -> 7 | DW103: 000-00-000-000-000 | DX103: =COUNTIF(DW97:DW111, ">=" & DW103) -> 15 | DY103: =RANK(DX103,DX97:DX111,1)+COUNTIF(DW97:DW103,DW103)-1 -> 7
A104: Dalton | AA104: e | AK104: 285-00-094-098-093 | AL104: =COUNTIF(AK97:AK111, ">=" & AK104) -> 2 | AM104: =RANK(AL104,AL97:AL111,1)+COUNTIF(AK97:AK104,AK104)-1 -> 2 | AQ104: 000-00-000-000-000 | AR104: =COUNTIF(AQ97:AQ111, ">=" & AQ104) -> 15 | AS104: =RANK(AR104,AR97:AR111,1)+COUNTIF(AQ97:AQ104,AQ104)-1 -> 8 | AW104: 000-00-000-000Reeves, Chancelor (10) | AX104: =COUNTIF(AW97:AW111, ">=" & AW104) -> 1 | AY104: =RANK(AX104,AX97:AX111,1)+COUNTIF(AW97:AW104,AW104)-1 -> 1 | BC104: 000-00SPK | BD104: =COUNTIF(BC97:BC111, ">=" & BC104) -> 5 | BE104: =RANK(BD104,BD97:BD111,1)+COUNTIF(BC97:BC104,BC104)-1 -> 3 | BI104: 000-00-000-000-000 | BJ104: =COUNTIF(BI97:BI111, ">=" & BI104) -> 15 | BK104: =RANK(BJ104,BJ97:BJ111,1)+COUNTIF(BI97:BI104,BI104)-1 -> 8 | BO104: 000-00-000-000-000 | BP104: =COUNTIF(BO97:BO111, ">=" & BO104) -> 15 | BQ104: =RANK(BP104,BP97:BP111,1)+COUNTIF(BO97:BO104,BO104)-1 -> 8 | BU104: 000-00-000-000-000 | BV104: =COUNTIF(BU97:BU111, ">=" & BU104) -> 15 | BW104: =RANK(BV104,BV97:BV111,1)+COUNTIF(BU97:BU104,BU104)-1 -> 13 | CA104: 000-00-000-000-000 | CB104: =COUNTIF(CA97:CA111, ">=" & CA104) -> 15 | CC104: =RANK(CB104,CB97:CB111,1)+COUNTIF(CA97:CA104,CA104)-1 -> 13 | CG104: 000-00-000-000-000 | CH104: =COUNTIF(CG97:CG111, ">=" & CG104) -> 15 | CI104: =RANK(CH104,CH97:CH111,1)+COUNTIF(CG97:CG104,CG104)-1 -> 8 | CM104: 000-00-000-000-000 | CN104: =COUNTIF(CM97:CM111, ">=" & CM104) -> 15 | CO104: =RANK(CN104,CN97:CN111,1)+COUNTIF(CM97:CM104,CM104)-1 -> 8 | CS104: 000-00-000-000-000 | CT104: =COUNTIF(CS97:CS111, ">=" & CS104) -> 15 | CU104: =RANK(CT104,CT97:CT111,1)+COUNTIF(CS97:CS104,CS104)-1 -> 8 | CY104: 000-00-000-000-000 | CZ104: =COUNTIF(CY97:CY111, ">=" & CY104) -> 15 | DA104: =RANK(CZ104,CZ97:CZ111,1)+COUNTIF(CY97:CY104,CY104)-1 -> 8 | DE104: 000-00-000-000-000 | DF104: =COUNTIF(DE97:DE111, ">=" & DE104) -> 15 | DG104: =RANK(DF104,DF97:DF111,1)+COUNTIF(DE97:DE104,DE104)-1 -> 8 | DK104: 000-00-000-000-000 | DL104: =COUNTIF(DK97:DK111, ">=" & DK104) -> 15 | DM104: =RANK(DL104,DL97:DL111,1)+COUNTIF(DK97:DK104,DK104)-1 -> 8 | DQ104: 000-00-000-000-000 | DR104: =COUNTIF(DQ97:DQ111, ">=" & DQ104) -> 15 | DS104: =RANK(DR104,DR97:DR111,1)+COUNTIF(DQ97:DQ104,DQ104)-1 -> 8 | DW104: 000-00-000-000-000 | DX104: =COUNTIF(DW97:DW111, ">=" & DW104) -> 15 | DY104: =RANK(DX104,DX97:DX111,1)+COUNTIF(DW97:DW104,DW104)-1 -> 8
A105: @ Etowah | AA105: e | AK105: 277-00-087-093-097 | AL105: =COUNTIF(AK97:AK111, ">=" & AK105) -> 5 | AM105: =RANK(AL105,AL97:AL111,1)+COUNTIF(AK97:AK105,AK105)-1 -> 5 | AQ105: 000-00-000-000-000 | AR105: =COUNTIF(AQ97:AQ111, ">=" & AQ105) -> 15 | AS105: =RANK(AR105,AR97:AR111,1)+COUNTIF(AQ97:AQ105,AQ105)-1 -> 9 | AW105: 000-00-000-000Lane, Shayla (9) | AX105: =COUNTIF(AW97:AW111, ">=" & AW105) -> 2 | AY105: =RANK(AX105,AX97:AX111,1)+COUNTIF(AW97:AW105,AW105)-1 -> 2 | BC105: 000-00SPK | BD105: =COUNTIF(BC97:BC111, ">=" & BC105) -> 5 | BE105: =RANK(BD105,BD97:BD111,1)+COUNTIF(BC97:BC105,BC105)-1 -> 4 | BI105: 000-00-000-000-000 | BJ105: =COUNTIF(BI97:BI111, ">=" & BI105) -> 15 | BK105: =RANK(BJ105,BJ97:BJ111,1)+COUNTIF(BI97:BI105,BI105)-1 -> 9 | BO105: 000-00-000-000-000 | BP105: =COUNTIF(BO97:BO111, ">=" & BO105) -> 15 | BQ105: =RANK(BP105,BP97:BP111,1)+COUNTIF(BO97:BO105,BO105)-1 -> 9 | BU105: 000-00-000-000-000 | BV105: =COUNTIF(BU97:BU111, ">=" & BU105) -> 15 | BW105: =RANK(BV105,BV97:BV111,1)+COUNTIF(BU97:BU105,BU105)-1 -> 14 | CA105: 000-00-000-000-000 | CB105: =COUNTIF(CA97:CA111, ">=" & CA105) -> 15 | CC105: =RANK(CB105,CB97:CB111,1)+COUNTIF(CA97:CA105,CA105)-1 -> 14 | CG105: 000-00-000-000-000 | CH105: =COUNTIF(CG97:CG111, ">=" & CG105) -> 15 | CI105: =RANK(CH105,CH97:CH111,1)+COUNTIF(CG97:CG105,CG105)-1 -> 9 | CM105: 000-00-000-000-000 | CN105: =COUNTIF(CM97:CM111, ">=" & CM105) -> 15 | CO105: =RANK(CN105,CN97:CN111,1)+COUNTIF(CM97:CM105,CM105)-1 -> 9 | CS105: 000-00-000-000-000 | CT105: =COUNTIF(CS97:CS111, ">=" & CS105) -> 15 | CU105: =RANK(CT105,CT97:CT111,1)+COUNTIF(CS97:CS105,CS105)-1 -> 9 | CY105: 000-00-000-000-000 | CZ105: =COUNTIF(CY97:CY111, ">=" & CY105) -> 15 | DA105: =RANK(CZ105,CZ97:CZ111,1)+COUNTIF(CY97:CY105,CY105)-1 -> 9 | DE105: 000-00-000-000-000 | DF105: =COUNTIF(DE97:DE111, ">=" & DE105) -> 15 | DG105: =RANK(DF105,DF97:DF111,1)+COUNTIF(DE97:DE105,DE105)-1 -> 9 | DK105: 000-00-000-000-000 | DL105: =COUNTIF(DK97:DK111, ">=" & DK105) -> 15 | DM105: =RANK(DL105,DL97:DL111,1)+COUNTIF(DK97:DK105,DK105)-1 -> 9 | DQ105: 000-00-000-000-000 | DR105: =COUNTIF(DQ97:DQ111, ">=" & DQ105) -> 15 | DS105: =RANK(DR105,DR97:DR111,1)+COUNTIF(DQ97:DQ105,DQ105)-1 -> 9 | DW105: 000-00-000-000-000 | DX105: =COUNTIF(DW97:DW111, ">=" & DW105) -> 15 | DY105: =RANK(DX105,DX97:DX111,1)+COUNTIF(DW97:DW105,DW105)-1 -> 9
A106: Woodstock | E106: =IF(SUM(B106:D106)>0,SUM(B106:D106),"") ->  | AK106: 272-00-084-098-090 | AL106: =COUNTIF(AK97:AK111, ">=" & AK106) -> 10 | AM106: =RANK(AL106,AL97:AL111,1)+COUNTIF(AK97:AK106,AK106)-1 -> 10 | AQ106: 000-00-000-000-000 | AR106: =COUNTIF(AQ97:AQ111, ">=" & AQ106) -> 15 | AS106: =RANK(AR106,AR97:AR111,1)+COUNTIF(AQ97:AQ106,AQ106)-1 -> 10 | AW106: 000-00-000-000CK 10 | AX106: =COUNTIF(AW97:AW111, ">=" & AW106) -> 5 | AY106: =RANK(AX106,AX97:AX111,1)+COUNTIF(AW97:AW106,AW106)-1 -> 5 | BC106: 000-00SPK | BD106: =COUNTIF(BC97:BC111, ">=" & BC106) -> 5 | BE106: =RANK(BD106,BD97:BD111,1)+COUNTIF(BC97:BC106,BC106)-1 -> 5 | BI106: 000-00-000-000-000 | BJ106: =COUNTIF(BI97:BI111, ">=" & BI106) -> 15 | BK106: =RANK(BJ106,BJ97:BJ111,1)+COUNTIF(BI97:BI106,BI106)-1 -> 10 | BO106: 000-00-000-000-000 | BP106: =COUNTIF(BO97:BO111, ">=" & BO106) -> 15 | BQ106: =RANK(BP106,BP97:BP111,1)+COUNTIF(BO97:BO106,BO106)-1 -> 10 | BU106: 000-00-000-000-000 | BV106: =COUNTIF(BU97:BU111, ">=" & BU106) -> 15 | BW106: =RANK(BV106,BV97:BV111,1)+COUNTIF(BU97:BU106,BU106)-1 -> 15 | CA106: 000-00-000-000-000 | CB106: =COUNTIF(CA97:CA111, ">=" & CA106) -> 15 | CC106: =RANK(CB106,CB97:CB111,1)+COUNTIF(CA97:CA106,CA106)-1 -> 15 | CG106: 000-00-000-000-000 | CH106: =COUNTIF(CG97:CG111, ">=" & CG106) -> 15 | CI106: =RANK(CH106,CH97:CH111,1)+COUNTIF(CG97:CG106,CG106)-1 -> 10 | CM106: 000-00-000-000-000 | CN106: =COUNTIF(CM97:CM111, ">=" & CM106) -> 15 | CO106: =RANK(CN106,CN97:CN111,1)+COUNTIF(CM97:CM106,CM106)-1 -> 10 | CS106: 000-00-000-000-000 | CT106: =COUNTIF(CS97:CS111, ">=" & CS106) -> 15 | CU106: =RANK(CT106,CT97:CT111,1)+COUNTIF(CS97:CS106,CS106)-1 -> 10 | CY106: 000-00-000-000-000 | CZ106: =COUNTIF(CY97:CY111, ">=" & CY106) -> 15 | DA106: =RANK(CZ106,CZ97:CZ111,1)+COUNTIF(CY97:CY106,CY106)-1 -> 10 | DE106: 000-00-000-000-000 | DF106: =COUNTIF(DE97:DE111, ">=" & DE106) -> 15 | DG106: =RANK(DF106,DF97:DF111,1)+COUNTIF(DE97:DE106,DE106)-1 -> 10 | DK106: 000-00-000-000-000 | DL106: =COUNTIF(DK97:DK111, ">=" & DK106) -> 15 | DM106: =RANK(DL106,DL97:DL111,1)+COUNTIF(DK97:DK106,DK106)-1 -> 10 | DQ106: 000-00-000-000-000 | DR106: =COUNTIF(DQ97:DQ111, ">=" & DQ106) -> 15 | DS106: =RANK(DR106,DR97:DR111,1)+COUNTIF(DQ97:DQ106,DQ106)-1 -> 10 | DW106: 000-00-000-000-000 | DX106: =COUNTIF(DW97:DW111, ">=" & DW106) -> 15 | DY106: =RANK(DX106,DX97:DX111,1)+COUNTIF(DW97:DW106,DW106)-1 -> 10
A107: @ Allatoona | AA107: a | AK107: 000-00-000-000-000 | AL107: =COUNTIF(AK97:AK111, ">=" & AK107) -> 15 | AM107: =RANK(AL107,AL97:AL111,1)+COUNTIF(AK97:AK107,AK107)-1 -> 11 | AQ107: 000-00-000-000-000 | AR107: =COUNTIF(AQ97:AQ111, ">=" & AQ107) -> 15 | AS107: =RANK(AR107,AR97:AR111,1)+COUNTIF(AQ97:AQ107,AQ107)-1 -> 11 | AW107: 000-00-000-000-000 | AX107: =COUNTIF(AW97:AW111, ">=" & AW107) -> 15 | AY107: =RANK(AX107,AX97:AX111,1)+COUNTIF(AW97:AW107,AW107)-1 -> 11 | BC107: 000-00-000-000-000 | BD107: =COUNTIF(BC97:BC111, ">=" & BC107) -> 15 | BE107: =RANK(BD107,BD97:BD111,1)+COUNTIF(BC97:BC107,BC107)-1 -> 11 | BI107: 000-00-000-000-000 | BJ107: =COUNTIF(BI97:BI111, ">=" & BI107) -> 15 | BK107: =RANK(BJ107,BJ97:BJ111,1)+COUNTIF(BI97:BI107,BI107)-1 -> 11 | BO107: 000-00-000-000-000 | BP107: =COUNTIF(BO97:BO111, ">=" & BO107) -> 15 | BQ107: =RANK(BP107,BP97:BP111,1)+COUNTIF(BO97:BO107,BO107)-1 -> 11 | BU107: 000-00-000-000CK 11 | BV107: =COUNTIF(BU97:BU111, ">=" & BU107) -> 5 | BW107: =RANK(BV107,BV97:BV111,1)+COUNTIF(BU97:BU107,BU107)-1 -> 5 | CA107: 000-00SPK | CB107: =COUNTIF(CA97:CA111, ">=" & CA107) -> 5 | CC107: =RANK(CB107,CB97:CB111,1)+COUNTIF(CA97:CA107,CA107)-1 -> 1 | CG107: 000-00-000-000-000 | CH107: =COUNTIF(CG97:CG111, ">=" & CG107) -> 15 | CI107: =RANK(CH107,CH97:CH111,1)+COUNTIF(CG97:CG107,CG107)-1 -> 11 | CM107: 000-00-000-000-000 | CN107: =COUNTIF(CM97:CM111, ">=" & CM107) -> 15 | CO107: =RANK(CN107,CN97:CN111,1)+COUNTIF(CM97:CM107,CM107)-1 -> 11 | CS107: 000-00-000-000-000 | CT107: =COUNTIF(CS97:CS111, ">=" & CS107) -> 15 | CU107: =RANK(CT107,CT97:CT111,1)+COUNTIF(CS97:CS107,CS107)-1 -> 11 | CY107: 000-00-000-000-000 | CZ107: =COUNTIF(CY97:CY111, ">=" & CY107) -> 15 | DA107: =RANK(CZ107,CZ97:CZ111,1)+COUNTIF(CY97:CY107,CY107)-1 -> 11 | DE107: 000-00-000-000-000 | DF107: =COUNTIF(DE97:DE111, ">=" & DE107) -> 15 | DG107: =RANK(DF107,DF97:DF111,1)+COUNTIF(DE97:DE107,DE107)-1 -> 11 | DK107: 000-00-000-000-000 | DL107: =COUNTIF(DK97:DK111, ">=" & DK107) -> 15 | DM107: =RANK(DL107,DL97:DL111,1)+COUNTIF(DK97:DK107,DK107)-1 -> 11 | DQ107: 000-00-000-000-000 | DR107: =COUNTIF(DQ97:DQ111, ">=" & DQ107) -> 15 | DS107: =RANK(DR107,DR97:DR111,1)+COUNTIF(DQ97:DQ107,DQ107)-1 -> 11 | DW107: 000-00-000-000-000 | DX107: =COUNTIF(DW97:DW111, ">=" & DW107) -> 15 | DY107: =RANK(DX107,DX97:DX111,1)+COUNTIF(DW97:DW107,DW107)-1 -> 11
A108: BYE | AA108: b | AK108: 000-00-000-000-000 | AL108: =COUNTIF(AK97:AK111, ">=" & AK108) -> 15 | AM108: =RANK(AL108,AL97:AL111,1)+COUNTIF(AK97:AK108,AK108)-1 -> 12 | AQ108: 000-00-000-000-000 | AR108: =COUNTIF(AQ97:AQ111, ">=" & AQ108) -> 15 | AS108: =RANK(AR108,AR97:AR111,1)+COUNTIF(AQ97:AQ108,AQ108)-1 -> 12 | AW108: 000-00-000-000-000 | AX108: =COUNTIF(AW97:AW111, ">=" & AW108) -> 15 | AY108: =RANK(AX108,AX97:AX111,1)+COUNTIF(AW97:AW108,AW108)-1 -> 12 | BC108: 000-00-000-000-000 | BD108: =COUNTIF(BC97:BC111, ">=" & BC108) -> 15 | BE108: =RANK(BD108,BD97:BD111,1)+COUNTIF(BC97:BC108,BC108)-1 -> 12 | BI108: 000-00-000-000-000 | BJ108: =COUNTIF(BI97:BI111, ">=" & BI108) -> 15 | BK108: =RANK(BJ108,BJ97:BJ111,1)+COUNTIF(BI97:BI108,BI108)-1 -> 12 | BO108: 000-00-000-000-000 | BP108: =COUNTIF(BO97:BO111, ">=" & BO108) -> 15 | BQ108: =RANK(BP108,BP97:BP111,1)+COUNTIF(BO97:BO108,BO108)-1 -> 12 | BU108: 000-00-000-000CK 12 | BV108: =COUNTIF(BU97:BU111, ">=" & BU108) -> 4 | BW108: =RANK(BV108,BV97:BV111,1)+COUNTIF(BU97:BU108,BU108)-1 -> 4 | CA108: 000-00SPK | CB108: =COUNTIF(CA97:CA111, ">=" & CA108) -> 5 | CC108: =RANK(CB108,CB97:CB111,1)+COUNTIF(CA97:CA108,CA108)-1 -> 2 | CG108: 000-00-000-000-000 | CH108: =COUNTIF(CG97:CG111, ">=" & CG108) -> 15 | CI108: =RANK(CH108,CH97:CH111,1)+COUNTIF(CG97:CG108,CG108)-1 -> 12 | CM108: 000-00-000-000-000 | CN108: =COUNTIF(CM97:CM111, ">=" & CM108) -> 15 | CO108: =RANK(CN108,CN97:CN111,1)+COUNTIF(CM97:CM108,CM108)-1 -> 12 | CS108: 000-00-000-000-000 | CT108: =COUNTIF(CS97:CS111, ">=" & CS108) -> 15 | CU108: =RANK(CT108,CT97:CT111,1)+COUNTIF(CS97:CS108,CS108)-1 -> 12 | CY108: 000-00-000-000-000 | CZ108: =COUNTIF(CY97:CY111, ">=" & CY108) -> 15 | DA108: =RANK(CZ108,CZ97:CZ111,1)+COUNTIF(CY97:CY108,CY108)-1 -> 12 | DE108: 000-00-000-000-000 | DF108: =COUNTIF(DE97:DE111, ">=" & DE108) -> 15 | DG108: =RANK(DF108,DF97:DF111,1)+COUNTIF(DE97:DE108,DE108)-1 -> 12 | DK108: 000-00-000-000-000 | DL108: =COUNTIF(DK97:DK111, ">=" & DK108) -> 15 | DM108: =RANK(DL108,DL97:DL111,1)+COUNTIF(DK97:DK108,DK108)-1 -> 12 | DQ108: 000-00-000-000-000 | DR108: =COUNTIF(DQ97:DQ111, ">=" & DQ108) -> 15 | DS108: =RANK(DR108,DR97:DR111,1)+COUNTIF(DQ97:DQ108,DQ108)-1 -> 12 | DW108: 000-00-000-000-000 | DX108: =COUNTIF(DW97:DW111, ">=" & DW108) -> 15 | DY108: =RANK(DX108,DX97:DX111,1)+COUNTIF(DW97:DW108,DW108)-1 -> 12
A109: Ridgeland | AA109: o | AK109: 000-00-000-000-000 | AL109: =COUNTIF(AK97:AK111, ">=" & AK109) -> 15 | AM109: =RANK(AL109,AL97:AL111,1)+COUNTIF(AK97:AK109,AK109)-1 -> 13 | AQ109: 000-00-000-000-000 | AR109: =COUNTIF(AQ97:AQ111, ">=" & AQ109) -> 15 | AS109: =RANK(AR109,AR97:AR111,1)+COUNTIF(AQ97:AQ109,AQ109)-1 -> 13 | AW109: 000-00-000-000-000 | AX109: =COUNTIF(AW97:AW111, ">=" & AW109) -> 15 | AY109: =RANK(AX109,AX97:AX111,1)+COUNTIF(AW97:AW109,AW109)-1 -> 13 | BC109: 000-00-000-000-000 | BD109: =COUNTIF(BC97:BC111, ">=" & BC109) -> 15 | BE109: =RANK(BD109,BD97:BD111,1)+COUNTIF(BC97:BC109,BC109)-1 -> 13 | BI109: 000-00-000-000-000 | BJ109: =COUNTIF(BI97:BI111, ">=" & BI109) -> 15 | BK109: =RANK(BJ109,BJ97:BJ111,1)+COUNTIF(BI97:BI109,BI109)-1 -> 13 | BO109: 000-00-000-000-000 | BP109: =COUNTIF(BO97:BO111, ">=" & BO109) -> 15 | BQ109: =RANK(BP109,BP97:BP111,1)+COUNTIF(BO97:BO109,BO109)-1 -> 13 | BU109: 000-00-000-000CK 13 | BV109: =COUNTIF(BU97:BU111, ">=" & BU109) -> 3 | BW109: =RANK(BV109,BV97:BV111,1)+COUNTIF(BU97:BU109,BU109)-1 -> 3 | CA109: 000-00SPK | CB109: =COUNTIF(CA97:CA111, ">=" & CA109) -> 5 | CC109: =RANK(CB109,CB97:CB111,1)+COUNTIF(CA97:CA109,CA109)-1 -> 3 | CG109: 000-00-000-000-000 | CH109: =COUNTIF(CG97:CG111, ">=" & CG109) -> 15 | CI109: =RANK(CH109,CH97:CH111,1)+COUNTIF(CG97:CG109,CG109)-1 -> 13 | CM109: 000-00-000-000-000 | CN109: =COUNTIF(CM97:CM111, ">=" & CM109) -> 15 | CO109: =RANK(CN109,CN97:CN111,1)+COUNTIF(CM97:CM109,CM109)-1 -> 13 | CS109: 000-00-000-000-000 | CT109: =COUNTIF(CS97:CS111, ">=" & CS109) -> 15 | CU109: =RANK(CT109,CT97:CT111,1)+COUNTIF(CS97:CS109,CS109)-1 -> 13 | CY109: 000-00-000-000-000 | CZ109: =COUNTIF(CY97:CY111, ">=" & CY109) -> 15 | DA109: =RANK(CZ109,CZ97:CZ111,1)+COUNTIF(CY97:CY109,CY109)-1 -> 13 | DE109: 000-00-000-000-000 | DF109: =COUNTIF(DE97:DE111, ">=" & DE109) -> 15 | DG109: =RANK(DF109,DF97:DF111,1)+COUNTIF(DE97:DE109,DE109)-1 -> 13 | DK109: 000-00-000-000-000 | DL109: =COUNTIF(DK97:DK111, ">=" & DK109) -> 15 | DM109: =RANK(DL109,DL97:DL111,1)+COUNTIF(DK97:DK109,DK109)-1 -> 13 | DQ109: 000-00-000-000-000 | DR109: =COUNTIF(DQ97:DQ111, ">=" & DQ109) -> 15 | DS109: =RANK(DR109,DR97:DR111,1)+COUNTIF(DQ97:DQ109,DQ109)-1 -> 13 | DW109: 000-00-000-000-000 | DX109: =COUNTIF(DW97:DW111, ">=" & DW109) -> 15 | DY109: =RANK(DX109,DX97:DX111,1)+COUNTIF(DW97:DW109,DW109)-1 -> 13
A110: @ Cartersville | AA110: v | AK110: 000-00-000-000-000 | AL110: =COUNTIF(AK97:AK111, ">=" & AK110) -> 15 | AM110: =RANK(AL110,AL97:AL111,1)+COUNTIF(AK97:AK110,AK110)-1 -> 14 | AQ110: 000-00-000-000-000 | AR110: =COUNTIF(AQ97:AQ111, ">=" & AQ110) -> 15 | AS110: =RANK(AR110,AR97:AR111,1)+COUNTIF(AQ97:AQ110,AQ110)-1 -> 14 | AW110: 000-00-000-000-000 | AX110: =COUNTIF(AW97:AW111, ">=" & AW110) -> 15 | AY110: =RANK(AX110,AX97:AX111,1)+COUNTIF(AW97:AW110,AW110)-1 -> 14 | BC110: 000-00-000-000-000 | BD110: =COUNTIF(BC97:BC111, ">=" & BC110) -> 15 | BE110: =RANK(BD110,BD97:BD111,1)+COUNTIF(BC97:BC110,BC110)-1 -> 14 | BI110: 000-00-000-000-000 | BJ110: =COUNTIF(BI97:BI111, ">=" & BI110) -> 15 | BK110: =RANK(BJ110,BJ97:BJ111,1)+COUNTIF(BI97:BI110,BI110)-1 -> 14 | BO110: 000-00-000-000-000 | BP110: =COUNTIF(BO97:BO111, ">=" & BO110) -> 15 | BQ110: =RANK(BP110,BP97:BP111,1)+COUNTIF(BO97:BO110,BO110)-1 -> 14 | BU110: 000-00-000-000CK 14 | BV110: =COUNTIF(BU97:BU111, ">=" & BU110) -> 2 | BW110: =RANK(BV110,BV97:BV111,1)+COUNTIF(BU97:BU110,BU110)-1 -> 2 | CA110: 000-00SPK | CB110: =COUNTIF(CA97:CA111, ">=" & CA110) -> 5 | CC110: =RANK(CB110,CB97:CB111,1)+COUNTIF(CA97:CA110,CA110)-1 -> 4 | CG110: 000-00-000-000-000 | CH110: =COUNTIF(CG97:CG111, ">=" & CG110) -> 15 | CI110: =RANK(CH110,CH97:CH111,1)+COUNTIF(CG97:CG110,CG110)-1 -> 14 | CM110: 000-00-000-000-000 | CN110: =COUNTIF(CM97:CM111, ">=" & CM110) -> 15 | CO110: =RANK(CN110,CN97:CN111,1)+COUNTIF(CM97:CM110,CM110)-1 -> 14 | CS110: 000-00-000-000-000 | CT110: =COUNTIF(CS97:CS111, ">=" & CS110) -> 15 | CU110: =RANK(CT110,CT97:CT111,1)+COUNTIF(CS97:CS110,CS110)-1 -> 14 | CY110: 000-00-000-000-000 | CZ110: =COUNTIF(CY97:CY111, ">=" & CY110) -> 15 | DA110: =RANK(CZ110,CZ97:CZ111,1)+COUNTIF(CY97:CY110,CY110)-1 -> 14 | DE110: 000-00-000-000-000 | DF110: =COUNTIF(DE97:DE111, ">=" & DE110) -> 15 | DG110: =RANK(DF110,DF97:DF111,1)+COUNTIF(DE97:DE110,DE110)-1 -> 14 | DK110: 000-00-000-000-000 | DL110: =COUNTIF(DK97:DK111, ">=" & DK110) -> 15 | DM110: =RANK(DL110,DL97:DL111,1)+COUNTIF(DK97:DK110,DK110)-1 -> 14 | DQ110: 000-00-000-000-000 | DR110: =COUNTIF(DQ97:DQ111, ">=" & DQ110) -> 15 | DS110: =RANK(DR110,DR97:DR111,1)+COUNTIF(DQ97:DQ110,DQ110)-1 -> 14 | DW110: 000-00-000-000-000 | DX110: =COUNTIF(DW97:DW111, ">=" & DW110) -> 15 | DY110: =RANK(DX110,DX97:DX111,1)+COUNTIF(DW97:DW110,DW110)-1 -> 14
A111: @Gordon Central | AA111: e | AK111: 000-00-000-000-000 | AL111: =COUNTIF(AK97:AK111, ">=" & AK111) -> 15 | AM111: =RANK(AL111,AL97:AL111,1)+COUNTIF(AK97:AK111,AK111)-1 -> 15 | AQ111: 000-00-000-000-000 | AR111: =COUNTIF(AQ97:AQ111, ">=" & AQ111) -> 15 | AS111: =RANK(AR111,AR97:AR111,1)+COUNTIF(AQ97:AQ111,AQ111)-1 -> 15 | AW111: 000-00-000-000-000 | AX111: =COUNTIF(AW97:AW111, ">=" & AW111) -> 15 | AY111: =RANK(AX111,AX97:AX111,1)+COUNTIF(AW97:AW111,AW111)-1 -> 15 | BC111: 000-00-000-000-000 | BD111: =COUNTIF(BC97:BC111, ">=" & BC111) -> 15 | BE111: =RANK(BD111,BD97:BD111,1)+COUNTIF(BC97:BC111,BC111)-1 -> 15 | BI111: 000-00-000-000-000 | BJ111: =COUNTIF(BI97:BI111, ">=" & BI111) -> 15 | BK111: =RANK(BJ111,BJ97:BJ111,1)+COUNTIF(BI97:BI111,BI111)-1 -> 15 | BO111: 000-00-000-000-000 | BP111: =COUNTIF(BO97:BO111, ">=" & BO111) -> 15 | BQ111: =RANK(BP111,BP97:BP111,1)+COUNTIF(BO97:BO111,BO111)-1 -> 15 | BU111: 000-00-000-000CK 15 | BV111: =COUNTIF(BU97:BU111, ">=" & BU111) -> 1 | BW111: =RANK(BV111,BV97:BV111,1)+COUNTIF(BU97:BU111,BU111)-1 -> 1 | CA111: 000-00SPK | CB111: =COUNTIF(CA97:CA111, ">=" & CA111) -> 5 | CC111: =RANK(CB111,CB97:CB111,1)+COUNTIF(CA97:CA111,CA111)-1 -> 5 | CG111: 000-00-000-000-000 | CH111: =COUNTIF(CG97:CG111, ">=" & CG111) -> 15 | CI111: =RANK(CH111,CH97:CH111,1)+COUNTIF(CG97:CG111,CG111)-1 -> 15 | CM111: 000-00-000-000-000 | CN111: =COUNTIF(CM97:CM111, ">=" & CM111) -> 15 | CO111: =RANK(CN111,CN97:CN111,1)+COUNTIF(CM97:CM111,CM111)-1 -> 15 | CS111: 000-00-000-000-000 | CT111: =COUNTIF(CS97:CS111, ">=" & CS111) -> 15 | CU111: =RANK(CT111,CT97:CT111,1)+COUNTIF(CS97:CS111,CS111)-1 -> 15 | CY111: 000-00-000-000-000 | CZ111: =COUNTIF(CY97:CY111, ">=" & CY111) -> 15 | DA111: =RANK(CZ111,CZ97:CZ111,1)+COUNTIF(CY97:CY111,CY111)-1 -> 15 | DE111: 000-00-000-000-000 | DF111: =COUNTIF(DE97:DE111, ">=" & DE111) -> 15 | DG111: =RANK(DF111,DF97:DF111,1)+COUNTIF(DE97:DE111,DE111)-1 -> 15 | DK111: 000-00-000-000-000 | DL111: =COUNTIF(DK97:DK111, ">=" & DK111) -> 15 | DM111: =RANK(DL111,DL97:DL111,1)+COUNTIF(DK97:DK111,DK111)-1 -> 15 | DQ111: 000-00-000-000-000 | DR111: =COUNTIF(DQ97:DQ111, ">=" & DQ111) -> 15 | DS111: =RANK(DR111,DR97:DR111,1)+COUNTIF(DQ97:DQ111,DQ111)-1 -> 15 | DW111: 000-00-000-000-000 | DX111: =COUNTIF(DW97:DW111, ">=" & DW111) -> 15 | DY111: =RANK(DX111,DX97:DX111,1)+COUNTIF(DW97:DW111,DW111)-1 -> 15
A112: LaFayette | AH112: =IF((OR(AA77="Forfeit",AA77="Win")),0,SUMIFS(AH77:AH91,AM97:AM111,"<=4")) -> 1124 | AI112: =IF((OR(AA77="Forfeit",AA77="Win")),0,SUMIFS(AI77:AI91,AM97:AM111,"<=4")) -> 33 | AJ112: =IF((OR(AA77="Forfeit",AA77="Win")),0,SUMIFS(AJ77:AJ91, AM97:AM111, "<=4")) -> 378 | AK112: =IF((OR(AA77="Forfeit",AA77="Win")),0,SUMIFS(AK77:AK91, AM97:AM111, "<=4")) -> 385 | AL112: =IF((OR(AA77="Forfeit",AA77="Win")),0,SUMIFS(AL77:AL91, AM97:AM111, "<=4")) -> 361 | AN112: =IF((OR(AA78="Forfeit",AA78="Win")),0,SUMIFS(AN77:AN91,AS97:AS111,"<=4")) -> 0 | AO112: =IF((OR(AA78="Forfeit",AA78="Win")),0,SUMIFS(AO77:AO91,AS97:AS111,"<=4")) -> 0 | AP112: =IF((OR(AA78="Forfeit",AA78="Win")),0,SUMIFS(AP77:AP91, AS97:AS111, "<=4")) -> 0 | AQ112: =IF((OR(AA78="Forfeit",AA78="Win")),0,SUMIFS(AQ77:AQ91, AS97:AS111, "<=4")) -> 0 | AR112: =IF((OR(AA78="Forfeit",AA78="Win")),0,SUMIFS(AR77:AR91, AS97:AS111, "<=4")) -> 0 | AT112: =IF((OR(AA79="Forfeit",AA79="Win")),0,SUMIFS(AT77:AT91,AY97:AY111,"<=4")) -> 0 | AU112: =IF((OR(AA79="Forfeit",AA79="Win")),0,SUMIFS(AU77:AU91,AY97:AY111,"<=4")) -> 0 | AV112: =IF((OR(AA79="Forfeit",AA79="Win")),0,SUMIFS(AV77:AV91, AY97:AY111, "<=4")) -> 0 | AW112: =IF((OR(AA79="Forfeit",AA79="Win")),0,SUMIFS(AW77:AW91, AY97:AY111, "<=4")) -> 0 | AX112: =IF((OR(AA79="Forfeit",AA79="Win")),0,SUMIFS(AX77:AX91, AY97:AY111, "<=4")) -> 0 | AZ112: =IF((OR(AA80="Forfeit",AA80="Win")),0,SUMIFS(AZ77:AZ91,BE97:BE111,"<=4")) -> 0 | BA112: =IF((OR(AA80="Forfeit",AA80="Win")),0,SUMIFS(BA77:BA91,BE97:BE111,"<=4")) -> 0 | BB112: =IF((OR(AA80="Forfeit",AA80="Win")),0,SUMIFS(BB77:BB91, BE97:BE111, "<=4")) -> 0 | BC112: =IF((OR(AA80="Forfeit",AA80="Win")),0,SUMIFS(BC77:BC91, BE97:BE111, "<=4")) -> 0 | BD112: =IF((OR(AA80="Forfeit",AA80="Win")),0,SUMIFS(BD77:BD91, BE97:BE111, "<=4")) -> 0 | BF112: =IF((OR(AA81="Forfeit",AA81="Win")),0,SUMIFS(BF77:BF91,BK97:BK111,"<=4")) -> 0 | BG112: =IF((OR(AA81="Forfeit",AA81="Win")),0,SUMIFS(BG77:BG91,BK97:BK111,"<=4")) -> 0 | BH112: =IF((OR(AA81="Forfeit",AA81="Win")),0,SUMIFS(BH77:BH91, BK97:BK111, "<=4")) -> 0 | BI112: =IF((OR(AA81="Forfeit",AA81="Win")),0,SUMIFS(BI77:BI91, BK97:BK111, "<=4")) -> 0 | BJ112: =IF((OR(AA81="Forfeit",AA81="Win")),0,SUMIFS(BJ77:BJ91, BK97:BK111, "<=4")) -> 0 | BL112: =IF((OR(AA82="Forfeit",AA82="Win")),0,SUMIFS(BL77:BL91,BQ97:BQ111,"<=4")) -> 0 | BM112: =IF((OR(AA82="Forfeit",AA82="Win")),0,SUMIFS(BM77:BM91,BQ97:BQ111,"<=4")) -> 0 | BN112: =IF((OR(AA82="Forfeit",AA82="Win")),0,SUMIFS(BN77:BN91, BQ97:BQ111, "<=4")) -> 0 | BO112: =IF((OR(AA82="Forfeit",AA82="Win")),0,SUMIFS(BO77:BO91, BQ97:BQ111, "<=4")) -> 0 | BP112: =IF((OR(AA82="Forfeit",AA82="Win")),0,SUMIFS(BP77:BP91, BQ97:BQ111, "<=4")) -> 0 | BR112: =IF((OR(AA83="Forfeit",AA83="Win")),0,SUMIFS(BR77:BR91,BW97:BW111,"<=4")) -> 0 | BS112: =IF((OR(AA83="Forfeit",AA83="Win")),0,SUMIFS(BS77:BS91,BW97:BW111,"<=4")) -> 0 | BT112: =IF((OR(AA83="Forfeit",AA83="Win")),0,SUMIFS(BT77:BT91, BW97:BW111, "<=4")) -> 0 | BU112: =IF((OR(AA83="Forfeit",AA83="Win")),0,SUMIFS(BU77:BU91, BW97:BW111, "<=4")) -> 0 | BV112: =IF((OR(AA83="Forfeit",AA83="Win")),0,SUMIFS(BV77:BV91, BW97:BW111, "<=4")) -> 0 | BX112: =IF((OR(AA84="Forfeit",AA84="Win")),0,SUMIFS(BX77:BX91,CC97:CC111,"<=4")) -> 0 | BY112: =IF((OR(AA84="Forfeit",AA84="Win")),0,SUMIFS(BY77:BY91,CC97:CC111,"<=4")) -> 0 | BZ112: =IF((OR(AA84="Forfeit",AA84="Win")),0,SUMIFS(BZ77:BZ91, CC97:CC111, "<=4")) -> 0 | CA112: =IF((OR(AA84="Forfeit",AA84="Win")),0,SUMIFS(CA77:CA91, CC97:CC111, "<=4")) -> 0 | CB112: =IF((OR(AA84="Forfeit",AA84="Win")),0,SUMIFS(CB77:CB91, CC97:CC111, "<=4")) -> 0 | CD112: =IF((OR(AA85="Forfeit",AA85="Win")),0,SUMIFS(CD77:CD91,CI97:CI111,"<=4")) -> 0 | CE112: =IF((OR(AA85="Forfeit",AA85="Win")),0,SUMIFS(CE77:CE91,CI97:CI111,"<=4")) -> 0 | CF112: =IF((OR(AA85="Forfeit",AA85="Win")),0,SUMIFS(CF77:CF91, CI97:CI111, "<=4")) -> 0 | CG112: =IF((OR(AA85="Forfeit",AA85="Win")),0,SUMIFS(CG77:CG91, CI97:CI111, "<=4")) -> 0 | CH112: =IF((OR(AA85="Forfeit",AA85="Win")),0,SUMIFS(CH77:CH91, CI97:CI111, "<=4")) -> 0 | CJ112: =IF((OR(AA86="Forfeit",AA86="Win")),0,SUMIFS(CJ77:CJ91,CO97:CO111,"<=4")) -> 0 | CK112: =IF((OR(AA86="Forfeit",AA86="Win")),0,SUMIFS(CK77:CK91,CO97:CO111,"<=4")) -> 0 | CL112: =IF((OR(AA86="Forfeit",AA86="Win")),0,SUMIFS(CL77:CL91, CO97:CO111, "<=4")) -> 0 | CM112: =IF((OR(AA86="Forfeit",AA86="Win")),0,SUMIFS(CM77:CM91, CO97:CO111, "<=4")) -> 0 | CN112: =IF((OR(AA86="Forfeit",AA86="Win")),0,SUMIFS(CN77:CN91, CO97:CO111, "<=4")) -> 0 | CP112: =IF((OR(AA87="Forfeit",AA87="Win")),0,SUMIFS(CP77:CP91,CU97:CU111,"<=4")) -> 0 | CQ112: =IF((OR(AA87="Forfeit",AA87="Win")),0,SUMIFS(CQ77:CQ91,CU97:CU111,"<=4")) -> 0 | CR112: =IF((OR(AA87="Forfeit",AA87="Win")),0,SUMIFS(CR77:CR91, CU97:CU111, "<=4")) -> 0 | CS112: =IF((OR(AA87="Forfeit",AA87="Win")),0,SUMIFS(CS77:CS91, CU97:CU111, "<=4")) -> 0 | CT112: =IF((OR(AA87="Forfeit",AA87="Win")),0,SUMIFS(CT77:CT91, CU97:CU111, "<=4")) -> 0 | CV112: =IF((OR(AA88="Forfeit",AA88="Win")),0,SUMIFS(CV77:CV91,DA97:DA111,"<=4")) -> 0 | CW112: =IF((OR(AA88="Forfeit",AA88="Win")),0,SUMIFS(CW77:CW91,DA97:DA111,"<=4")) -> 0 | CX112: =IF((OR(AA88="Forfeit",AA88="Win")),0,SUMIFS(CX77:CX91, DA97:DA111, "<=4")) -> 0 | CY112: =IF((OR(AA88="Forfeit",AA88="Win")),0,SUMIFS(CY77:CY91, DA97:DA111, "<=4")) -> 0 | CZ112: =IF((OR(AA88="Forfeit",AA88="Win")),0,SUMIFS(CZ77:CZ91, DA97:DA111, "<=4")) -> 0 | DB112: =IF((OR(AA89="Forfeit",AA89="Win")),0,SUMIFS(DB77:DB91,DG97:DG111,"<=4")) -> 0 | DC112: =IF((OR(AA89="Forfeit",AA89="Win")),0,SUMIFS(DC77:DC91,DG97:DG111,"<=4")) -> 0 | DD112: =IF((OR(AA89="Forfeit",AA89="Win")),0,SUMIFS(DD77:DD91, DG97:DG111, "<=4")) -> 0 | DE112: =IF((OR(AA89="Forfeit",AA89="Win")),0,SUMIFS(DE77:DE91, DG97:DG111, "<=4")) -> 0 | DF112: =IF((OR(AA89="Forfeit",AA89="Win")),0,SUMIFS(DF77:DF91, DG97:DG111, "<=4")) -> 0 | DH112: =IF((OR(AA90="Forfeit",AA90="Win")),0,SUMIFS(DH77:DH91,DM97:DM111,"<=4")) -> 0 | DI112: =IF((OR(AA90="Forfeit",AA90="Win")),0,SUMIFS(DI77:DI91,DM97:DM111,"<=4")) -> 0 | DJ112: =IF((OR(AA90="Forfeit",AA90="Win")),0,SUMIFS(DJ77:DJ91, DM97:DM111, "<=4")) -> 0 | DK112: =IF((OR(AA90="Forfeit",AA90="Win")),0,SUMIFS(DK77:DK91, DM97:DM111, "<=4")) -> 0 | DL112: =IF((OR(AA90="Forfeit",AA90="Win")),0,SUMIFS(DL77:DL91, DM97:DM111, "<=4")) -> 0 | DN112: =IF((OR(AA91="Forfeit",AA91="Win")),0,SUMIFS(DN77:DN91,DS97:DS111,"<=4")) -> 0 | DO112: =IF((OR(AA91="Forfeit",AA91="Win")),0,SUMIFS(DO77:DO91,DS97:DS111,"<=4")) -> 0 | DP112: =IF((OR(AA91="Forfeit",AA91="Win")),0,SUMIFS(DP77:DP91,DS97:DS111,"<=4")) -> 0 | DQ112: =IF((OR(AA91="Forfeit",AA91="Win")),0,SUMIFS(DQ77:DQ91,DS97:DS111,"<=4")) -> 0 | DR112: =IF((OR(AA91="Forfeit",AA91="Win")),0,SUMIFS(DR77:DR91,DS97:DS111,"<=4")) -> 0 | DT112: =IF((OR(AA92="Forfeit",AA92="Win")),0,SUMIFS(DT77:DT91,DY97:DY111,"<=4")) -> 0 | DU112: =IF((OR(AA92="Forfeit",AA92="Win")),0,SUMIFS(DU77:DU91,DY97:DY111,"<=4")) -> 0 | DV112: =IF((OR(AA92="Forfeit",AA92="Win")),0,SUMIFS(DV77:DV91,DY97:DY111,"<=4")) -> 0 | DW112: =IF((OR(AA92="Forfeit",AA92="Win")),0,SUMIFS(DW77:DW91,DY97:DY111,"<=4")) -> 0 | DX112: =IF((OR(AA92="Forfeit",AA92="Win")),0,SUMIFS(DX77:DX91,DY97:DY111,"<=4")) -> 0
A113: @ Dalton
A114: Etowah
A115: @ Woodstock
A116: Allatoona
A117: BYE
A118: @ Ridgeland
A119: Area Sectional/Playoff
A120: Area Championship
A121: Average | B121: =IF(SUM(B101:B120)=0,0,AVERAGE(B101:B120)) -> 0 | C121: =IF(SUM(C101:C120)=0,0,AVERAGE(C101:C120)) -> 0 | D121: =IF(SUM(D101:D120)=0,0,AVERAGE(D101:D120)) -> 0 | E121: =IF(SUM(E101:E120)=0,0,AVERAGE(E101:E120)) -> 0 | G121: =IF(SUM(G101:G120)=0,0,AVERAGE(G101:G120)) -> 0 | H121: =IF(SUM(H101:H120)=0,0,AVERAGE(H101:H120)) -> 0 | I121: =IF(SUM(I101:I120)=0,0,AVERAGE(I101:I120)) -> 0 | J121: =IF(SUM(J101:J120)=0,0,AVERAGE(J101:J120)) -> 0 | L121: =IF(SUM(L101:L120)=0,0,AVERAGE(L101:L120)) -> 0 | M121: =IF(SUM(M101:M120)=0,0,AVERAGE(M101:M120)) -> 0 | N121: =IF(SUM(N101:N120)=0,0,AVERAGE(N101:N120)) -> 0 | O121: =IF(SUM(O101:O120)=0,0,AVERAGE(O101:O120)) -> 0 | Q121: =IF(SUM(Q101:Q120)=0,0,AVERAGE(Q101:Q120)) -> 0 | R121: =IF(SUM(R101:R120)=0,0,AVERAGE(R101:R120)) -> 0 | S121: =IF(SUM(S101:S120)=0,0,AVERAGE(S101:S120)) -> 0 | T121: =IF(SUM(T101:T120)=0,0,AVERAGE(T101:T120)) -> 0 | V121: =IF(SUM(V101:V120)=0,0,AVERAGE(V101:V120)) -> 0 | W121: =IF(SUM(W101:W120)=0,0,AVERAGE(W101:W120)) -> 0 | X121: =IF(SUM(X101:X120)=0,0,AVERAGE(X101:X120)) -> 0 | Y121: =IF(SUM(Y101:Y120)=0,0,AVERAGE(Y101:Y120)) -> 0
AC122: =A98 -> CK
A123: Cherokee | B123: CK 11 | G123: CK 12 | L123: CK 13 | Q123: CK 14 | V123: CK 15 | AC123: =B115 -> 0 | AD123: =G115 -> 0 | AE123: =L115 -> 0 | AF123: =Q115 -> 0 | AG123: =V115 -> 0
A124: VS | B124: K | C124: P | D124: S | E124: AGGR | F124: *10 | G124: K | H124: P | I124: S | J124: AGGR | K124: *10 | L124: K | M124: P | N124: S | O124: AGGR | P124: *10 | Q124: K | R124: P | S124: S | T124: AGGR | U124: *10 | V124: K | W124: P | X124: S | Y124: AGGR | Z124: *10 | AC124: =IF(SUM(E117:E132)>0,LARGE(E117:E132,1),0) -> 0 | AD124: =IF(SUM(J117:J132)>0,LARGE(J117:J132,1),0) -> 0 | AE124: =IF(SUM(O117:O132)>0,LARGE(O117:O132,1),0) -> 0 | AF124: =IF(SUM(T117:T132)>0,LARGE(T117:T132,1),0) -> 0 | AG124: =IF(SUM(Y117:Y132)>0,LARGE(Y117:Y132,1),0) -> 0
A125: Cartersville | E125: =IF(SUM(B125:D125)>0,SUM(B125:D125),"") ->  | J125: =IF(SUM(G125:I125)>0,SUM(G125:I125),"") ->  | O125: =IF(SUM(L125:N125)>0,SUM(L125:N125),"") ->  | T125: =IF(SUM(Q125:S125)>0,SUM(Q125:S125),"") ->  | Y125: =IF(SUM(V125:X125)>0,SUM(V125:X125),"") -> 
A126: Gordon Central
A127: @ LaFayette | AA127: s
A128: Dalton | AA128: e
A129: @ Etowah | AA129: e
A130: Woodstock
A131: @ Allatoona | AA131: a
A132: BYE | AA132: b
A133: Ridgeland | AA133: o
A134: @ Cartersville | AA134: v
A135: @Gordon Central | AA135: e
A136: LaFayette
A137: @ Dalton
A138: Etowah
A139: @ Woodstock
A140: Allatoona
A141: BYE
A142: @ Ridgeland
A143: Area Sectional/Playoff
A144: Area Championship
A145: Average | B145: =IF(SUM(B125:B144)=0,0,AVERAGE(B125:B144)) -> 0 | C145: =IF(SUM(C125:C144)=0,0,AVERAGE(C125:C144)) -> 0 | D145: =IF(SUM(D125:D144)=0,0,AVERAGE(D125:D144)) -> 0 | E145: =IF(SUM(E125:E144)=0,0,AVERAGE(E125:E144)) -> 0 | G145: =IF(SUM(G125:G144)=0,0,AVERAGE(G125:G144)) -> 0 | H145: =IF(SUM(H125:H144)=0,0,AVERAGE(H125:H144)) -> 0 | I145: =IF(SUM(I125:I144)=0,0,AVERAGE(I125:I144)) -> 0 | J145: =IF(SUM(J125:J144)=0,0,AVERAGE(J125:J144)) -> 0 | L145: =IF(SUM(L125:L144)=0,0,AVERAGE(L125:L144)) -> 0 | M145: =IF(SUM(M125:M144)=0,0,AVERAGE(M125:M144)) -> 0 | N145: =IF(SUM(N125:N144)=0,0,AVERAGE(N125:N144)) -> 0 | O145: =IF(SUM(O125:O144)=0,0,AVERAGE(O125:O144)) -> 0 | Q145: =IF(SUM(Q125:Q144)=0,0,AVERAGE(Q125:Q144)) -> 0 | R145: =IF(SUM(R125:R144)=0,0,AVERAGE(R125:R144)) -> 0 | S145: =IF(SUM(S125:S144)=0,0,AVERAGE(S125:S144)) -> 0 | T145: =IF(SUM(T125:T144)=0,0,AVERAGE(T125:T144)) -> 0 | V145: =IF(SUM(V125:V144)=0,0,AVERAGE(V125:V144)) -> 0 | W145: =IF(SUM(W125:W144)=0,0,AVERAGE(W125:W144)) -> 0 | X145: =IF(SUM(X125:X144)=0,0,AVERAGE(X125:X144)) -> 0 | Y145: =IF(SUM(Y125:Y144)=0,0,AVERAGE(Y125:Y144)) -> 0
AK146: =TEXT(AH130, "000")&TEXT(AI130, "-00") & TEXT(AL130, "-000") & TEXT(AK130, "-000") & TEXT(AJ130, "-000") -> 000-00-000-000-000 | AL146: =COUNTIF(AK146:AK160, ">=" & AK146) -> 2 | AM146: =RANK(AL146,AL146:AL160,1)+COUNTIF(AK146:AK146,AK146)-1 -> 7 | AQ146: =TEXT(AN130, "000") & TEXT(AO130, "-00") & TEXT(AR130, "-000") & TEXT(AQ130, "-000") & TEXT(AP130, "-000") -> 000-00-000-000-000 | AR146: =COUNTIF(AQ146:AQ160, ">=" & AQ146) -> 2 | AS146: =RANK(AR146,AR146:AR160,1)+COUNTIF(AQ146:AQ146,AQ146)-1 -> 9 | AW146: =TEXT(AT130, "000") & TEXT(AU130, "-00") & TEXT(AX130, "-000") & TEXT(AW130, "-000") & TEXT(AV130, "-000") -> 000-00-000-000-000 | AX146: =COUNTIF(AW146:AW160, ">=" & AW146) -> 2 | AY146: =RANK(AX146,AX146:AX160,1)+COUNTIF(AW146:AW146,AW146)-1 -> 12 | BC146: =TEXT(AZ130, "000") & TEXT(BA130, "-00") & TEXT(BD130, "-000") & TEXT(BC130, "-000") & TEXT(BB130, "-000") -> 000-00-000-000-000 | BD146: =COUNTIF(BC146:BC160, ">=" & BC146) -> 7 | BE146: =RANK(BD146,BD146:BD160,1)+COUNTIF(BC146:BC146,BC146)-1 -> 7 | BI146: =TEXT(BF130, "000") & TEXT(BG130, "-00") & TEXT(BJ130, "-000") & TEXT(BI130, "-000") & TEXT(BH130, "-000") -> 000-00-000-000-000 | BJ146: =COUNTIF(BI146:BI160, ">=" & BI146) -> 2 | BK146: =RANK(BJ146,BJ146:BJ160,1)+COUNTIF(BI146:BI146,BI146)-1 -> 9 | BO146: =TEXT(BL130, "000") & TEXT(BM130, "-00") & TEXT(BP130, "-000") & TEXT(BO130, "-000") & TEXT(BN130, "-000") -> 000-00-000-000-000 | BP146: =COUNTIF(BO146:BO160, ">=" & BO146) -> 2 | BQ146: =RANK(BP146,BP146:BP160,1)+COUNTIF(BO146:BO146,BO146)-1 -> 10 | BU146: =TEXT(BR130, "000") & TEXT(BS130, "-00") & TEXT(BV130, "-000") & TEXT(BU130, "-000") & TEXT(BT130, "-000") -> 000-00-000-000-000 | BV146: =COUNTIF(BU146:BU160, ">=" & BU146) -> 2 | BW146: =RANK(BV146,BV146:BV160,1)+COUNTIF(BU146:BU146,BU146)-1 -> 12 | CA146: =TEXT(BX130, "000") & TEXT(BY130, "-00") & TEXT(CB130, "-000") & TEXT(CA130, "-000") & TEXT(BZ130, "-000") -> 000-00-000-000-000 | CB146: =COUNTIF(CA146:CA160, ">=" & CA146) -> 3 | CC146: =RANK(CB146,CB146:CB160,1)+COUNTIF(CA146:CA146,CA146)-1 -> 11 | CG146: =TEXT(CD130, "000") & TEXT(CE130, "-00") & TEXT(CH130, "-000") & TEXT(CG130, "-000") & TEXT(CF130, "-000") -> 000-00-000-000-000 | CH146: =COUNTIF(CG146:CG160, ">=" & CG146) -> 2 | CI146: =RANK(CH146,CH146:CH160,1)+COUNTIF(CG146:CG146,CG146)-1 -> 12 | CM146: =TEXT(CJ130, "000") & TEXT(CK130, "-00") & TEXT(CN130, "-000") & TEXT(CM130, "-000") & TEXT(CL130, "-000") -> 000-00-000-000-000 | CN146: =COUNTIF(CM146:CM160, ">=" & CM146) -> 2 | CO146: =RANK(CN146,CN146:CN160,1)+COUNTIF(CM146:CM146,CM146)-1 -> 12 | CS146: =TEXT(CP130, "000") & TEXT(CQ130, "-00") & TEXT(CT130, "-000") & TEXT(CS130, "-000") & TEXT(CR130, "-000") -> 000-00-000-000-000 | CT146: =COUNTIF(CS146:CS160, ">=" & CS146) -> 2 | CU146: =RANK(CT146,CT146:CT160,1)+COUNTIF(CS146:CS146,CS146)-1 -> 12 | CY146: =TEXT(CV130, "000") & TEXT(CW130, "-00") & TEXT(CZ130, "-000") & TEXT(CY130, "-000") & TEXT(CX130, "-000") -> 000-00-000-000-000 | CZ146: =COUNTIF(CY146:CY160, ">=" & CY146) -> 2 | DA146: =RANK(CZ146,CZ146:CZ160,1)+COUNTIF(CY146:CY146,CY146)-1 -> 12 | DE146: =TEXT(DB130, "000") & TEXT(DC130, "-00") & TEXT(DF130, "-000") & TEXT(DE130, "-000") & TEXT(DD130, "-000") -> 000-00-000-000-000 | DF146: =COUNTIF(DE146:DE160, ">=" & DE146) -> 2 | DG146: =RANK(DF146,DF146:DF160,1)+COUNTIF(DE146:DE146,DE146)-1 -> 12 | DK146: =TEXT(DH130, "000") & TEXT(DI130, "-00") & TEXT(DL130, "-000") & TEXT(DK130, "-000") & TEXT(DJ130, "-000") -> 000-00-000-000-000 | DL146: =COUNTIF(DK146:DK160, ">=" & DK146) -> 2 | DM146: =RANK(DL146,DL146:DL160,1)+COUNTIF(DK146:DK146,DK146)-1 -> 12 | DQ146: =TEXT(DN130, "000") & TEXT(DO130, "-00") & TEXT(DR130, "-000") & TEXT(DQ130, "-000") & TEXT(DP130, "-000") -> 000-00-000-000-000 | DR146: =COUNTIF(DQ146:DQ160, ">=" & DQ146) -> 2 | DS146: =RANK(DR146,DR146:DR160,1)+COUNTIF(DQ146:DQ146,DQ146)-1 -> 12 | DW146: =TEXT(DT130, "000") & TEXT(DU130, "-00") & TEXT(DX130, "-000") & TEXT(DW130, "-000") & TEXT(DV130, "-000") -> 000-00-000-000-000 | DX146: =COUNTIF(DW146:DW160, ">=" & DW146) -> 2 | DY146: =RANK(DX146,DX146:DX160,1)+COUNTIF(DW146:DW146,DW146)-1 -> 12
AC147: =A171 -> DL
A148: Dalton | B148: Barrera, Cesar (10) | G148: Borjas, Daniel (9) | L148: Cero, Jelissa (100 | Q148: Garcia-Lopez, Jaylin (9) | V148: Hunter, Michael (9) | AA148: MATCH | AC148: =B148 -> Barrera, Cesar (10) | AD148: =G148 -> Borjas, Daniel (9) | AE148: =L148 -> Cero, Jelissa (100 | AF148: =Q148 -> Garcia-Lopez, Jaylin (9) | AG148: =V148 -> Hunter, Michael (9) | AH148: Match 1 | AM148: RK | AN148: Match 2 | AS148: RK | AT148: Match 3 | AY148: RK | AZ148: Match 4 | BE148: RK | BF148: Match 5 | BK148: RK | BL148: Match 6 | BQ148: RK | BR148: Match 7 | BW148: RK | BX148: Match 8 | CC148: RK | CD148: Match 9 | CI148: RK | CJ148: Match 10 | CO148: RK | CP148: Match 11 | CU148: RK | CV148: Match 12 | DA148: RK | DB148: Match 13 | DG148: RK | DH148: Match 14 | DM148: RK | DN148: Area Sectional/Playoff | DS148: RK | DT148: Area Championship | DY148: RK | DZ148: AGGR | EA148: Kneeling | EB148: Prone | EC148: Standing
A149: VS | B149: K | C149: P | D149: S | E149: AGGR | F149: *10 | G149: K | H149: P | I149: S | J149: AGGR | K149: *10 | L149: K | M149: P | N149: S | O149: AGGR | P149: *10 | Q149: K | R149: P | S149: S | T149: AGGR | U149: *10 | V149: K | W149: P | X149: S | Y149: AGGR | Z149: *10 | AA149: SCORE | AB149: *10 | AC149: =IF(SUM(E150:E165)>0,LARGE(E150:E165,1),0) -> 169 | AD149: =IF(SUM(J150:J165)>0,LARGE(J150:J165,1),0) -> 133 | AE149: =IF(SUM(O150:O165)>0,LARGE(O150:O165,1),0) -> 194 | AF149: =IF(SUM(T150:T165)>0,LARGE(T150:T165,1),0) -> 0 | AG149: =IF(SUM(Y150:Y165)>0,LARGE(Y150:Y165,1),0) -> 0 | AH149: AGGR | AI149: *10 | AJ149: K | AK149: P | AL149: S | AN149: AGGR | AO149: *10 | AP149: K | AQ149: P | AR149: S | AT149: AGGR | AU149: *10 | AV149: K | AW149: P | AX149: S | AZ149: AGGR | BA149: *10 | BB149: K | BC149: P | BD149: S | BF149: AGGR | BG149: *10 | BH149: K | BI149: P | BJ149: S | BL149: AGGR | BM149: *10 | BN149: K | BO149: P | BP149: S | BR149: AGGR | BS149: *10 | BT149: K | BU149: P | BV149: S | BX149: AGGR | BY149: *10 | BZ149: K | CA149: P | CB149: S | CD149: AGGR | CE149: *10 | CF149: K | CG149: P | CH149: S | CJ149: AGGR | CK149: *10 | CL149: K | CM149: P | CN149: S | CP149: AGGR | CQ149: *10 | CR149: K | CS149: P | CT149: S | CV149: AGGR | CW149: *10 | CX149: K | CY149: P | CZ149: S | DB149: AGGR | DC149: *10 | DD149: K | DE149: P | DF149: S | DH149: AGGR | DI149: *10 | DJ149: K | DK149: P | DL149: S | DN149: AGGR | DO149: *10 | DP149: K | DQ149: P | DR149: S | DT149: AGGR | DU149: *10 | DV149: K | DW149: P | DX149: S | DZ149: Large | EA149: Large | EB149: Large | EC149: Large
A150: Gordon Central | B150: 59 | C150: 69 | D150: 41 | E150: =IF(SUM(B150:D150)>0,SUM(B150:D150),"") -> 169 | F150: 0 | J150: =IF(SUM(G150:I150)>0,SUM(G150:I150),"") ->  | L150: 66 | M150: 61 | N150: 39 | O150: =IF(SUM(L150:N150)>0,SUM(L150:N150),"") -> 166 | P150: 1 | T150: =IF(SUM(Q150:S150)>0,SUM(Q150:S150),"") ->  | Y150: =IF(SUM(V150:X150)>0,SUM(V150:X150),"") ->  | AA150: =IF(SUM(E150,J150,O150,T150,Y150,Y174,T174,O174,J174,E174,E198,J198,O198,T198,Y198)>0,(LARGE((E150,J150,O150,T150,Y150,Y174,T174,O174,J174,E174,E198,J198,O198,T198,Y198),1)+LARGE((E150,J150,O150,T150,Y150,Y174,T174,O174,J174,E174,E198,J198,O198,T198,Y198),2)+LARGE((E150,J150,O150,T150,Y150,Y174,T174,O174,J174,E174,E198,J198,O198,T198,Y198),3)+LARGE((E150,J150,O150,T150,Y150,Y174,T174,O174,J174,E174,E198,J198,O198,T198,Y198),4)),"") -> 744 | AB150: 3 | AH150: =IF(SUM(B150:D150)>0,SUM(B150:D150),0) -> 169 | AI150: =IF(SUM(F150)>0,SUM(F150),0) -> 0 | AJ150: =B150 -> 59 | AK150: =C150 -> 69 | AL150: =D150 -> 41 | AN150: =IF(SUM(B151:D151)>0,SUM(B151:D151),0) -> 158 | AO150: =IF(SUM(F151)>0,SUM(F151),0) -> 1 | AP150: =B151 -> 47 | AQ150: =C151 -> 67 | AR150: =D151 -> 44 | AT150: =IF(SUM(B152:D152)>0,SUM(B152:D152),0) -> 0 | AU150: =IF(SUM(F152)>0,SUM(F152),0) -> 0 | AV150: =B152 -> 0 | AW150: =C152 -> 0 | AX150: =D152 -> 0 | AZ150: =IF(SUM(B153:D153)>0,SUM(B153:D153),0) -> 0 | BA150: =IF(SUM(F153)>0,SUM(F153),0) -> 0 | BB150: =B153 -> 0 | BC150: =C153 -> 0 | BD150: =D153 -> 0 | BF150: =IF(SUM(B154:D154)>0,SUM(B154:D154),0) -> 0 | BG150: =IF(SUM(F154)>0,SUM(F154),0) -> 0 | BH150: =B154 -> 0 | BI150: =C154 -> 0 | BJ150: =D154 -> 0 | BL150: =IF(SUM(B155:D155)>0,SUM(B155:D155),0) -> 0 | BM150: =IF(SUM(F155)>0,SUM(F155),0) -> 0 | BN150: =B155 -> 0 | BO150: =C155 -> 0 | BP150: =D155 -> 0 | BR150: =IF(SUM(B156:D156)>0,SUM(B156:D156),0) -> 0 | BS150: =IF(SUM(F156)>0,SUM(F156),0) -> 0 | BT150: =B156 -> 0 | BU150: =C156 -> 0 | BV150: =D156 -> 0 | BX150: =IF(SUM(B157:D157)>0,SUM(B157:D157),0) -> 0 | BY150: =IF(SUM(F157)>0,SUM(F157),0) -> 0 | BZ150: =B157 -> 0 | CA150: =C157 -> 0 | CB150: =D157 -> 0 | CD150: =IF(SUM(B158:D158)>0,SUM(B158:D158),0) -> 0 | CE150: =IF(SUM(F158)>0,SUM(F158),0) -> 0 | CF150: =B158 -> 0 | CG150: =C158 -> 0 | CH150: =D158 -> 0 | CJ150: =IF(SUM(B159:D159)>0,SUM(B159:D159),0) -> 0 | CK150: =IF(SUM(F159)>0,SUM(F159),0) -> 0 | CL150: =B159 -> 0 | CM150: =C159 -> 0 | CN150: =D159 -> 0 | CP150: =IF(SUM(B160:D160)>0,SUM(B160:D160),0) -> 0 | CQ150: =IF(SUM(F160)>0,SUM(F160),0) -> 0 | CR150: =B160 -> 0 | CS150: =C160 -> 0 | CT150: =D160 -> 0 | CV150: =IF(SUM(B161:D161)>0,SUM(B161:D161),0) -> 0 | CW150: =IF(SUM(F161)>0,SUM(F161),0) -> 0 | CX150: =B161 -> 0 | CY150: =C161 -> 0 | CZ150: =D161 -> 0 | DB150: =IF(SUM(B162:D162)>0,SUM(B162:D162),0) -> 0 | DC150: =IF(SUM(F162)>0,SUM(F162),0) -> 0 | DD150: =B162 -> 0 | DE150: =C162 -> 0 | DF150: =D162 -> 0 | DH150: =IF(SUM(B163:D163)>0,SUM(B163:D163),0) -> 0 | DI150: =IF(SUM(F163)>0,SUM(F163),0) -> 0 | DJ150: =B163 -> 0 | DK150: =C163 -> 0 | DL150: =D163 -> 0 | DN150: =IF(SUM(B164:D164)>0,SUM(B164:D164),0) -> 0 | DO150: =IF(SUM(F164)>0,SUM(F164),0) -> 0 | DP150: =B164 -> 0 | DQ150: =C164 -> 0 | DR150: =D164 -> 0 | DT150: =IF(SUM(B165:D165)>0,SUM(B165:D165),0) -> 0 | DU150: =IF(SUM(F165)>0,SUM(F165),0) -> 0 | DV150: =B165 -> 0 | DW150: =C165 -> 0 | DX150: =D165 -> 0 | DZ150: =LARGE((DT150,DN150,DH150,DB150,CV150,CP150,CJ150,CD150,BX150,BR150,BL150,BF150,AZ150,AT150,AN150,AH150),1) -> 169 | EA150: =LARGE((AJ150,AP150,AV150,BB150,BH150,BN150,BT150,BZ150,CF150,CL150,CR150,CX150,DD150,DJ150,DP150,DV150),1) -> 59 | EB150: =LARGE((AK150,AQ150,AW150,BC150,BI150,BO150,BU150,CA150,CG150,CM150,CS150,CY150,DE150,DK150,DQ150,DW150),1) -> 69 | EC150: =LARGE((AL150,AR150,AX150,BD150,BJ150,BP150,BV150,CB150,CH150,CN150,CT150,CZ150,DF150,DL150,DR150,DX150),1) -> 44
